Workbook

Sheet START (hidden)
B4: You must enable macros before using this workbook
A24: **Please note that this worksheet can't be used with Excel 2008 as macros are not supported in that version of Excel.

Sheet Instructions
A1: Quick Reference Table | L1: Division | M1: Department | N1: Starting Step | O1: Advanced to Candidacy Step
A2: GSR (Resident) | E2: GSR (Non-resident) | I2: Postdoc | L2: PBSci | M2: Astronomy | N2: 5 | O2: 5
A3: Level | B3: Approximate cost (including fringe/tuition/fees) | E3: Level | F3: Approximate cost (including fringe/tuition/fees) | I3: Level | J3: Approximate cost per year (including average fringe rate) | L3: PBSci | M3: Biology - MCD | N3: 5 | O3: 5
B4: Academic | C4: Summer | D4: Full Year | F4: Academic | G4: Summer | H4: Full Year | L4: PBSci | M4: Biology - EEB | N4: 4 | O4: 5
A5: 1 | B5: ='Salary Tables'!$C$10*9*0.5*1.025+('Salary Tables'!$B$43+'Salary Tables'!$B$45+'Salary Tables'!$B$46)*9 -> 43824.24 | C5: ='Salary Tables'!C10*3*1.03 -> 16735.44 | D5: =B5+C5 -> 60559.68 | E5: 1 | F5: ='Salary Tables'!$C$10*9*0.5*1.025+('Salary Tables'!$B$44+'Salary Tables'!$B$45+'Salary Tables'!$B$46)*9 -> 58926.24 | G5: ='Salary Tables'!C10*3*1.03 -> 16735.44 | H5: =F5+G5 -> 75661.68 | I5: 0 | J5: ='Salary Tables'!B19*12*(1+'Salary Tables'!AA19) -> 69780 | L5: PBSci | M5: PBSE / MSCB | N5: 5 | O5: 5
A6: 2 | B6: ='Salary Tables'!$D$10*9*0.5*1.025+('Salary Tables'!$B$43+'Salary Tables'!$B$45+'Salary Tables'!$B$46)*9 -> 45761.49 | C6: ='Salary Tables'!D10*3*1.03 -> 18033.24 | D6: =B6+C6 -> 63794.73 | E6: 2 | F6: ='Salary Tables'!$D$10*9*0.5*1.025+('Salary Tables'!$B$44+'Salary Tables'!$B$45+'Salary Tables'!$B$46)*9 -> 60863.49 | G6: ='Salary Tables'!D10*3*1.03 -> 18033.24 | H6: =F6+G6 -> 78896.73 | I6: 1 | J6: ='Salary Tables'!C19*12*(1+'Salary Tables'!AA19) -> 72361.86 | L6: PBSci | M6: Chemistry | N6: 5 | O6: 5
A7: 3 | B7: ='Salary Tables'!$E$10*9*0.5*1.025+('Salary Tables'!$B$43+'Salary Tables'!$B$45+'Salary Tables'!$B$46)*9 -> 47846.34 | C7: ='Salary Tables'!E10*3*1.03 -> 19429.92 | D7: 67276.26 | E7: 3 | F7: ='Salary Tables'!$E$10*9*0.5*1.025+('Salary Tables'!$B$44+'Salary Tables'!$B$45+'Salary Tables'!$B$46)*9 -> 62948.34 | G7: ='Salary Tables'!E10*3*1.03 -> 19429.92 | H7: 82378.26 | I7: 2 | J7: ='Salary Tables'!D19*12*(1+'Salary Tables'!AA19) -> 75041.412 | L7: PBSci | M7: Earth Sciences | N7: 4 | O7: 5
A8: 4 | B8: ='Salary Tables'!$F$10*9*0.5*1.025+('Salary Tables'!$B$43+'Salary Tables'!$B$45+'Salary Tables'!$B$46)*9 -> 50092.6275 | C8: ='Salary Tables'!F10*3*1.03 -> 20934.75 | D8: 71027.3775 | E8: 4 | F8: ='Salary Tables'!$F$10*9*0.5*1.025+('Salary Tables'!$B$44+'Salary Tables'!$B$45+'Salary Tables'!$B$46)*9 -> 65194.6275 | G8: ='Salary Tables'!F10*3*1.03 -> 20934.75 | H8: 86129.3775 | I8: 3 | J8: ='Salary Tables'!E19*12*(1+'Salary Tables'!AA19) -> 77818.656 | L8: PBSci | M8: Math | N8: 3 | O8: 3
A9: 5 | B9: ='Salary Tables'!$G$10*9*0.5*1.025+('Salary Tables'!$B$43+'Salary Tables'!$B$45+'Salary Tables'!$B$46)*9 -> 52514.19 | C9: ='Salary Tables'!G10*3*1.03 -> 22557 | D9: 75071.19 | E9: 5 | F9: ='Salary Tables'!$G$10*9*0.5*1.025+('Salary Tables'!$B$44+'Salary Tables'!$B$45+'Salary Tables'!$B$46)*9 -> 67616.19 | G9: ='Salary Tables'!G10*3*1.03 -> 22557 | H9: 90173.19 | I9: 4 | J9: ='Salary Tables'!F19*12*(1+'Salary Tables'!AA19) -> 80693.592 | L9: PBSci | M9: METX | N9: 5 | O9: 5
A10: 6 | B10: ='Salary Tables'!$H$10*9*0.5*1.025+('Salary Tables'!$B$43+'Salary Tables'!$B$45+'Salary Tables'!$B$46)*9 -> 55124.865 | C10: ='Salary Tables'!H10*3*1.03 -> 24305.94 | D10: 79430.805 | E10: 6 | F10: ='Salary Tables'!$H$10*9*0.5*1.025+('Salary Tables'!$B$44+'Salary Tables'!$B$45+'Salary Tables'!$B$46)*9 -> 70226.865 | G10: ='Salary Tables'!H10*3*1.03 -> 24305.94 | H10: 94532.805 | I10: 5 | J10: ='Salary Tables'!G19*12*(1+'Salary Tables'!AA19) -> 83680.176 | L10: PBSci | M10: Ocean Sciences | N10: 4 | O10: 5
L11: PBSci | M11: Physics | N11: 3 | O11: 4
L12: PBSci | M12: Sci Comm | N12: 1 | O12: 1
L13: Arts | M13: All | N13: 1/2 | O13: 3
L14: Humanities | M14: All except Linguistics | N14: 2 | O14: 3
L15: Humanities | M15: Linguistics | N15: 3 | O15: 4
L16: Social Sciences | M16: All | N16: 3/4 | O16: 5
A17: Budget Pointers | L17: Engineering | M17: All except BME & CBSE | N17: 3 | O17: 5
L18: Engineering | M18: BME & CBSE | N18: 5 | O18: 5
A19: General Usage
A20: • The budget can only be used if macros are enabled
A21: • This budget must be reviewed and approved by your OSP Representative before it can be submitted to the sponsor or uploaded to Cayuse
A22: • Only the purple cells can be edited or selected
A23: • To add additional budget item lines, click on the button in the desired section
A24: • The budget automatically saves when closed
A25: • To start a new budget, download a fresh budget form from the OSP Cayuse website (http://officeofresearch.ucsc.edu/osp/cayuse/index.html)
A26: • This budget is only for requested sponsor funds; the cost share budget can be downloaded at (http://officeofresearch.ucsc.edu/osp/cayuse/index.html)
A28: Project Information Section
A29: • Please enter as much information as possible
A30: • Selecting a Project Location will autofill the IDC Rate for estimation purposes. The IDC rate can be overridden if the actual rate is known.
A31: • The number of Periods is defaulted to 5. Please clear this cell and then enter the appropriate value to adjust the number of Budget Periods shown.
A32: • Dates for each Period only need to be entered if each Period Length is different than 1 Year
A34: Salary Information Section
A35: • For each person, enter all information on the budget page (including # months and % effort for each budget period) and then click on hyperlink to enter additional required information
A36: • Monthly or Hourly Salary Rate can be overridden on the Salary & Fringe tab (hyperlinked) in the cell to the right of the displayed rate (purple cell)
A37: • The fringe rate can be overridden in the cell to the right of the fringe that is displayed (purple cell)
A38: • Each line automatically defaults to one person, but this can be changed on the Salary & Fringe tab (hyperlinked)
A39: • Hourly Salary Rate will automatically be multiplied by 174 to give Monthly Rate
A40: • The Cost of Living increase is automatically set to 3% for year 1 and then all subsequent years. This can be changed if desired.
A42: Cayuse Summary Budget
A43: • This information is only for OSP personnel to enter into Cayuse SP once the budget is finalized
A45: NSF Layout
A46: • At the bottom of the Budget tab there are buttons that will open tabs that show the budget years in NSF format
A48: Grants.gov Detailed Budget Layout
A49: • At the bottom of the Budget tab there are buttons that will open tabs that show the budget years in Grants.gov detailed budget format (geared towards NIH, but can be used for others as well)

Sheet Budget
A1: Please see Instructions tab for questions and for Quick Reference to GSR/Postdoc Salaries
A2: PI:
A3: Title:
A4: Agency:
A6: Project Start Date: | C6: Project End Date:
A8: Number of Periods: | B8: 5
A9: Project Location: | B9: Select One | C9: Funding Type: | D9: Federal
A10: IDC Rate: | B10: =IF(B9="On-Campus",55%,(IF(B9="Off-Campus", 26%," "))) ->  | C10: IDC Type: | D10: Select One
A12: Cayuse Proposal Number:
A13: Preparer:
A14: Budget Prepared Date: | C14: Revised Date:
A16: UCSC Cost Share Budget | F16: Period | Z16: Total | AA16: FOAPAL/Notes
F17: 1 | H17: 2 | J17: 3 | L17: 4 | N17: 5 | P17: 6 | R17: 7 | T17: 8 | V17: 9 | X17: 10
E18: Start Date:
E19: End Date:
A20: Salary Information | C20: Click here to add salary & fringe information
A21: Name | B21: Project Role | D21: Appt Type | E21: Level
D22: Select One | E22: Select One | F22: =IFERROR(ROUND(IF(OFFSET('Salary & Fringe'!H2,2,0)>0,IF(ISNUMBER(SEARCH("Hourly",OFFSET('Salary & Fringe'!F2,2,0))),OFFSET('Salary & Fringe'!H2,2,0)*Budget!F23*Budget!G23*174*OFFSET('Salary & Fringe'!I2,2,0)*(1+C23)^0*(1+B23),OFFSET('Salary & Fringe'!H2,2,0)*Budget!F23*Budget!G23*OFFSET('Salary & Fringe'!I2,2,0)*(1+C23)^0*(1+B23)),IF(ISNUMBER(SEARCH("Hourly",OFFSET('Salary & Fringe'!F2,2,0))),OFFSET('Salary & Fringe'!G2,2,0)*Budget!F23*Budget!G23*174*OFFSET('Salary & Fringe'!I2,2,0)*(1+C23)^0*(1+B23),OFFSET('Salary & Fringe'!G2,2,0)*Budget!F23*Budget!G23*OFFSET('Salary & Fringe'!I2,2,0)*(1+C23)^0*(1+B23))),0),"") ->  | H22: =IFERROR(ROUND(IF(OFFSET('Salary & Fringe'!H2,2,0)>0,IF(ISNUMBER(SEARCH("Hourly",OFFSET('Salary & Fringe'!F2,2,0))),OFFSET('Salary & Fringe'!H2,2,0)*Budget!H23*Budget!I23*174*OFFSET('Salary & Fringe'!I2,2,0)*(1+C23)^1*(1+B23),OFFSET('Salary & Fringe'!H2,2,0)*Budget!H23*Budget!I23*OFFSET('Salary & Fringe'!I2,2,0)*(1+C23)^1*(1+B23)),IF(ISNUMBER(SEARCH("Hourly",OFFSET('Salary & Fringe'!F2,2,0))),OFFSET('Salary & Fringe'!G2,2,0)*Budget!H23*Budget!I23*174*OFFSET('Salary & Fringe'!I2,2,0)*(1+C23)^1*(1+B23),OFFSET('Salary & Fringe'!G2,2,0)*Budget!H23*Budget!I23*OFFSET('Salary & Fringe'!I2,2,0)*(1+C23)^1*(1+B23))),0),"") ->  | J22: =IFERROR(ROUND(IF(OFFSET('Salary & Fringe'!H2,2,0)>0,IF(ISNUMBER(SEARCH("Hourly",OFFSET('Salary & Fringe'!F2,2,0))),OFFSET('Salary & Fringe'!H2,2,0)*Budget!J23*Budget!K23*174*OFFSET('Salary & Fringe'!I2,2,0)*(1+C23)^2*(1+B23),OFFSET('Salary & Fringe'!H2,2,0)*Budget!J23*Budget!K23*OFFSET('Salary & Fringe'!I2,2,0)*(1+C23)^2*(1+B23)),IF(ISNUMBER(SEARCH("Hourly",OFFSET('Salary & Fringe'!F2,2,0))),OFFSET('Salary & Fringe'!G2,2,0)*Budget!J23*Budget!K23*174*OFFSET('Salary & Fringe'!I2,2,0)*(1+C23)^2*(1+B23),OFFSET('Salary & Fringe'!G2,2,0)*Budget!J23*Budget!K23*OFFSET('Salary & Fringe'!I2,2,0)*(1+C23)^2*(1+B23))),0),"") ->  | L22: =IFERROR(ROUND(IF(OFFSET('Salary & Fringe'!H2,2,0)>0,IF(ISNUMBER(SEARCH("Hourly",OFFSET('Salary & Fringe'!F2,2,0))),OFFSET('Salary & Fringe'!H2,2,0)*Budget!L23*Budget!M23*174*OFFSET('Salary & Fringe'!I2,2,0)*(1+C23)^3*(1+B23),OFFSET('Salary & Fringe'!H2,2,0)*Budget!L23*Budget!M23*OFFSET('Salary & Fringe'!I2,2,0)*(1+C23)^3*(1+B23)),IF(ISNUMBER(SEARCH("Hourly",OFFSET('Salary & Fringe'!F2,2,0))),OFFSET('Salary & Fringe'!G2,2,0)*Budget!L23*Budget!M23*174*OFFSET('Salary & Fringe'!I2,2,0)*(1+C23)^3*(1+B23),OFFSET('Salary & Fringe'!G2,2,0)*Budget!L23*Budget!M23*OFFSET('Salary & Fringe'!I2,2,0)*(1+C23)^3*(1+B23))),0),"") ->  | N22: =IFERROR(ROUND(IF(OFFSET('Salary & Fringe'!H2,2,0)>0,IF(ISNUMBER(SEARCH("Hourly",OFFSET('Salary & Fringe'!F2,2,0))),OFFSET('Salary & Fringe'!H2,2,0)*Budget!N23*Budget!O23*174*OFFSET('Salary & Fringe'!I2,2,0)*(1+C23)^4*(1+B23),OFFSET('Salary & Fringe'!H2,2,0)*Budget!N23*Budget!O23*OFFSET('Salary & Fringe'!I2,2,0)*(1+C23)^4*(1+B23)),IF(ISNUMBER(SEARCH("Hourly",OFFSET('Salary & Fringe'!F2,2,0))),OFFSET('Salary & Fringe'!G2,2,0)*Budget!N23*Budget!O23*174*OFFSET('Salary & Fringe'!I2,2,0)*(1+C23)^4*(1+B23),OFFSET('Salary & Fringe'!G2,2,0)*Budget!N23*Budget!O23*OFFSET('Salary & Fringe'!I2,2,0)*(1+C23)^4*(1+B23))),0),"") ->  | P22: =IFERROR(ROUND(IF(OFFSET('Salary & Fringe'!H2,2,0)>0,IF(ISNUMBER(SEARCH("Hourly",OFFSET('Salary & Fringe'!F2,2,0))),OFFSET('Salary & Fringe'!H2,2,0)*Budget!P23*Budget!Q23*174*OFFSET('Salary & Fringe'!I2,2,0)*(1+C23)^5*(1+B23),OFFSET('Salary & Fringe'!H2,2,0)*Budget!P23*Budget!Q23*OFFSET('Salary & Fringe'!I2,2,0)*(1+C23)^5*(1+B23)),IF(ISNUMBER(SEARCH("Hourly",OFFSET('Salary & Fringe'!F2,2,0))),OFFSET('Salary & Fringe'!G2,2,0)*Budget!P23*Budget!Q23*174*OFFSET('Salary & Fringe'!I2,2,0)*(1+C23)^5*(1+B23),OFFSET('Salary & Fringe'!G2,2,0)*Budget!P23*Budget!Q23*OFFSET('Salary & Fringe'!I2,2,0)*(1+C23)^5*(1+B23))),0),"") ->  | R22: =IFERROR(ROUND(IF(OFFSET('Salary & Fringe'!H2,2,0)>0,IF(ISNUMBER(SEARCH("Hourly",OFFSET('Salary & Fringe'!F2,2,0))),OFFSET('Salary & Fringe'!H2,2,0)*Budget!R23*Budget!S23*174*OFFSET('Salary & Fringe'!I2,2,0)*(1+C23)^6*(1+B23),OFFSET('Salary & Fringe'!H2,2,0)*Budget!R23*Budget!S23*OFFSET('Salary & Fringe'!I2,2,0)*(1+C23)^6*(1+B23)),IF(ISNUMBER(SEARCH("Hourly",OFFSET('Salary & Fringe'!F2,2,0))),OFFSET('Salary & Fringe'!G2,2,0)*Budget!R23*Budget!S23*174*OFFSET('Salary & Fringe'!I2,2,0)*(1+C23)^6*(1+B23),OFFSET('Salary & Fringe'!G2,2,0)*Budget!R23*Budget!S23*OFFSET('Salary & Fringe'!I2,2,0)*(1+C23)^6*(1+B23))),0),"") ->  | T22: =IFERROR(ROUND(IF(OFFSET('Salary & Fringe'!H2,2,0)>0,IF(ISNUMBER(SEARCH("Hourly",OFFSET('Salary & Fringe'!F2,2,0))),OFFSET('Salary & Fringe'!H2,2,0)*Budget!T23*Budget!U23*174*OFFSET('Salary & Fringe'!I2,2,0)*(1+C23)^7*(1+B23),OFFSET('Salary & Fringe'!H2,2,0)*Budget!T23*Budget!U23*OFFSET('Salary & Fringe'!I2,2,0)*(1+C23)^7*(1+B23)),IF(ISNUMBER(SEARCH("Hourly",OFFSET('Salary & Fringe'!F2,2,0))),OFFSET('Salary & Fringe'!G2,2,0)*Budget!T23*Budget!U23*174*OFFSET('Salary & Fringe'!I2,2,0)*(1+C23)^7*(1+B23),OFFSET('Salary & Fringe'!G2,2,0)*Budget!T23*Budget!U23*OFFSET('Salary & Fringe'!I2,2,0)*(1+C23)^7*(1+B23))),0),"") ->  | V22: =IFERROR(ROUND(IF(OFFSET('Salary & Fringe'!H2,2,0)>0,IF(ISNUMBER(SEARCH("Hourly",OFFSET('Salary & Fringe'!F2,2,0))),OFFSET('Salary & Fringe'!H2,2,0)*Budget!V23*Budget!W23*174*OFFSET('Salary & Fringe'!I2,2,0)*(1+C23)^8*(1+B23),OFFSET('Salary & Fringe'!H2,2,0)*Budget!V23*Budget!W23*OFFSET('Salary & Fringe'!I2,2,0)*(1+C23)^8*(1+B23)),IF(ISNUMBER(SEARCH("Hourly",OFFSET('Salary & Fringe'!F2,2,0))),OFFSET('Salary & Fringe'!G2,2,0)*Budget!V23*Budget!W23*174*OFFSET('Salary & Fringe'!I2,2,0)*(1+C23)^8*(1+B23),OFFSET('Salary & Fringe'!G2,2,0)*Budget!V23*Budget!W23*OFFSET('Salary & Fringe'!I2,2,0)*(1+C23)^8*(1+B23))),0),"") ->  | X22: =IFERROR(ROUND(IF(OFFSET('Salary & Fringe'!H2,2,0)>0,IF(ISNUMBER(SEARCH("Hourly",OFFSET('Salary & Fringe'!F2,2,0))),OFFSET('Salary & Fringe'!H2,2,0)*Budget!X23*Budget!Y23*174*OFFSET('Salary & Fringe'!I2,2,0)*(1+C23)^9*(1+B23),OFFSET('Salary & Fringe'!H2,2,0)*Budget!X23*Budget!Y23*OFFSET('Salary & Fringe'!I2,2,0)*(1+C23)^9*(1+B23)),IF(ISNUMBER(SEARCH("Hourly",OFFSET('Salary & Fringe'!F2,2,0))),OFFSET('Salary & Fringe'!G2,2,0)*Budget!X23*Budget!Y23*174*OFFSET('Salary & Fringe'!I2,2,0)*(1+C23)^9*(1+B23),OFFSET('Salary & Fringe'!G2,2,0)*Budget!X23*Budget!Y23*OFFSET('Salary & Fringe'!I2,2,0)*(1+C23)^9*(1+B23))),0),"") ->  | Z22: =SUM(F22:Y22) -> 0
A23: COL Increase (initial/annual) | B23: 0.045 | C23: 0.045 | D23: Months/Time %
D24: Select One | E24: Select One | F24: =IFERROR(ROUND(IF(OFFSET('Salary & Fringe'!H4,2,0)>0,IF(ISNUMBER(SEARCH("Hourly",OFFSET('Salary & Fringe'!F4,2,0))),OFFSET('Salary & Fringe'!H4,2,0)*Budget!F25*Budget!G25*174*OFFSET('Salary & Fringe'!I4,2,0)*(1+C25)^0*(1+B25),OFFSET('Salary & Fringe'!H4,2,0)*Budget!F25*Budget!G25*OFFSET('Salary & Fringe'!I4,2,0)*(1+C25)^0*(1+B25)),IF(ISNUMBER(SEARCH("Hourly",OFFSET('Salary & Fringe'!F4,2,0))),OFFSET('Salary & Fringe'!G4,2,0)*Budget!F25*Budget!G25*174*OFFSET('Salary & Fringe'!I4,2,0)*(1+C25)^0*(1+B25),OFFSET('Salary & Fringe'!G4,2,0)*Budget!F25*Budget!G25*OFFSET('Salary & Fringe'!I4,2,0)*(1+C25)^0*(1+B25))),0),"") ->  | H24: =IFERROR(ROUND(IF(OFFSET('Salary & Fringe'!H4,2,0)>0,IF(ISNUMBER(SEARCH("Hourly",OFFSET('Salary & Fringe'!F4,2,0))),OFFSET('Salary & Fringe'!H4,2,0)*Budget!H25*Budget!I25*174*OFFSET('Salary & Fringe'!I4,2,0)*(1+C25)^1*(1+B25),OFFSET('Salary & Fringe'!H4,2,0)*Budget!H25*Budget!I25*OFFSET('Salary & Fringe'!I4,2,0)*(1+C25)^1*(1+B25)),IF(ISNUMBER(SEARCH("Hourly",OFFSET('Salary & Fringe'!F4,2,0))),OFFSET('Salary & Fringe'!G4,2,0)*Budget!H25*Budget!I25*174*OFFSET('Salary & Fringe'!I4,2,0)*(1+C25)^1*(1+B25),OFFSET('Salary & Fringe'!G4,2,0)*Budget!H25*Budget!I25*OFFSET('Salary & Fringe'!I4,2,0)*(1+C25)^1*(1+B25))),0),"") ->  | J24: =IFERROR(ROUND(IF(OFFSET('Salary & Fringe'!H4,2,0)>0,IF(ISNUMBER(SEARCH("Hourly",OFFSET('Salary & Fringe'!F4,2,0))),OFFSET('Salary & Fringe'!H4,2,0)*Budget!J25*Budget!K25*174*OFFSET('Salary & Fringe'!I4,2,0)*(1+C25)^2*(1+B25),OFFSET('Salary & Fringe'!H4,2,0)*Budget!J25*Budget!K25*OFFSET('Salary & Fringe'!I4,2,0)*(1+C25)^2*(1+B25)),IF(ISNUMBER(SEARCH("Hourly",OFFSET('Salary & Fringe'!F4,2,0))),OFFSET('Salary & Fringe'!G4,2,0)*Budget!J25*Budget!K25*174*OFFSET('Salary & Fringe'!I4,2,0)*(1+C25)^2*(1+B25),OFFSET('Salary & Fringe'!G4,2,0)*Budget!J25*Budget!K25*OFFSET('Salary & Fringe'!I4,2,0)*(1+C25)^2*(1+B25))),0),"") ->  | L24: =IFERROR(ROUND(IF(OFFSET('Salary & Fringe'!H4,2,0)>0,IF(ISNUMBER(SEARCH("Hourly",OFFSET('Salary & Fringe'!F4,2,0))),OFFSET('Salary & Fringe'!H4,2,0)*Budget!L25*Budget!M25*174*OFFSET('Salary & Fringe'!I4,2,0)*(1+C25)^3*(1+B25),OFFSET('Salary & Fringe'!H4,2,0)*Budget!L25*Budget!M25*OFFSET('Salary & Fringe'!I4,2,0)*(1+C25)^3*(1+B25)),IF(ISNUMBER(SEARCH("Hourly",OFFSET('Salary & Fringe'!F4,2,0))),OFFSET('Salary & Fringe'!G4,2,0)*Budget!L25*Budget!M25*174*OFFSET('Salary & Fringe'!I4,2,0)*(1+C25)^3*(1+B25),OFFSET('Salary & Fringe'!G4,2,0)*Budget!L25*Budget!M25*OFFSET('Salary & Fringe'!I4,2,0)*(1+C25)^3*(1+B25))),0),"") ->  | N24: =IFERROR(ROUND(IF(OFFSET('Salary & Fringe'!H4,2,0)>0,IF(ISNUMBER(SEARCH("Hourly",OFFSET('Salary & Fringe'!F4,2,0))),OFFSET('Salary & Fringe'!H4,2,0)*Budget!N25*Budget!O25*174*OFFSET('Salary & Fringe'!I4,2,0)*(1+C25)^4*(1+B25),OFFSET('Salary & Fringe'!H4,2,0)*Budget!N25*Budget!O25*OFFSET('Salary & Fringe'!I4,2,0)*(1+C25)^4*(1+B25)),IF(ISNUMBER(SEARCH("Hourly",OFFSET('Salary & Fringe'!F4,2,0))),OFFSET('Salary & Fringe'!G4,2,0)*Budget!N25*Budget!O25*174*OFFSET('Salary & Fringe'!I4,2,0)*(1+C25)^4*(1+B25),OFFSET('Salary & Fringe'!G4,2,0)*Budget!N25*Budget!O25*OFFSET('Salary & Fringe'!I4,2,0)*(1+C25)^4*(1+B25))),0),"") ->  | P24: =IFERROR(ROUND(IF(OFFSET('Salary & Fringe'!H4,2,0)>0,IF(ISNUMBER(SEARCH("Hourly",OFFSET('Salary & Fringe'!F4,2,0))),OFFSET('Salary & Fringe'!H4,2,0)*Budget!P25*Budget!Q25*174*OFFSET('Salary & Fringe'!I4,2,0)*(1+C25)^5*(1+B25),OFFSET('Salary & Fringe'!H4,2,0)*Budget!P25*Budget!Q25*OFFSET('Salary & Fringe'!I4,2,0)*(1+C25)^5*(1+B25)),IF(ISNUMBER(SEARCH("Hourly",OFFSET('Salary & Fringe'!F4,2,0))),OFFSET('Salary & Fringe'!G4,2,0)*Budget!P25*Budget!Q25*174*OFFSET('Salary & Fringe'!I4,2,0)*(1+C25)^5*(1+B25),OFFSET('Salary & Fringe'!G4,2,0)*Budget!P25*Budget!Q25*OFFSET('Salary & Fringe'!I4,2,0)*(1+C25)^5*(1+B25))),0),"") ->  | R24: =IFERROR(ROUND(IF(OFFSET('Salary & Fringe'!H4,2,0)>0,IF(ISNUMBER(SEARCH("Hourly",OFFSET('Salary & Fringe'!F4,2,0))),OFFSET('Salary & Fringe'!H4,2,0)*Budget!R25*Budget!S25*174*OFFSET('Salary & Fringe'!I4,2,0)*(1+C25)^6*(1+B25),OFFSET('Salary & Fringe'!H4,2,0)*Budget!R25*Budget!S25*OFFSET('Salary & Fringe'!I4,2,0)*(1+C25)^6*(1+B25)),IF(ISNUMBER(SEARCH("Hourly",OFFSET('Salary & Fringe'!F4,2,0))),OFFSET('Salary & Fringe'!G4,2,0)*Budget!R25*Budget!S25*174*OFFSET('Salary & Fringe'!I4,2,0)*(1+C25)^6*(1+B25),OFFSET('Salary & Fringe'!G4,2,0)*Budget!R25*Budget!S25*OFFSET('Salary & Fringe'!I4,2,0)*(1+C25)^6*(1+B25))),0),"") ->  | T24: =IFERROR(ROUND(IF(OFFSET('Salary & Fringe'!H4,2,0)>0,IF(ISNUMBER(SEARCH("Hourly",OFFSET('Salary & Fringe'!F4,2,0))),OFFSET('Salary & Fringe'!H4,2,0)*Budget!T25*Budget!U25*174*OFFSET('Salary & Fringe'!I4,2,0)*(1+C25)^7*(1+B25),OFFSET('Salary & Fringe'!H4,2,0)*Budget!T25*Budget!U25*OFFSET('Salary & Fringe'!I4,2,0)*(1+C25)^7*(1+B25)),IF(ISNUMBER(SEARCH("Hourly",OFFSET('Salary & Fringe'!F4,2,0))),OFFSET('Salary & Fringe'!G4,2,0)*Budget!T25*Budget!U25*174*OFFSET('Salary & Fringe'!I4,2,0)*(1+C25)^7*(1+B25),OFFSET('Salary & Fringe'!G4,2,0)*Budget!T25*Budget!U25*OFFSET('Salary & Fringe'!I4,2,0)*(1+C25)^7*(1+B25))),0),"") ->  | V24: =IFERROR(ROUND(IF(OFFSET('Salary & Fringe'!H4,2,0)>0,IF(ISNUMBER(SEARCH("Hourly",OFFSET('Salary & Fringe'!F4,2,0))),OFFSET('Salary & Fringe'!H4,2,0)*Budget!V25*Budget!W25*174*OFFSET('Salary & Fringe'!I4,2,0)*(1+C25)^8*(1+B25),OFFSET('Salary & Fringe'!H4,2,0)*Budget!V25*Budget!W25*OFFSET('Salary & Fringe'!I4,2,0)*(1+C25)^8*(1+B25)),IF(ISNUMBER(SEARCH("Hourly",OFFSET('Salary & Fringe'!F4,2,0))),OFFSET('Salary & Fringe'!G4,2,0)*Budget!V25*Budget!W25*174*OFFSET('Salary & Fringe'!I4,2,0)*(1+C25)^8*(1+B25),OFFSET('Salary & Fringe'!G4,2,0)*Budget!V25*Budget!W25*OFFSET('Salary & Fringe'!I4,2,0)*(1+C25)^8*(1+B25))),0),"") ->  | X24: =IFERROR(ROUND(IF(OFFSET('Salary & Fringe'!H4,2,0)>0,IF(ISNUMBER(SEARCH("Hourly",OFFSET('Salary & Fringe'!F4,2,0))),OFFSET('Salary & Fringe'!H4,2,0)*Budget!X25*Budget!Y25*174*OFFSET('Salary & Fringe'!I4,2,0)*(1+C25)^9*(1+B25),OFFSET('Salary & Fringe'!H4,2,0)*Budget!X25*Budget!Y25*OFFSET('Salary & Fringe'!I4,2,0)*(1+C25)^9*(1+B25)),IF(ISNUMBER(SEARCH("Hourly",OFFSET('Salary & Fringe'!F4,2,0))),OFFSET('Salary & Fringe'!G4,2,0)*Budget!X25*Budget!Y25*174*OFFSET('Salary & Fringe'!I4,2,0)*(1+C25)^9*(1+B25),OFFSET('Salary & Fringe'!G4,2,0)*Budget!X25*Budget!Y25*OFFSET('Salary & Fringe'!I4,2,0)*(1+C25)^9*(1+B25))),0),"") ->  | Z24: =SUM(F24:Y24) -> 0
A25: COL Increase (initial/annual) | B25: 0.045 | C25: 0.045 | D25: Months/Time %
A26: Total Salary | F26: =SUMPRODUCT(--(MOD(ROW(F22:F22:OFFSET(TotalSalary1,-2,0))-ROW(F22)+0,2)=0),F22:F22:OFFSET(TotalSalary1,-2,0)) -> 0 | H26: =SUMPRODUCT(--(MOD(ROW(H22:H22:OFFSET(TotalSalary2,-2,0))-ROW(H22)+0,2)=0),H22:H22:OFFSET(TotalSalary2,-2,0)) -> 0 | J26: =SUMPRODUCT(--(MOD(ROW(J22:J22:OFFSET(TotalSalary3,-2,0))-ROW(J22)+0,2)=0),J22:J22:OFFSET(TotalSalary3,-2,0)) -> 0 | L26: =SUMPRODUCT(--(MOD(ROW(L22:L22:OFFSET(TotalSalary4,-2,0))-ROW(L22)+0,2)=0),L22:L22:OFFSET(TotalSalary4,-2,0)) -> 0 | N26: =SUMPRODUCT(--(MOD(ROW(N22:N22:OFFSET(TotalSalary5,-2,0))-ROW(N22)+0,2)=0),N22:N22:OFFSET(TotalSalary5,-2,0)) -> 0 | P26: =SUMPRODUCT(--(MOD(ROW(P22:P22:OFFSET(TotalSalary6,-2,0))-ROW(P22)+0,2)=0),P22:P22:OFFSET(TotalSalary6,-2,0)) -> 0 | R26: =SUMPRODUCT(--(MOD(ROW(R22:R22:OFFSET(TotalSalary7,-2,0))-ROW(R22)+0,2)=0),R22:R22:OFFSET(TotalSalary7,-2,0)) -> 0 | T26: =SUMPRODUCT(--(MOD(ROW(T22:T22:OFFSET(TotalSalary8,-2,0))-ROW(T22)+0,2)=0),T22:T22:OFFSET(TotalSalary8,-2,0)) -> 0 | V26: =SUMPRODUCT(--(MOD(ROW(V22:V22:OFFSET(TotalSalary9,-2,0))-ROW(V22)+0,2)=0),V22:V22:OFFSET(TotalSalary9,-2,0)) -> 0 | X26: =SUMPRODUCT(--(MOD(ROW(X22:X22:OFFSET(TotalSalary10,-2,0))-ROW(X22)+0,2)=0),X22:X22:OFFSET(TotalSalary10,-2,0)) -> 0 | Z26: =SUM(F26:Y26) -> 0
A27: Fringe Information
A28: Name | B28: Project Role | D28: Appt Type | E28: Level
A29: =IF(ISBLANK(A22),"",A22) ->  | B29: =IF(ISBLANK(B22),"",B22) ->  | D29: =IF(ISBLANK(D22),"",D22) -> Select One | E29: =IF(ISBLANK(E22),"",E22) -> Select One | F29: =IFERROR(ROUND(IF(F30="",(F22*$B30),(F22*$F30)),0),"") ->  | H29: =IFERROR(ROUND(IF(H30="",(H22*$B30),(H22*$H30)),0),"") ->  | J29: =IFERROR(ROUND(IF(J30="",(J22*$B30),(J22*$J30)),0),"") ->  | L29: =IFERROR(ROUND(IF(L30="",(L22*$B30),(L22*$L30)),0),"") ->  | N29: =IFERROR(ROUND(IF(N30="",(N22*$B30),(N22*$N30)),0),"") ->  | P29: =IFERROR(ROUND(IF(P30="",(P22*$B30),(P22*$P30)),0),"") ->  | R29: =IFERROR(ROUND(IF(R30="",(R22*$B30),(R22*$R30)),0),"") ->  | T29: =IFERROR(ROUND(IF(T30="",(T22*$B30),(T22*$T30)),0),"") ->  | V29: =IFERROR(ROUND(IF(V30="",(V22*$B30),(V22*$V30)),0),"") ->  | X29: =IFERROR(ROUND(IF(X30="",(X22*$B30),(X22*$X30)),0),"") ->  | Z29: =SUM(F29:Y29) -> 0
A30: Fringe % | B30: =IF($D$9="Federal",IF(C30="", IFERROR(IF(ISNUMBER(SEARCH("GSR*",OFFSET(B30,-1,2))),IF(ISNUMBER(SEARCH("Summer",OFFSET('Salary & Fringe'!F2,2,0))),VLOOKUP(OFFSET(B30,-1,2),'Salary Tables'!$A$1:'Salary Tables'!$AD$55,25,FALSE),VLOOKUP(OFFSET(B30,-1,2),'Salary Tables'!$A$1:'Salary Tables'!$AD$55,26,FALSE)),IF(ISNUMBER(SEARCH("PROF*",OFFSET(B30,-1,2))),IF(ISNUMBER(SEARCH("Summer",OFFSET('Salary & Fringe'!F2,2,0))),VLOOKUP(OFFSET(B30,-1,2),'Salary Tables'!$A$1:'Salary Tables'!$AD$55,25,FALSE),VLOOKUP(OFFSET(B30,-1,2),'Salary Tables'!$A$1:'Salary Tables'!$AD$55,26,FALSE)),IF(ISNUMBER(SEARCH("UNDERGRAD",D29)),IF(ISNUMBER(SEARCH("Summer",OFFSET('Salary & Fringe'!F2,2,0))),VLOOKUP(OFFSET(B30,-1,2),'Salary Tables'!$A$1:'Salary Tables'!$AD$55,25,FALSE),VLOOKUP(OFFSET(B30,-1,2),'Salary Tables'!$A$1:'Salary Tables'!$AD$55,26,FALSE)),VLOOKUP(OFFSET(B30,-1,2),'Salary Tables'!$A$1:'Salary Tables'!$AD$55,27,FALSE)))),""), C30),IF($D$9="Non-Federal",IF(C30="", IFERROR(IF(ISNUMBER(SEARCH("GSR*",OFFSET(B30,-1,2))),IF(ISNUMBER(SEARCH("Summer",OFFSET('Salary & Fringe'!F2,2,0))),VLOOKUP(OFFSET(B30,-1,2),'Salary Tables'!$A$1:'Salary Tables'!$AD$55,28,FALSE),VLOOKUP(OFFSET(B30,-1,2),'Salary Tables'!$A$1:'Salary Tables'!$AD$55,29,FALSE)),IF(ISNUMBER(SEARCH("PROF*",OFFSET(B30,-1,2))),IF(ISNUMBER(SEARCH("Summer",OFFSET('Salary & Fringe'!F2,2,0))),VLOOKUP(OFFSET(B30,-1,2),'Salary Tables'!$A$1:'Salary Tables'!$AD$55,28,FALSE),VLOOKUP(OFFSET(B30,-1,2),'Salary Tables'!$A$1:'Salary Tables'!$AD$55,29,FALSE)),IF(ISNUMBER(SEARCH("UNDERGRAD",D29)),IF(ISNUMBER(SEARCH("Summer",OFFSET('Salary & Fringe'!F2,2,0))),VLOOKUP(OFFSET(B30,-1,2),'Salary Tables'!$A$1:'Salary Tables'!$AD$55,28,FALSE),VLOOKUP(OFFSET(B30,-1,2),'Salary Tables'!$A$1:'Salary Tables'!$AD$55,29,FALSE)),VLOOKUP(OFFSET(B30,-1,2),'Salary Tables'!$A$1:'Salary Tables'!$AD$55,30,FALSE)))),""), C30),"")) ->  | D30: Override
A31: =IF(ISBLANK(A24),"",A24) ->  | B31: =IF(ISBLANK(B24),"",B24) ->  | D31: =IF(ISBLANK(D24),"",D24) -> Select One | E31: =IF(ISBLANK(E24),"",E24) -> Select One | F31: =IFERROR(ROUND(IF(F32="",(F24*$B32),(F24*$F32)),0),"") ->  | H31: =IFERROR(ROUND(IF(H32="",(H24*$B32),(H24*$H32)),0),"") ->  | J31: =IFERROR(ROUND(IF(J32="",(J24*$B32),(J24*$J32)),0),"") ->  | L31: =IFERROR(ROUND(IF(L32="",(L24*$B32),(L24*$L32)),0),"") ->  | N31: =IFERROR(ROUND(IF(N32="",(N24*$B32),(N24*$N32)),0),"") ->  | P31: =IFERROR(ROUND(IF(P32="",(P24*$B32),(P24*$P32)),0),"") ->  | R31: =IFERROR(ROUND(IF(R32="",(R24*$B32),(R24*$R32)),0),"") ->  | T31: =IFERROR(ROUND(IF(T32="",(T24*$B32),(T24*$T32)),0),"") ->  | V31: =IFERROR(ROUND(IF(V32="",(V24*$B32),(V24*$V32)),0),"") ->  | X31: =IFERROR(ROUND(IF(X32="",(X24*$B32),(X24*$X32)),0),"") ->  | Z31: =SUM(F31:Y31) -> 0
A32: Fringe % | B32: =IF($D$9="Federal",IF(C32="", IFERROR(IF(ISNUMBER(SEARCH("GSR*",OFFSET(B32,-1,2))),IF(ISNUMBER(SEARCH("Summer",OFFSET('Salary & Fringe'!F4,2,0))),VLOOKUP(OFFSET(B32,-1,2),'Salary Tables'!$A$1:'Salary Tables'!$AD$55,25,FALSE),VLOOKUP(OFFSET(B32,-1,2),'Salary Tables'!$A$1:'Salary Tables'!$AD$55,26,FALSE)),IF(ISNUMBER(SEARCH("PROF*",OFFSET(B32,-1,2))),IF(ISNUMBER(SEARCH("Summer",OFFSET('Salary & Fringe'!F4,2,0))),VLOOKUP(OFFSET(B32,-1,2),'Salary Tables'!$A$1:'Salary Tables'!$AD$55,25,FALSE),VLOOKUP(OFFSET(B32,-1,2),'Salary Tables'!$A$1:'Salary Tables'!$AD$55,26,FALSE)),IF(ISNUMBER(SEARCH("UNDERGRAD",D31)),IF(ISNUMBER(SEARCH("Summer",OFFSET('Salary & Fringe'!F4,2,0))),VLOOKUP(OFFSET(B32,-1,2),'Salary Tables'!$A$1:'Salary Tables'!$AD$55,25,FALSE),VLOOKUP(OFFSET(B32,-1,2),'Salary Tables'!$A$1:'Salary Tables'!$AD$55,26,FALSE)),VLOOKUP(OFFSET(B32,-1,2),'Salary Tables'!$A$1:'Salary Tables'!$AD$55,27,FALSE)))),""), C32),IF($D$9="Non-Federal",IF(C32="", IFERROR(IF(ISNUMBER(SEARCH("GSR*",OFFSET(B32,-1,2))),IF(ISNUMBER(SEARCH("Summer",OFFSET('Salary & Fringe'!F4,2,0))),VLOOKUP(OFFSET(B32,-1,2),'Salary Tables'!$A$1:'Salary Tables'!$AD$55,28,FALSE),VLOOKUP(OFFSET(B32,-1,2),'Salary Tables'!$A$1:'Salary Tables'!$AD$55,29,FALSE)),IF(ISNUMBER(SEARCH("PROF*",OFFSET(B32,-1,2))),IF(ISNUMBER(SEARCH("Summer",OFFSET('Salary & Fringe'!F4,2,0))),VLOOKUP(OFFSET(B32,-1,2),'Salary Tables'!$A$1:'Salary Tables'!$AD$55,28,FALSE),VLOOKUP(OFFSET(B32,-1,2),'Salary Tables'!$A$1:'Salary Tables'!$AD$55,29,FALSE)),IF(ISNUMBER(SEARCH("UNDERGRAD",D31)),IF(ISNUMBER(SEARCH("Summer",OFFSET('Salary & Fringe'!F4,2,0))),VLOOKUP(OFFSET(B32,-1,2),'Salary Tables'!$A$1:'Salary Tables'!$AD$55,28,FALSE),VLOOKUP(OFFSET(B32,-1,2),'Salary Tables'!$A$1:'Salary Tables'!$AD$55,29,FALSE)),VLOOKUP(OFFSET(B32,-1,2),'Salary Tables'!$A$1:'Salary Tables'!$AD$55,30,FALSE)))),""), C32),"")) ->  | D32: Override
A33: Total Fringe | F33: =SUMPRODUCT(--(MOD(ROW(Fringe1:Fringe1:OFFSET(TotalFringe1,-2,0))-ROW(Fringe1)+0,2)=0),Fringe1:Fringe1:OFFSET(TotalFringe1,-2,0)) -> 0 | H33: =SUMPRODUCT(--(MOD(ROW(Fringe2:Fringe2:OFFSET(TotalFringe2,-2,0))-ROW(Fringe2)+0,2)=0),Fringe2:Fringe2:OFFSET(TotalFringe2,-2,0)) -> 0 | J33: =SUMPRODUCT(--(MOD(ROW(Fringe3:Fringe3:OFFSET(TotalFringe3,-2,0))-ROW(Fringe3)+0,2)=0),Fringe3:Fringe3:OFFSET(TotalFringe3,-2,0)) -> 0 | L33: =SUMPRODUCT(--(MOD(ROW(Fringe4:Fringe4:OFFSET(TotalFringe4,-2,0))-ROW(Fringe4)+0,2)=0),Fringe4:Fringe4:OFFSET(TotalFringe4,-2,0)) -> 0 | N33: =SUMPRODUCT(--(MOD(ROW(Fringe5:Fringe5:OFFSET(TotalFringe5,-2,0))-ROW(Fringe5)+0,2)=0),Fringe5:Fringe5:OFFSET(TotalFringe5,-2,0)) -> 0 | P33: =SUMPRODUCT(--(MOD(ROW(Fringe6:Fringe6:OFFSET(TotalFringe6,-2,0))-ROW(Fringe6)+0,2)=0),Fringe6:Fringe6:OFFSET(TotalFringe6,-2,0)) -> 0 | R33: =SUMPRODUCT(--(MOD(ROW(Fringe7:Fringe7:OFFSET(TotalFringe7,-2,0))-ROW(Fringe7)+0,2)=0),Fringe7:Fringe7:OFFSET(TotalFringe7,-2,0)) -> 0 | T33: =SUMPRODUCT(--(MOD(ROW(Fringe8:Fringe8:OFFSET(TotalFringe8,-2,0))-ROW(Fringe8)+0,2)=0),Fringe8:Fringe8:OFFSET(TotalFringe8,-2,0)) -> 0 | V33: =SUMPRODUCT(--(MOD(ROW(Fringe9:Fringe9:OFFSET(TotalFringe9,-2,0))-ROW(Fringe9)+0,2)=0),Fringe9:Fringe9:OFFSET(TotalFringe9,-2,0)) -> 0 | X33: =SUMPRODUCT(--(MOD(ROW(Fringe10:Fringe10:OFFSET(TotalFringe10,-2,0))-ROW(Fringe10)+0,2)=0),Fringe10:Fringe10:OFFSET(TotalFringe10,-2,0)) -> 0 | Z33: =SUM(F33:Y33) -> 0
A34: Total Salary and Fringe | F34: =TotalSalary1+TotalFringe1 -> 0 | H34: =TotalSalary2+TotalFringe2 -> 0 | J34: =TotalSalary3+TotalFringe3 -> 0 | L34: =TotalSalary4+TotalFringe4 -> 0 | N34: =TotalSalary5+TotalFringe5 -> 0 | P34: =TotalSalary6+TotalFringe6 -> 0 | R34: =TotalSalary7+TotalFringe7 -> 0 | T34: =TotalSalary8+TotalFringe8 -> 0 | V34: =TotalSalary9+TotalFringe9 -> 0 | X34: =TotalSalary10+TotalFringe10 -> 0 | Z34: =SUM(F34:Y34) -> 0
A35: Domestic Travel Information
A36: Name | B36: Destination
Z37: =SUM(F37:Y37) -> 0
Z38: =SUM(F38:Y38) -> 0
A39: Total Domestic Travel | F39: =SUM(F37:F38) -> 0 | H39: =SUM(H37:H38) -> 0 | J39: =SUM(J37:J38) -> 0 | L39: =SUM(L37:L38) -> 0 | N39: =SUM(N37:N38) -> 0 | P39: =SUM(P37:P38) -> 0 | R39: =SUM(R37:R38) -> 0 | T39: =SUM(T37:T38) -> 0 | V39: =SUM(V37:V38) -> 0 | X39: =SUM(X37:X38) -> 0 | Z39: =SUM(F39:Y39) -> 0
A40: Foreign Travel Information
A41: Name | B41: Destination
Z42: =SUM(F42:Y42) -> 0
Z43: =SUM(F43:Y43) -> 0
A44: Total Foreign Travel | F44: =SUM(F42:F43) -> 0 | H44: =SUM(H42:H43) -> 0 | J44: =SUM(J42:J43) -> 0 | L44: =SUM(L42:L43) -> 0 | N44: =SUM(N42:N43) -> 0 | P44: =SUM(P42:P43) -> 0 | R44: =SUM(R42:R43) -> 0 | T44: =SUM(T42:T43) -> 0 | V44: =SUM(V42:V43) -> 0 | X44: =SUM(X42:X43) -> 0 | Z44: =SUM(F44:Y44) -> 0
A45: Permanent Equipment
A46: Description
Z47: =SUM(F47:Y47) -> 0
Z48: =SUM(F48:Y48) -> 0
Z49: =SUM(F49:Y49) -> 0
Z50: 0
Z51: =SUM(F51:Y51) -> 0
A52: Total Equipment | F52: =SUM(F47:F51) -> 0 | H52: =SUM(H47:H51) -> 0 | J52: =SUM(J47:J51) -> 0 | L52: =SUM(L47:L51) -> 0 | N52: =SUM(N47:N51) -> 0 | P52: =SUM(P47:P51) -> 0 | R52: =SUM(R47:R51) -> 0 | T52: =SUM(T47:T51) -> 0 | V52: =SUM(V47:V51) -> 0 | X52: =SUM(X47:X51) -> 0 | Z52: =SUM(F52:Y52) -> 0
A53: Participant Support
A54: Type | B54: Description
A55: Select One | Z55: =SUM(F55:Y55) -> 0
A56: Select One | Z56: =SUM(F56:Y56) -> 0
A57: Total Participant Support | F57: =SUM(F55:F56) -> 0 | H57: =SUM(H55:H56) -> 0 | J57: =SUM(J55:J56) -> 0 | L57: =SUM(L55:L56) -> 0 | N57: =SUM(N55:N56) -> 0 | P57: =SUM(P55:P56) -> 0 | R57: =SUM(R55:R56) -> 0 | T57: =SUM(T55:T56) -> 0 | V57: =SUM(V55:V56) -> 0 | X57: =SUM(X55:X56) -> 0 | Z57: =SUM(F57:Y57) -> 0
A58: Subrecipients
A59: Institution | B59: Subrecipient PI
D60: Subrecipient Direct Costs
D61: Subrecipient Indirect Costs
D62: Subrecipient Total | F62: =SUM(F60:G61) -> 0 | H62: =SUM(H60:I61) -> 0 | J62: =SUM(J60:K61) -> 0 | L62: =SUM(L60:M61) -> 0 | N62: =SUM(N60:O61) -> 0 | P62: =SUM(P60:Q61) -> 0 | R62: =SUM(R60:S61) -> 0 | T62: =SUM(T60:U61) -> 0 | V62: =SUM(V60:W61) -> 0 | X62: =SUM(X60:Y61) -> 0 | Z62: =SUM(F62:Y62) -> 0
D63: Subrecipient Direct Costs
D64: Subrecipient Indirect Costs
D65: Subrecipient Total | F65: =SUM(F63:G64) -> 0 | H65: =SUM(H63:I64) -> 0 | J65: =SUM(J63:K64) -> 0 | L65: =SUM(L63:M64) -> 0 | N65: =SUM(N63:O64) -> 0 | P65: =SUM(P63:Q64) -> 0 | R65: =SUM(R63:S64) -> 0 | T65: =SUM(T63:U64) -> 0 | V65: =SUM(V63:W64) -> 0 | X65: =SUM(X63:Y64) -> 0 | Z65: =SUM(F65:Y65) -> 0
A66: Total Subrecipients | F66: =SUMPRODUCT(--(MOD(ROW(Subs1:Subs1:OFFSET(TotalSubs1,-1,0))-ROW(Subs1)+0,3)=0),Subs1:Subs1:OFFSET(TotalSubs1,-1,0)) -> 0 | H66: =SUMPRODUCT(--(MOD(ROW(Subs2:Subs2:OFFSET(TotalSubs2,-1,0))-ROW(Subs2)+0,3)=0),Subs2:Subs2:OFFSET(TotalSubs2,-1,0)) -> 0 | J66: =SUMPRODUCT(--(MOD(ROW(Subs3:Subs3:OFFSET(TotalSubs3,-1,0))-ROW(Subs3)+0,3)=0),Subs3:Subs3:OFFSET(TotalSubs3,-1,0)) -> 0 | L66: =SUMPRODUCT(--(MOD(ROW(Subs4:Subs4:OFFSET(TotalSubs4,-1,0))-ROW(Subs4)+0,3)=0),Subs4:Subs4:OFFSET(TotalSubs4,-1,0)) -> 0 | N66: =SUMPRODUCT(--(MOD(ROW(Subs5:Subs5:OFFSET(TotalSubs5,-1,0))-ROW(Subs5)+0,3)=0),Subs5:Subs5:OFFSET(TotalSubs5,-1,0)) -> 0 | P66: =SUMPRODUCT(--(MOD(ROW(Subs6:Subs6:OFFSET(TotalSubs6,-1,0))-ROW(Subs6)+0,3)=0),Subs6:Subs6:OFFSET(TotalSubs6,-1,0)) -> 0 | R66: =SUMPRODUCT(--(MOD(ROW(Subs7:Subs7:OFFSET(TotalSubs7,-1,0))-ROW(Subs7)+0,3)=0),Subs7:Subs7:OFFSET(TotalSubs7,-1,0)) -> 0 | T66: =SUMPRODUCT(--(MOD(ROW(Subs8:Subs8:OFFSET(TotalSubs8,-1,0))-ROW(Subs8)+0,3)=0),Subs8:Subs8:OFFSET(TotalSubs8,-1,0)) -> 0 | V66: =SUMPRODUCT(--(MOD(ROW(Subs9:Subs9:OFFSET(TotalSubs9,-1,0))-ROW(Subs9)+0,3)=0),Subs9:Subs9:OFFSET(TotalSubs9,-1,0)) -> 0 | X66: =SUMPRODUCT(--(MOD(ROW(Subs10:Subs10:OFFSET(TotalSubs10,-1,0))-ROW(Subs10)+0,3)=0),Subs10:Subs10:OFFSET(TotalSubs10,-1,0)) -> 0 | Z66: =SUM(F66:Y66) -> 0
A67: UC Multicampus
A68: Institution | B68: Multicampus PI
D69: MCA Direct Costs
D70: MCA Indirect Costs
D71: MCA Total | F71: =SUM(F69:G70) -> 0 | H71: =SUM(H69:I70) -> 0 | J71: =SUM(J69:K70) -> 0 | L71: =SUM(L69:M70) -> 0 | N71: =SUM(N69:O70) -> 0 | P71: =SUM(P69:Q70) -> 0 | R71: =SUM(R69:S70) -> 0 | T71: =SUM(T69:U70) -> 0 | V71: =SUM(V69:W70) -> 0 | X71: =SUM(X69:Y70) -> 0 | Z71: =SUM(F71:Y71) -> 0
D72: MCA Direct Costs
D73: MCA Indirect Costs
D74: MCA Total | F74: =SUM(F72:G73) -> 0 | H74: =SUM(H72:I73) -> 0 | J74: =SUM(J72:K73) -> 0 | L74: =SUM(L72:M73) -> 0 | N74: =SUM(N72:O73) -> 0 | P74: =SUM(P72:Q73) -> 0 | R74: =SUM(R72:S73) -> 0 | T74: =SUM(T72:U73) -> 0 | V74: =SUM(V72:W73) -> 0 | X74: =SUM(X72:Y73) -> 0 | Z74: =SUM(F74:Y74) -> 0
A75: Total UC Multicampus | F75: =SUMPRODUCT(--(MOD(ROW(Multi1:Multi1:OFFSET(TotalMulti1,-1,0))-ROW(Multi1)+0,3)=0),Multi1:Multi1:OFFSET(TotalMulti1,-1,0)) -> 0 | H75: =SUMPRODUCT(--(MOD(ROW(Multi2:Multi2:OFFSET(TotalMulti2,-1,0))-ROW(Multi2)+0,3)=0),Multi2:Multi2:OFFSET(TotalMulti2,-1,0)) -> 0 | J75: =SUMPRODUCT(--(MOD(ROW(Multi3:Multi3:OFFSET(TotalMulti3,-1,0))-ROW(Multi3)+0,3)=0),Multi3:Multi3:OFFSET(TotalMulti3,-1,0)) -> 0 | L75: =SUMPRODUCT(--(MOD(ROW(Multi4:Multi4:OFFSET(TotalMulti4,-1,0))-ROW(Multi4)+0,3)=0),Multi4:Multi4:OFFSET(TotalMulti4,-1,0)) -> 0 | N75: =SUMPRODUCT(--(MOD(ROW(Multi5:Multi5:OFFSET(TotalMulti5,-1,0))-ROW(Multi5)+0,3)=0),Multi5:Multi5:OFFSET(TotalMulti5,-1,0)) -> 0 | P75: =SUMPRODUCT(--(MOD(ROW(Multi6:Multi6:OFFSET(TotalMulti6,-1,0))-ROW(Multi6)+0,3)=0),Multi6:Multi6:OFFSET(TotalMulti6,-1,0)) -> 0 | R75: =SUMPRODUCT(--(MOD(ROW(Multi7:Multi7:OFFSET(TotalMulti7,-1,0))-ROW(Multi7)+0,3)=0),Multi7:Multi7:OFFSET(TotalMulti7,-1,0)) -> 0 | T75: =SUMPRODUCT(--(MOD(ROW(Multi8:Multi8:OFFSET(TotalMulti8,-1,0))-ROW(Multi8)+0,3)=0),Multi8:Multi8:OFFSET(TotalMulti8,-1,0)) -> 0 | V75: =SUMPRODUCT(--(MOD(ROW(Multi9:Multi9:OFFSET(TotalMulti9,-1,0))-ROW(Multi9)+0,3)=0),Multi9:Multi9:OFFSET(TotalMulti9,-1,0)) -> 0 | X75: =SUMPRODUCT(--(MOD(ROW(Multi10:Multi10:OFFSET(TotalMulti10,-1,0))-ROW(Multi10)+0,3)=0),Multi10:Multi10:OFFSET(TotalMulti10,-1,0)) -> 0 | Z75: =SUM(F75:Y75) -> 0
A76: Other Direct Costs
A77: Type | B77: Description
A78: Select One | Z78: =SUM(F78:Y78) -> 0
A79: Select One | Z79: =SUM(F79:Y79) -> 0
A80: Total Other Direct Costs | F80: =SUM(F78:F79) -> 0 | H80: =SUM(H78:H79) -> 0 | J80: =SUM(J78:J79) -> 0 | L80: =SUM(L78:L79) -> 0 | N80: =SUM(N78:N79) -> 0 | P80: =SUM(P78:P79) -> 0 | R80: =SUM(R78:R79) -> 0 | T80: =SUM(T78:T79) -> 0 | V80: =SUM(V78:V79) -> 0 | X80: =SUM(X78:X79) -> 0 | Z80: =SUM(F80:Y80) -> 0
A81: Costs at Non-Std. Rates
A82: Type | B82: Description | E82: IC Rate
A83: Select One | Z83: =SUM(F83:Y83) -> 0
A84: Select One | Z84: =SUM(F84:Y84) -> 0
A85: Total Non-Std Costs | F85: =SUM(F83:F84) -> 0 | H85: =SUM(H83:H84) -> 0 | J85: =SUM(J83:J84) -> 0 | L85: =SUM(L83:L84) -> 0 | N85: =SUM(N83:N84) -> 0 | P85: =SUM(P83:P84) -> 0 | R85: =SUM(R83:R84) -> 0 | T85: =SUM(T83:T84) -> 0 | V85: =SUM(V83:V84) -> 0 | X85: =SUM(X83:X84) -> 0 | Z85: =SUM(F85:Y85) -> 0
A86: Tuition/Fees/GSHIP
A87: COL Increase | D87: Initial | E87: Annual
A88: Tuition (Non-Resident) | D88: 0.1 | E88: 0.1 | F88: =(SUMPRODUCT(('Fringe Calculations'!F2:F100)*('Fringe Calculations'!C2:C100)))*(1+D88) -> 0 | H88: =(SUMPRODUCT(('Fringe Calculations'!G2:G100)*('Fringe Calculations'!C2:C100)))*(1+E88)^1*(1+D88) -> 0 | J88: =(SUMPRODUCT(('Fringe Calculations'!H2:H100)*('Fringe Calculations'!C2:C100)))*(1+E88)^2*(1+D88) -> 0 | L88: =(SUMPRODUCT(('Fringe Calculations'!I2:I100)*('Fringe Calculations'!C2:C100)))*(1+E88)^3*(1+D88) -> 0 | N88: =(SUMPRODUCT(('Fringe Calculations'!J2:J100)*('Fringe Calculations'!C2:C100)))*(1+E88)^4*(1+D88) -> 0 | P88: =(SUMPRODUCT(('Fringe Calculations'!K2:K100)*('Fringe Calculations'!C2:C100)))*(1+E88)^5*(1+D88) -> 0 | R88: =(SUMPRODUCT(('Fringe Calculations'!L2:L100)*('Fringe Calculations'!C2:C100)))*(1+E88)^6*(1+D88) -> 0 | T88: =(SUMPRODUCT(('Fringe Calculations'!M2:M100)*('Fringe Calculations'!C2:C100)))*(1+E88)^7*(1+D88) -> 0 | V88: =(SUMPRODUCT(('Fringe Calculations'!N2:N100)*('Fringe Calculations'!C2:C100)))*(1+E88)^8*(1+D88) -> 0 | X88: =(SUMPRODUCT(('Fringe Calculations'!O2:O100)*('Fringe Calculations'!C2:C100)))*(1+E88)^9*(1+D88) -> 0 | Z88: =SUM(F88:Y88) -> 0
A89: Graduate Student Health Insurance | D89: 0.05 | E89: 0.05 | F89: =SUMPRODUCT(('Fringe Calculations'!F2:F100)*('Fringe Calculations'!D2:D100))*(1+D89) -> 0 | H89: =(SUMPRODUCT(('Fringe Calculations'!G2:G100)*('Fringe Calculations'!D2:D100)))*(1+E89)^1*(1+D89) -> 0 | J89: =(SUMPRODUCT(('Fringe Calculations'!H2:H100)*('Fringe Calculations'!D2:D100)))*(1+E89)^2*(1+D89) -> 0 | L89: =(SUMPRODUCT(('Fringe Calculations'!I2:I100)*('Fringe Calculations'!D2:D100)))*(1+E89)^3*(1+D89) -> 0 | N89: =(SUMPRODUCT(('Fringe Calculations'!J2:J100)*('Fringe Calculations'!D2:D100)))*(1+E89)^4*(1+D89) -> 0 | P89: =(SUMPRODUCT(('Fringe Calculations'!K2:K100)*('Fringe Calculations'!D2:D100)))*(1+E89)^5*(1+D89) -> 0 | R89: =(SUMPRODUCT(('Fringe Calculations'!L2:L100)*('Fringe Calculations'!D2:D100)))*(1+E89)^6*(1+D89) -> 0 | T89: =(SUMPRODUCT(('Fringe Calculations'!M2:M100)*('Fringe Calculations'!D2:D100)))*(1+E89)^7*(1+D89) -> 0 | V89: =(SUMPRODUCT(('Fringe Calculations'!N2:N100)*('Fringe Calculations'!D2:D100)))*(1+E89)^8*(1+D89) -> 0 | X89: =(SUMPRODUCT(('Fringe Calculations'!O2:O100)*('Fringe Calculations'!D2:D100)))*(1+E89)^9*(1+D89) -> 0 | Z89: =SUM(F89:Y89) -> 0
A90: Graduate Student Fees | D90: 0.1 | E90: 0.1 | F90: =SUMPRODUCT(('Fringe Calculations'!F2:F100)*('Fringe Calculations'!E2:E100))*(1+D90) -> 0 | H90: =(SUMPRODUCT(('Fringe Calculations'!G2:G100)*('Fringe Calculations'!E2:E100)))*(1+E90)^1*(1+D90) -> 0 | J90: =(SUMPRODUCT(('Fringe Calculations'!H2:H100)*('Fringe Calculations'!E2:E100)))*(1+E90)^2*(1+D90) -> 0 | L90: =(SUMPRODUCT(('Fringe Calculations'!I2:I100)*('Fringe Calculations'!E2:E100)))*(1+E90)^3*(1+D90) -> 0 | N90: =(SUMPRODUCT(('Fringe Calculations'!J2:J100)*('Fringe Calculations'!E2:E100)))*(1+E90)^4*(1+D90) -> 0 | P90: =(SUMPRODUCT(('Fringe Calculations'!K2:K100)*('Fringe Calculations'!E2:E100)))*(1+E90)^5*(1+D90) -> 0 | R90: =(SUMPRODUCT(('Fringe Calculations'!L2:L100)*('Fringe Calculations'!E2:E100)))*(1+E90)^6*(1+D90) -> 0 | T90: =(SUMPRODUCT(('Fringe Calculations'!M2:M100)*('Fringe Calculations'!E2:E100)))*(1+E90)^7*(1+D90) -> 0 | V90: =(SUMPRODUCT(('Fringe Calculations'!N2:N100)*('Fringe Calculations'!E2:E100)))*(1+E90)^8*(1+D90) -> 0 | X90: =(SUMPRODUCT(('Fringe Calculations'!O2:O100)*('Fringe Calculations'!E2:E100)))*(1+E90)^9*(1-D90) -> 0 | Z90: =SUM(F90:Y90) -> 0
A91: Graduate Fee Override
A92: Total Graduate Fees | F92: =IF(F91="",(SUM(F88:G90)), F91) -> 0 | H92: =IF(H91="",(SUM(H88:I90)), H91) -> 0 | J92: =IF(J91="",(SUM(J88:K90)), J91) -> 0 | L92: =IF(L91="",(SUM(L88:M90)), L91) -> 0 | N92: =IF(N91="",(SUM(N88:O90)), N91) -> 0 | P92: =IF(P91="",(SUM(P88:Q90)), P91) -> 0 | R92: =IF(R91="",(SUM(R88:S90)), R91) -> 0 | T92: =IF(T91="",(SUM(T88:U90)), T91) -> 0 | V92: =IF(V91="",(SUM(V88:W90)), V91) -> 0 | X92: =IF(X91="",(SUM(X88:Y90)), X91) -> 0 | Z92: =SUM(F92:Y92) -> 0
A93: Total Graduate Student Compensation (includes salary, fringe and graduate fees) | F93: =SUMIF('Salary & Fringe'!$E$1:$E$300,"Grad",'Salary & Fringe'!$W$1:$W$300)+SUMIF('Salary & Fringe'!$E$1:$E$300,"Grad",'Salary & Fringe'!$AG$1:$AG$300)+TotalGSR1 -> 0 | H93: =SUMIF('Salary & Fringe'!$E$1:$E$300,"Grad",'Salary & Fringe'!$X$1:$X$300)+SUMIF('Salary & Fringe'!$E$1:$E$300,"Grad",'Salary & Fringe'!$AH$1:$AH$300)+TotalGSR2 -> 0 | J93: =SUMIF('Salary & Fringe'!$E$1:$E$300,"Grad",'Salary & Fringe'!$Y$1:$Y$300)+SUMIF('Salary & Fringe'!$E$1:$E$300,"Grad",'Salary & Fringe'!$AI$1:$AI$300)+TotalGSR3 -> 0 | L93: =SUMIF('Salary & Fringe'!$E$1:$E$300,"Grad",'Salary & Fringe'!$Z$1:$Z$300)+SUMIF('Salary & Fringe'!$E$1:$E$300,"Grad",'Salary & Fringe'!$AJ$1:$AJ$300)+TotalGSR4 -> 0 | N93: =SUMIF('Salary & Fringe'!$E$1:$E$300,"Grad",'Salary & Fringe'!$AA$1:$AA$300)+SUMIF('Salary & Fringe'!$E$1:$E$300,"Grad",'Salary & Fringe'!$AK$1:$AK$300)+TotalGSR5 -> 0 | P93: =SUMIF('Salary & Fringe'!$E$1:$E$300,"Grad",'Salary & Fringe'!$AB$1:$AB$300)+SUMIF('Salary & Fringe'!$E$1:$E$300,"Grad",'Salary & Fringe'!$AL$1:$AL$300)+TotalGSR6 -> 0 | R93: =SUMIF('Salary & Fringe'!$E$1:$E$300,"Grad",'Salary & Fringe'!$AC$1:$AC$300)+SUMIF('Salary & Fringe'!$E$1:$E$300,"Grad",'Salary & Fringe'!$AM$1:$AM$300)+TotalGSR7 -> 0 | T93: =SUMIF('Salary & Fringe'!$E$1:$E$300,"Grad",'Salary & Fringe'!$AD$1:$AD$300)+SUMIF('Salary & Fringe'!$E$1:$E$300,"Grad",'Salary & Fringe'!$AN$1:$AN$300)+TotalGSR8 -> 0 | V93: =SUMIF('Salary & Fringe'!$E$1:$E$300,"Grad",'Salary & Fringe'!$AE$1:$AE$300)+SUMIF('Salary & Fringe'!$E$1:$E$300,"Grad",'Salary & Fringe'!$AO$1:$AO$300)+TotalGSR9 -> 0 | X93: =SUMIF('Salary & Fringe'!$E$1:$E$300,"Grad",'Salary & Fringe'!$AF$1:$AF$300)+SUMIF('Salary & Fringe'!$E$1:$E$300,"Grad",'Salary & Fringe'!$AP$1:$AP$300)+TotalGSR10 -> 0 | Z93: =SUM(F93:Y93) -> 0
B95: Total Other Direct Costs including GSR Fees, Subrecipients, and MCA's | F95: =TotalODC1+TotalGSR1+TotalSubs1+TotalMulti1 -> 0 | H95: =TotalODC2+TotalGSR2+TotalSubs2+TotalMulti2 -> 0 | J95: =TotalODC3+TotalGSR3+TotalSubs3+TotalMulti3 -> 0 | L95: =TotalODC4+TotalGSR4+TotalSubs4+TotalMulti4 -> 0 | N95: =TotalODC5+TotalGSR5+TotalSubs5+TotalMulti5 -> 0 | P95: =TotalODC6+TotalGSR6+TotalSubs6+TotalMulti6 -> 0 | R95: =TotalODC7+TotalGSR7+TotalSubs7+TotalMulti7 -> 0 | T95: =TotalODC8+TotalGSR8+TotalSubs8+TotalMulti8 -> 0 | V95: =TotalODC9+TotalGSR9+TotalSubs9+TotalMulti9 -> 0 | X95: =TotalODC10+TotalGSR10+TotalSubs10+TotalMulti10 -> 0 | Z95: =SUM(F95:Y95) -> 0
B97: Direct Costs Base | F97: =TotalSalary1+TotalFringe1+TotalDomTravel1+TotalForTravel1+TotalEquipment1+TotalParSupport1+TotalNonStd1+TotalODCGSR1 -> 0 | H97: =TotalSalary2+TotalFringe2+TotalDomTravel2+TotalForTravel2+TotalEquipment2+TotalParSupport2+TotalNonStd2+TotalODCGSR2 -> 0 | J97: =TotalSalary3+TotalFringe3+TotalDomTravel3+TotalForTravel3+TotalEquipment3+TotalParSupport3+TotalNonStd3+TotalODCGSR3 -> 0 | L97: =TotalSalary4+TotalFringe4+TotalDomTravel4+TotalForTravel4+TotalEquipment4+TotalParSupport4+TotalNonStd4+TotalODCGSR4 -> 0 | N97: =TotalSalary5+TotalFringe5+TotalDomTravel5+TotalForTravel5+TotalEquipment5+TotalParSupport5+TotalNonStd5+TotalODCGSR5 -> 0 | P97: =TotalSalary6+TotalFringe6+TotalDomTravel6+TotalForTravel6+TotalEquipment6+TotalParSupport6+TotalNonStd6+TotalODCGSR6 -> 0 | R97: =TotalSalary7+TotalFringe7+TotalDomTravel7+TotalForTravel7+TotalEquipment7+TotalParSupport7+TotalNonStd7+TotalODCGSR7 -> 0 | T97: =TotalSalary8+TotalFringe8+TotalDomTravel8+TotalForTravel8+TotalEquipment8+TotalParSupport8+TotalNonStd8+TotalODCGSR8 -> 0 | V97: =TotalSalary9+TotalFringe9+TotalDomTravel9+TotalForTravel9+TotalEquipment9+TotalParSupport9+TotalNonStd9+TotalODCGSR9 -> 0 | X97: =TotalSalary10+TotalFringe10+TotalDomTravel10+TotalForTravel10+TotalEquipment10+TotalParSupport10+TotalNonStd10+TotalODCGSR10 -> 0
B98: Direct Cost Override
B99: Total Direct Costs | F99: =ROUND(IF(F98="",F97, F98),0) -> 0 | H99: =ROUND(IF(H98="",H97, H98),0) -> 0 | J99: =ROUND(IF(J98="",J97, J98),0) -> 0 | L99: =ROUND(IF(L98="",L97, L98),0) -> 0 | N99: =ROUND(IF(N98="",N97, N98),0) -> 0 | P99: =ROUND(IF(P98="",P97, P98),0) -> 0 | R99: =ROUND(IF(R98="",R97, R98),0) -> 0 | T99: =ROUND(IF(T98="",T97, T98),0) -> 0 | V99: =ROUND(IF(V98="",V97, V98),0) -> 0 | X99: =ROUND(IF(X98="",X97, X98),0) -> 0 | Z99: =SUM(F99:Y99) -> 0
B101: Indirect Cost Base | F101: =IF(ISNUMBER(SEARCH("MTDC",$D$10)),TotalSalary1+TotalFringe1+TotalDomTravel1+TotalForTravel1+(SUM(OFFSET(SubCalc1,1,0):EndSubCalc1))+TotalODC1,IF(ISNUMBER(SEARCH("TDC",$D$10)),TotalDC1-TotalNonStd1-TotalMulti1-TotalSubs1,IF(ISNUMBER(SEARCH("TC",$D$10)),TotalDC1-TotalNonStd1-TotalMulti1-TotalSubs1,IF(ISNUMBER(SEARCH("--",$D$10)),0,TotalSalary1+TotalFringe1+TotalDomTravel1+TotalForTravel1+(SUM(OFFSET(SubCalc1,1,0):EndSubCalc1))+TotalODC1)))) -> 0 | H101: =IF(ISNUMBER(SEARCH("MTDC",$D$10)),TotalSalary2+TotalFringe2+TotalDomTravel2+TotalForTravel2+(SUM(OFFSET(SubCalc2,1,0):EndSubCalc2))+TotalODC2,IF(ISNUMBER(SEARCH("TDC",$D$10)),TotalDC2-TotalNonStd2-TotalMulti2-TotalSubs2,IF(ISNUMBER(SEARCH("TC",$D$10)),TotalDC2-TotalNonStd2-TotalMulti2-TotalSubs2,IF(ISNUMBER(SEARCH("--",$D$10)),0,TotalSalary2+TotalFringe2+TotalDomTravel2+TotalForTravel2+(SUM(OFFSET(SubCalc2,1,0):EndSubCalc2))+TotalODC2)))) -> 0 | J101: =IF(ISNUMBER(SEARCH("MTDC",$D$10)),TotalSalary3+TotalFringe3+TotalDomTravel3+TotalForTravel3+(SUM(OFFSET(SubCalc3,1,0):EndSubCalc3))+TotalODC3,IF(ISNUMBER(SEARCH("TDC",$D$10)),TotalDC3-TotalNonStd3-TotalMulti3-TotalSubs3,IF(ISNUMBER(SEARCH("TC",$D$10)),TotalDC3-TotalNonStd3-TotalMulti3-TotalSubs3,IF(ISNUMBER(SEARCH("--",$D$10)),0,TotalSalary3+TotalFringe3+TotalDomTravel3+TotalForTravel3+(SUM(OFFSET(SubCalc3,1,0):EndSubCalc3))+TotalODC3)))) -> 0 | L101: =IF(ISNUMBER(SEARCH("MTDC",$D$10)),TotalSalary4+TotalFringe4+TotalDomTravel4+TotalForTravel4+(SUM(OFFSET(SubCalc4,1,0):EndSubCalc4))+TotalODC4,IF(ISNUMBER(SEARCH("TDC",$D$10)),TotalDC4-TotalNonStd4-TotalMulti4-TotalSubs4,IF(ISNUMBER(SEARCH("TC",$D$10)),TotalDC4-TotalNonStd4-TotalMulti4-TotalSubs4,IF(ISNUMBER(SEARCH("--",$D$10)),0,TotalSalary4+TotalFringe4+TotalDomTravel4+TotalForTravel4+(SUM(OFFSET(SubCalc4,1,0):EndSubCalc4))+TotalODC4)))) -> 0 | N101: =IF(ISNUMBER(SEARCH("MTDC",$D$10)),TotalSalary5+TotalFringe5+TotalDomTravel5+TotalForTravel5+(SUM(OFFSET(SubCalc5,1,0):EndSubCalc5))+TotalODC5,IF(ISNUMBER(SEARCH("TDC",$D$10)),TotalDC5-TotalNonStd5-TotalMulti5-TotalSubs5,IF(ISNUMBER(SEARCH("TC",$D$10)),TotalDC5-TotalNonStd5-TotalMulti5-TotalSubs5,IF(ISNUMBER(SEARCH("--",$D$10)),0,TotalSalary5+TotalFringe5+TotalDomTravel5+TotalForTravel5+(SUM(OFFSET(SubCalc5,1,0):EndSubCalc5))+TotalODC5)))) -> 0 | P101: =IF(ISNUMBER(SEARCH("MTDC",$D$10)),TotalSalary6+TotalFringe6+TotalDomTravel6+TotalForTravel6+(SUM(OFFSET(SubCalc6,1,0):EndSubCalc6))+TotalODC6,IF(ISNUMBER(SEARCH("TDC",$D$10)),TotalDC6-TotalNonStd6-TotalMulti6-TotalSubs6,IF(ISNUMBER(SEARCH("TC",$D$10)),TotalDC6-TotalNonStd6-TotalMulti6-TotalSubs6,IF(ISNUMBER(SEARCH("--",$D$10)),0,TotalSalary6+TotalFringe6+TotalDomTravel6+TotalForTravel6+(SUM(OFFSET(SubCalc6,1,0):EndSubCalc6))+TotalODC6)))) -> 0 | R101: =IF(ISNUMBER(SEARCH("MTDC",$D$10)),TotalSalary7+TotalFringe7+TotalDomTravel7+TotalForTravel7+(SUM(OFFSET(SubCalc7,1,0):EndSubCalc7))+TotalODC7,IF(ISNUMBER(SEARCH("TDC",$D$10)),TotalDC7-TotalNonStd7-TotalMulti7-TotalSubs7,IF(ISNUMBER(SEARCH("TC",$D$10)),TotalDC7-TotalNonStd7-TotalMulti7-TotalSubs7,IF(ISNUMBER(SEARCH("--",$D$10)),0,TotalSalary7+TotalFringe7+TotalDomTravel7+TotalForTravel7+(SUM(OFFSET(SubCalc7,1,0):EndSubCalc7))+TotalODC7)))) -> 0 | T101: =IF(ISNUMBER(SEARCH("MTDC",$D$10)),TotalSalary8+TotalFringe8+TotalDomTravel8+TotalForTravel8+(SUM(OFFSET(SubCalc8,1,0):EndSubCalc8))+TotalODC8,IF(ISNUMBER(SEARCH("TDC",$D$10)),TotalDC8-TotalNonStd8-TotalMulti8-TotalSubs8,IF(ISNUMBER(SEARCH("TC",$D$10)),TotalDC8-TotalNonStd8-TotalMulti8-TotalSubs8,IF(ISNUMBER(SEARCH("--",$D$10)),0,TotalSalary8+TotalFringe8+TotalDomTravel8+TotalForTravel8+(SUM(OFFSET(SubCalc8,1,0):EndSubCalc8))+TotalODC8)))) -> 0 | V101: =IF(ISNUMBER(SEARCH("MTDC",$D$10)),TotalSalary9+TotalFringe9+TotalDomTravel9+TotalForTravel9+(SUM(OFFSET(SubCalc9,1,0):EndSubCalc9))+TotalODC9,IF(ISNUMBER(SEARCH("TDC",$D$10)),TotalDC9-TotalNonStd9-TotalMulti9-TotalSubs9,IF(ISNUMBER(SEARCH("TC",$D$10)),TotalDC9-TotalNonStd9-TotalMulti9-TotalSubs9,IF(ISNUMBER(SEARCH("--",$D$10)),0,TotalSalary9+TotalFringe9+TotalDomTravel9+TotalForTravel9+(SUM(OFFSET(SubCalc9,1,0):EndSubCalc9))+TotalODC9)))) -> 0 | X101: =IF(ISNUMBER(SEARCH("MTDC",$D$10)),TotalSalary10+TotalFringe10+TotalDomTravel10+TotalForTravel10+(SUM(OFFSET(SubCalc10,1,0):EndSubCalc10))+TotalODC10,IF(ISNUMBER(SEARCH("TDC",$D$10)),TotalDC10-TotalNonStd10-TotalMulti10-TotalSubs10,IF(ISNUMBER(SEARCH("TC",$D$10)),TotalDC10-TotalNonStd10-TotalMulti10-TotalSubs10,IF(ISNUMBER(SEARCH("--",$D$10)),0,TotalSalary10+TotalFringe10+TotalDomTravel10+TotalForTravel10+(SUM(OFFSET(SubCalc10,1,0):EndSubCalc10))+TotalODC10)))) -> 0
B102: Indirect Cost Base Override
B103: Total Indirect Cost Base | F103: =ROUND(IF(F102="",F101, F102),0) -> 0 | H103: =ROUND(IF(H102="",H101, H102),0) -> 0 | J103: =ROUND(IF(J102="",J101, J102),0) -> 0 | L103: =ROUND(IF(L102="",L101, L102),0) -> 0 | N103: =ROUND(IF(N102="",N101, N102),0) -> 0 | P103: =ROUND(IF(P102="",P101, P102),0) -> 0 | R103: =ROUND(IF(R102="",R101, R102),0) -> 0 | T103: =ROUND(IF(T102="",T101, T102),0) -> 0 | V103: =ROUND(IF(V102="",V101, V102),0) -> 0 | X103: =ROUND(IF(X102="",X101, X102),0) -> 0 | Z103: =SUM(F103:Y103) -> 0
B105: IC Rate | F105: =IF(B10="", 55%, B10) ->  | H105: =IF(F105=55%,56%,IF(F105=56%,56.5%,F105)) ->  | J105: =IF(H105=56%,56.5%,H105) ->  | L105: =J105 ->  | N105: =J105 ->  | P105: =J105 ->  | R105: =J105 ->  | T105: =J105 ->  | V105: =J105 ->  | X105: =J105 -> 
B107: Non-Standard Indirect Costs | F107: =IFERROR((SUMPRODUCT((OFFSET(ICRate,1,0)):(OFFSET(TotalNonStd1,-1,-1))*(OFFSET(NonStd1,1,0)):(OFFSET(TotalNonStd1,-1,0)))),0) -> 0 | H107: =IFERROR((SUMPRODUCT((OFFSET(ICRate,1,0)):(OFFSET(TotalNonStd1,-1,-1))*(OFFSET(NonStd2,1,0)):(OFFSET(TotalNonStd2,-1,0)))),0) -> 0 | J107: =IFERROR((SUMPRODUCT((OFFSET(ICRate,1,0)):(OFFSET(TotalNonStd1,-1,-1))*(OFFSET(NonStd3,1,0)):(OFFSET(TotalNonStd3,-1,0)))),0) -> 0 | L107: =IFERROR((SUMPRODUCT((OFFSET(ICRate,1,0)):(OFFSET(TotalNonStd1,-1,-1))*(OFFSET(NonStd4,1,0)):(OFFSET(TotalNonStd4,-1,0)))),0) -> 0 | N107: =IFERROR((SUMPRODUCT((OFFSET(ICRate,1,0)):(OFFSET(TotalNonStd1,-1,-1))*(OFFSET(NonStd5,1,0)):(OFFSET(TotalNonStd5,-1,0)))),0) -> 0 | P107: =IFERROR((SUMPRODUCT((OFFSET(ICRate,1,0)):(OFFSET(TotalNonStd1,-1,-1))*(OFFSET(NonStd6,1,0)):(OFFSET(TotalNonStd6,-1,0)))),0) -> 0 | R107: =IFERROR((SUMPRODUCT((OFFSET(ICRate,1,0)):(OFFSET(TotalNonStd1,-1,-1))*(OFFSET(NonStd7,1,0)):(OFFSET(TotalNonStd7,-1,0)))),0) -> 0 | T107: =IFERROR((SUMPRODUCT((OFFSET(ICRate,1,0)):(OFFSET(TotalNonStd1,-1,-1))*(OFFSET(NonStd8,1,0)):(OFFSET(TotalNonStd8,-1,0)))),0) -> 0 | V107: =IFERROR((SUMPRODUCT((OFFSET(ICRate,1,0)):(OFFSET(TotalNonStd1,-1,-1))*(OFFSET(NonStd9,1,0)):(OFFSET(TotalNonStd9,-1,0)))),0) -> 0 | X107: =IFERROR((SUMPRODUCT((OFFSET(ICRate,1,0)):(OFFSET(TotalNonStd1,-1,-1))*(OFFSET(NonStd10,1,0)):(OFFSET(TotalNonStd10,-1,0)))),0) -> 0 | Z107: =SUM(F107:Y107) -> 0
B108: Fixed Indirect Costs | Z108: =SUM(F108:Y108) -> 0
B109: Total Indirect Costs | F109: =ROUND(IFERROR(IF(ISNUMBER(SEARCH("TC",$D$10)),F101*(F105/(1-F105))+F107+F108,IF(F102>0,F102*F105+F107+F108,F101*F105+F107+F108)),0),0) -> 0 | H109: =ROUND(IFERROR(IF(ISNUMBER(SEARCH("TC",$D$10)),H101*(H105/(1-H105))+H107+H108,IF(H102>0,H102*H105+H107+H108,H101*H105+H107+H108)),0),0) -> 0 | J109: =ROUND(IFERROR(IF(ISNUMBER(SEARCH("TC",$D$10)),J101*(J105/(1-J105))+J107+J108,IF(J102>0,J102*J105+J107+J108,J101*J105+J107+J108)),0),0) -> 0 | L109: =ROUND(IFERROR(IF(ISNUMBER(SEARCH("TC",$D$10)),L101*(L105/(1-L105))+L107+L108,IF(L102>0,L102*L105+L107+L108,L101*L105+L107+L108)),0),0) -> 0 | N109: =ROUND(IFERROR(IF(ISNUMBER(SEARCH("TC",$D$10)),N101*(N105/(1-N105))+N107+N108,IF(N102>0,N102*N105+N107+N108,N101*N105+N107+N108)),0),0) -> 0 | P109: =ROUND(IFERROR(IF(ISNUMBER(SEARCH("TC",$D$10)),P101*(P105/(1-P105))+P107+P108,IF(P102>0,P102*P105+P107+P108,P101*P105+P107+P108)),0),0) -> 0 | R109: =ROUND(IFERROR(IF(ISNUMBER(SEARCH("TC",$D$10)),R101*(R105/(1-R105))+R107+R108,IF(R102>0,R102*R105+R107+R108,R101*R105+R107+R108)),0),0) -> 0 | T109: =ROUND(IFERROR(IF(ISNUMBER(SEARCH("TC",$D$10)),T101*(T105/(1-T105))+T107+T108,IF(T102>0,T102*T105+T107+T108,T101*T105+T107+T108)),0),0) -> 0 | V109: =ROUND(IFERROR(IF(ISNUMBER(SEARCH("TC",$D$10)),V101*(V105/(1-V105))+V107+V108,IF(V102>0,V102*V105+V107+V108,V101*V105+V107+V108)),0),0) -> 0 | X109: =ROUND(IFERROR(IF(ISNUMBER(SEARCH("TC",$D$10)),X101*(X105/(1-X105))+X107+X108,IF(X102>0,X102*X105+X107+X108,X101*X105+X107+X108)),0),0) -> 0 | Z109: =SUM(F109:Y109) -> 0
B111: Total Cost Share | F111: =IFERROR(F99+F109,0) -> 0 | H111: =IFERROR(H99+H109,0) -> 0 | J111: =IFERROR(J99+J109,0) -> 0 | L111: =IFERROR(L99+L109,0) -> 0 | N111: =IFERROR(N99+N109,0) -> 0 | P111: =IFERROR(P99+P109,0) -> 0 | R111: =IFERROR(R99+R109,0) -> 0 | T111: =IFERROR(T99+T109,0) -> 0 | V111: =IFERROR(V99+V109,0) -> 0 | X111: =IFERROR(X99+X109,0) -> 0 | Z111: =SUM(F111:Y111) -> 0
B113: Total Amount Requested | Z113: =SUM(F113:Y113) -> 0
B114: Total Project Amount | F114: =F111+F113+C112+D112+E112 -> 0 | H114: =H111+H113 -> 0 | J114: =J111+J113 -> 0 | L114: =L111+L113 -> 0 | N114: =N111+N113 -> 0 | P114: =P111+P113 -> 0 | R114: =R111+R113 -> 0 | T114: =T111+T113 -> 0 | V114: =V111+V113 -> 0 | X114: =X111+X113 -> 0 | Z114: =SUM(F114:Y114) -> 0
A116: NOTES:
A122: **Revised 03/15/2023
A124: NSF Layout: | C124: Grants.gov Detailed Layout:

Sheet Salary & Fringe
A1: Back to Budget
M2: Total Months Effort/Year | W2: Salary/Year | AG2: Fringe/Year
A3: Name | B3: Project Role | C3: Appt Type | D3: Level | E3: Classification | F3: Basis/Type | G3: Rate (Month/Hour) | H3: Rate Override | I3: # of People | J3: Tuition/ Month | K3: GSHIP/ Month | L3: Fees/ Month | M3: 1 | N3: 2 | O3: 3 | P3: 4 | Q3: 5 | R3: 6 | S3: 7 | T3: 8 | U3: 9 | V3: 10 | W3: 1 | X3: 2 | Y3: 3 | Z3: 4 | AA3: 5 | AB3: 6 | AC3: 7 | AD3: 8 | AE3: 9 | AF3: 10 | AG3: 1 | AH3: 2 | AI3: 3 | AJ3: 4 | AK3: 5 | AL3: 6 | AM3: 7 | AN3: 8 | AO3: 9 | AP3: 10
A4: =IF(ISBLANK(Budget!A22),"",Budget!A22) ->  | B4: =IF(ISBLANK(Budget!B22),"",Budget!B22) ->  | C4: =IF(ISBLANK(Budget!D22),"",Budget!D22) -> Select One | D4: =IF(ISBLANK(Budget!E22),"",Budget!E22) -> Select One | E4: Select One | F4: Select One | G4: =IF(C4="Select One","",VLOOKUP(C4,'Salary Tables'!$A$2:$Z$506,D4+2,FALSE)) ->  | I4: 1 | J4: =IF(ISNUMBER(SEARCH("GSR-NonRes",C4)),IF(ISNUMBER(SEARCH("Academic",F4)),'Salary Tables'!$B$44*I4,0),0) -> 0 | K4: =IF(ISNUMBER(SEARCH("GSR*",C4)),IF(ISNUMBER(SEARCH("Academic",F4)),'Salary Tables'!$B$45*I4,0),0) -> 0 | L4: =IF(ISNUMBER(SEARCH("GSR-Res",C4)),IF(ISNUMBER(SEARCH("Academic",F4)),('Salary Tables'!$B$43+'Salary Tables'!$B$46)*I4,0),IF(ISNUMBER(SEARCH("GSR-NonRes",C4)),IF(ISNUMBER(SEARCH("Academic",F4)),'Salary Tables'!$B$46*I4,0),IF(ISNUMBER(SEARCH("GSR-Adv",C4)),IF(ISNUMBER(SEARCH("Academic",F4)),('Salary Tables'!$B$43+'Salary Tables'!$B$46)*I4,0),0))) -> 0 | M4: =Budget!F23*Budget!G23 -> 0 | N4: =Budget!H23*Budget!I23 -> 0 | O4: =Budget!J23*Budget!K23 -> 0 | P4: =Budget!L23*Budget!M23 -> 0 | Q4: =Budget!N23*Budget!O23 -> 0 | R4: =Budget!P23*Budget!Q23 -> 0 | S4: =Budget!R23*Budget!S23 -> 0 | T4: =Budget!T23*Budget!U23 -> 0 | U4: =Budget!V23*Budget!W23 -> 0 | V4: =Budget!X23*Budget!Y23 -> 0 | W4: =Budget!F22 ->  | X4: =Budget!H22 ->  | Y4: =Budget!J22 ->  | Z4: =Budget!L22 ->  | AA4: =Budget!N22 ->  | AB4: =Budget!P22 ->  | AC4: =Budget!R22 ->  | AD4: =Budget!T22 ->  | AE4: =Budget!V22 ->  | AF4: =Budget!X22 ->  | AG4: =Budget!F29 ->  | AH4: =Budget!H29 ->  | AI4: =Budget!J29 ->  | AJ4: =Budget!L29 ->  | AK4: =Budget!N29 ->  | AL4: =Budget!P29 ->  | AM4: =Budget!R29 ->  | AN4: =Budget!T29 ->  | AO4: =Budget!V29 ->  | AP4: =Budget!X29 -> 
A6: =IF(ISBLANK(Budget!A24),"",Budget!A24) ->  | B6: =IF(ISBLANK(Budget!B24),"",Budget!B24) ->  | C6: =IF(ISBLANK(Budget!D24),"",Budget!D24) -> Select One | D6: =IF(ISBLANK(Budget!E24),"",Budget!E24) -> Select One | E6: Select One | F6: Select One | G6: =IF(C6="Select One","",VLOOKUP(C6,'Salary Tables'!$A$2:$Z$506,D6+2,FALSE)) ->  | I6: 1 | J6: =IF(ISNUMBER(SEARCH("GSR-NonRes",C6)),IF(ISNUMBER(SEARCH("Academic",F6)),'Salary Tables'!$B$44*I6,0),0) -> 0 | K6: =IF(ISNUMBER(SEARCH("GSR*",C6)),IF(ISNUMBER(SEARCH("Academic",F6)),'Salary Tables'!$B$45*I6,0),0) -> 0 | L6: =IF(ISNUMBER(SEARCH("GSR-Res",C6)),IF(ISNUMBER(SEARCH("Academic",F6)),('Salary Tables'!$B$43+'Salary Tables'!$B$46)*I6,0),IF(ISNUMBER(SEARCH("GSR-NonRes",C6)),IF(ISNUMBER(SEARCH("Academic",F6)),'Salary Tables'!$B$46*I6,0),IF(ISNUMBER(SEARCH("GSR-Adv",C6)),IF(ISNUMBER(SEARCH("Academic",F6)),('Salary Tables'!$B$43+'Salary Tables'!$B$46)*I6,0),0))) -> 0 | M6: =Budget!F25*Budget!G25 -> 0 | N6: =Budget!H25*Budget!I25 -> 0 | O6: =Budget!J25*Budget!K25 -> 0 | P6: =Budget!L25*Budget!M25 -> 0 | Q6: =Budget!N25*Budget!O25 -> 0 | R6: =Budget!P25*Budget!Q25 -> 0 | S6: =Budget!R25*Budget!S25 -> 0 | T6: =Budget!T25*Budget!U25 -> 0 | U6: =Budget!V25*Budget!W25 -> 0 | V6: =Budget!X25*Budget!Y25 -> 0 | W6: =Budget!F24 ->  | X6: =Budget!H24 ->  | Y6: =Budget!J24 ->  | Z6: =Budget!L24 ->  | AA6: =Budget!N24 ->  | AB6: =Budget!P24 ->  | AC6: =Budget!R24 ->  | AD6: =Budget!T24 ->  | AE6: =Budget!V24 ->  | AF6: =Budget!X24 ->  | AG6: =Budget!F31 ->  | AH6: =Budget!H31 ->  | AI6: =Budget!J31 ->  | AJ6: =Budget!L31 ->  | AK6: =Budget!N31 ->  | AL6: =Budget!P31 ->  | AM6: =Budget!R31 ->  | AN6: =Budget!T31 ->  | AO6: =Budget!V31 ->  | AP6: =Budget!X31 -> 
A8: End Salary & Fringe

Sheet Cayuse Summary Budget
B1: Current Period | C1: Entire Project
A2: F&A Rate (1): | B2: =Budget!F105 ->  | C2: =Budget!F105 -> 
A3: F&A Rate (2): | B3: 0 | C3: =IF(C2=0.53, 0.535, IF(C2=0.535, 0.54,0)) -> 0
A4: F&A Rate (3): | B4: 0 | C4: =IF(C3=0.535, 0.54, 0) -> 0
A5: Effective Rate: | B5: 0 | C5: 0
A7: Sponsor Direct Costs: | B7: =Budget!F99 -> 0 | C7: =Budget!Z99 -> 0
A8: Base for F&A Rate (1): | B8: =IF(Budget!D10="TC", Budget!F111, Budget!F103) -> 0 | C8: =IF(C2=0.53, Budget!F103, IF(C2=0.535, Budget!F103, IF(Budget!D10="TC", Budget!Z111, Budget!Z103))) -> 0
A9: Base for F&A Rate (2): | B9: 0 | C9: =IF(C2=0.53, Budget!H103, IF(C2=0.535, Budget!Z103-Budget!F103, 0)) -> 0
A10: Base for F&A Rate (3): | B10: 0 | C10: =IF(C2=0.53, Budget!Z103-Budget!F103-Budget!H103, 0) -> 0
A11: Indirect Costs (F&A): | B11: =Budget!F109 -> 0 | C11: =Budget!Z109 -> 0
A12: Fee:
A13: Total Sponsor Proposed Costs: | B13: =Budget!F111+B12 -> 0 | C13: =Budget!Z111+C12 -> 0
A14: Institutional Cost Sharing: | B14: =Budget!Z113 -> 0 | C14: =Budget!Z113 -> 0
A15: Total Institutional Costs: | B15: =Budget!F114+B12 -> 0 | C15: =Budget!Z114+C12 -> 0

Sheet NSF Yr 1 (hidden)
A1: NSF Budget Year 1
A2: A. Senior Personnel | D2: NSF Funded Person Months | G2: Funds
D3: CAL | E3: ACAD | F3: SUM
A4: 1. | B4: =IF(G4>0,CONCATENATE((INDEX('Salary & Fringe'!$A$1:$A$300,MATCH("Senior Person 1",'Salary & Fringe'!$E$1:$E$300,FALSE),1))," ",(INDEX('Salary & Fringe'!$B$1:$B$300,MATCH("Senior Person 1",'Salary & Fringe'!$E$1:$E$300,FALSE),1))),"") ->  | D4: =SUMIFS('Salary & Fringe'!$M$1:'Salary & Fringe'!$M$300,'Salary & Fringe'!$E$1:'Salary & Fringe'!$E$300,"Senior Person 1",'Salary & Fringe'!$F$1:'Salary & Fringe'!$F$300,"Calendar(12)") -> 0 | E4: =SUMIFS('Salary & Fringe'!$M$1:'Salary & Fringe'!$M$300,'Salary & Fringe'!$E$1:'Salary & Fringe'!$E$300,"Senior Person 1",'Salary & Fringe'!$F$1:'Salary & Fringe'!$F$300,"Academic") -> 0 | F4: =SUMIFS('Salary & Fringe'!$M$1:'Salary & Fringe'!$M$300,'Salary & Fringe'!$E$1:'Salary & Fringe'!$E$300,"Senior Person 1",'Salary & Fringe'!$F$1:'Salary & Fringe'!$F$300,"Summer") -> 0 | G4: =SUMIF('Salary & Fringe'!$E$1:$E$300,"Senior Person 1",'Salary & Fringe'!$W$1:$W$300) -> 0
A5: 2. | B5: =IF(G5>0,CONCATENATE((INDEX('Salary & Fringe'!$A$1:$A$300,MATCH("Senior Person 2",'Salary & Fringe'!$E$1:$E$300,FALSE),1))," ",(INDEX('Salary & Fringe'!$B$1:$B$300,MATCH("Senior Person 2",'Salary & Fringe'!$E$1:$E$300,FALSE),1))),"") ->  | D5: =SUMIFS('Salary & Fringe'!$M$1:'Salary & Fringe'!$M$300,'Salary & Fringe'!$E$1:'Salary & Fringe'!$E$300,"Senior Person 2",'Salary & Fringe'!$F$1:'Salary & Fringe'!$F$300,"Calendar(12)") -> 0 | E5: =SUMIFS('Salary & Fringe'!$M$1:'Salary & Fringe'!$M$300,'Salary & Fringe'!$E$1:'Salary & Fringe'!$E$300,"Senior Person 2",'Salary & Fringe'!$F$1:'Salary & Fringe'!$F$300,"Academic") -> 0 | F5: =SUMIFS('Salary & Fringe'!$M$1:'Salary & Fringe'!$M$300,'Salary & Fringe'!$E$1:'Salary & Fringe'!$E$300,"Senior Person 2",'Salary & Fringe'!$F$1:'Salary & Fringe'!$F$300,"Summer") -> 0 | G5: =SUMIF('Salary & Fringe'!$E$1:$E$300,"Senior Person 2",'Salary & Fringe'!$W$1:$W$300) -> 0
A6: 3. | B6: =IF(G6>0,CONCATENATE((INDEX('Salary & Fringe'!$A$1:$A$300,MATCH("Senior Person 3",'Salary & Fringe'!$E$1:$E$300,FALSE),1))," ",(INDEX('Salary & Fringe'!$B$1:$B$300,MATCH("Senior Person 3",'Salary & Fringe'!$E$1:$E$300,FALSE),1))),"") ->  | D6: =SUMIFS('Salary & Fringe'!$M$1:'Salary & Fringe'!$M$300,'Salary & Fringe'!$E$1:'Salary & Fringe'!$E$300,"Senior Person 3",'Salary & Fringe'!$F$1:'Salary & Fringe'!$F$300,"Calendar(12)") -> 0 | E6: =SUMIFS('Salary & Fringe'!$M$1:'Salary & Fringe'!$M$300,'Salary & Fringe'!$E$1:'Salary & Fringe'!$E$300,"Senior Person 3",'Salary & Fringe'!$F$1:'Salary & Fringe'!$F$300,"Academic") -> 0 | F6: =SUMIFS('Salary & Fringe'!$M$1:'Salary & Fringe'!$M$300,'Salary & Fringe'!$E$1:'Salary & Fringe'!$E$300,"Senior Person 3",'Salary & Fringe'!$F$1:'Salary & Fringe'!$F$300,"Summer") -> 0 | G6: =SUMIF('Salary & Fringe'!$E$1:$E$300,"Senior Person 3",'Salary & Fringe'!$W$1:$W$300) -> 0
A7: 4. | B7: =IF(G7>0,CONCATENATE((INDEX('Salary & Fringe'!$A$1:$A$300,MATCH("Senior Person 4",'Salary & Fringe'!$E$1:$E$300,FALSE),1))," ",(INDEX('Salary & Fringe'!$B$1:$B$300,MATCH("Senior Person 4",'Salary & Fringe'!$E$1:$E$300,FALSE),1))),"") ->  | D7: =SUMIFS('Salary & Fringe'!$M$1:'Salary & Fringe'!$M$300,'Salary & Fringe'!$E$1:'Salary & Fringe'!$E$300,"Senior Person 4",'Salary & Fringe'!$F$1:'Salary & Fringe'!$F$300,"Calendar(12)") -> 0 | E7: =SUMIFS('Salary & Fringe'!$M$1:'Salary & Fringe'!$M$300,'Salary & Fringe'!$E$1:'Salary & Fringe'!$E$300,"Senior Person 4",'Salary & Fringe'!$F$1:'Salary & Fringe'!$F$300,"Academic") -> 0 | F7: =SUMIFS('Salary & Fringe'!$M$1:'Salary & Fringe'!$M$300,'Salary & Fringe'!$E$1:'Salary & Fringe'!$E$300,"Senior Person 4",'Salary & Fringe'!$F$1:'Salary & Fringe'!$F$300,"Summer") -> 0 | G7: =SUMIF('Salary & Fringe'!$E$1:$E$300,"Senior Person 4",'Salary & Fringe'!$W$1:$W$300) -> 0
A8: 5. | B8: =IF(G8>0,CONCATENATE((INDEX('Salary & Fringe'!$A$1:$A$300,MATCH("Senior Person 5",'Salary & Fringe'!$E$1:$E$300,FALSE),1))," ",(INDEX('Salary & Fringe'!$B$1:$B$300,MATCH("Senior Person 5",'Salary & Fringe'!$E$1:$E$300,FALSE),1))),"") ->  | D8: =SUMIFS('Salary & Fringe'!$M$1:'Salary & Fringe'!$M$300,'Salary & Fringe'!$E$1:'Salary & Fringe'!$E$300,"Senior Person 5",'Salary & Fringe'!$F$1:'Salary & Fringe'!$F$300,"Calendar(12)") -> 0 | E8: =SUMIFS('Salary & Fringe'!$M$1:'Salary & Fringe'!$M$300,'Salary & Fringe'!$E$1:'Salary & Fringe'!$E$300,"Senior Person 5",'Salary & Fringe'!$F$1:'Salary & Fringe'!$F$300,"Academic") -> 0 | F8: =SUMIFS('Salary & Fringe'!$M$1:'Salary & Fringe'!$M$300,'Salary & Fringe'!$E$1:'Salary & Fringe'!$E$300,"Senior Person 5",'Salary & Fringe'!$F$1:'Salary & Fringe'!$F$300,"Summer") -> 0 | G8: =SUMIF('Salary & Fringe'!$E$1:$E$300,"Senior Person 5",'Salary & Fringe'!$W$1:$W$300) -> 0
A9: 6. | B9: =SUMIFS('Salary & Fringe'!$I$1:$I$300,'Salary & Fringe'!$E$1:$E$300,"Senior (Other)", 'Salary & Fringe'!$M$1:'Salary & Fringe'!$M$300, ">0") -> 0 | C9: Others (list individually on budget explanation page) | D9: =SUMIFS('Salary & Fringe'!$M$1:'Salary & Fringe'!$M$300,'Salary & Fringe'!$E$1:'Salary & Fringe'!$E$300,"Senior (Other)",'Salary & Fringe'!$F$1:'Salary & Fringe'!$F$300,"Calendar(12)") -> 0 | E9: =SUMIFS('Salary & Fringe'!$M$1:'Salary & Fringe'!$M$300,'Salary & Fringe'!$E$1:'Salary & Fringe'!$E$300,"Senior (Other)",'Salary & Fringe'!$F$1:'Salary & Fringe'!$F$300,"Academic") -> 0 | F9: =SUMIFS('Salary & Fringe'!$M$1:'Salary & Fringe'!$M$300,'Salary & Fringe'!$E$1:'Salary & Fringe'!$E$300,"Senior (Other)",'Salary & Fringe'!$F$1:'Salary & Fringe'!$F$300,"Summer") -> 0 | G9: =SUMIF('Salary & Fringe'!$E$1:$E$300,"Senior (Other)",'Salary & Fringe'!$W$1:$W$300) -> 0
A10: 7. | B10: =(COUNTIF(G4:G8,">0")+B9) -> 0 | C10: Total Senior Personnel (1 through 6) | D10: =SUM(D4:D9) -> 0 | E10: =SUM(E4:E9) -> 0 | F10: =SUM(F4:F9) -> 0 | G10: =SUM(G4:G9) -> 0
A11: B. Other Personnel
A12: 1. | B12: =SUMIFS('Salary & Fringe'!$I$1:$I$300,'Salary & Fringe'!$E$1:$E$300,"Postdoc", 'Salary & Fringe'!$M$1:'Salary & Fringe'!$M$300, ">0") -> 0 | C12: Post Doctoral Associates | D12: =SUMIF('Salary & Fringe'!$E$1:$E$300,"Postdoc",'Salary & Fringe'!$M$1:$M$300) -> 0 | E12: 0 | F12: 0 | G12: =SUMIF('Salary & Fringe'!$E$1:$E$300,"Postdoc",'Salary & Fringe'!$W$1:$W$300) -> 0
A13: 2. | B13: =SUMIFS('Salary & Fringe'!$I$1:$I$300,'Salary & Fringe'!$E$1:$E$300,"Professional (Other)", 'Salary & Fringe'!$M$1:'Salary & Fringe'!$M$300, ">0") -> 0 | C13: Other Professional (Technician, Programmer, etc) | D13: =SUMIF('Salary & Fringe'!$E$1:$E$300,"Professional (Other)",'Salary & Fringe'!$M$1:$M$300) -> 0 | E13: 0 | F13: 0 | G13: =SUMIF('Salary & Fringe'!$E$1:$E$300,"Professional (Other)",'Salary & Fringe'!$W$1:$W$300) -> 0
A14: 3. | C14: Graduate Students | G14: =SUMIF('Salary & Fringe'!$E$1:$E$300,"Grad",'Salary & Fringe'!$W$1:$W$300) -> 0
A15: 4. | C15: Undergraduate Students | G15: =SUMIF('Salary & Fringe'!$E$1:$E$300,"Undergrad",'Salary & Fringe'!$W$1:$W$300) -> 0
A16: 5. | B16: =SUMIFS('Salary & Fringe'!$I$1:$I$300,'Salary & Fringe'!$E$1:$E$300,"Clerical", 'Salary & Fringe'!$M$1:'Salary & Fringe'!$M$300, ">0") -> 0 | C16: Secretarial-Clerical (if charged directly) | G16: =SUMIF('Salary & Fringe'!$E$1:$E$300,"Clerical",'Salary & Fringe'!$W$1:$W$300) -> 0
A17: 6. | B17: =SUMIFS('Salary & Fringe'!$I$1:$I$300,'Salary & Fringe'!$E$1:$E$300,"Other*", 'Salary & Fringe'!$M$1:'Salary & Fringe'!$M$300, ">0") -> 0 | C17: Other | G17: =SUMIF('Salary & Fringe'!$E$1:$E$300,"Other*",'Salary & Fringe'!$W$1:$W$300) -> 0
A18: Total Salaries and Wages (A+B) | G18: =SUM(G10,G12:G17) -> 0
A19: C. Fringe Benefits (If charged as direct costs) | G19: =TotalFringe1 -> 0
A20: Total Salaries, Wages and Fringe Benefits (A+B+C) | G20: =G18+G19 -> 0
A21: D. Equipment (list item and dollar amount for each item exceeding $5,000)
A22: =IF(ISBLANK(Budget!F47),"",Budget!A47) ->  | D22: =IF(Budget!F47>0,Budget!F47,"") -> 
A23: =IF(ISBLANK(Budget!F48),"",Budget!A48) ->  | D23: =IF(Budget!F48>0,Budget!F48,"") -> 
A24: =IF(ISBLANK(Budget!F49),"",Budget!A49) ->  | D24: =IF(Budget!F49>0,Budget!F49,"") -> 
A25: =IF(ISBLANK(Budget!F50),"",Budget!A50) ->  | D25: =IF(Budget!F50>0,Budget!F50,"") -> 
A26: =IF(ISBLANK(Budget!F51),"",Budget!A51) ->  | D26: =IF(Budget!F51>0,Budget!F51,"") -> 
A27: Total Equipment | G27: =Budget!F52 -> 0
A28: E. Travel
A29: 1. Domestic (Including U.S. Possessions) | G29: =Budget!F39 -> 0
A30: 2. Foreign | G30: =Budget!F44 -> 0
A31: F. Participant Support
A32: 1. Stipends | C32: =SUMIF(Budget!$A$2:$A$504,"PS Stipends",Budget!$F$2:$F$504) -> 0
A33: 2. Travel | C33: =SUMIF(Budget!$A$2:$A$504,"PS Travel",Budget!$F$2:$F$504) -> 0
A34: 3. Subsistence | C34: =SUMIF(Budget!$A$2:$A$504,"PS Subsistence",Budget!$F$2:$F$504) -> 0
A35: 4. Other | C35: =SUMIF(Budget!$A$2:$A$504,"PS Other",Budget!$F$2:$F$504) -> 0
C36: Total Participant Support | G36: =Budget!F57 -> 0
A37: G. Other Direct Costs
A38: 1. Materials and Supplies | G38: =SUMIF(Budget!$A$2:$A$504,"Materials & Supplies",Budget!$F$2:$F$504) -> 0
A39: 2. Publication Costs/Documentation/Dissemination | G39: =SUMIF(Budget!$A$2:$A$504,"Publication Costs/Page Charges",Budget!$F$2:$F$504) -> 0
A40: 3. Consultant Services | G40: =SUMIF(Budget!$A$2:$A$504,"Consultant Services",Budget!$F$2:$F$504) -> 0
A41: 4. Computer Services | G41: =SUMIF(Budget!$A$2:$A$504,"Computer (ADPE) Services",Budget!$F$2:$F$504) -> 0
A42: 5. Subawards | G42: =TotalSubs1+TotalMulti1 -> 0
A43: 6. Other | G43: =SUMIF(Budget!$A$2:$A$504,"Vendor Contract",Budget!$F$2:$F$504)+SUMIF(Budget!$A$2:$A$504,"Service Agreement",Budget!$F$2:$F$504)+SUMIF(Budget!$A$2:$A$504,"Space Rentals",Budget!$F$2:$F$504)+SUMIF(Budget!$A$2:$A$504,"Other*",Budget!$F$2:$F$504)+SUMIF(Budget!$A$2:$A$504,"Equipment or facility*",Budget!$F$2:$F$504)+TotalGSR1 -> 0
A44: Total Other Direct Costs (G1 through G6) | G44: =SUM(G38:G43) -> 0
A45: H. Total Direct Costs (A through G) | G45: =SUM(G20+G27+G29+G30+G36+G44) -> 0
A46: I. Indirect Costs (F&A) (Specify Rate and Base)
C47: =Budget!F105 ->  | D47: x | E47: =Budget!F101 -> 0 | F47: Base | G47: =Budget!F109 -> 0
A48: J. Total Direct and Indirect Costs (H+I) | G48: =G45+G47 -> 0
A49: K. Small Business Fee
A50: L. Amount of this request (J or J-K) | G50: =IF(G49>0, G48-G49, G48) -> 0

Sheet NSF Yr 2 (hidden)
A1: NSF Budget Year 2
A2: A. Senior Personnel | D2: NSF Funded Person Months | G2: Funds
D3: CAL | E3: ACAD | F3: SUM
A4: 1. | B4: =IF(G4>0,CONCATENATE((INDEX('Salary & Fringe'!$A$1:$A$300,MATCH("Senior Person 1",'Salary & Fringe'!$E$1:$E$300,FALSE),1))," ",(INDEX('Salary & Fringe'!$B$1:$B$300,MATCH("Senior Person 1",'Salary & Fringe'!$E$1:$E$300,FALSE),1))),"") ->  | D4: =SUMIFS('Salary & Fringe'!$N$1:'Salary & Fringe'!$N$300,'Salary & Fringe'!$E$1:'Salary & Fringe'!$E$300,"Senior Person 1",'Salary & Fringe'!$F$1:'Salary & Fringe'!$F$300,"Calendar(12)") -> 0 | E4: =SUMIFS('Salary & Fringe'!$N$1:'Salary & Fringe'!$N$300,'Salary & Fringe'!$E$1:'Salary & Fringe'!$E$300,"Senior Person 1",'Salary & Fringe'!$F$1:'Salary & Fringe'!$F$300,"Academic") -> 0 | F4: =SUMIFS('Salary & Fringe'!$N$1:'Salary & Fringe'!$N$300,'Salary & Fringe'!$E$1:'Salary & Fringe'!$E$300,"Senior Person 1",'Salary & Fringe'!$F$1:'Salary & Fringe'!$F$300,"Summer") -> 0 | G4: =SUMIF('Salary & Fringe'!$E$1:$E$300,"Senior Person 1",'Salary & Fringe'!$X$1:$X$300) -> 0
A5: 2. | B5: =IF(G5>0,CONCATENATE((INDEX('Salary & Fringe'!$A$1:$A$300,MATCH("Senior Person 2",'Salary & Fringe'!$E$1:$E$300,FALSE),1))," ",(INDEX('Salary & Fringe'!$B$1:$B$300,MATCH("Senior Person 2",'Salary & Fringe'!$E$1:$E$300,FALSE),1))),"") ->  | D5: =SUMIFS('Salary & Fringe'!$N$1:'Salary & Fringe'!$N$300,'Salary & Fringe'!$E$1:'Salary & Fringe'!$E$300,"Senior Person 2",'Salary & Fringe'!$F$1:'Salary & Fringe'!$F$300,"Calendar(12)") -> 0 | E5: =SUMIFS('Salary & Fringe'!$N$1:'Salary & Fringe'!$N$300,'Salary & Fringe'!$E$1:'Salary & Fringe'!$E$300,"Senior Person 2",'Salary & Fringe'!$F$1:'Salary & Fringe'!$F$300,"Academic") -> 0 | F5: =SUMIFS('Salary & Fringe'!$N$1:'Salary & Fringe'!$N$300,'Salary & Fringe'!$E$1:'Salary & Fringe'!$E$300,"Senior Person 2",'Salary & Fringe'!$F$1:'Salary & Fringe'!$F$300,"Summer") -> 0 | G5: =SUMIF('Salary & Fringe'!$E$1:$E$300,"Senior Person 2",'Salary & Fringe'!$X$1:$X$300) -> 0
A6: 3. | B6: =IF(G6>0,CONCATENATE((INDEX('Salary & Fringe'!$A$1:$A$300,MATCH("Senior Person 3",'Salary & Fringe'!$E$1:$E$300,FALSE),1))," ",(INDEX('Salary & Fringe'!$B$1:$B$300,MATCH("Senior Person 3",'Salary & Fringe'!$E$1:$E$300,FALSE),1))),"") ->  | D6: =SUMIFS('Salary & Fringe'!$N$1:'Salary & Fringe'!$N$300,'Salary & Fringe'!$E$1:'Salary & Fringe'!$E$300,"Senior Person 3",'Salary & Fringe'!$F$1:'Salary & Fringe'!$F$300,"Calendar(12)") -> 0 | E6: =SUMIFS('Salary & Fringe'!$N$1:'Salary & Fringe'!$N$300,'Salary & Fringe'!$E$1:'Salary & Fringe'!$E$300,"Senior Person 3",'Salary & Fringe'!$F$1:'Salary & Fringe'!$F$300,"Academic") -> 0 | F6: =SUMIFS('Salary & Fringe'!$N$1:'Salary & Fringe'!$N$300,'Salary & Fringe'!$E$1:'Salary & Fringe'!$E$300,"Senior Person 3",'Salary & Fringe'!$F$1:'Salary & Fringe'!$F$300,"Summer") -> 0 | G6: =SUMIF('Salary & Fringe'!$E$1:$E$300,"Senior Person 3",'Salary & Fringe'!$X$1:$X$300) -> 0
A7: 4. | B7: =IF(G7>0,CONCATENATE((INDEX('Salary & Fringe'!$A$1:$A$300,MATCH("Senior Person 4",'Salary & Fringe'!$E$1:$E$300,FALSE),1))," ",(INDEX('Salary & Fringe'!$B$1:$B$300,MATCH("Senior Person 4",'Salary & Fringe'!$E$1:$E$300,FALSE),1))),"") ->  | D7: =SUMIFS('Salary & Fringe'!$N$1:'Salary & Fringe'!$N$300,'Salary & Fringe'!$E$1:'Salary & Fringe'!$E$300,"Senior Person 4",'Salary & Fringe'!$F$1:'Salary & Fringe'!$F$300,"Calendar(12)") -> 0 | E7: =SUMIFS('Salary & Fringe'!$N$1:'Salary & Fringe'!$N$300,'Salary & Fringe'!$E$1:'Salary & Fringe'!$E$300,"Senior Person 4",'Salary & Fringe'!$F$1:'Salary & Fringe'!$F$300,"Academic") -> 0 | F7: =SUMIFS('Salary & Fringe'!$N$1:'Salary & Fringe'!$N$300,'Salary & Fringe'!$E$1:'Salary & Fringe'!$E$300,"Senior Person 4",'Salary & Fringe'!$F$1:'Salary & Fringe'!$F$300,"Summer") -> 0 | G7: =SUMIF('Salary & Fringe'!$E$1:$E$300,"Senior Person 4",'Salary & Fringe'!$X$1:$X$300) -> 0
A8: 5. | B8: =IF(G8>0,CONCATENATE((INDEX('Salary & Fringe'!$A$1:$A$300,MATCH("Senior Person 5",'Salary & Fringe'!$E$1:$E$300,FALSE),1))," ",(INDEX('Salary & Fringe'!$B$1:$B$300,MATCH("Senior Person 5",'Salary & Fringe'!$E$1:$E$300,FALSE),1))),"") ->  | D8: =SUMIFS('Salary & Fringe'!$N$1:'Salary & Fringe'!$N$300,'Salary & Fringe'!$E$1:'Salary & Fringe'!$E$300,"Senior Person 5",'Salary & Fringe'!$F$1:'Salary & Fringe'!$F$300,"Calendar(12)") -> 0 | E8: =SUMIFS('Salary & Fringe'!$N$1:'Salary & Fringe'!$N$300,'Salary & Fringe'!$E$1:'Salary & Fringe'!$E$300,"Senior Person 5",'Salary & Fringe'!$F$1:'Salary & Fringe'!$F$300,"Academic") -> 0 | F8: =SUMIFS('Salary & Fringe'!$N$1:'Salary & Fringe'!$N$300,'Salary & Fringe'!$E$1:'Salary & Fringe'!$E$300,"Senior Person 5",'Salary & Fringe'!$F$1:'Salary & Fringe'!$F$300,"Summer") -> 0 | G8: =SUMIF('Salary & Fringe'!$E$1:$E$300,"Senior Person 5",'Salary & Fringe'!$X$1:$X$300) -> 0
A9: 6. | B9: =SUMIFS('Salary & Fringe'!$I$1:$I$300,'Salary & Fringe'!$E$1:$E$300,"Senior (Other)", 'Salary & Fringe'!$N$1:'Salary & Fringe'!$N$300, ">0") -> 0 | C9: Others (list individually on budget explanation page) | D9: =SUMIFS('Salary & Fringe'!$N$1:'Salary & Fringe'!$N$300,'Salary & Fringe'!$E$1:'Salary & Fringe'!$E$300,"Senior (Other)",'Salary & Fringe'!$F$1:'Salary & Fringe'!$F$300,"Calendar(12)") -> 0 | E9: =SUMIFS('Salary & Fringe'!$N$1:'Salary & Fringe'!$N$300,'Salary & Fringe'!$E$1:'Salary & Fringe'!$E$300,"Senior (Other)",'Salary & Fringe'!$F$1:'Salary & Fringe'!$F$300,"Academic") -> 0 | F9: =SUMIFS('Salary & Fringe'!$N$1:'Salary & Fringe'!$N$300,'Salary & Fringe'!$E$1:'Salary & Fringe'!$E$300,"Senior (Other)",'Salary & Fringe'!$F$1:'Salary & Fringe'!$F$300,"Summer") -> 0 | G9: =SUMIF('Salary & Fringe'!$E$1:$E$300,"Senior (Other)",'Salary & Fringe'!$X$1:$X$300) -> 0
A10: 7. | B10: =(COUNTIF(G4:G8,">0")+B9) -> 0 | C10: Total Senior Personnel (1 through 6) | D10: =SUM(D4:D9) -> 0 | E10: =SUM(E4:E9) -> 0 | F10: =SUM(F4:F9) -> 0 | G10: =SUM(G4:G9) -> 0
A11: B. Other Personnel
A12: 1. | B12: =SUMIFS('Salary & Fringe'!$I$1:$I$300,'Salary & Fringe'!$E$1:$E$300,"Postdoc", 'Salary & Fringe'!$N$1:'Salary & Fringe'!$N$300, ">0") -> 0 | C12: Post Doctoral Associates | D12: =SUMIF('Salary & Fringe'!$E$1:$E$300,"Postdoc",'Salary & Fringe'!$N$1:$N$300) -> 0 | E12: 0 | F12: 0 | G12: =SUMIF('Salary & Fringe'!$E$1:$E$300,"Postdoc",'Salary & Fringe'!$X$1:$X$300) -> 0
A13: 2. | B13: =SUMIFS('Salary & Fringe'!$I$1:$I$300,'Salary & Fringe'!$E$1:$E$300,"Professional (Other)", 'Salary & Fringe'!$N$1:'Salary & Fringe'!$N$300, ">0") -> 0 | C13: Other Professional (Technician, Programmer, etc) | D13: =SUMIF('Salary & Fringe'!$E$1:$E$300,"Professional (Other)",'Salary & Fringe'!$N$1:$N$300) -> 0 | E13: 0 | F13: 0 | G13: =SUMIF('Salary & Fringe'!$E$1:$E$300,"Professional (Other)",'Salary & Fringe'!$X$1:$X$300) -> 0
A14: 3. | C14: Graduate Students | G14: =SUMIF('Salary & Fringe'!$E$1:$E$300,"Grad",'Salary & Fringe'!$X$1:$X$300) -> 0
A15: 4. | C15: Undergraduate Students | G15: =SUMIF('Salary & Fringe'!$E$1:$E$300,"Undergrad",'Salary & Fringe'!$X$1:$X$300) -> 0
A16: 5. | B16: =SUMIFS('Salary & Fringe'!$I$1:$I$300,'Salary & Fringe'!$E$1:$E$300,"Clerical", 'Salary & Fringe'!$N$1:'Salary & Fringe'!$N$300, ">0") -> 0 | C16: Secretarial-Clerical (if charged directly) | G16: =SUMIF('Salary & Fringe'!$E$1:$E$300,"Clerical",'Salary & Fringe'!$X$1:$X$300) -> 0
A17: 6. | B17: =SUMIFS('Salary & Fringe'!$I$1:$I$300,'Salary & Fringe'!$E$1:$E$300,"Other*", 'Salary & Fringe'!$N$1:'Salary & Fringe'!$N$300, ">0") -> 0 | C17: Other | G17: =SUMIF('Salary & Fringe'!$E$1:$E$300,"Other*",'Salary & Fringe'!$X$1:$X$300) -> 0
A18: Total Salaries and Wages (A+B) | G18: =SUM(G10,G12:G17) -> 0
A19: C. Fringe Benefits (If charged as direct costs) | G19: =TotalFringe2 -> 0
A20: Total Salaries, Wages and Fringe Benefits (A+B+C) | G20: =G18+G19 -> 0
A21: D. Equipment (list item and dollar amount for each item exceeding $5,000)
A22: =IF(ISBLANK(Budget!H47),"",Budget!A47) ->  | D22: =IF(Budget!H47>0,Budget!H47,"") -> 
A23: =IF(ISBLANK(Budget!H48),"",Budget!A48) ->  | D23: =IF(Budget!H48>0,Budget!H48,"") -> 
A24: =IF(ISBLANK(Budget!H49),"",Budget!A49) ->  | D24: =IF(Budget!H49>0,Budget!H49,"") -> 
A25: =IF(ISBLANK(Budget!H50),"",Budget!A50) ->  | D25: =IF(Budget!H50>0,Budget!H50,"") -> 
A26: =IF(ISBLANK(Budget!H51),"",Budget!A51) ->  | D26: =IF(Budget!H51>0,Budget!H51,"") -> 
A27: Total Equipment | G27: =Budget!H52 -> 0
A28: E. Travel
A29: 1. Domestic (Including U.S. Possessions) | G29: =Budget!H39 -> 0
A30: 2. Foreign | G30: =Budget!H44 -> 0
A31: F. Participant Support
A32: 1. Stipends | C32: =SUMIF(Budget!$A$2:$A$504,"PS Stipends",Budget!$H$2:$H$504) -> 0
A33: 2. Travel | C33: =SUMIF(Budget!$A$2:$A$504,"PS Travel",Budget!$H$2:$H$504) -> 0
A34: 3. Subsistence | C34: =SUMIF(Budget!$A$2:$A$504,"PS Subsistence",Budget!$H$2:$H$504) -> 0
A35: 4. Other | C35: =SUMIF(Budget!$A$2:$A$504,"PS Other",Budget!$H$2:$H$504) -> 0
C36: Total Participant Support | G36: =Budget!H57 -> 0
A37: G. Other Direct Costs
A38: 1. Materials and Supplies | G38: =SUMIF(Budget!$A$2:$A$504,"Materials & Supplies",Budget!$H$2:$H$504) -> 0
A39: 2. Publication Costs/Documentation/Dissemination | G39: =SUMIF(Budget!$A$2:$A$504,"Publication Costs/Page Charges",Budget!$H$2:$H$504) -> 0
A40: 3. Consultant Services | G40: =SUMIF(Budget!$A$2:$A$504,"Consultant Services",Budget!$H$2:$H$504) -> 0
A41: 4. Computer Services | G41: =SUMIF(Budget!$A$2:$A$504,"Computer (ADPE) Services",Budget!$H$2:$H$504) -> 0
A42: 5. Subawards | G42: =TotalSubs2+TotalMulti2 -> 0
A43: 6. Other | G43: =SUMIF(Budget!$A$2:$A$504,"Vendor Contract",Budget!$H$2:$H$504)+SUMIF(Budget!$A$2:$A$504,"Service Agreement",Budget!$H$2:$H$504)+SUMIF(Budget!$A$2:$A$504,"Space Rentals",Budget!$H$2:$H$504)+SUMIF(Budget!$A$2:$A$504,"Other*",Budget!$H$2:$H$504)+SUMIF(Budget!$A$2:$A$504,"Equipment or Facility*",Budget!$H$2:$H$504)+TotalGSR2 -> 0
A44: Total Other Direct Costs (G1 through G6) | G44: =SUM(G38:G43) -> 0
A45: H. Total Direct Costs (A through G) | G45: =SUM(G20+G27+G29+G30+G36+G44) -> 0
A46: I. Indirect Costs (F&A) (Specify Rate and Base)
C47: =Budget!H105 ->  | D47: x | E47: =Budget!H101 -> 0 | F47: Base | G47: =Budget!H109 -> 0
A48: J. Total Direct and Indirect Costs (H+I) | G48: =G45+G47 -> 0
A49: K. Small Business Fee
A50: L. Amount of this request (J or J-K) | G50: =IF(G49>0, G48-G49, G48) -> 0

Sheet NSF Yr 3 (hidden)
A1: NSF Budget Year 3
A2: A. Senior Personnel | D2: NSF Funded Person Months | G2: Funds
D3: CAL | E3: ACAD | F3: SUM
A4: 1. | B4: =IF(G4>0,CONCATENATE((INDEX('Salary & Fringe'!$A$1:$A$300,MATCH("Senior Person 1",'Salary & Fringe'!$E$1:$E$300,FALSE),1))," ",(INDEX('Salary & Fringe'!$B$1:$B$300,MATCH("Senior Person 1",'Salary & Fringe'!$E$1:$E$300,FALSE),1))),"") ->  | D4: =SUMIFS('Salary & Fringe'!$O$1:'Salary & Fringe'!$O$300,'Salary & Fringe'!$E$1:'Salary & Fringe'!$E$300,"Senior Person 1",'Salary & Fringe'!$F$1:'Salary & Fringe'!$F$300,"Calendar(12)") -> 0 | E4: =SUMIFS('Salary & Fringe'!$O$1:'Salary & Fringe'!$O$300,'Salary & Fringe'!$E$1:'Salary & Fringe'!$E$300,"Senior Person 1",'Salary & Fringe'!$F$1:'Salary & Fringe'!$F$300,"Academic") -> 0 | F4: =SUMIFS('Salary & Fringe'!$O$1:'Salary & Fringe'!$O$300,'Salary & Fringe'!$E$1:'Salary & Fringe'!$E$300,"Senior Person 1",'Salary & Fringe'!$F$1:'Salary & Fringe'!$F$300,"Summer") -> 0 | G4: =SUMIF('Salary & Fringe'!$E$1:$E$300,"Senior Person 1",'Salary & Fringe'!$Y$1:$Y$300) -> 0
A5: 2. | B5: =IF(G5>0,CONCATENATE((INDEX('Salary & Fringe'!$A$1:$A$300,MATCH("Senior Person 2",'Salary & Fringe'!$E$1:$E$300,FALSE),1))," ",(INDEX('Salary & Fringe'!$B$1:$B$300,MATCH("Senior Person 2",'Salary & Fringe'!$E$1:$E$300,FALSE),1))),"") ->  | D5: =SUMIFS('Salary & Fringe'!$O$1:'Salary & Fringe'!$O$300,'Salary & Fringe'!$E$1:'Salary & Fringe'!$E$300,"Senior Person 2",'Salary & Fringe'!$F$1:'Salary & Fringe'!$F$300,"Calendar(12)") -> 0 | E5: =SUMIFS('Salary & Fringe'!$O$1:'Salary & Fringe'!$O$300,'Salary & Fringe'!$E$1:'Salary & Fringe'!$E$300,"Senior Person 2",'Salary & Fringe'!$F$1:'Salary & Fringe'!$F$300,"Academic") -> 0 | F5: =SUMIFS('Salary & Fringe'!$O$1:'Salary & Fringe'!$O$300,'Salary & Fringe'!$E$1:'Salary & Fringe'!$E$300,"Senior Person 2",'Salary & Fringe'!$F$1:'Salary & Fringe'!$F$300,"Summer") -> 0 | G5: =SUMIF('Salary & Fringe'!$E$1:$E$300,"Senior Person 2",'Salary & Fringe'!$Y$1:$Y$300) -> 0
A6: 3. | B6: =IF(G6>0,CONCATENATE((INDEX('Salary & Fringe'!$A$1:$A$300,MATCH("Senior Person 3",'Salary & Fringe'!$E$1:$E$300,FALSE),1))," ",(INDEX('Salary & Fringe'!$B$1:$B$300,MATCH("Senior Person 3",'Salary & Fringe'!$E$1:$E$300,FALSE),1))),"") ->  | D6: =SUMIFS('Salary & Fringe'!$O$1:'Salary & Fringe'!$O$300,'Salary & Fringe'!$E$1:'Salary & Fringe'!$E$300,"Senior Person 3",'Salary & Fringe'!$F$1:'Salary & Fringe'!$F$300,"Calendar(12)") -> 0 | E6: =SUMIFS('Salary & Fringe'!$O$1:'Salary & Fringe'!$O$300,'Salary & Fringe'!$E$1:'Salary & Fringe'!$E$300,"Senior Person 3",'Salary & Fringe'!$F$1:'Salary & Fringe'!$F$300,"Academic") -> 0 | F6: =SUMIFS('Salary & Fringe'!$O$1:'Salary & Fringe'!$O$300,'Salary & Fringe'!$E$1:'Salary & Fringe'!$E$300,"Senior Person 3",'Salary & Fringe'!$F$1:'Salary & Fringe'!$F$300,"Summer") -> 0 | G6: =SUMIF('Salary & Fringe'!$E$1:$E$300,"Senior Person 3",'Salary & Fringe'!$Y$1:$Y$300) -> 0
A7: 4. | B7: =IF(G7>0,CONCATENATE((INDEX('Salary & Fringe'!$A$1:$A$300,MATCH("Senior Person 4",'Salary & Fringe'!$E$1:$E$300,FALSE),1))," ",(INDEX('Salary & Fringe'!$B$1:$B$300,MATCH("Senior Person 4",'Salary & Fringe'!$E$1:$E$300,FALSE),1))),"") ->  | D7: =SUMIFS('Salary & Fringe'!$O$1:'Salary & Fringe'!$O$300,'Salary & Fringe'!$E$1:'Salary & Fringe'!$E$300,"Senior Person 4",'Salary & Fringe'!$F$1:'Salary & Fringe'!$F$300,"Calendar(12)") -> 0 | E7: =SUMIFS('Salary & Fringe'!$O$1:'Salary & Fringe'!$O$300,'Salary & Fringe'!$E$1:'Salary & Fringe'!$E$300,"Senior Person 4",'Salary & Fringe'!$F$1:'Salary & Fringe'!$F$300,"Academic") -> 0 | F7: =SUMIFS('Salary & Fringe'!$O$1:'Salary & Fringe'!$O$300,'Salary & Fringe'!$E$1:'Salary & Fringe'!$E$300,"Senior Person 4",'Salary & Fringe'!$F$1:'Salary & Fringe'!$F$300,"Summer") -> 0 | G7: =SUMIF('Salary & Fringe'!$E$1:$E$300,"Senior Person 4",'Salary & Fringe'!$Y$1:$Y$300) -> 0
A8: 5. | B8: =IF(G8>0,CONCATENATE((INDEX('Salary & Fringe'!$A$1:$A$300,MATCH("Senior Person 5",'Salary & Fringe'!$E$1:$E$300,FALSE),1))," ",(INDEX('Salary & Fringe'!$B$1:$B$300,MATCH("Senior Person 5",'Salary & Fringe'!$E$1:$E$300,FALSE),1))),"") ->  | D8: =SUMIFS('Salary & Fringe'!$O$1:'Salary & Fringe'!$O$300,'Salary & Fringe'!$E$1:'Salary & Fringe'!$E$300,"Senior Person 5",'Salary & Fringe'!$F$1:'Salary & Fringe'!$F$300,"Calendar(12)") -> 0 | E8: =SUMIFS('Salary & Fringe'!$O$1:'Salary & Fringe'!$O$300,'Salary & Fringe'!$E$1:'Salary & Fringe'!$E$300,"Senior Person 5",'Salary & Fringe'!$F$1:'Salary & Fringe'!$F$300,"Academic") -> 0 | F8: =SUMIFS('Salary & Fringe'!$O$1:'Salary & Fringe'!$O$300,'Salary & Fringe'!$E$1:'Salary & Fringe'!$E$300,"Senior Person 5",'Salary & Fringe'!$F$1:'Salary & Fringe'!$F$300,"Summer") -> 0 | G8: =SUMIF('Salary & Fringe'!$E$1:$E$300,"Senior Person 5",'Salary & Fringe'!$Y$1:$Y$300) -> 0
A9: 6. | B9: =SUMIFS('Salary & Fringe'!$I$1:$I$300,'Salary & Fringe'!$E$1:$E$300,"Senior (Other)", 'Salary & Fringe'!$O$1:'Salary & Fringe'!$O$300, ">0") -> 0 | C9: Others (list individually on budget explanation page) | D9: =SUMIFS('Salary & Fringe'!$O$1:'Salary & Fringe'!$O$300,'Salary & Fringe'!$E$1:'Salary & Fringe'!$E$300,"Senior (Other)",'Salary & Fringe'!$F$1:'Salary & Fringe'!$F$300,"Calendar(12)") -> 0 | E9: =SUMIFS('Salary & Fringe'!$O$1:'Salary & Fringe'!$O$300,'Salary & Fringe'!$E$1:'Salary & Fringe'!$E$300,"Senior (Other)",'Salary & Fringe'!$F$1:'Salary & Fringe'!$F$300,"Academic") -> 0 | F9: =SUMIFS('Salary & Fringe'!$O$1:'Salary & Fringe'!$O$300,'Salary & Fringe'!$E$1:'Salary & Fringe'!$E$300,"Senior (Other)",'Salary & Fringe'!$F$1:'Salary & Fringe'!$F$300,"Summer") -> 0 | G9: =SUMIF('Salary & Fringe'!$E$1:$E$300,"Senior (Other)",'Salary & Fringe'!$Y$1:$Y$300) -> 0
A10: 7. | B10: =(COUNTIF(G4:G8,">0")+B9) -> 0 | C10: Total Senior Personnel (1 through 6) | D10: =SUM(D4:D9) -> 0 | E10: =SUM(E4:E9) -> 0 | F10: =SUM(F4:F9) -> 0 | G10: =SUM(G4:G9) -> 0
A11: B. Other Personnel
A12: 1. | B12: =SUMIFS('Salary & Fringe'!$I$1:$I$300,'Salary & Fringe'!$E$1:$E$300,"Postdoc", 'Salary & Fringe'!$O$1:'Salary & Fringe'!$O$300, ">0") -> 0 | C12: Post Doctoral Associates | D12: =SUMIF('Salary & Fringe'!$E$1:$E$300,"Postdoc",'Salary & Fringe'!$O$1:$O$300) -> 0 | E12: 0 | F12: 0 | G12: =SUMIF('Salary & Fringe'!$E$1:$E$300,"Postdoc",'Salary & Fringe'!$Y$1:$Y$300) -> 0
A13: 2. | B13: =SUMIFS('Salary & Fringe'!$I$1:$I$300,'Salary & Fringe'!$E$1:$E$300,"Professional (Other)", 'Salary & Fringe'!$O$1:'Salary & Fringe'!$O$300, ">0") -> 0 | C13: Other Professional (Technician, Programmer, etc) | D13: =SUMIF('Salary & Fringe'!$E$1:$E$300,"Professional (Other)",'Salary & Fringe'!$O$1:$O$300) -> 0 | E13: 0 | F13: 0 | G13: =SUMIF('Salary & Fringe'!$E$1:$E$300,"Professional (Other)",'Salary & Fringe'!$Y$1:$Y$300) -> 0
A14: 3. | C14: Graduate Students | G14: =SUMIF('Salary & Fringe'!$E$1:$E$300,"Grad",'Salary & Fringe'!$Y$1:$Y$300) -> 0
A15: 4. | C15: Undergraduate Students | G15: =SUMIF('Salary & Fringe'!$E$1:$E$300,"Undergrad",'Salary & Fringe'!$Y$1:$Y$300) -> 0
A16: 5. | B16: =SUMIFS('Salary & Fringe'!$I$1:$I$300,'Salary & Fringe'!$E$1:$E$300,"Clerical", 'Salary & Fringe'!$O$1:'Salary & Fringe'!$O$300, ">0") -> 0 | C16: Secretarial-Clerical (if charged directly) | G16: =SUMIF('Salary & Fringe'!$E$1:$E$300,"Clerical",'Salary & Fringe'!$Y$1:$Y$300) -> 0
A17: 6. | B17: =SUMIFS('Salary & Fringe'!$I$1:$I$300,'Salary & Fringe'!$E$1:$E$300,"Other*", 'Salary & Fringe'!$O$1:'Salary & Fringe'!$O$300, ">0") -> 0 | C17: Other | G17: =SUMIF('Salary & Fringe'!$E$1:$E$300,"Other*",'Salary & Fringe'!$Y$1:$Y$300) -> 0
A18: Total Salaries and Wages (A+B) | G18: =SUM(G10,G12:G17) -> 0
A19: C. Fringe Benefits (If charged as direct costs) | G19: =TotalFringe3 -> 0
A20: Total Salaries, Wages and Fringe Benefits (A+B+C) | G20: =G18+G19 -> 0
A21: D. Equipment (list item and dollar amount for each item exceeding $5,000)
A22: =IF(ISBLANK(Budget!J47),"",Budget!A47) ->  | D22: =IF(Budget!J47>0,Budget!J47,"") -> 
A23: =IF(ISBLANK(Budget!J48),"",Budget!A48) ->  | D23: =IF(Budget!J48>0,Budget!J48,"") -> 
A24: =IF(ISBLANK(Budget!J49),"",Budget!A49) ->  | D24: =IF(Budget!J49>0,Budget!J49,"") -> 
A25: =IF(ISBLANK(Budget!J50),"",Budget!A50) ->  | D25: =IF(Budget!J50>0,Budget!J50,"") -> 
A26: =IF(ISBLANK(Budget!J51),"",Budget!A51) ->  | D26: =IF(Budget!J51>0,Budget!J51,"") -> 
A27: Total Equipment | G27: =Budget!J52 -> 0
A28: E. Travel
A29: 1. Domestic (Including U.S. Possessions) | G29: =Budget!J39 -> 0
A30: 2. Foreign | G30: =Budget!J44 -> 0
A31: F. Participant Support
A32: 1. Stipends | C32: =SUMIF(Budget!$A$2:$A$504,"PS Stipends",Budget!$J$2:$J$504) -> 0
A33: 2. Travel | C33: =SUMIF(Budget!$A$2:$A$504,"PS Travel",Budget!$J$2:$J$504) -> 0
A34: 3. Subsistence | C34: =SUMIF(Budget!$A$2:$A$504,"PS Subsistence",Budget!$J$2:$J$504) -> 0
A35: 4. Other | C35: =SUMIF(Budget!$A$2:$A$504,"PS Other",Budget!$J$2:$J$504) -> 0
C36: Total Participant Support | G36: =Budget!J57 -> 0
A37: G. Other Direct Costs
A38: 1. Materials and Supplies | G38: =SUMIF(Budget!$A$2:$A$504,"Materials & Supplies",Budget!$J$2:$J$504) -> 0
A39: 2. Publication Costs/Documentation/Dissemination | G39: =SUMIF(Budget!$A$2:$A$504,"Publication Costs/Page Charges",Budget!$J$2:$J$504) -> 0
A40: 3. Consultant Services | G40: =SUMIF(Budget!$A$2:$A$504,"Consultant Services",Budget!$J$2:$J$504) -> 0
A41: 4. Computer Services | G41: =SUMIF(Budget!$A$2:$A$504,"Computer (ADPE) Services",Budget!$J$2:$J$504) -> 0
A42: 5. Subawards | G42: =TotalSubs3+TotalMulti3 -> 0
A43: 6. Other | G43: =SUMIF(Budget!$A$2:$A$504,"Vendor Contract",Budget!$J$2:$J$504)+SUMIF(Budget!$A$2:$A$504,"Service Agreement",Budget!$J$2:$J$504)+SUMIF(Budget!$A$2:$A$504,"Space Rentals",Budget!$J$2:$J$504)+SUMIF(Budget!$A$2:$A$504,"Other*",Budget!$J$2:$J$504)+SUMIF(Budget!$A$2:$A$504,"Equipment or Facility*",Budget!$J$2:$J$504)+TotalGSR3 -> 0
A44: Total Other Direct Costs (G1 through G6) | G44: =SUM(G38:G43) -> 0
A45: H. Total Direct Costs (A through G) | G45: =SUM(G20+G27+G29+G30+G36+G44) -> 0
A46: I. Indirect Costs (F&A) (Specify Rate and Base)
C47: =Budget!J105 ->  | D47: x | E47: =Budget!J101 -> 0 | F47: Base | G47: =Budget!J109 -> 0
A48: J. Total Direct and Indirect Costs (H+I) | G48: =G45+G47 -> 0
A49: K. Small Business Fee
A50: L. Amount of this request (J or J-K) | G50: =IF(G49>0, G48-G49, G48) -> 0

Sheet NSF Yr 4 (hidden)
A1: NSF Budget Year 4
A2: A. Senior Personnel | D2: NSF Funded Person Months | G2: Funds
D3: CAL | E3: ACAD | F3: SUM
A4: 1. | B4: =IF(G4>0,CONCATENATE((INDEX('Salary & Fringe'!$A$1:$A$300,MATCH("Senior Person 1",'Salary & Fringe'!$E$1:$E$300,FALSE),1))," ",(INDEX('Salary & Fringe'!$B$1:$B$300,MATCH("Senior Person 1",'Salary & Fringe'!$E$1:$E$300,FALSE),1))),"") ->  | D4: =SUMIFS('Salary & Fringe'!$P$1:'Salary & Fringe'!$P$300,'Salary & Fringe'!$E$1:'Salary & Fringe'!$E$300,"Senior Person 1",'Salary & Fringe'!$F$1:'Salary & Fringe'!$F$300,"Calendar(12)") -> 0 | E4: =SUMIFS('Salary & Fringe'!$P$1:'Salary & Fringe'!$P$300,'Salary & Fringe'!$E$1:'Salary & Fringe'!$E$300,"Senior Person 1",'Salary & Fringe'!$F$1:'Salary & Fringe'!$F$300,"Academic") -> 0 | F4: =SUMIFS('Salary & Fringe'!$P$1:'Salary & Fringe'!$P$300,'Salary & Fringe'!$E$1:'Salary & Fringe'!$E$300,"Senior Person 1",'Salary & Fringe'!$F$1:'Salary & Fringe'!$F$300,"Summer") -> 0 | G4: =SUMIF('Salary & Fringe'!$E$1:$E$300,"Senior Person 1",'Salary & Fringe'!$Z$1:$Z$300) -> 0
A5: 2. | B5: =IF(G5>0,CONCATENATE((INDEX('Salary & Fringe'!$A$1:$A$300,MATCH("Senior Person 2",'Salary & Fringe'!$E$1:$E$300,FALSE),1))," ",(INDEX('Salary & Fringe'!$B$1:$B$300,MATCH("Senior Person 2",'Salary & Fringe'!$E$1:$E$300,FALSE),1))),"") ->  | D5: =SUMIFS('Salary & Fringe'!$P$1:'Salary & Fringe'!$P$300,'Salary & Fringe'!$E$1:'Salary & Fringe'!$E$300,"Senior Person 2",'Salary & Fringe'!$F$1:'Salary & Fringe'!$F$300,"Calendar(12)") -> 0 | E5: =SUMIFS('Salary & Fringe'!$P$1:'Salary & Fringe'!$P$300,'Salary & Fringe'!$E$1:'Salary & Fringe'!$E$300,"Senior Person 2",'Salary & Fringe'!$F$1:'Salary & Fringe'!$F$300,"Academic") -> 0 | F5: =SUMIFS('Salary & Fringe'!$P$1:'Salary & Fringe'!$P$300,'Salary & Fringe'!$E$1:'Salary & Fringe'!$E$300,"Senior Person 2",'Salary & Fringe'!$F$1:'Salary & Fringe'!$F$300,"Summer") -> 0 | G5: =SUMIF('Salary & Fringe'!$E$1:$E$300,"Senior Person 2",'Salary & Fringe'!$Z$1:$Z$300) -> 0
A6: 3. | B6: =IF(G6>0,CONCATENATE((INDEX('Salary & Fringe'!$A$1:$A$300,MATCH("Senior Person 3",'Salary & Fringe'!$E$1:$E$300,FALSE),1))," ",(INDEX('Salary & Fringe'!$B$1:$B$300,MATCH("Senior Person 3",'Salary & Fringe'!$E$1:$E$300,FALSE),1))),"") ->  | D6: =SUMIFS('Salary & Fringe'!$P$1:'Salary & Fringe'!$P$300,'Salary & Fringe'!$E$1:'Salary & Fringe'!$E$300,"Senior Person 3",'Salary & Fringe'!$F$1:'Salary & Fringe'!$F$300,"Calendar(12)") -> 0 | E6: =SUMIFS('Salary & Fringe'!$P$1:'Salary & Fringe'!$P$300,'Salary & Fringe'!$E$1:'Salary & Fringe'!$E$300,"Senior Person 3",'Salary & Fringe'!$F$1:'Salary & Fringe'!$F$300,"Academic") -> 0 | F6: =SUMIFS('Salary & Fringe'!$P$1:'Salary & Fringe'!$P$300,'Salary & Fringe'!$E$1:'Salary & Fringe'!$E$300,"Senior Person 3",'Salary & Fringe'!$F$1:'Salary & Fringe'!$F$300,"Summer") -> 0 | G6: =SUMIF('Salary & Fringe'!$E$1:$E$300,"Senior Person 3",'Salary & Fringe'!$Z$1:$Z$300) -> 0
A7: 4. | B7: =IF(G7>0,CONCATENATE((INDEX('Salary & Fringe'!$A$1:$A$300,MATCH("Senior Person 4",'Salary & Fringe'!$E$1:$E$300,FALSE),1))," ",(INDEX('Salary & Fringe'!$B$1:$B$300,MATCH("Senior Person 4",'Salary & Fringe'!$E$1:$E$300,FALSE),1))),"") ->  | D7: =SUMIFS('Salary & Fringe'!$P$1:'Salary & Fringe'!$P$300,'Salary & Fringe'!$E$1:'Salary & Fringe'!$E$300,"Senior Person 4",'Salary & Fringe'!$F$1:'Salary & Fringe'!$F$300,"Calendar(12)") -> 0 | E7: =SUMIFS('Salary & Fringe'!$P$1:'Salary & Fringe'!$P$300,'Salary & Fringe'!$E$1:'Salary & Fringe'!$E$300,"Senior Person 4",'Salary & Fringe'!$F$1:'Salary & Fringe'!$F$300,"Academic") -> 0 | F7: =SUMIFS('Salary & Fringe'!$P$1:'Salary & Fringe'!$P$300,'Salary & Fringe'!$E$1:'Salary & Fringe'!$E$300,"Senior Person 4",'Salary & Fringe'!$F$1:'Salary & Fringe'!$F$300,"Summer") -> 0 | G7: =SUMIF('Salary & Fringe'!$E$1:$E$300,"Senior Person 4",'Salary & Fringe'!$Z$1:$Z$300) -> 0
A8: 5. | B8: =IF(G8>0,CONCATENATE((INDEX('Salary & Fringe'!$A$1:$A$300,MATCH("Senior Person 5",'Salary & Fringe'!$E$1:$E$300,FALSE),1))," ",(INDEX('Salary & Fringe'!$B$1:$B$300,MATCH("Senior Person 5",'Salary & Fringe'!$E$1:$E$300,FALSE),1))),"") ->  | D8: =SUMIFS('Salary & Fringe'!$P$1:'Salary & Fringe'!$P$300,'Salary & Fringe'!$E$1:'Salary & Fringe'!$E$300,"Senior Person 5",'Salary & Fringe'!$F$1:'Salary & Fringe'!$F$300,"Calendar(12)") -> 0 | E8: =SUMIFS('Salary & Fringe'!$P$1:'Salary & Fringe'!$P$300,'Salary & Fringe'!$E$1:'Salary & Fringe'!$E$300,"Senior Person 5",'Salary & Fringe'!$F$1:'Salary & Fringe'!$F$300,"Academic") -> 0 | F8: =SUMIFS('Salary & Fringe'!$P$1:'Salary & Fringe'!$P$300,'Salary & Fringe'!$E$1:'Salary & Fringe'!$E$300,"Senior Person 5",'Salary & Fringe'!$F$1:'Salary & Fringe'!$F$300,"Summer") -> 0 | G8: =SUMIF('Salary & Fringe'!$E$1:$E$300,"Senior Person 5",'Salary & Fringe'!$Z$1:$Z$300) -> 0
A9: 6. | B9: =SUMIFS('Salary & Fringe'!$I$1:$I$300,'Salary & Fringe'!$E$1:$E$300,"Senior (Other)", 'Salary & Fringe'!$P$1:'Salary & Fringe'!$P$300, ">0") -> 0 | C9: Others (list individually on budget explanation page) | D9: =SUMIFS('Salary & Fringe'!$P$1:'Salary & Fringe'!$P$300,'Salary & Fringe'!$E$1:'Salary & Fringe'!$E$300,"Senior (Other)",'Salary & Fringe'!$F$1:'Salary & Fringe'!$F$300,"Calendar(12)") -> 0 | E9: =SUMIFS('Salary & Fringe'!$P$1:'Salary & Fringe'!$P$300,'Salary & Fringe'!$E$1:'Salary & Fringe'!$E$300,"Senior (Other)",'Salary & Fringe'!$F$1:'Salary & Fringe'!$F$300,"Academic") -> 0 | F9: =SUMIFS('Salary & Fringe'!$P$1:'Salary & Fringe'!$P$300,'Salary & Fringe'!$E$1:'Salary & Fringe'!$E$300,"Senior (Other)",'Salary & Fringe'!$F$1:'Salary & Fringe'!$F$300,"Summer") -> 0 | G9: =SUMIF('Salary & Fringe'!$E$1:$E$300,"Senior (Other)",'Salary & Fringe'!$Z$1:$Z$300) -> 0
A10: 7. | B10: =(COUNTIF(G4:G8,">0")+B9) -> 0 | C10: Total Senior Personnel (1 through 6) | D10: =SUM(D4:D9) -> 0 | E10: =SUM(E4:E9) -> 0 | F10: =SUM(F4:F9) -> 0 | G10: =SUM(G4:G9) -> 0
A11: B. Other Personnel
A12: 1. | B12: =SUMIFS('Salary & Fringe'!$I$1:$I$300,'Salary & Fringe'!$E$1:$E$300,"Postdoc", 'Salary & Fringe'!$P$1:'Salary & Fringe'!$P$300, ">0") -> 0 | C12: Post Doctoral Associates | D12: =SUMIF('Salary & Fringe'!$E$1:$E$300,"Postdoc",'Salary & Fringe'!$P$1:$P$300) -> 0 | E12: 0 | F12: 0 | G12: =SUMIF('Salary & Fringe'!$E$1:$E$300,"Postdoc",'Salary & Fringe'!$Z$1:$Z$300) -> 0
A13: 2. | B13: =SUMIFS('Salary & Fringe'!$I$1:$I$300,'Salary & Fringe'!$E$1:$E$300,"Professional (Other)", 'Salary & Fringe'!$P$1:'Salary & Fringe'!$P$300, ">0") -> 0 | C13: Other Professional (Technician, Programmer, etc) | D13: =SUMIF('Salary & Fringe'!$E$1:$E$300,"Professional (Other)",'Salary & Fringe'!$P$1:$P$300) -> 0 | E13: 0 | F13: 0 | G13: =SUMIF('Salary & Fringe'!$E$1:$E$300,"Professional (Other)",'Salary & Fringe'!$Z$1:$Z$300) -> 0
A14: 3. | C14: Graduate Students | G14: =SUMIF('Salary & Fringe'!$E$1:$E$300,"Grad",'Salary & Fringe'!$Z$1:$Z$300) -> 0
A15: 4. | C15: Undergraduate Students | G15: =SUMIF('Salary & Fringe'!$E$1:$E$300,"Undergrad",'Salary & Fringe'!$Z$1:$Z$300) -> 0
A16: 5. | B16: =SUMIFS('Salary & Fringe'!$I$1:$I$300,'Salary & Fringe'!$E$1:$E$300,"Clerical", 'Salary & Fringe'!$P$1:'Salary & Fringe'!$P$300, ">0") -> 0 | C16: Secretarial-Clerical (if charged directly) | G16: =SUMIF('Salary & Fringe'!$E$1:$E$300,"Clerical",'Salary & Fringe'!$Z$1:$Z$300) -> 0
A17: 6. | B17: =SUMIFS('Salary & Fringe'!$I$1:$I$300,'Salary & Fringe'!$E$1:$E$300,"Other*", 'Salary & Fringe'!$P$1:'Salary & Fringe'!$P$300, ">0") -> 0 | C17: Other | G17: =SUMIF('Salary & Fringe'!$E$1:$E$300,"Other*",'Salary & Fringe'!$Z$1:$Z$300) -> 0
A18: Total Salaries and Wages (A+B) | G18: =SUM(G10,G12:G17) -> 0
A19: C. Fringe Benefits (If charged as direct costs) | G19: =TotalFringe4 -> 0
A20: Total Salaries, Wages and Fringe Benefits (A+B+C) | G20: =G18+G19 -> 0
A21: D. Equipment (list item and dollar amount for each item exceeding $5,000)
A22: =IF(ISBLANK(Budget!L47),"",Budget!A47) ->  | D22: =IF(Budget!L47>0,Budget!L47,"") -> 
A23: =IF(ISBLANK(Budget!L48),"",Budget!A48) ->  | D23: =IF(Budget!L48>0,Budget!L48,"") -> 
A24: =IF(ISBLANK(Budget!L49),"",Budget!A49) ->  | D24: =IF(Budget!L49>0,Budget!L49,"") -> 
A25: =IF(ISBLANK(Budget!L50),"",Budget!A50) ->  | D25: =IF(Budget!L50>0,Budget!L50,"") -> 
A26: =IF(ISBLANK(Budget!L51),"",Budget!A51) ->  | D26: =IF(Budget!L51>0,Budget!L51,"") -> 
A27: Total Equipment | G27: =Budget!L52 -> 0
A28: E. Travel
A29: 1. Domestic (Including U.S. Possessions) | G29: =Budget!L39 -> 0
A30: 2. Foreign | G30: =Budget!L44 -> 0
A31: F. Participant Support
A32: 1. Stipends | C32: =SUMIF(Budget!$A$2:$A$504,"PS Stipends",Budget!$L$2:$L$504) -> 0
A33: 2. Travel | C33: =SUMIF(Budget!$A$2:$A$504,"PS Travel",Budget!$L$2:$L$504) -> 0
A34: 3. Subsistence | C34: =SUMIF(Budget!$A$2:$A$504,"PS Subsistence",Budget!$L$2:$L$504) -> 0
A35: 4. Other | C35: =SUMIF(Budget!$A$2:$A$504,"PS Other",Budget!$L$2:$L$504) -> 0
C36: Total Participant Support | G36: =Budget!L57 -> 0
A37: G. Other Direct Costs
A38: 1. Materials and Supplies | G38: =SUMIF(Budget!$A$2:$A$504,"Materials & Supplies",Budget!$L$2:$L$504) -> 0
A39: 2. Publication Costs/Documentation/Dissemination | G39: =SUMIF(Budget!$A$2:$A$504,"Publication Costs/Page Charges",Budget!$L$2:$L$504) -> 0
A40: 3. Consultant Services | G40: =SUMIF(Budget!$A$2:$A$504,"Consultant Services",Budget!$L$2:$L$504) -> 0
A41: 4. Computer Services | G41: =SUMIF(Budget!$A$2:$A$504,"Computer (ADPE) Services",Budget!$L$2:$L$504) -> 0
A42: 5. Subawards | G42: =TotalSubs4+TotalMulti4 -> 0
A43: 6. Other | G43: =SUMIF(Budget!$A$2:$A$504,"Vendor Contract",Budget!$L$2:$L$504)+SUMIF(Budget!$A$2:$A$504,"Service Agreement",Budget!$L$2:$L$504)+SUMIF(Budget!$A$2:$A$504,"Space Rentals",Budget!$L$2:$L$504)+SUMIF(Budget!$A$2:$A$504,"Other*",Budget!$L$2:$L$504)+SUMIF(Budget!$A$2:$A$504,"Equipment or Facility*",Budget!$L$2:$L$504)+TotalGSR4 -> 0
A44: Total Other Direct Costs (G1 through G6) | G44: =SUM(G38:G43) -> 0
A45: H. Total Direct Costs (A through G) | G45: =SUM(G20+G27+G29+G30+G36+G44) -> 0
A46: I. Indirect Costs (F&A) (Specify Rate and Base)
C47: =Budget!L105 ->  | D47: x | E47: =Budget!L101 -> 0 | F47: Base | G47: =Budget!L109 -> 0
A48: J. Total Direct and Indirect Costs (H+I) | G48: =G45+G47 -> 0
A49: K. Small Business Fee
A50: L. Amount of this request (J or J-K) | G50: =IF(G49>0, G48-G49, G48) -> 0

Sheet NSF Yr 5 (hidden)
A1: NSF Budget Year 5
A2: A. Senior Personnel | D2: NSF Funded Person Months | G2: Funds
D3: CAL | E3: ACAD | F3: SUM
A4: 1. | B4: =IF(G4>0,CONCATENATE((INDEX('Salary & Fringe'!$A$1:$A$300,MATCH("Senior Person 1",'Salary & Fringe'!$E$1:$E$300,FALSE),1))," ",(INDEX('Salary & Fringe'!$B$1:$B$300,MATCH("Senior Person 1",'Salary & Fringe'!$E$1:$E$300,FALSE),1))),"") ->  | D4: =SUMIFS('Salary & Fringe'!$Q$1:'Salary & Fringe'!$Q$300,'Salary & Fringe'!$E$1:'Salary & Fringe'!$E$300,"Senior Person 1",'Salary & Fringe'!$F$1:'Salary & Fringe'!$F$300,"Calendar(12)") -> 0 | E4: =SUMIFS('Salary & Fringe'!$Q$1:'Salary & Fringe'!$Q$300,'Salary & Fringe'!$E$1:'Salary & Fringe'!$E$300,"Senior Person 1",'Salary & Fringe'!$F$1:'Salary & Fringe'!$F$300,"Academic") -> 0 | F4: =SUMIFS('Salary & Fringe'!$Q$1:'Salary & Fringe'!$Q$300,'Salary & Fringe'!$E$1:'Salary & Fringe'!$E$300,"Senior Person 1",'Salary & Fringe'!$F$1:'Salary & Fringe'!$F$300,"Summer") -> 0 | G4: =SUMIF('Salary & Fringe'!$E$1:$E$300,"Senior Person 1",'Salary & Fringe'!$AA$1:$AA$300) -> 0
A5: 2. | B5: =IF(G5>0,CONCATENATE((INDEX('Salary & Fringe'!$A$1:$A$300,MATCH("Senior Person 2",'Salary & Fringe'!$E$1:$E$300,FALSE),1))," ",(INDEX('Salary & Fringe'!$B$1:$B$300,MATCH("Senior Person 2",'Salary & Fringe'!$E$1:$E$300,FALSE),1))),"") ->  | D5: =SUMIFS('Salary & Fringe'!$Q$1:'Salary & Fringe'!$Q$300,'Salary & Fringe'!$E$1:'Salary & Fringe'!$E$300,"Senior Person 2",'Salary & Fringe'!$F$1:'Salary & Fringe'!$F$300,"Calendar(12)") -> 0 | E5: =SUMIFS('Salary & Fringe'!$Q$1:'Salary & Fringe'!$Q$300,'Salary & Fringe'!$E$1:'Salary & Fringe'!$E$300,"Senior Person 2",'Salary & Fringe'!$F$1:'Salary & Fringe'!$F$300,"Academic") -> 0 | F5: =SUMIFS('Salary & Fringe'!$Q$1:'Salary & Fringe'!$Q$300,'Salary & Fringe'!$E$1:'Salary & Fringe'!$E$300,"Senior Person 2",'Salary & Fringe'!$F$1:'Salary & Fringe'!$F$300,"Summer") -> 0 | G5: =SUMIF('Salary & Fringe'!$E$1:$E$300,"Senior Person 2",'Salary & Fringe'!$AA$1:$AA$300) -> 0
A6: 3. | B6: =IF(G6>0,CONCATENATE((INDEX('Salary & Fringe'!$A$1:$A$300,MATCH("Senior Person 3",'Salary & Fringe'!$E$1:$E$300,FALSE),1))," ",(INDEX('Salary & Fringe'!$B$1:$B$300,MATCH("Senior Person 3",'Salary & Fringe'!$E$1:$E$300,FALSE),1))),"") ->  | D6: =SUMIFS('Salary & Fringe'!$Q$1:'Salary & Fringe'!$Q$300,'Salary & Fringe'!$E$1:'Salary & Fringe'!$E$300,"Senior Person 3",'Salary & Fringe'!$F$1:'Salary & Fringe'!$F$300,"Calendar(12)") -> 0 | E6: =SUMIFS('Salary & Fringe'!$Q$1:'Salary & Fringe'!$Q$300,'Salary & Fringe'!$E$1:'Salary & Fringe'!$E$300,"Senior Person 3",'Salary & Fringe'!$F$1:'Salary & Fringe'!$F$300,"Academic") -> 0 | F6: =SUMIFS('Salary & Fringe'!$Q$1:'Salary & Fringe'!$Q$300,'Salary & Fringe'!$E$1:'Salary & Fringe'!$E$300,"Senior Person 3",'Salary & Fringe'!$F$1:'Salary & Fringe'!$F$300,"Summer") -> 0 | G6: =SUMIF('Salary & Fringe'!$E$1:$E$300,"Senior Person 3",'Salary & Fringe'!$AA$1:$AA$300) -> 0
A7: 4. | B7: =IF(G7>0,CONCATENATE((INDEX('Salary & Fringe'!$A$1:$A$300,MATCH("Senior Person 4",'Salary & Fringe'!$E$1:$E$300,FALSE),1))," ",(INDEX('Salary & Fringe'!$B$1:$B$300,MATCH("Senior Person 4",'Salary & Fringe'!$E$1:$E$300,FALSE),1))),"") ->  | D7: =SUMIFS('Salary & Fringe'!$Q$1:'Salary & Fringe'!$Q$300,'Salary & Fringe'!$E$1:'Salary & Fringe'!$E$300,"Senior Person 4",'Salary & Fringe'!$F$1:'Salary & Fringe'!$F$300,"Calendar(12)") -> 0 | E7: =SUMIFS('Salary & Fringe'!$Q$1:'Salary & Fringe'!$Q$300,'Salary & Fringe'!$E$1:'Salary & Fringe'!$E$300,"Senior Person 4",'Salary & Fringe'!$F$1:'Salary & Fringe'!$F$300,"Academic") -> 0 | F7: =SUMIFS('Salary & Fringe'!$Q$1:'Salary & Fringe'!$Q$300,'Salary & Fringe'!$E$1:'Salary & Fringe'!$E$300,"Senior Person 4",'Salary & Fringe'!$F$1:'Salary & Fringe'!$F$300,"Summer") -> 0 | G7: =SUMIF('Salary & Fringe'!$E$1:$E$300,"Senior Person 4",'Salary & Fringe'!$AA$1:$AA$300) -> 0
A8: 5. | B8: =IF(G8>0,CONCATENATE((INDEX('Salary & Fringe'!$A$1:$A$300,MATCH("Senior Person 5",'Salary & Fringe'!$E$1:$E$300,FALSE),1))," ",(INDEX('Salary & Fringe'!$B$1:$B$300,MATCH("Senior Person 5",'Salary & Fringe'!$E$1:$E$300,FALSE),1))),"") ->  | D8: =SUMIFS('Salary & Fringe'!$Q$1:'Salary & Fringe'!$Q$300,'Salary & Fringe'!$E$1:'Salary & Fringe'!$E$300,"Senior Person 5",'Salary & Fringe'!$F$1:'Salary & Fringe'!$F$300,"Calendar(12)") -> 0 | E8: =SUMIFS('Salary & Fringe'!$Q$1:'Salary & Fringe'!$Q$300,'Salary & Fringe'!$E$1:'Salary & Fringe'!$E$300,"Senior Person 5",'Salary & Fringe'!$F$1:'Salary & Fringe'!$F$300,"Academic") -> 0 | F8: =SUMIFS('Salary & Fringe'!$Q$1:'Salary & Fringe'!$Q$300,'Salary & Fringe'!$E$1:'Salary & Fringe'!$E$300,"Senior Person 5",'Salary & Fringe'!$F$1:'Salary & Fringe'!$F$300,"Summer") -> 0 | G8: =SUMIF('Salary & Fringe'!$E$1:$E$300,"Senior Person 5",'Salary & Fringe'!$AA$1:$AA$300) -> 0
A9: 6. | B9: =SUMIFS('Salary & Fringe'!$I$1:$I$300,'Salary & Fringe'!$E$1:$E$300,"Senior (Other)", 'Salary & Fringe'!$Q$1:'Salary & Fringe'!$Q$300, ">0") -> 0 | C9: Others (list individually on budget explanation page) | D9: =SUMIFS('Salary & Fringe'!$Q$1:'Salary & Fringe'!$Q$300,'Salary & Fringe'!$E$1:'Salary & Fringe'!$E$300,"Senior (Other)",'Salary & Fringe'!$F$1:'Salary & Fringe'!$F$300,"Calendar(12)") -> 0 | E9: =SUMIFS('Salary & Fringe'!$Q$1:'Salary & Fringe'!$Q$300,'Salary & Fringe'!$E$1:'Salary & Fringe'!$E$300,"Senior (Other)",'Salary & Fringe'!$F$1:'Salary & Fringe'!$F$300,"Academic") -> 0 | F9: =SUMIFS('Salary & Fringe'!$Q$1:'Salary & Fringe'!$Q$300,'Salary & Fringe'!$E$1:'Salary & Fringe'!$E$300,"Senior (Other)",'Salary & Fringe'!$F$1:'Salary & Fringe'!$F$300,"Summer") -> 0 | G9: =SUMIF('Salary & Fringe'!$E$1:$E$300,"Senior (Other)",'Salary & Fringe'!$AA$1:$AA$300) -> 0
A10: 7. | B10: =(COUNTIF(G4:G8,">0")+B9) -> 0 | C10: Total Senior Personnel (1 through 6) | D10: =SUM(D4:D9) -> 0 | E10: =SUM(E4:E9) -> 0 | F10: =SUM(F4:F9) -> 0 | G10: =SUM(G4:G9) -> 0
A11: B. Other Personnel
A12: 1. | B12: =SUMIFS('Salary & Fringe'!$I$1:$I$300,'Salary & Fringe'!$E$1:$E$300,"Postdoc", 'Salary & Fringe'!$Q$1:'Salary & Fringe'!$Q$300, ">0") -> 0 | C12: Post Doctoral Associates | D12: =SUMIF('Salary & Fringe'!$E$1:$E$300,"Postdoc",'Salary & Fringe'!$Q$1:$Q$300) -> 0 | E12: 0 | F12: 0 | G12: =SUMIF('Salary & Fringe'!$E$1:$E$300,"Postdoc",'Salary & Fringe'!$AA$1:$AA$300) -> 0
A13: 2. | B13: =SUMIFS('Salary & Fringe'!$I$1:$I$300,'Salary & Fringe'!$E$1:$E$300,"Professional (Other)", 'Salary & Fringe'!$Q$1:'Salary & Fringe'!$Q$300, ">0") -> 0 | C13: Other Professional (Technician, Programmer, etc) | D13: =SUMIF('Salary & Fringe'!$E$1:$E$300,"Professional (Other)",'Salary & Fringe'!$Q$1:$Q$300) -> 0 | E13: 0 | F13: 0 | G13: =SUMIF('Salary & Fringe'!$E$1:$E$300,"Professional (Other)",'Salary & Fringe'!$AA$1:$AA$300) -> 0
A14: 3. | C14: Graduate Students | G14: =SUMIF('Salary & Fringe'!$E$1:$E$300,"Grad",'Salary & Fringe'!$AA$1:$AA$300) -> 0
A15: 4. | C15: Undergraduate Students | G15: =SUMIF('Salary & Fringe'!$E$1:$E$300,"Undergrad",'Salary & Fringe'!$AA$1:$AA$300) -> 0
A16: 5. | B16: =SUMIFS('Salary & Fringe'!$I$1:$I$300,'Salary & Fringe'!$E$1:$E$300,"Clerical", 'Salary & Fringe'!$Q$1:'Salary & Fringe'!$Q$300, ">0") -> 0 | C16: Secretarial-Clerical (if charged directly) | G16: =SUMIF('Salary & Fringe'!$E$1:$E$300,"Clerical",'Salary & Fringe'!$AA$1:$AA$300) -> 0
A17: 6. | B17: =SUMIFS('Salary & Fringe'!$I$1:$I$300,'Salary & Fringe'!$E$1:$E$300,"Other*", 'Salary & Fringe'!$Q$1:'Salary & Fringe'!$Q$300, ">0") -> 0 | C17: Other | G17: =SUMIF('Salary & Fringe'!$E$1:$E$300,"Other*",'Salary & Fringe'!$AA$1:$AA$300) -> 0
A18: Total Salaries and Wages (A+B) | G18: =SUM(G10,G12:G17) -> 0
A19: C. Fringe Benefits (If charged as direct costs) | G19: =TotalFringe5 -> 0
A20: Total Salaries, Wages and Fringe Benefits (A+B+C) | G20: =G18+G19 -> 0
A21: D. Equipment (list item and dollar amount for each item exceeding $5,000)
A22: =IF(ISBLANK(Budget!N47),"",Budget!A47) ->  | D22: =IF(Budget!N47>0,Budget!N47,"") -> 
A23: =IF(ISBLANK(Budget!N48),"",Budget!A48) ->  | D23: =IF(Budget!N48>0,Budget!N48,"") -> 
A24: =IF(ISBLANK(Budget!N49),"",Budget!A49) ->  | D24: =IF(Budget!N49>0,Budget!N49,"") -> 
A25: =IF(ISBLANK(Budget!N50),"",Budget!A50) ->  | D25: =IF(Budget!N50>0,Budget!N50,"") -> 
A26: =IF(ISBLANK(Budget!N51),"",Budget!A51) ->  | D26: =IF(Budget!N51>0,Budget!N51,"") -> 
A27: Total Equipment | G27: =Budget!N52 -> 0
A28: E. Travel
A29: 1. Domestic (Including U.S. Possessions) | G29: =Budget!N39 -> 0
A30: 2. Foreign | G30: =Budget!N44 -> 0
A31: F. Participant Support
A32: 1. Stipends | C32: =SUMIF(Budget!$A$2:$A$504,"PS Stipends",Budget!$N$2:$N$504) -> 0
A33: 2. Travel | C33: =SUMIF(Budget!$A$2:$A$504,"PS Travel",Budget!$N$2:$N$504) -> 0
A34: 3. Subsistence | C34: =SUMIF(Budget!$A$2:$A$504,"PS Subsistence",Budget!$N$2:$N$504) -> 0
A35: 4. Other | C35: =SUMIF(Budget!$A$2:$A$504,"PS Other",Budget!$N$2:$N$504) -> 0
C36: Total Participant Support | G36: =Budget!N57 -> 0
A37: G. Other Direct Costs
A38: 1. Materials and Supplies | G38: =SUMIF(Budget!$A$2:$A$504,"Materials & Supplies",Budget!$N$2:$N$504) -> 0
A39: 2. Publication Costs/Documentation/Dissemination | G39: =SUMIF(Budget!$A$2:$A$504,"Publication Costs/Page Charges",Budget!$N$2:$N$504) -> 0
A40: 3. Consultant Services | G40: =SUMIF(Budget!$A$2:$A$504,"Consultant Services",Budget!$N$2:$N$504) -> 0
A41: 4. Computer Services | G41: =SUMIF(Budget!$A$2:$A$504,"Computer (ADPE) Services",Budget!$N$2:$N$504) -> 0
A42: 5. Subawards | G42: =TotalSubs5+TotalMulti5 -> 0
A43: 6. Other | G43: =SUMIF(Budget!$A$2:$A$504,"Vendor Contract",Budget!$N$2:$N$504)+SUMIF(Budget!$A$2:$A$504,"Service Agreement",Budget!$N$2:$N$504)+SUMIF(Budget!$A$2:$A$504,"Space Rentals",Budget!$N$2:$N$504)+SUMIF(Budget!$A$2:$A$504,"Other*",Budget!$N$2:$N$504)+SUMIF(Budget!$A$2:$A$504,"Equipment or Facility*",Budget!$N$2:$N$504)+TotalGSR5 -> 0
A44: Total Other Direct Costs (G1 through G6) | G44: =SUM(G38:G43) -> 0
A45: H. Total Direct Costs (A through G) | G45: =SUM(G20+G27+G29+G30+G36+G44) -> 0
A46: I. Indirect Costs (F&A) (Specify Rate and Base)
C47: =Budget!N105 ->  | D47: x | E47: =Budget!N101 -> 0 | F47: Base | G47: =Budget!N109 -> 0
A48: J. Total Direct and Indirect Costs (H+I) | G48: =G45+G47 -> 0
A49: K. Small Business Fee
A50: L. Amount of this request (J or J-K) | G50: =IF(G49>0, G48-G49, G48) -> 0

Sheet NSF Yr 6 (hidden)
A1: NSF Budget Year 6
A2: A. Senior Personnel | D2: NSF Funded Person Months | G2: Funds
D3: CAL | E3: ACAD | F3: SUM
A4: 1. | B4: =IF(G4>0,CONCATENATE((INDEX('Salary & Fringe'!$A$1:$A$300,MATCH("Senior Person 1",'Salary & Fringe'!$E$1:$E$300,FALSE),1))," ",(INDEX('Salary & Fringe'!$B$1:$B$300,MATCH("Senior Person 1",'Salary & Fringe'!$E$1:$E$300,FALSE),1))),"") ->  | D4: =SUMIFS('Salary & Fringe'!$R$1:'Salary & Fringe'!$R$300,'Salary & Fringe'!$E$1:'Salary & Fringe'!$E$300,"Senior Person 1",'Salary & Fringe'!$F$1:'Salary & Fringe'!$F$300,"Calendar(12)") -> 0 | E4: =SUMIFS('Salary & Fringe'!$R$1:'Salary & Fringe'!$R$300,'Salary & Fringe'!$E$1:'Salary & Fringe'!$E$300,"Senior Person 1",'Salary & Fringe'!$F$1:'Salary & Fringe'!$F$300,"Academic") -> 0 | F4: =SUMIFS('Salary & Fringe'!$R$1:'Salary & Fringe'!$R$300,'Salary & Fringe'!$E$1:'Salary & Fringe'!$E$300,"Senior Person 1",'Salary & Fringe'!$F$1:'Salary & Fringe'!$F$300,"Summer") -> 0 | G4: =SUMIF('Salary & Fringe'!$E$1:$E$300,"Senior Person 1",'Salary & Fringe'!$AB$1:$AB$300) -> 0
A5: 2. | B5: =IF(G5>0,CONCATENATE((INDEX('Salary & Fringe'!$A$1:$A$300,MATCH("Senior Person 2",'Salary & Fringe'!$E$1:$E$300,FALSE),1))," ",(INDEX('Salary & Fringe'!$B$1:$B$300,MATCH("Senior Person 2",'Salary & Fringe'!$E$1:$E$300,FALSE),1))),"") ->  | D5: =SUMIFS('Salary & Fringe'!$R$1:'Salary & Fringe'!$R$300,'Salary & Fringe'!$E$1:'Salary & Fringe'!$E$300,"Senior Person 2",'Salary & Fringe'!$F$1:'Salary & Fringe'!$F$300,"Calendar(12)") -> 0 | E5: =SUMIFS('Salary & Fringe'!$R$1:'Salary & Fringe'!$R$300,'Salary & Fringe'!$E$1:'Salary & Fringe'!$E$300,"Senior Person 2",'Salary & Fringe'!$F$1:'Salary & Fringe'!$F$300,"Academic") -> 0 | F5: =SUMIFS('Salary & Fringe'!$R$1:'Salary & Fringe'!$R$300,'Salary & Fringe'!$E$1:'Salary & Fringe'!$E$300,"Senior Person 2",'Salary & Fringe'!$F$1:'Salary & Fringe'!$F$300,"Summer") -> 0 | G5: =SUMIF('Salary & Fringe'!$E$1:$E$300,"Senior Person 2",'Salary & Fringe'!$AB$1:$AB$300) -> 0
A6: 3. | B6: =IF(G6>0,CONCATENATE((INDEX('Salary & Fringe'!$A$1:$A$300,MATCH("Senior Person 3",'Salary & Fringe'!$E$1:$E$300,FALSE),1))," ",(INDEX('Salary & Fringe'!$B$1:$B$300,MATCH("Senior Person 3",'Salary & Fringe'!$E$1:$E$300,FALSE),1))),"") ->  | D6: =SUMIFS('Salary & Fringe'!$R$1:'Salary & Fringe'!$R$300,'Salary & Fringe'!$E$1:'Salary & Fringe'!$E$300,"Senior Person 3",'Salary & Fringe'!$F$1:'Salary & Fringe'!$F$300,"Calendar(12)") -> 0 | E6: =SUMIFS('Salary & Fringe'!$R$1:'Salary & Fringe'!$R$300,'Salary & Fringe'!$E$1:'Salary & Fringe'!$E$300,"Senior Person 3",'Salary & Fringe'!$F$1:'Salary & Fringe'!$F$300,"Academic") -> 0 | F6: =SUMIFS('Salary & Fringe'!$R$1:'Salary & Fringe'!$R$300,'Salary & Fringe'!$E$1:'Salary & Fringe'!$E$300,"Senior Person 3",'Salary & Fringe'!$F$1:'Salary & Fringe'!$F$300,"Summer") -> 0 | G6: =SUMIF('Salary & Fringe'!$E$1:$E$300,"Senior Person 3",'Salary & Fringe'!$AB$1:$AB$300) -> 0
A7: 4. | B7: =IF(G7>0,CONCATENATE((INDEX('Salary & Fringe'!$A$1:$A$300,MATCH("Senior Person 4",'Salary & Fringe'!$E$1:$E$300,FALSE),1))," ",(INDEX('Salary & Fringe'!$B$1:$B$300,MATCH("Senior Person 4",'Salary & Fringe'!$E$1:$E$300,FALSE),1))),"") ->  | D7: =SUMIFS('Salary & Fringe'!$R$1:'Salary & Fringe'!$R$300,'Salary & Fringe'!$E$1:'Salary & Fringe'!$E$300,"Senior Person 4",'Salary & Fringe'!$F$1:'Salary & Fringe'!$F$300,"Calendar(12)") -> 0 | E7: =SUMIFS('Salary & Fringe'!$R$1:'Salary & Fringe'!$R$300,'Salary & Fringe'!$E$1:'Salary & Fringe'!$E$300,"Senior Person 4",'Salary & Fringe'!$F$1:'Salary & Fringe'!$F$300,"Academic") -> 0 | F7: =SUMIFS('Salary & Fringe'!$R$1:'Salary & Fringe'!$R$300,'Salary & Fringe'!$E$1:'Salary & Fringe'!$E$300,"Senior Person 4",'Salary & Fringe'!$F$1:'Salary & Fringe'!$F$300,"Summer") -> 0 | G7: =SUMIF('Salary & Fringe'!$E$1:$E$300,"Senior Person 4",'Salary & Fringe'!$AB$1:$AB$300) -> 0
A8: 5. | B8: =IF(G8>0,CONCATENATE((INDEX('Salary & Fringe'!$A$1:$A$300,MATCH("Senior Person 5",'Salary & Fringe'!$E$1:$E$300,FALSE),1))," ",(INDEX('Salary & Fringe'!$B$1:$B$300,MATCH("Senior Person 5",'Salary & Fringe'!$E$1:$E$300,FALSE),1))),"") ->  | D8: =SUMIFS('Salary & Fringe'!$R$1:'Salary & Fringe'!$R$300,'Salary & Fringe'!$E$1:'Salary & Fringe'!$E$300,"Senior Person 5",'Salary & Fringe'!$F$1:'Salary & Fringe'!$F$300,"Calendar(12)") -> 0 | E8: =SUMIFS('Salary & Fringe'!$R$1:'Salary & Fringe'!$R$300,'Salary & Fringe'!$E$1:'Salary & Fringe'!$E$300,"Senior Person 5",'Salary & Fringe'!$F$1:'Salary & Fringe'!$F$300,"Academic") -> 0 | F8: =SUMIFS('Salary & Fringe'!$R$1:'Salary & Fringe'!$R$300,'Salary & Fringe'!$E$1:'Salary & Fringe'!$E$300,"Senior Person 5",'Salary & Fringe'!$F$1:'Salary & Fringe'!$F$300,"Summer") -> 0 | G8: =SUMIF('Salary & Fringe'!$E$1:$E$300,"Senior Person 5",'Salary & Fringe'!$AB$1:$AB$300) -> 0
A9: 6. | B9: =SUMIFS('Salary & Fringe'!$I$1:$I$300,'Salary & Fringe'!$E$1:$E$300,"Senior (Other)", 'Salary & Fringe'!$R$1:'Salary & Fringe'!$R$300, ">0") -> 0 | C9: Others (list individually on budget explanation page) | D9: =SUMIFS('Salary & Fringe'!$R$1:'Salary & Fringe'!$R$300,'Salary & Fringe'!$E$1:'Salary & Fringe'!$E$300,"Senior (Other)",'Salary & Fringe'!$F$1:'Salary & Fringe'!$F$300,"Calendar(12)") -> 0 | E9: =SUMIFS('Salary & Fringe'!$R$1:'Salary & Fringe'!$R$300,'Salary & Fringe'!$E$1:'Salary & Fringe'!$E$300,"Senior (Other)",'Salary & Fringe'!$F$1:'Salary & Fringe'!$F$300,"Academic") -> 0 | F9: =SUMIFS('Salary & Fringe'!$R$1:'Salary & Fringe'!$R$300,'Salary & Fringe'!$E$1:'Salary & Fringe'!$E$300,"Senior (Other)",'Salary & Fringe'!$F$1:'Salary & Fringe'!$F$300,"Summer") -> 0 | G9: =SUMIF('Salary & Fringe'!$E$1:$E$300,"Senior (Other)",'Salary & Fringe'!$AB$1:$AB$300) -> 0
A10: 7. | B10: =(COUNTIF(G4:G8,">0")+B9) -> 0 | C10: Total Senior Personnel (1 through 6) | D10: =SUM(D4:D9) -> 0 | E10: =SUM(E4:E9) -> 0 | F10: =SUM(F4:F9) -> 0 | G10: =SUM(G4:G9) -> 0
A11: B. Other Personnel
A12: 1. | B12: =SUMIFS('Salary & Fringe'!$I$1:$I$300,'Salary & Fringe'!$E$1:$E$300,"Postdoc", 'Salary & Fringe'!$R$1:'Salary & Fringe'!$R$300, ">0") -> 0 | C12: Post Doctoral Associates | D12: =SUMIF('Salary & Fringe'!$E$1:$E$300,"Postdoc",'Salary & Fringe'!$R$1:$R$300) -> 0 | E12: 0 | F12: 0 | G12: =SUMIF('Salary & Fringe'!$E$1:$E$300,"Postdoc",'Salary & Fringe'!$AB$1:$AB$300) -> 0
A13: 2. | B13: =SUMIFS('Salary & Fringe'!$I$1:$I$300,'Salary & Fringe'!$E$1:$E$300,"Professional (Other)", 'Salary & Fringe'!$R$1:'Salary & Fringe'!$R$300, ">0") -> 0 | C13: Other Professional (Technician, Programmer, etc) | D13: =SUMIF('Salary & Fringe'!$E$1:$E$300,"Professional (Other)",'Salary & Fringe'!$R$1:$R$300) -> 0 | E13: 0 | F13: 0 | G13: =SUMIF('Salary & Fringe'!$E$1:$E$300,"Professional (Other)",'Salary & Fringe'!$AB$1:$AB$300) -> 0
A14: 3. | C14: Graduate Students | G14: =SUMIF('Salary & Fringe'!$E$1:$E$300,"Grad",'Salary & Fringe'!$AB$1:$AB$300) -> 0
A15: 4. | C15: Undergraduate Students | G15: =SUMIF('Salary & Fringe'!$E$1:$E$300,"Undergrad",'Salary & Fringe'!$AB$1:$AB$300) -> 0
A16: 5. | B16: =SUMIFS('Salary & Fringe'!$I$1:$I$300,'Salary & Fringe'!$E$1:$E$300,"Clerical", 'Salary & Fringe'!$R$1:'Salary & Fringe'!$R$300, ">0") -> 0 | C16: Secretarial-Clerical (if charged directly) | G16: =SUMIF('Salary & Fringe'!$E$1:$E$300,"Clerical",'Salary & Fringe'!$AB$1:$AB$300) -> 0
A17: 6. | B17: =SUMIFS('Salary & Fringe'!$I$1:$I$300,'Salary & Fringe'!$E$1:$E$300,"Other*", 'Salary & Fringe'!$R$1:'Salary & Fringe'!$R$300, ">0") -> 0 | C17: Other | G17: =SUMIF('Salary & Fringe'!$E$1:$E$300,"Other*",'Salary & Fringe'!$AB$1:$AB$300) -> 0
A18: Total Salaries and Wages (A+B) | G18: =SUM(G10,G12:G17) -> 0
A19: C. Fringe Benefits (If charged as direct costs) | G19: =TotalFringe6 -> 0
A20: Total Salaries, Wages and Fringe Benefits (A+B+C) | G20: =G18+G19 -> 0
A21: D. Equipment (list item and dollar amount for each item exceeding $5,000)
A22: =IF(ISBLANK(Budget!P47),"",Budget!A47) ->  | D22: =IF(Budget!P47>0,Budget!P47,"") -> 
A23: =IF(ISBLANK(Budget!P48),"",Budget!A48) ->  | D23: =IF(Budget!P48>0,Budget!P48,"") -> 
A24: =IF(ISBLANK(Budget!P49),"",Budget!A49) ->  | D24: =IF(Budget!P49>0,Budget!P49,"") -> 
A25: =IF(ISBLANK(Budget!P50),"",Budget!A50) ->  | D25: =IF(Budget!P50>0,Budget!P50,"") -> 
A26: =IF(ISBLANK(Budget!P51),"",Budget!A51) ->  | D26: =IF(Budget!P51>0,Budget!P51,"") -> 
A27: Total Equipment | G27: =Budget!P52 -> 0
A28: E. Travel
A29: 1. Domestic (Including U.S. Possessions) | G29: =Budget!P39 -> 0
A30: 2. Foreign | G30: =Budget!P44 -> 0
A31: F. Participant Support
A32: 1. Stipends | C32: =SUMIF(Budget!$A$2:$A$504,"PS Stipends",Budget!$P$2:$P$504) -> 0
A33: 2. Travel | C33: =SUMIF(Budget!$A$2:$A$504,"PS Travel",Budget!$P$2:$P$504) -> 0
A34: 3. Subsistence | C34: =SUMIF(Budget!$A$2:$A$504,"PS Subsistence",Budget!$P$2:$P$504) -> 0
A35: 4. Other | C35: =SUMIF(Budget!$A$2:$A$504,"PS Other",Budget!$P$2:$P$504) -> 0
C36: Total Participant Support | G36: =Budget!P57 -> 0
A37: G. Other Direct Costs
A38: 1. Materials and Supplies | G38: =SUMIF(Budget!$A$2:$A$504,"Materials & Supplies",Budget!$P$2:$P$504) -> 0
A39: 2. Publication Costs/Documentation/Dissemination | G39: =SUMIF(Budget!$A$2:$A$504,"Publication Costs/Page Charges",Budget!$P$2:$P$504) -> 0
A40: 3. Consultant Services | G40: =SUMIF(Budget!$A$2:$A$504,"Consultant Services",Budget!$P$2:$P$504) -> 0
A41: 4. Computer Services | G41: =SUMIF(Budget!$A$2:$A$504,"Computer (ADPE) Services",Budget!$P$2:$P$504) -> 0
A42: 5. Subawards | G42: =TotalSubs6+TotalMulti6 -> 0
A43: 6. Other | G43: =SUMIF(Budget!$A$2:$A$504,"Vendor Contract",Budget!$P$2:$P$504)+SUMIF(Budget!$A$2:$A$504,"Service Agreement",Budget!$P$2:$P$504)+SUMIF(Budget!$A$2:$A$504,"Space Rentals",Budget!$P$2:$P$504)+SUMIF(Budget!$A$2:$A$504,"Other*",Budget!$P$2:$P$504)+SUMIF(Budget!$A$2:$A$504,"Equipment or Facility*",Budget!$P$2:$P$504)+TotalGSR6 -> 0
A44: Total Other Direct Costs (G1 through G6) | G44: =SUM(G38:G43) -> 0
A45: H. Total Direct Costs (A through G) | G45: =SUM(G20+G27+G29+G30+G36+G44) -> 0
A46: I. Indirect Costs (F&A) (Specify Rate and Base)
C47: =Budget!P105 ->  | D47: x | E47: =Budget!P101 -> 0 | F47: Base | G47: =Budget!P109 -> 0
A48: J. Total Direct and Indirect Costs (H+I) | G48: =G45+G47 -> 0
A49: K. Small Business Fee
A50: L. Amount of this request (J or J-K) | G50: =IF(G49>0, G48-G49, G48) -> 0

Sheet NSF Yr 7 (hidden)
A1: NSF Budget Year 7
A2: A. Senior Personnel | D2: NSF Funded Person Months | G2: Funds
D3: CAL | E3: ACAD | F3: SUM
A4: 1. | B4: =IF(G4>0,CONCATENATE((INDEX('Salary & Fringe'!$A$1:$A$300,MATCH("Senior Person 1",'Salary & Fringe'!$E$1:$E$300,FALSE),1))," ",(INDEX('Salary & Fringe'!$B$1:$B$300,MATCH("Senior Person 1",'Salary & Fringe'!$E$1:$E$300,FALSE),1))),"") ->  | D4: =SUMIFS('Salary & Fringe'!$S$1:'Salary & Fringe'!$S$300,'Salary & Fringe'!$E$1:'Salary & Fringe'!$E$300,"Senior Person 1",'Salary & Fringe'!$F$1:'Salary & Fringe'!$F$300,"Calendar(12)") -> 0 | E4: =SUMIFS('Salary & Fringe'!$S$1:'Salary & Fringe'!$S$300,'Salary & Fringe'!$E$1:'Salary & Fringe'!$E$300,"Senior Person 1",'Salary & Fringe'!$F$1:'Salary & Fringe'!$F$300,"Academic") -> 0 | F4: =SUMIFS('Salary & Fringe'!$S$1:'Salary & Fringe'!$S$300,'Salary & Fringe'!$E$1:'Salary & Fringe'!$E$300,"Senior Person 1",'Salary & Fringe'!$F$1:'Salary & Fringe'!$F$300,"Summer") -> 0 | G4: =SUMIF('Salary & Fringe'!$E$1:$E$300,"Senior Person 1",'Salary & Fringe'!$AC$1:$AC$300) -> 0
A5: 2. | B5: =IF(G5>0,CONCATENATE((INDEX('Salary & Fringe'!$A$1:$A$300,MATCH("Senior Person 2",'Salary & Fringe'!$E$1:$E$300,FALSE),1))," ",(INDEX('Salary & Fringe'!$B$1:$B$300,MATCH("Senior Person 2",'Salary & Fringe'!$E$1:$E$300,FALSE),1))),"") ->  | D5: =SUMIFS('Salary & Fringe'!$S$1:'Salary & Fringe'!$S$300,'Salary & Fringe'!$E$1:'Salary & Fringe'!$E$300,"Senior Person 2",'Salary & Fringe'!$F$1:'Salary & Fringe'!$F$300,"Calendar(12)") -> 0 | E5: =SUMIFS('Salary & Fringe'!$S$1:'Salary & Fringe'!$S$300,'Salary & Fringe'!$E$1:'Salary & Fringe'!$E$300,"Senior Person 2",'Salary & Fringe'!$F$1:'Salary & Fringe'!$F$300,"Academic") -> 0 | F5: =SUMIFS('Salary & Fringe'!$S$1:'Salary & Fringe'!$S$300,'Salary & Fringe'!$E$1:'Salary & Fringe'!$E$300,"Senior Person 2",'Salary & Fringe'!$F$1:'Salary & Fringe'!$F$300,"Summer") -> 0 | G5: =SUMIF('Salary & Fringe'!$E$1:$E$300,"Senior Person 2",'Salary & Fringe'!$AC$1:$AC$300) -> 0
A6: 3. | B6: =IF(G6>0,CONCATENATE((INDEX('Salary & Fringe'!$A$1:$A$300,MATCH("Senior Person 3",'Salary & Fringe'!$E$1:$E$300,FALSE),1))," ",(INDEX('Salary & Fringe'!$B$1:$B$300,MATCH("Senior Person 3",'Salary & Fringe'!$E$1:$E$300,FALSE),1))),"") ->  | D6: =SUMIFS('Salary & Fringe'!$S$1:'Salary & Fringe'!$S$300,'Salary & Fringe'!$E$1:'Salary & Fringe'!$E$300,"Senior Person 3",'Salary & Fringe'!$F$1:'Salary & Fringe'!$F$300,"Calendar(12)") -> 0 | E6: =SUMIFS('Salary & Fringe'!$S$1:'Salary & Fringe'!$S$300,'Salary & Fringe'!$E$1:'Salary & Fringe'!$E$300,"Senior Person 3",'Salary & Fringe'!$F$1:'Salary & Fringe'!$F$300,"Academic") -> 0 | F6: =SUMIFS('Salary & Fringe'!$S$1:'Salary & Fringe'!$S$300,'Salary & Fringe'!$E$1:'Salary & Fringe'!$E$300,"Senior Person 3",'Salary & Fringe'!$F$1:'Salary & Fringe'!$F$300,"Summer") -> 0 | G6: =SUMIF('Salary & Fringe'!$E$1:$E$300,"Senior Person 3",'Salary & Fringe'!$AC$1:$AC$300) -> 0
A7: 4. | B7: =IF(G7>0,CONCATENATE((INDEX('Salary & Fringe'!$A$1:$A$300,MATCH("Senior Person 4",'Salary & Fringe'!$E$1:$E$300,FALSE),1))," ",(INDEX('Salary & Fringe'!$B$1:$B$300,MATCH("Senior Person 4",'Salary & Fringe'!$E$1:$E$300,FALSE),1))),"") ->  | D7: =SUMIFS('Salary & Fringe'!$S$1:'Salary & Fringe'!$S$300,'Salary & Fringe'!$E$1:'Salary & Fringe'!$E$300,"Senior Person 4",'Salary & Fringe'!$F$1:'Salary & Fringe'!$F$300,"Calendar(12)") -> 0 | E7: =SUMIFS('Salary & Fringe'!$S$1:'Salary & Fringe'!$S$300,'Salary & Fringe'!$E$1:'Salary & Fringe'!$E$300,"Senior Person 4",'Salary & Fringe'!$F$1:'Salary & Fringe'!$F$300,"Academic") -> 0 | F7: =SUMIFS('Salary & Fringe'!$S$1:'Salary & Fringe'!$S$300,'Salary & Fringe'!$E$1:'Salary & Fringe'!$E$300,"Senior Person 4",'Salary & Fringe'!$F$1:'Salary & Fringe'!$F$300,"Summer") -> 0 | G7: =SUMIF('Salary & Fringe'!$E$1:$E$300,"Senior Person 4",'Salary & Fringe'!$AC$1:$AC$300) -> 0
A8: 5. | B8: =IF(G8>0,CONCATENATE((INDEX('Salary & Fringe'!$A$1:$A$300,MATCH("Senior Person 5",'Salary & Fringe'!$E$1:$E$300,FALSE),1))," ",(INDEX('Salary & Fringe'!$B$1:$B$300,MATCH("Senior Person 5",'Salary & Fringe'!$E$1:$E$300,FALSE),1))),"") ->  | D8: =SUMIFS('Salary & Fringe'!$S$1:'Salary & Fringe'!$S$300,'Salary & Fringe'!$E$1:'Salary & Fringe'!$E$300,"Senior Person 5",'Salary & Fringe'!$F$1:'Salary & Fringe'!$F$300,"Calendar(12)") -> 0 | E8: =SUMIFS('Salary & Fringe'!$S$1:'Salary & Fringe'!$S$300,'Salary & Fringe'!$E$1:'Salary & Fringe'!$E$300,"Senior Person 5",'Salary & Fringe'!$F$1:'Salary & Fringe'!$F$300,"Academic") -> 0 | F8: =SUMIFS('Salary & Fringe'!$S$1:'Salary & Fringe'!$S$300,'Salary & Fringe'!$E$1:'Salary & Fringe'!$E$300,"Senior Person 5",'Salary & Fringe'!$F$1:'Salary & Fringe'!$F$300,"Summer") -> 0 | G8: =SUMIF('Salary & Fringe'!$E$1:$E$300,"Senior Person 5",'Salary & Fringe'!$AC$1:$AC$300) -> 0
A9: 6. | B9: =SUMIFS('Salary & Fringe'!$I$1:$I$300,'Salary & Fringe'!$E$1:$E$300,"Senior (Other)", 'Salary & Fringe'!$S$1:'Salary & Fringe'!$S$300, ">0") -> 0 | C9: Others (list individually on budget explanation page) | D9: =SUMIFS('Salary & Fringe'!$S$1:'Salary & Fringe'!$S$300,'Salary & Fringe'!$E$1:'Salary & Fringe'!$E$300,"Senior (Other)",'Salary & Fringe'!$F$1:'Salary & Fringe'!$F$300,"Calendar(12)") -> 0 | E9: =SUMIFS('Salary & Fringe'!$S$1:'Salary & Fringe'!$S$300,'Salary & Fringe'!$E$1:'Salary & Fringe'!$E$300,"Senior (Other)",'Salary & Fringe'!$F$1:'Salary & Fringe'!$F$300,"Academic") -> 0 | F9: =SUMIFS('Salary & Fringe'!$S$1:'Salary & Fringe'!$S$300,'Salary & Fringe'!$E$1:'Salary & Fringe'!$E$300,"Senior (Other)",'Salary & Fringe'!$F$1:'Salary & Fringe'!$F$300,"Summer") -> 0 | G9: =SUMIF('Salary & Fringe'!$E$1:$E$300,"Senior (Other)",'Salary & Fringe'!$AC$1:$AC$300) -> 0
A10: 7. | B10: =(COUNTIF(G4:G8,">0")+B9) -> 0 | C10: Total Senior Personnel (1 through 6) | D10: =SUM(D4:D9) -> 0 | E10: =SUM(E4:E9) -> 0 | F10: =SUM(F4:F9) -> 0 | G10: =SUM(G4:G9) -> 0
A11: B. Other Personnel
A12: 1. | B12: =SUMIFS('Salary & Fringe'!$I$1:$I$300,'Salary & Fringe'!$E$1:$E$300,"Postdoc", 'Salary & Fringe'!$S$1:'Salary & Fringe'!$S$300, ">0") -> 0 | C12: Post Doctoral Associates | D12: =SUMIF('Salary & Fringe'!$E$1:$E$300,"Postdoc",'Salary & Fringe'!$S$1:$S$300) -> 0 | E12: 0 | F12: 0 | G12: =SUMIF('Salary & Fringe'!$E$1:$E$300,"Postdoc",'Salary & Fringe'!$AC$1:$AC$300) -> 0
A13: 2. | B13: =SUMIFS('Salary & Fringe'!$I$1:$I$300,'Salary & Fringe'!$E$1:$E$300,"Professional (Other)", 'Salary & Fringe'!$S$1:'Salary & Fringe'!$S$300, ">0") -> 0 | C13: Other Professional (Technician, Programmer, etc) | D13: =SUMIF('Salary & Fringe'!$E$1:$E$300,"Professional (Other)",'Salary & Fringe'!$S$1:$S$300) -> 0 | E13: 0 | F13: 0 | G13: =SUMIF('Salary & Fringe'!$E$1:$E$300,"Professional (Other)",'Salary & Fringe'!$AC$1:$AC$300) -> 0
A14: 3. | C14: Graduate Students | G14: =SUMIF('Salary & Fringe'!$E$1:$E$300,"Grad",'Salary & Fringe'!$AC$1:$AC$300) -> 0
A15: 4. | C15: Undergraduate Students | G15: =SUMIF('Salary & Fringe'!$E$1:$E$300,"Undergrad",'Salary & Fringe'!$AC$1:$AC$300) -> 0
A16: 5. | B16: =SUMIFS('Salary & Fringe'!$I$1:$I$300,'Salary & Fringe'!$E$1:$E$300,"Clerical", 'Salary & Fringe'!$S$1:'Salary & Fringe'!$S$300, ">0") -> 0 | C16: Secretarial-Clerical (if charged directly) | G16: =SUMIF('Salary & Fringe'!$E$1:$E$300,"Clerical",'Salary & Fringe'!$AC$1:$AC$300) -> 0
A17: 6. | B17: =SUMIFS('Salary & Fringe'!$I$1:$I$300,'Salary & Fringe'!$E$1:$E$300,"Other*", 'Salary & Fringe'!$S$1:'Salary & Fringe'!$S$300, ">0") -> 0 | C17: Other | G17: =SUMIF('Salary & Fringe'!$E$1:$E$300,"Other*",'Salary & Fringe'!$AC$1:$AC$300) -> 0
A18: Total Salaries and Wages (A+B) | G18: =SUM(G10,G12:G17) -> 0
A19: C. Fringe Benefits (If charged as direct costs) | G19: =TotalFringe7 -> 0
A20: Total Salaries, Wages and Fringe Benefits (A+B+C) | G20: =G18+G19 -> 0
A21: D. Equipment (list item and dollar amount for each item exceeding $5,000)
A22: =IF(ISBLANK(Budget!R47),"",Budget!A47) ->  | D22: =IF(Budget!R47>0,Budget!R47,"") -> 
A23: =IF(ISBLANK(Budget!R48),"",Budget!A48) ->  | D23: =IF(Budget!R48>0,Budget!R48,"") -> 
A24: =IF(ISBLANK(Budget!R49),"",Budget!A49) ->  | D24: =IF(Budget!R49>0,Budget!R49,"") -> 
A25: =IF(ISBLANK(Budget!R50),"",Budget!A50) ->  | D25: =IF(Budget!R50>0,Budget!R50,"") -> 
A26: =IF(ISBLANK(Budget!R51),"",Budget!A51) ->  | D26: =IF(Budget!R51>0,Budget!R51,"") -> 
A27: Total Equipment | G27: =Budget!R52 -> 0
A28: E. Travel
A29: 1. Domestic (Including U.S. Possessions) | G29: =Budget!R39 -> 0
A30: 2. Foreign | G30: =Budget!R44 -> 0
A31: F. Participant Support
A32: 1. Stipends | C32: =SUMIF(Budget!$A$2:$A$504,"PS Stipends",Budget!$R$2:$R$504) -> 0
A33: 2. Travel | C33: =SUMIF(Budget!$A$2:$A$504,"PS Travel",Budget!$R$2:$R$504) -> 0
A34: 3. Subsistence | C34: =SUMIF(Budget!$A$2:$A$504,"PS Subsistence",Budget!$R$2:$R$504) -> 0
A35: 4. Other | C35: =SUMIF(Budget!$A$2:$A$504,"PS Other",Budget!$R$2:$R$504) -> 0
C36: Total Participant Support | G36: =Budget!R57 -> 0
A37: G. Other Direct Costs
A38: 1. Materials and Supplies | G38: =SUMIF(Budget!$A$2:$A$504,"Materials & Supplies",Budget!$R$2:$R$504) -> 0
A39: 2. Publication Costs/Documentation/Dissemination | G39: =SUMIF(Budget!$A$2:$A$504,"Publication Costs/Page Charges",Budget!$R$2:$R$504) -> 0
A40: 3. Consultant Services | G40: =SUMIF(Budget!$A$2:$A$504,"Consultant Services",Budget!$R$2:$R$504) -> 0
A41: 4. Computer Services | G41: =SUMIF(Budget!$A$2:$A$504,"Computer (ADPE) Services",Budget!$R$2:$R$504) -> 0
A42: 5. Subawards | G42: =TotalSubs7+TotalMulti7 -> 0
A43: 6. Other | G43: =SUMIF(Budget!$A$2:$A$504,"Vendor Contract",Budget!$R$2:$R$504)+SUMIF(Budget!$A$2:$A$504,"Service Agreement",Budget!$R$2:$R$504)+SUMIF(Budget!$A$2:$A$504,"Space Rentals",Budget!$R$2:$R$504)+SUMIF(Budget!$A$2:$A$504,"Other*",Budget!$R$2:$R$504)+SUMIF(Budget!$A$2:$A$504,"Equipment or Facility*",Budget!$R$2:$R$504)+TotalGSR7 -> 0
A44: Total Other Direct Costs (G1 through G6) | G44: =SUM(G38:G43) -> 0
A45: H. Total Direct Costs (A through G) | G45: =SUM(G20+G27+G29+G30+G36+G44) -> 0
A46: I. Indirect Costs (F&A) (Specify Rate and Base)
C47: =Budget!R105 ->  | D47: x | E47: =Budget!R101 -> 0 | F47: Base | G47: =Budget!R109 -> 0
A48: J. Total Direct and Indirect Costs (H+I) | G48: =G45+G47 -> 0
A49: K. Small Business Fee
A50: L. Amount of this request (J or J-K) | G50: =IF(G49>0, G48-G49, G48) -> 0

Sheet NSF Yr 8 (hidden)
A1: NSF Budget Year 8
A2: A. Senior Personnel | D2: NSF Funded Person Months | G2: Funds
D3: CAL | E3: ACAD | F3: SUM
A4: 1. | B4: =IF(G4>0,CONCATENATE((INDEX('Salary & Fringe'!$A$1:$A$300,MATCH("Senior Person 1",'Salary & Fringe'!$E$1:$E$300,FALSE),1))," ",(INDEX('Salary & Fringe'!$B$1:$B$300,MATCH("Senior Person 1",'Salary & Fringe'!$E$1:$E$300,FALSE),1))),"") ->  | D4: =SUMIFS('Salary & Fringe'!$T$1:'Salary & Fringe'!$T$300,'Salary & Fringe'!$E$1:'Salary & Fringe'!$E$300,"Senior Person 1",'Salary & Fringe'!$F$1:'Salary & Fringe'!$F$300,"Calendar(12)") -> 0 | E4: =SUMIFS('Salary & Fringe'!$T$1:'Salary & Fringe'!$T$300,'Salary & Fringe'!$E$1:'Salary & Fringe'!$E$300,"Senior Person 1",'Salary & Fringe'!$F$1:'Salary & Fringe'!$F$300,"Academic") -> 0 | F4: =SUMIFS('Salary & Fringe'!$T$1:'Salary & Fringe'!$T$300,'Salary & Fringe'!$E$1:'Salary & Fringe'!$E$300,"Senior Person 1",'Salary & Fringe'!$F$1:'Salary & Fringe'!$F$300,"Summer") -> 0 | G4: =SUMIF('Salary & Fringe'!$E$1:$E$300,"Senior Person 1",'Salary & Fringe'!$AD$1:$AD$300) -> 0
A5: 2. | B5: =IF(G5>0,CONCATENATE((INDEX('Salary & Fringe'!$A$1:$A$300,MATCH("Senior Person 2",'Salary & Fringe'!$E$1:$E$300,FALSE),1))," ",(INDEX('Salary & Fringe'!$B$1:$B$300,MATCH("Senior Person 2",'Salary & Fringe'!$E$1:$E$300,FALSE),1))),"") ->  | D5: =SUMIFS('Salary & Fringe'!$T$1:'Salary & Fringe'!$T$300,'Salary & Fringe'!$E$1:'Salary & Fringe'!$E$300,"Senior Person 2",'Salary & Fringe'!$F$1:'Salary & Fringe'!$F$300,"Calendar(12)") -> 0 | E5: =SUMIFS('Salary & Fringe'!$T$1:'Salary & Fringe'!$T$300,'Salary & Fringe'!$E$1:'Salary & Fringe'!$E$300,"Senior Person 2",'Salary & Fringe'!$F$1:'Salary & Fringe'!$F$300,"Academic") -> 0 | F5: =SUMIFS('Salary & Fringe'!$T$1:'Salary & Fringe'!$T$300,'Salary & Fringe'!$E$1:'Salary & Fringe'!$E$300,"Senior Person 2",'Salary & Fringe'!$F$1:'Salary & Fringe'!$F$300,"Summer") -> 0 | G5: =SUMIF('Salary & Fringe'!$E$1:$E$300,"Senior Person 2",'Salary & Fringe'!$AD$1:$AD$300) -> 0
A6: 3. | B6: =IF(G6>0,CONCATENATE((INDEX('Salary & Fringe'!$A$1:$A$300,MATCH("Senior Person 3",'Salary & Fringe'!$E$1:$E$300,FALSE),1))," ",(INDEX('Salary & Fringe'!$B$1:$B$300,MATCH("Senior Person 3",'Salary & Fringe'!$E$1:$E$300,FALSE),1))),"") ->  | D6: =SUMIFS('Salary & Fringe'!$T$1:'Salary & Fringe'!$T$300,'Salary & Fringe'!$E$1:'Salary & Fringe'!$E$300,"Senior Person 3",'Salary & Fringe'!$F$1:'Salary & Fringe'!$F$300,"Calendar(12)") -> 0 | E6: =SUMIFS('Salary & Fringe'!$T$1:'Salary & Fringe'!$T$300,'Salary & Fringe'!$E$1:'Salary & Fringe'!$E$300,"Senior Person 3",'Salary & Fringe'!$F$1:'Salary & Fringe'!$F$300,"Academic") -> 0 | F6: =SUMIFS('Salary & Fringe'!$T$1:'Salary & Fringe'!$T$300,'Salary & Fringe'!$E$1:'Salary & Fringe'!$E$300,"Senior Person 3",'Salary & Fringe'!$F$1:'Salary & Fringe'!$F$300,"Summer") -> 0 | G6: =SUMIF('Salary & Fringe'!$E$1:$E$300,"Senior Person 3",'Salary & Fringe'!$AD$1:$AD$300) -> 0
A7: 4. | B7: =IF(G7>0,CONCATENATE((INDEX('Salary & Fringe'!$A$1:$A$300,MATCH("Senior Person 4",'Salary & Fringe'!$E$1:$E$300,FALSE),1))," ",(INDEX('Salary & Fringe'!$B$1:$B$300,MATCH("Senior Person 4",'Salary & Fringe'!$E$1:$E$300,FALSE),1))),"") ->  | D7: =SUMIFS('Salary & Fringe'!$T$1:'Salary & Fringe'!$T$300,'Salary & Fringe'!$E$1:'Salary & Fringe'!$E$300,"Senior Person 4",'Salary & Fringe'!$F$1:'Salary & Fringe'!$F$300,"Calendar(12)") -> 0 | E7: =SUMIFS('Salary & Fringe'!$T$1:'Salary & Fringe'!$T$300,'Salary & Fringe'!$E$1:'Salary & Fringe'!$E$300,"Senior Person 4",'Salary & Fringe'!$F$1:'Salary & Fringe'!$F$300,"Academic") -> 0 | F7: =SUMIFS('Salary & Fringe'!$T$1:'Salary & Fringe'!$T$300,'Salary & Fringe'!$E$1:'Salary & Fringe'!$E$300,"Senior Person 4",'Salary & Fringe'!$F$1:'Salary & Fringe'!$F$300,"Summer") -> 0 | G7: =SUMIF('Salary & Fringe'!$E$1:$E$300,"Senior Person 4",'Salary & Fringe'!$AD$1:$AD$300) -> 0
A8: 5. | B8: =IF(G8>0,CONCATENATE((INDEX('Salary & Fringe'!$A$1:$A$300,MATCH("Senior Person 5",'Salary & Fringe'!$E$1:$E$300,FALSE),1))," ",(INDEX('Salary & Fringe'!$B$1:$B$300,MATCH("Senior Person 5",'Salary & Fringe'!$E$1:$E$300,FALSE),1))),"") ->  | D8: =SUMIFS('Salary & Fringe'!$T$1:'Salary & Fringe'!$T$300,'Salary & Fringe'!$E$1:'Salary & Fringe'!$E$300,"Senior Person 5",'Salary & Fringe'!$F$1:'Salary & Fringe'!$F$300,"Calendar(12)") -> 0 | E8: =SUMIFS('Salary & Fringe'!$T$1:'Salary & Fringe'!$T$300,'Salary & Fringe'!$E$1:'Salary & Fringe'!$E$300,"Senior Person 5",'Salary & Fringe'!$F$1:'Salary & Fringe'!$F$300,"Academic") -> 0 | F8: =SUMIFS('Salary & Fringe'!$T$1:'Salary & Fringe'!$T$300,'Salary & Fringe'!$E$1:'Salary & Fringe'!$E$300,"Senior Person 5",'Salary & Fringe'!$F$1:'Salary & Fringe'!$F$300,"Summer") -> 0 | G8: =SUMIF('Salary & Fringe'!$E$1:$E$300,"Senior Person 5",'Salary & Fringe'!$AD$1:$AD$300) -> 0
A9: 6. | B9: =SUMIFS('Salary & Fringe'!$I$1:$I$300,'Salary & Fringe'!$E$1:$E$300,"Senior (Other)", 'Salary & Fringe'!$T$1:'Salary & Fringe'!$T$300, ">0") -> 0 | C9: Others (list individually on budget explanation page) | D9: =SUMIFS('Salary & Fringe'!$T$1:'Salary & Fringe'!$T$300,'Salary & Fringe'!$E$1:'Salary & Fringe'!$E$300,"Senior (Other)",'Salary & Fringe'!$F$1:'Salary & Fringe'!$F$300,"Calendar(12)") -> 0 | E9: =SUMIFS('Salary & Fringe'!$T$1:'Salary & Fringe'!$T$300,'Salary & Fringe'!$E$1:'Salary & Fringe'!$E$300,"Senior (Other)",'Salary & Fringe'!$F$1:'Salary & Fringe'!$F$300,"Academic") -> 0 | F9: =SUMIFS('Salary & Fringe'!$T$1:'Salary & Fringe'!$T$300,'Salary & Fringe'!$E$1:'Salary & Fringe'!$E$300,"Senior (Other)",'Salary & Fringe'!$F$1:'Salary & Fringe'!$F$300,"Summer") -> 0 | G9: =SUMIF('Salary & Fringe'!$E$1:$E$300,"Senior (Other)",'Salary & Fringe'!$AD$1:$AD$300) -> 0
A10: 7. | B10: =(COUNTIF(G4:G8,">0")+B9) -> 0 | C10: Total Senior Personnel (1 through 6) | D10: =SUM(D4:D9) -> 0 | E10: =SUM(E4:E9) -> 0 | F10: =SUM(F4:F9) -> 0 | G10: =SUM(G4:G9) -> 0
A11: B. Other Personnel
A12: 1. | B12: =SUMIFS('Salary & Fringe'!$I$1:$I$300,'Salary & Fringe'!$E$1:$E$300,"Postdoc", 'Salary & Fringe'!$T$1:'Salary & Fringe'!$T$300, ">0") -> 0 | C12: Post Doctoral Associates | D12: =SUMIF('Salary & Fringe'!$E$1:$E$300,"Postdoc",'Salary & Fringe'!$T$1:$T$300) -> 0 | E12: 0 | F12: 0 | G12: =SUMIF('Salary & Fringe'!$E$1:$E$300,"Postdoc",'Salary & Fringe'!$AD$1:$AD$300) -> 0
A13: 2. | B13: =SUMIFS('Salary & Fringe'!$I$1:$I$300,'Salary & Fringe'!$E$1:$E$300,"Professional (Other)", 'Salary & Fringe'!$T$1:'Salary & Fringe'!$T$300, ">0") -> 0 | C13: Other Professional (Technician, Programmer, etc) | D13: =SUMIF('Salary & Fringe'!$E$1:$E$300,"Professional (Other)",'Salary & Fringe'!$T$1:$T$300) -> 0 | E13: 0 | F13: 0 | G13: =SUMIF('Salary & Fringe'!$E$1:$E$300,"Professional (Other)",'Salary & Fringe'!$AD$1:$AD$300) -> 0
A14: 3. | C14: Graduate Students | G14: =SUMIF('Salary & Fringe'!$E$1:$E$300,"Grad",'Salary & Fringe'!$AD$1:$AD$300) -> 0
A15: 4. | C15: Undergraduate Students | G15: =SUMIF('Salary & Fringe'!$E$1:$E$300,"Undergrad",'Salary & Fringe'!$AD$1:$AD$300) -> 0
A16: 5. | B16: =SUMIFS('Salary & Fringe'!$I$1:$I$300,'Salary & Fringe'!$E$1:$E$300,"Clerical", 'Salary & Fringe'!$T$1:'Salary & Fringe'!$T$300, ">0") -> 0 | C16: Secretarial-Clerical (if charged directly) | G16: =SUMIF('Salary & Fringe'!$E$1:$E$300,"Clerical",'Salary & Fringe'!$AD$1:$AD$300) -> 0
A17: 6. | B17: =SUMIFS('Salary & Fringe'!$I$1:$I$300,'Salary & Fringe'!$E$1:$E$300,"Other*", 'Salary & Fringe'!$T$1:'Salary & Fringe'!$T$300, ">0") -> 0 | C17: Other | G17: =SUMIF('Salary & Fringe'!$E$1:$E$300,"Other*",'Salary & Fringe'!$AD$1:$AD$300) -> 0
A18: Total Salaries and Wages (A+B) | G18: =SUM(G10,G12:G17) -> 0
A19: C. Fringe Benefits (If charged as direct costs) | G19: =TotalFringe8 -> 0
A20: Total Salaries, Wages and Fringe Benefits (A+B+C) | G20: =G18+G19 -> 0
A21: D. Equipment (list item and dollar amount for each item exceeding $5,000)
A22: =IF(ISBLANK(Budget!T47),"",Budget!A47) ->  | D22: =IF(Budget!T47>0,Budget!T47,"") -> 
A23: =IF(ISBLANK(Budget!T48),"",Budget!A48) ->  | D23: =IF(Budget!T48>0,Budget!T48,"") -> 
A24: =IF(ISBLANK(Budget!T49),"",Budget!A49) ->  | D24: =IF(Budget!T49>0,Budget!T49,"") -> 
A25: =IF(ISBLANK(Budget!T50),"",Budget!A50) ->  | D25: =IF(Budget!T50>0,Budget!T50,"") -> 
A26: =IF(ISBLANK(Budget!T51),"",Budget!A51) ->  | D26: =IF(Budget!T51>0,Budget!T51,"") -> 
A27: Total Equipment | G27: =Budget!T52 -> 0
A28: E. Travel
A29: 1. Domestic (Including U.S. Possessions) | G29: =Budget!T39 -> 0
A30: 2. Foreign | G30: =Budget!T44 -> 0
A31: F. Participant Support
A32: 1. Stipends | C32: =SUMIF(Budget!$A$2:$A$504,"PS Stipends",Budget!$T$2:$T$504) -> 0
A33: 2. Travel | C33: =SUMIF(Budget!$A$2:$A$504,"PS Travel",Budget!$T$2:$T$504) -> 0
A34: 3. Subsistence | C34: =SUMIF(Budget!$A$2:$A$504,"PS Subsistence",Budget!$T$2:$T$504) -> 0
A35: 4. Other | C35: =SUMIF(Budget!$A$2:$A$504,"PS Other",Budget!$T$2:$T$504) -> 0
C36: Total Participant Support | G36: =Budget!T57 -> 0
A37: G. Other Direct Costs
A38: 1. Materials and Supplies | G38: =SUMIF(Budget!$A$2:$A$504,"Materials & Supplies",Budget!$T$2:$T$504) -> 0
A39: 2. Publication Costs/Documentation/Dissemination | G39: =SUMIF(Budget!$A$2:$A$504,"Publication Costs/Page Charges",Budget!$T$2:$T$504) -> 0
A40: 3. Consultant Services | G40: =SUMIF(Budget!$A$2:$A$504,"Consultant Services",Budget!$T$2:$T$504) -> 0
A41: 4. Computer Services | G41: =SUMIF(Budget!$A$2:$A$504,"Computer (ADPE) Services",Budget!$T$2:$T$504) -> 0
A42: 5. Subawards | G42: =TotalSubs8+TotalMulti8 -> 0
A43: 6. Other | G43: =SUMIF(Budget!$A$2:$A$504,"Vendor Contract",Budget!$T$2:$T$504)+SUMIF(Budget!$A$2:$A$504,"Service Agreement",Budget!$T$2:$T$504)+SUMIF(Budget!$A$2:$A$504,"Space Rentals",Budget!$T$2:$T$504)+SUMIF(Budget!$A$2:$A$504,"Other*",Budget!$T$2:$T$504)+SUMIF(Budget!$A$2:$A$504,"Equipment or Facility*",Budget!$T$2:$T$504)+TotalGSR8 -> 0
A44: Total Other Direct Costs (G1 through G6) | G44: =SUM(G38:G43) -> 0
A45: H. Total Direct Costs (A through G) | G45: =SUM(G20+G27+G29+G30+G36+G44) -> 0
A46: I. Indirect Costs (F&A) (Specify Rate and Base)
C47: =Budget!T105 ->  | D47: x | E47: =Budget!T101 -> 0 | F47: Base | G47: =Budget!T109 -> 0
A48: J. Total Direct and Indirect Costs (H+I) | G48: =G45+G47 -> 0
A49: K. Small Business Fee
A50: L. Amount of this request (J or J-K) | G50: =IF(G49>0, G48-G49, G48) -> 0

Sheet NSF Yr 9 (hidden)
A1: NSF Budget Year 9
A2: A. Senior Personnel | D2: NSF Funded Person Months | G2: Funds
D3: CAL | E3: ACAD | F3: SUM
A4: 1. | B4: =IF(G4>0,CONCATENATE((INDEX('Salary & Fringe'!$A$1:$A$300,MATCH("Senior Person 1",'Salary & Fringe'!$E$1:$E$300,FALSE),1))," ",(INDEX('Salary & Fringe'!$B$1:$B$300,MATCH("Senior Person 1",'Salary & Fringe'!$E$1:$E$300,FALSE),1))),"") ->  | D4: =SUMIFS('Salary & Fringe'!$U$1:'Salary & Fringe'!$U$300,'Salary & Fringe'!$E$1:'Salary & Fringe'!$E$300,"Senior Person 1",'Salary & Fringe'!$F$1:'Salary & Fringe'!$F$300,"Calendar(12)") -> 0 | E4: =SUMIFS('Salary & Fringe'!$U$1:'Salary & Fringe'!$U$300,'Salary & Fringe'!$E$1:'Salary & Fringe'!$E$300,"Senior Person 1",'Salary & Fringe'!$F$1:'Salary & Fringe'!$F$300,"Academic") -> 0 | F4: =SUMIFS('Salary & Fringe'!$U$1:'Salary & Fringe'!$U$300,'Salary & Fringe'!$E$1:'Salary & Fringe'!$E$300,"Senior Person 1",'Salary & Fringe'!$F$1:'Salary & Fringe'!$F$300,"Summer") -> 0 | G4: =SUMIF('Salary & Fringe'!$E$1:$E$300,"Senior Person 1",'Salary & Fringe'!$AE$1:$AE$300) -> 0
A5: 2. | B5: =IF(G5>0,CONCATENATE((INDEX('Salary & Fringe'!$A$1:$A$300,MATCH("Senior Person 2",'Salary & Fringe'!$E$1:$E$300,FALSE),1))," ",(INDEX('Salary & Fringe'!$B$1:$B$300,MATCH("Senior Person 2",'Salary & Fringe'!$E$1:$E$300,FALSE),1))),"") ->  | D5: =SUMIFS('Salary & Fringe'!$U$1:'Salary & Fringe'!$U$300,'Salary & Fringe'!$E$1:'Salary & Fringe'!$E$300,"Senior Person 2",'Salary & Fringe'!$F$1:'Salary & Fringe'!$F$300,"Calendar(12)") -> 0 | E5: =SUMIFS('Salary & Fringe'!$U$1:'Salary & Fringe'!$U$300,'Salary & Fringe'!$E$1:'Salary & Fringe'!$E$300,"Senior Person 2",'Salary & Fringe'!$F$1:'Salary & Fringe'!$F$300,"Academic") -> 0 | F5: =SUMIFS('Salary & Fringe'!$U$1:'Salary & Fringe'!$U$300,'Salary & Fringe'!$E$1:'Salary & Fringe'!$E$300,"Senior Person 2",'Salary & Fringe'!$F$1:'Salary & Fringe'!$F$300,"Summer") -> 0 | G5: =SUMIF('Salary & Fringe'!$E$1:$E$300,"Senior Person 2",'Salary & Fringe'!$AE$1:$AE$300) -> 0
A6: 3. | B6: =IF(G6>0,CONCATENATE((INDEX('Salary & Fringe'!$A$1:$A$300,MATCH("Senior Person 3",'Salary & Fringe'!$E$1:$E$300,FALSE),1))," ",(INDEX('Salary & Fringe'!$B$1:$B$300,MATCH("Senior Person 3",'Salary & Fringe'!$E$1:$E$300,FALSE),1))),"") ->  | D6: =SUMIFS('Salary & Fringe'!$U$1:'Salary & Fringe'!$U$300,'Salary & Fringe'!$E$1:'Salary & Fringe'!$E$300,"Senior Person 3",'Salary & Fringe'!$F$1:'Salary & Fringe'!$F$300,"Calendar(12)") -> 0 | E6: =SUMIFS('Salary & Fringe'!$U$1:'Salary & Fringe'!$U$300,'Salary & Fringe'!$E$1:'Salary & Fringe'!$E$300,"Senior Person 3",'Salary & Fringe'!$F$1:'Salary & Fringe'!$F$300,"Academic") -> 0 | F6: =SUMIFS('Salary & Fringe'!$U$1:'Salary & Fringe'!$U$300,'Salary & Fringe'!$E$1:'Salary & Fringe'!$E$300,"Senior Person 3",'Salary & Fringe'!$F$1:'Salary & Fringe'!$F$300,"Summer") -> 0 | G6: =SUMIF('Salary & Fringe'!$E$1:$E$300,"Senior Person 3",'Salary & Fringe'!$AE$1:$AE$300) -> 0
A7: 4. | B7: =IF(G7>0,CONCATENATE((INDEX('Salary & Fringe'!$A$1:$A$300,MATCH("Senior Person 4",'Salary & Fringe'!$E$1:$E$300,FALSE),1))," ",(INDEX('Salary & Fringe'!$B$1:$B$300,MATCH("Senior Person 4",'Salary & Fringe'!$E$1:$E$300,FALSE),1))),"") ->  | D7: =SUMIFS('Salary & Fringe'!$U$1:'Salary & Fringe'!$U$300,'Salary & Fringe'!$E$1:'Salary & Fringe'!$E$300,"Senior Person 4",'Salary & Fringe'!$F$1:'Salary & Fringe'!$F$300,"Calendar(12)") -> 0 | E7: =SUMIFS('Salary & Fringe'!$U$1:'Salary & Fringe'!$U$300,'Salary & Fringe'!$E$1:'Salary & Fringe'!$E$300,"Senior Person 4",'Salary & Fringe'!$F$1:'Salary & Fringe'!$F$300,"Academic") -> 0 | F7: =SUMIFS('Salary & Fringe'!$U$1:'Salary & Fringe'!$U$300,'Salary & Fringe'!$E$1:'Salary & Fringe'!$E$300,"Senior Person 4",'Salary & Fringe'!$F$1:'Salary & Fringe'!$F$300,"Summer") -> 0 | G7: =SUMIF('Salary & Fringe'!$E$1:$E$300,"Senior Person 4",'Salary & Fringe'!$AE$1:$AE$300) -> 0
A8: 5. | B8: =IF(G8>0,CONCATENATE((INDEX('Salary & Fringe'!$A$1:$A$300,MATCH("Senior Person 5",'Salary & Fringe'!$E$1:$E$300,FALSE),1))," ",(INDEX('Salary & Fringe'!$B$1:$B$300,MATCH("Senior Person 5",'Salary & Fringe'!$E$1:$E$300,FALSE),1))),"") ->  | D8: =SUMIFS('Salary & Fringe'!$U$1:'Salary & Fringe'!$U$300,'Salary & Fringe'!$E$1:'Salary & Fringe'!$E$300,"Senior Person 5",'Salary & Fringe'!$F$1:'Salary & Fringe'!$F$300,"Calendar(12)") -> 0 | E8: =SUMIFS('Salary & Fringe'!$U$1:'Salary & Fringe'!$U$300,'Salary & Fringe'!$E$1:'Salary & Fringe'!$E$300,"Senior Person 5",'Salary & Fringe'!$F$1:'Salary & Fringe'!$F$300,"Academic") -> 0 | F8: =SUMIFS('Salary & Fringe'!$U$1:'Salary & Fringe'!$U$300,'Salary & Fringe'!$E$1:'Salary & Fringe'!$E$300,"Senior Person 5",'Salary & Fringe'!$F$1:'Salary & Fringe'!$F$300,"Summer") -> 0 | G8: =SUMIF('Salary & Fringe'!$E$1:$E$300,"Senior Person 5",'Salary & Fringe'!$AE$1:$AE$300) -> 0
A9: 6. | B9: =SUMIFS('Salary & Fringe'!$I$1:$I$300,'Salary & Fringe'!$E$1:$E$300,"Senior (Other)", 'Salary & Fringe'!$U$1:'Salary & Fringe'!$U$300, ">0") -> 0 | C9: Others (list individually on budget explanation page) | D9: =SUMIFS('Salary & Fringe'!$U$1:'Salary & Fringe'!$U$300,'Salary & Fringe'!$E$1:'Salary & Fringe'!$E$300,"Senior (Other)",'Salary & Fringe'!$F$1:'Salary & Fringe'!$F$300,"Calendar(12)") -> 0 | E9: =SUMIFS('Salary & Fringe'!$U$1:'Salary & Fringe'!$U$300,'Salary & Fringe'!$E$1:'Salary & Fringe'!$E$300,"Senior (Other)",'Salary & Fringe'!$F$1:'Salary & Fringe'!$F$300,"Academic") -> 0 | F9: =SUMIFS('Salary & Fringe'!$U$1:'Salary & Fringe'!$U$300,'Salary & Fringe'!$E$1:'Salary & Fringe'!$E$300,"Senior (Other)",'Salary & Fringe'!$F$1:'Salary & Fringe'!$F$300,"Summer") -> 0 | G9: =SUMIF('Salary & Fringe'!$E$1:$E$300,"Senior (Other)",'Salary & Fringe'!$AE$1:$AE$300) -> 0
A10: 7. | B10: =(COUNTIF(G4:G8,">0")+B9) -> 0 | C10: Total Senior Personnel (1 through 6) | D10: =SUM(D4:D9) -> 0 | E10: =SUM(E4:E9) -> 0 | F10: =SUM(F4:F9) -> 0 | G10: =SUM(G4:G9) -> 0
A11: B. Other Personnel
A12: 1. | B12: =SUMIFS('Salary & Fringe'!$I$1:$I$300,'Salary & Fringe'!$E$1:$E$300,"Postdoc", 'Salary & Fringe'!$U$1:'Salary & Fringe'!$U$300, ">0") -> 0 | C12: Post Doctoral Associates | D12: =SUMIF('Salary & Fringe'!$E$1:$E$300,"Postdoc",'Salary & Fringe'!$U$1:$U$300) -> 0 | E12: 0 | F12: 0 | G12: =SUMIF('Salary & Fringe'!$E$1:$E$300,"Postdoc",'Salary & Fringe'!$AE$1:$AE$300) -> 0
A13: 2. | B13: =SUMIFS('Salary & Fringe'!$I$1:$I$300,'Salary & Fringe'!$E$1:$E$300,"Professional (Other)", 'Salary & Fringe'!$U$1:'Salary & Fringe'!$U$300, ">0") -> 0 | C13: Other Professional (Technician, Programmer, etc) | D13: =SUMIF('Salary & Fringe'!$E$1:$E$300,"Professional (Other)",'Salary & Fringe'!$U$1:$U$300) -> 0 | E13: 0 | F13: 0 | G13: =SUMIF('Salary & Fringe'!$E$1:$E$300,"Professional (Other)",'Salary & Fringe'!$AE$1:$AE$300) -> 0
A14: 3. | C14: Graduate Students | G14: =SUMIF('Salary & Fringe'!$E$1:$E$300,"Grad",'Salary & Fringe'!$AE$1:$AE$300) -> 0
A15: 4. | C15: Undergraduate Students | G15: =SUMIF('Salary & Fringe'!$E$1:$E$300,"Undergrad",'Salary & Fringe'!$AE$1:$AE$300) -> 0
A16: 5. | B16: =SUMIFS('Salary & Fringe'!$I$1:$I$300,'Salary & Fringe'!$E$1:$E$300,"Clerical", 'Salary & Fringe'!$U$1:'Salary & Fringe'!$U$300, ">0") -> 0 | C16: Secretarial-Clerical (if charged directly) | G16: =SUMIF('Salary & Fringe'!$E$1:$E$300,"Clerical",'Salary & Fringe'!$AE$1:$AE$300) -> 0
A17: 6. | B17: =SUMIFS('Salary & Fringe'!$I$1:$I$300,'Salary & Fringe'!$E$1:$E$300,"Other*", 'Salary & Fringe'!$U$1:'Salary & Fringe'!$U$300, ">0") -> 0 | C17: Other | G17: =SUMIF('Salary & Fringe'!$E$1:$E$300,"Other*",'Salary & Fringe'!$AE$1:$AE$300) -> 0
A18: Total Salaries and Wages (A+B) | G18: =SUM(G10,G12:G17) -> 0
A19: C. Fringe Benefits (If charged as direct costs) | G19: =TotalFringe9 -> 0
A20: Total Salaries, Wages and Fringe Benefits (A+B+C) | G20: =G18+G19 -> 0
A21: D. Equipment (list item and dollar amount for each item exceeding $5,000)
A22: =IF(ISBLANK(Budget!V47),"",Budget!A47) ->  | D22: =IF(Budget!V47>0,Budget!V47,"") -> 
A23: =IF(ISBLANK(Budget!V48),"",Budget!A48) ->  | D23: =IF(Budget!V48>0,Budget!V48,"") -> 
A24: =IF(ISBLANK(Budget!V49),"",Budget!A49) ->  | D24: =IF(Budget!V49>0,Budget!V49,"") -> 
A25: =IF(ISBLANK(Budget!V50),"",Budget!A50) ->  | D25: =IF(Budget!V50>0,Budget!V50,"") -> 
A26: =IF(ISBLANK(Budget!V51),"",Budget!A51) ->  | D26: =IF(Budget!V51>0,Budget!V51,"") -> 
A27: Total Equipment | G27: =Budget!V52 -> 0
A28: E. Travel
A29: 1. Domestic (Including U.S. Possessions) | G29: =Budget!V39 -> 0
A30: 2. Foreign | G30: =Budget!V44 -> 0
A31: F. Participant Support
A32: 1. Stipends | C32: =SUMIF(Budget!$A$2:$A$504,"PS Stipends",Budget!$V$2:$V$504) -> 0
A33: 2. Travel | C33: =SUMIF(Budget!$A$2:$A$504,"PS Travel",Budget!$V$2:$V$504) -> 0
A34: 3. Subsistence | C34: =SUMIF(Budget!$A$2:$A$504,"PS Subsistence",Budget!$V$2:$V$504) -> 0
A35: 4. Other | C35: =SUMIF(Budget!$A$2:$A$504,"PS Other",Budget!$V$2:$V$504) -> 0
C36: Total Participant Support | G36: =Budget!V57 -> 0
A37: G. Other Direct Costs
A38: 1. Materials and Supplies | G38: =SUMIF(Budget!$A$2:$A$504,"Materials & Supplies",Budget!$V$2:$V$504) -> 0
A39: 2. Publication Costs/Documentation/Dissemination | G39: =SUMIF(Budget!$A$2:$A$504,"Publication Costs/Page Charges",Budget!$V$2:$V$504) -> 0
A40: 3. Consultant Services | G40: =SUMIF(Budget!$A$2:$A$504,"Consultant Services",Budget!$V$2:$V$504) -> 0
A41: 4. Computer Services | G41: =SUMIF(Budget!$A$2:$A$504,"Computer (ADPE) Services",Budget!$V$2:$V$504) -> 0
A42: 5. Subawards | G42: =TotalSubs9+TotalMulti9 -> 0
A43: 6. Other | G43: =SUMIF(Budget!$A$2:$A$504,"Vendor Contract",Budget!$V$2:$V$504)+SUMIF(Budget!$A$2:$A$504,"Service Agreement",Budget!$V$2:$V$504)+SUMIF(Budget!$A$2:$A$504,"Space Rentals",Budget!$V$2:$V$504)+SUMIF(Budget!$A$2:$A$504,"Other*",Budget!$V$2:$V$504)+SUMIF(Budget!$A$2:$A$504,"Equipment or Facility*",Budget!$V$2:$V$504)+TotalGSR9 -> 0
A44: Total Other Direct Costs (G1 through G6) | G44: =SUM(G38:G43) -> 0
A45: H. Total Direct Costs (A through G) | G45: =SUM(G20+G27+G29+G30+G36+G44) -> 0
A46: I. Indirect Costs (F&A) (Specify Rate and Base)
C47: =Budget!V105 ->  | D47: x | E47: =Budget!V101 -> 0 | F47: Base | G47: =Budget!V109 -> 0
A48: J. Total Direct and Indirect Costs (H+I) | G48: =G45+G47 -> 0
A49: K. Small Business Fee
A50: L. Amount of this request (J or J-K) | G50: =IF(G49>0, G48-G49, G48) -> 0

Sheet NSF Yr 10 (hidden)
A1: NSF Budget Year 10
A2: A. Senior Personnel | D2: NSF Funded Person Months | G2: Funds
D3: CAL | E3: ACAD | F3: SUM
A4: 1. | B4: =IF(G4>0,CONCATENATE((INDEX('Salary & Fringe'!$A$1:$A$300,MATCH("Senior Person 1",'Salary & Fringe'!$E$1:$E$300,FALSE),1))," ",(INDEX('Salary & Fringe'!$B$1:$B$300,MATCH("Senior Person 1",'Salary & Fringe'!$E$1:$E$300,FALSE),1))),"") ->  | D4: =SUMIFS('Salary & Fringe'!$V$1:'Salary & Fringe'!$V$300,'Salary & Fringe'!$E$1:'Salary & Fringe'!$E$300,"Senior Person 1",'Salary & Fringe'!$F$1:'Salary & Fringe'!$F$300,"Calendar(12)") -> 0 | E4: =SUMIFS('Salary & Fringe'!$V$1:'Salary & Fringe'!$V$300,'Salary & Fringe'!$E$1:'Salary & Fringe'!$E$300,"Senior Person 1",'Salary & Fringe'!$F$1:'Salary & Fringe'!$F$300,"Academic") -> 0 | F4: =SUMIFS('Salary & Fringe'!$V$1:'Salary & Fringe'!$V$300,'Salary & Fringe'!$E$1:'Salary & Fringe'!$E$300,"Senior Person 1",'Salary & Fringe'!$F$1:'Salary & Fringe'!$F$300,"Summer") -> 0 | G4: =SUMIF('Salary & Fringe'!$E$1:$E$300,"Senior Person 1",'Salary & Fringe'!$AF$1:$AF$286) -> 0
A5: 2. | B5: =IF(G5>0,CONCATENATE((INDEX('Salary & Fringe'!$A$1:$A$300,MATCH("Senior Person 2",'Salary & Fringe'!$E$1:$E$300,FALSE),1))," ",(INDEX('Salary & Fringe'!$B$1:$B$300,MATCH("Senior Person 2",'Salary & Fringe'!$E$1:$E$300,FALSE),1))),"") ->  | D5: =SUMIFS('Salary & Fringe'!$V$1:'Salary & Fringe'!$V$300,'Salary & Fringe'!$E$1:'Salary & Fringe'!$E$300,"Senior Person 2",'Salary & Fringe'!$F$1:'Salary & Fringe'!$F$300,"Calendar(12)") -> 0 | E5: =SUMIFS('Salary & Fringe'!$V$1:'Salary & Fringe'!$V$300,'Salary & Fringe'!$E$1:'Salary & Fringe'!$E$300,"Senior Person 2",'Salary & Fringe'!$F$1:'Salary & Fringe'!$F$300,"Academic") -> 0 | F5: =SUMIFS('Salary & Fringe'!$V$1:'Salary & Fringe'!$V$300,'Salary & Fringe'!$E$1:'Salary & Fringe'!$E$300,"Senior Person 2",'Salary & Fringe'!$F$1:'Salary & Fringe'!$F$300,"Summer") -> 0 | G5: =SUMIF('Salary & Fringe'!$E$1:$E$300,"Senior Person 2",'Salary & Fringe'!$AF$1:$AF$286) -> 0
A6: 3. | B6: =IF(G6>0,CONCATENATE((INDEX('Salary & Fringe'!$A$1:$A$300,MATCH("Senior Person 3",'Salary & Fringe'!$E$1:$E$300,FALSE),1))," ",(INDEX('Salary & Fringe'!$B$1:$B$300,MATCH("Senior Person 3",'Salary & Fringe'!$E$1:$E$300,FALSE),1))),"") ->  | D6: =SUMIFS('Salary & Fringe'!$V$1:'Salary & Fringe'!$V$300,'Salary & Fringe'!$E$1:'Salary & Fringe'!$E$300,"Senior Person 3",'Salary & Fringe'!$F$1:'Salary & Fringe'!$F$300,"Calendar(12)") -> 0 | E6: =SUMIFS('Salary & Fringe'!$V$1:'Salary & Fringe'!$V$300,'Salary & Fringe'!$E$1:'Salary & Fringe'!$E$300,"Senior Person 3",'Salary & Fringe'!$F$1:'Salary & Fringe'!$F$300,"Academic") -> 0 | F6: =SUMIFS('Salary & Fringe'!$V$1:'Salary & Fringe'!$V$300,'Salary & Fringe'!$E$1:'Salary & Fringe'!$E$300,"Senior Person 3",'Salary & Fringe'!$F$1:'Salary & Fringe'!$F$300,"Summer") -> 0 | G6: =SUMIF('Salary & Fringe'!$E$1:$E$300,"Senior Person 3",'Salary & Fringe'!$AF$1:$AF$286) -> 0
A7: 4. | B7: =IF(G7>0,CONCATENATE((INDEX('Salary & Fringe'!$A$1:$A$300,MATCH("Senior Person 4",'Salary & Fringe'!$E$1:$E$300,FALSE),1))," ",(INDEX('Salary & Fringe'!$B$1:$B$300,MATCH("Senior Person 4",'Salary & Fringe'!$E$1:$E$300,FALSE),1))),"") ->  | D7: =SUMIFS('Salary & Fringe'!$V$1:'Salary & Fringe'!$V$300,'Salary & Fringe'!$E$1:'Salary & Fringe'!$E$300,"Senior Person 4",'Salary & Fringe'!$F$1:'Salary & Fringe'!$F$300,"Calendar(12)") -> 0 | E7: =SUMIFS('Salary & Fringe'!$V$1:'Salary & Fringe'!$V$300,'Salary & Fringe'!$E$1:'Salary & Fringe'!$E$300,"Senior Person 4",'Salary & Fringe'!$F$1:'Salary & Fringe'!$F$300,"Academic") -> 0 | F7: =SUMIFS('Salary & Fringe'!$V$1:'Salary & Fringe'!$V$300,'Salary & Fringe'!$E$1:'Salary & Fringe'!$E$300,"Senior Person 4",'Salary & Fringe'!$F$1:'Salary & Fringe'!$F$300,"Summer") -> 0 | G7: =SUMIF('Salary & Fringe'!$E$1:$E$300,"Senior Person 4",'Salary & Fringe'!$AF$1:$AF$286) -> 0
A8: 5. | B8: =IF(G8>0,CONCATENATE((INDEX('Salary & Fringe'!$A$1:$A$300,MATCH("Senior Person 5",'Salary & Fringe'!$E$1:$E$300,FALSE),1))," ",(INDEX('Salary & Fringe'!$B$1:$B$300,MATCH("Senior Person 5",'Salary & Fringe'!$E$1:$E$300,FALSE),1))),"") ->  | D8: =SUMIFS('Salary & Fringe'!$V$1:'Salary & Fringe'!$V$300,'Salary & Fringe'!$E$1:'Salary & Fringe'!$E$300,"Senior Person 5",'Salary & Fringe'!$F$1:'Salary & Fringe'!$F$300,"Calendar(12)") -> 0 | E8: =SUMIFS('Salary & Fringe'!$V$1:'Salary & Fringe'!$V$300,'Salary & Fringe'!$E$1:'Salary & Fringe'!$E$300,"Senior Person 5",'Salary & Fringe'!$F$1:'Salary & Fringe'!$F$300,"Academic") -> 0 | F8: =SUMIFS('Salary & Fringe'!$V$1:'Salary & Fringe'!$V$300,'Salary & Fringe'!$E$1:'Salary & Fringe'!$E$300,"Senior Person 5",'Salary & Fringe'!$F$1:'Salary & Fringe'!$F$300,"Summer") -> 0 | G8: =SUMIF('Salary & Fringe'!$E$1:$E$300,"Senior Person 5",'Salary & Fringe'!$AF$1:$AF$286) -> 0
A9: 6. | B9: =SUMIFS('Salary & Fringe'!$I$1:$I$300,'Salary & Fringe'!$E$1:$E$300,"Senior (Other)", 'Salary & Fringe'!$V$1:'Salary & Fringe'!$V$300, ">0") -> 0 | C9: Others (list individually on budget explanation page) | D9: =SUMIFS('Salary & Fringe'!$V$1:'Salary & Fringe'!$V$300,'Salary & Fringe'!$E$1:'Salary & Fringe'!$E$300,"Senior (Other)",'Salary & Fringe'!$F$1:'Salary & Fringe'!$F$300,"Calendar(12)") -> 0 | E9: =SUMIFS('Salary & Fringe'!$V$1:'Salary & Fringe'!$V$300,'Salary & Fringe'!$E$1:'Salary & Fringe'!$E$300,"Senior (Other)",'Salary & Fringe'!$F$1:'Salary & Fringe'!$F$300,"Academic") -> 0 | F9: =SUMIFS('Salary & Fringe'!$V$1:'Salary & Fringe'!$V$300,'Salary & Fringe'!$E$1:'Salary & Fringe'!$E$300,"Senior (Other)",'Salary & Fringe'!$F$1:'Salary & Fringe'!$F$300,"Summer") -> 0 | G9: =SUMIF('Salary & Fringe'!$E$1:$E$300,"Senior (Other)",'Salary & Fringe'!$AF$1:$AF$286) -> 0
A10: 7. | B10: =(COUNTIF(G4:G8,">0")+B9) -> 0 | C10: Total Senior Personnel (1 through 6) | D10: =SUM(D4:D9) -> 0 | E10: =SUM(E4:E9) -> 0 | F10: =SUM(F4:F9) -> 0 | G10: =SUM(G4:G9) -> 0
A11: B. Other Personnel
A12: 1. | B12: =SUMIFS('Salary & Fringe'!$I$1:$I$300,'Salary & Fringe'!$E$1:$E$300,"Postdoc", 'Salary & Fringe'!$V$1:'Salary & Fringe'!$V$300, ">0") -> 0 | C12: Post Doctoral Associates | D12: =SUMIF('Salary & Fringe'!$E$1:$E$300,"Postdoc",'Salary & Fringe'!$V$1:$V$300) -> 0 | E12: 0 | F12: 0 | G12: =SUMIF('Salary & Fringe'!$E$1:$E$300,"Postdoc",'Salary & Fringe'!$AF$1:$AF$286) -> 0
A13: 2. | B13: =SUMIFS('Salary & Fringe'!$I$1:$I$300,'Salary & Fringe'!$E$1:$E$300,"Professional (Other)", 'Salary & Fringe'!$V$1:'Salary & Fringe'!$V$300, ">0") -> 0 | C13: Other Professional (Technician, Programmer, etc) | D13: =SUMIF('Salary & Fringe'!$E$1:$E$300,"Professional (Other)",'Salary & Fringe'!$V$1:$V$300) -> 0 | E13: 0 | F13: 0 | G13: =SUMIF('Salary & Fringe'!$E$1:$E$300,"Professional (Other)",'Salary & Fringe'!$AF$1:$AF$286) -> 0
A14: 3. | C14: Graduate Students | G14: =SUMIF('Salary & Fringe'!$E$1:$E$300,"Grad",'Salary & Fringe'!$AF$1:$AF$286) -> 0
A15: 4. | C15: Undergraduate Students | G15: =SUMIF('Salary & Fringe'!$E$1:$E$300,"Undergrad",'Salary & Fringe'!$AF$1:$AF$286) -> 0
A16: 5. | B16: =SUMIFS('Salary & Fringe'!$I$1:$I$300,'Salary & Fringe'!$E$1:$E$300,"Clerical", 'Salary & Fringe'!$V$1:'Salary & Fringe'!$V$300, ">0") -> 0 | C16: Secretarial-Clerical (if charged directly) | G16: =SUMIF('Salary & Fringe'!$E$1:$E$300,"Clerical",'Salary & Fringe'!$AF$1:$AF$286) -> 0
A17: 6. | B17: =SUMIFS('Salary & Fringe'!$I$1:$I$300,'Salary & Fringe'!$E$1:$E$300,"Other*", 'Salary & Fringe'!$V$1:'Salary & Fringe'!$V$300, ">0") -> 0 | C17: Other | G17: =SUMIF('Salary & Fringe'!$E$1:$E$300,"Other*",'Salary & Fringe'!$AF$1:$AF$286) -> 0
A18: Total Salaries and Wages (A+B) | G18: =SUM(G10,G12:G17) -> 0
A19: C. Fringe Benefits (If charged as direct costs) | G19: =TotalFringe10 -> 0
A20: Total Salaries, Wages and Fringe Benefits (A+B+C) | G20: =G18+G19 -> 0
A21: D. Equipment (list item and dollar amount for each item exceeding $5,000)
A22: =IF(ISBLANK(Budget!X47),"",Budget!X47) ->  | D22: =IF(Budget!X47>0,Budget!X47,"") -> 
A23: =IF(ISBLANK(Budget!X48),"",Budget!X48) ->  | D23: =IF(Budget!X48>0,Budget!X48,"") -> 
A24: =IF(ISBLANK(Budget!X49),"",Budget!X49) ->  | D24: =IF(Budget!X49>0,Budget!X49,"") -> 
A25: =IF(ISBLANK(Budget!X50),"",Budget!X50) ->  | D25: =IF(Budget!X50>0,Budget!X50,"") -> 
A26: =IF(ISBLANK(Budget!X51),"",Budget!X51) ->  | D26: =IF(Budget!X51>0,Budget!X51,"") -> 
A27: Total Equipment | G27: =Budget!X52 -> 0
A28: E. Travel
A29: 1. Domestic (Including U.S. Possessions) | G29: =Budget!X39 -> 0
A30: 2. Foreign | G30: =Budget!X44 -> 0
A31: F. Participant Support
A32: 1. Stipends | C32: =SUMIF(Budget!$A$2:$A$504,"PS Stipends",Budget!$X$2:$X$504) -> 0
A33: 2. Travel | C33: =SUMIF(Budget!$A$2:$A$504,"PS Travel",Budget!$X$2:$X$504) -> 0
A34: 3. Subsistence | C34: =SUMIF(Budget!$A$2:$A$504,"PS Subsistence",Budget!$X$2:$X$504) -> 0
A35: 4. Other | C35: =SUMIF(Budget!$A$2:$A$504,"PS Other",Budget!$X$2:$X$504) -> 0
C36: Total Participant Support | G36: =Budget!X57 -> 0
A37: G. Other Direct Costs
A38: 1. Materials and Supplies | G38: =SUMIF(Budget!$A$2:$A$504,"Materials & Supplies",Budget!$X$2:$X$504) -> 0
A39: 2. Publication Costs/Documentation/Dissemination | G39: =SUMIF(Budget!$A$2:$A$504,"Publication Costs/Page Charges",Budget!$X$2:$X$504) -> 0
A40: 3. Consultant Services | G40: =SUMIF(Budget!$A$2:$A$504,"Consultant Services",Budget!$X$2:$X$504) -> 0
A41: 4. Computer Services | G41: =SUMIF(Budget!$A$2:$A$504,"Computer (ADPE) Services",Budget!$X$2:$X$504) -> 0
A42: 5. Subawards | G42: =TotalSubs10+TotalMulti10 -> 0
A43: 6. Other | G43: =SUMIF(Budget!$A$2:$A$504,"Vendor Contract",Budget!$X$2:$X$504)+SUMIF(Budget!$A$2:$A$504,"Service Agreement",Budget!$X$2:$X$504)+SUMIF(Budget!$A$2:$A$504,"Space Rentals",Budget!$X$2:$X$504)+SUMIF(Budget!$A$2:$A$504,"Other*",Budget!$X$2:$X$504)+SUMIF(Budget!$A$2:$A$504,"Equipment or Facility*",Budget!$X$2:$X$504)+TotalGSR10 -> 0
A44: Total Other Direct Costs (G1 through G6) | G44: =SUM(G38:G43) -> 0
A45: H. Total Direct Costs (A through G) | G45: =SUM(G20+G27+G29+G30+G36+G44) -> 0
A46: I. Indirect Costs (F&A) (Specify Rate and Base)
C47: =Budget!X105 ->  | D47: x | E47: =Budget!X101 -> 0 | F47: Base | G47: =Budget!X109 -> 0
A48: J. Total Direct and Indirect Costs (H+I) | G48: =G45+G47 -> 0
A49: K. Small Business Fee
A50: L. Amount of this request (J or J-K) | G50: =IF(G49>0, G48-G49, G48) -> 0

Sheet NSF Cumulative (hidden)
A1: NSF Cumulative Budget
A2: A. Senior Personnel | D2: NSF Funded Person Months | G2: Funds
D3: CAL | E3: ACAD | F3: SUM
A4: 1. | B4: =IF(G4>0,CONCATENATE((INDEX('Salary & Fringe'!$A$1:$A$300,MATCH("Senior Person 1",'Salary & Fringe'!$E$1:$E$300,FALSE),1))," ",(INDEX('Salary & Fringe'!$B$1:$B$300,MATCH("Senior Person 1",'Salary & Fringe'!$E$1:$E$300,FALSE),1))),"") ->  | D4: =SUM('NSF Yr 1'!D4,'NSF Yr 2'!D4, 'NSF Yr 3'!D4, 'NSF Yr 4'!D4, 'NSF Yr 5'!D4, 'NSF Yr 6'!D4, 'NSF Yr 7'!D4, 'NSF Yr 8'!D4, 'NSF Yr 9'!D4, 'NSF Yr 10'!D4 ) -> 0 | E4: =SUM('NSF Yr 1'!E4,'NSF Yr 2'!E4, 'NSF Yr 3'!E4, 'NSF Yr 4'!E4, 'NSF Yr 5'!E4, 'NSF Yr 6'!E4, 'NSF Yr 7'!E4, 'NSF Yr 8'!E4, 'NSF Yr 9'!E4, 'NSF Yr 10'!E4 ) -> 0 | F4: =SUM('NSF Yr 1'!F4,'NSF Yr 2'!F4, 'NSF Yr 3'!F4, 'NSF Yr 4'!F4, 'NSF Yr 5'!F4, 'NSF Yr 6'!F4, 'NSF Yr 7'!F4, 'NSF Yr 8'!F4, 'NSF Yr 9'!F4, 'NSF Yr 10'!F4 ) -> 0 | G4: =SUM('NSF Yr 1'!G4,'NSF Yr 2'!G4, 'NSF Yr 3'!G4, 'NSF Yr 4'!G4, 'NSF Yr 5'!G4, 'NSF Yr 6'!G4, 'NSF Yr 7'!G4, 'NSF Yr 8'!G4, 'NSF Yr 9'!G4, 'NSF Yr 10'!G4 ) -> 0
A5: 2. | B5: =IF(G5>0,CONCATENATE((INDEX('Salary & Fringe'!$A$1:$A$300,MATCH("Senior Person 2",'Salary & Fringe'!$E$1:$E$300,FALSE),1))," ",(INDEX('Salary & Fringe'!$B$1:$B$300,MATCH("Senior Person 2",'Salary & Fringe'!$E$1:$E$300,FALSE),1))),"") ->  | D5: =SUM('NSF Yr 1'!D5,'NSF Yr 2'!D5, 'NSF Yr 3'!D5, 'NSF Yr 4'!D5, 'NSF Yr 5'!D5, 'NSF Yr 6'!D5, 'NSF Yr 7'!D5, 'NSF Yr 8'!D5, 'NSF Yr 9'!D5, 'NSF Yr 10'!D5 ) -> 0 | E5: =SUM('NSF Yr 1'!E5,'NSF Yr 2'!E5, 'NSF Yr 3'!E5, 'NSF Yr 4'!E5, 'NSF Yr 5'!E5, 'NSF Yr 6'!E5, 'NSF Yr 7'!E5, 'NSF Yr 8'!E5, 'NSF Yr 9'!E5, 'NSF Yr 10'!E5 ) -> 0 | F5: =SUM('NSF Yr 1'!F5,'NSF Yr 2'!F5, 'NSF Yr 3'!F5, 'NSF Yr 4'!F5, 'NSF Yr 5'!F5, 'NSF Yr 6'!F5, 'NSF Yr 7'!F5, 'NSF Yr 8'!F5, 'NSF Yr 9'!F5, 'NSF Yr 10'!F5 ) -> 0 | G5: =SUM('NSF Yr 1'!G5,'NSF Yr 2'!G5, 'NSF Yr 3'!G5, 'NSF Yr 4'!G5, 'NSF Yr 5'!G5, 'NSF Yr 6'!G5, 'NSF Yr 7'!G5, 'NSF Yr 8'!G5, 'NSF Yr 9'!G5, 'NSF Yr 10'!G5 ) -> 0
A6: 3. | B6: =IF(G6>0,CONCATENATE((INDEX('Salary & Fringe'!$A$1:$A$300,MATCH("Senior Person 3",'Salary & Fringe'!$E$1:$E$300,FALSE),1))," ",(INDEX('Salary & Fringe'!$B$1:$B$300,MATCH("Senior Person 3",'Salary & Fringe'!$E$1:$E$300,FALSE),1))),"") ->  | D6: =SUM('NSF Yr 1'!D6,'NSF Yr 2'!D6, 'NSF Yr 3'!D6, 'NSF Yr 4'!D6, 'NSF Yr 5'!D6, 'NSF Yr 6'!D6, 'NSF Yr 7'!D6, 'NSF Yr 8'!D6, 'NSF Yr 9'!D6, 'NSF Yr 10'!D6 ) -> 0 | E6: =SUM('NSF Yr 1'!E6,'NSF Yr 2'!E6, 'NSF Yr 3'!E6, 'NSF Yr 4'!E6, 'NSF Yr 5'!E6, 'NSF Yr 6'!E6, 'NSF Yr 7'!E6, 'NSF Yr 8'!E6, 'NSF Yr 9'!E6, 'NSF Yr 10'!E6 ) -> 0 | F6: =SUM('NSF Yr 1'!F6,'NSF Yr 2'!F6, 'NSF Yr 3'!F6, 'NSF Yr 4'!F6, 'NSF Yr 5'!F6, 'NSF Yr 6'!F6, 'NSF Yr 7'!F6, 'NSF Yr 8'!F6, 'NSF Yr 9'!F6, 'NSF Yr 10'!F6 ) -> 0 | G6: =SUM('NSF Yr 1'!G6,'NSF Yr 2'!G6, 'NSF Yr 3'!G6, 'NSF Yr 4'!G6, 'NSF Yr 5'!G6, 'NSF Yr 6'!G6, 'NSF Yr 7'!G6, 'NSF Yr 8'!G6, 'NSF Yr 9'!G6, 'NSF Yr 10'!G6 ) -> 0
A7: 4. | B7: =IF(G7>0,CONCATENATE((INDEX('Salary & Fringe'!$A$1:$A$300,MATCH("Senior Person 4",'Salary & Fringe'!$E$1:$E$300,FALSE),1))," ",(INDEX('Salary & Fringe'!$B$1:$B$300,MATCH("Senior Person 4",'Salary & Fringe'!$E$1:$E$300,FALSE),1))),"") ->  | D7: =SUM('NSF Yr 1'!D7,'NSF Yr 2'!D7, 'NSF Yr 3'!D7, 'NSF Yr 4'!D7, 'NSF Yr 5'!D7, 'NSF Yr 6'!D7, 'NSF Yr 7'!D7, 'NSF Yr 8'!D7, 'NSF Yr 9'!D7, 'NSF Yr 10'!D7 ) -> 0 | E7: =SUM('NSF Yr 1'!E7,'NSF Yr 2'!E7, 'NSF Yr 3'!E7, 'NSF Yr 4'!E7, 'NSF Yr 5'!E7, 'NSF Yr 6'!E7, 'NSF Yr 7'!E7, 'NSF Yr 8'!E7, 'NSF Yr 9'!E7, 'NSF Yr 10'!E7 ) -> 0 | F7: =SUM('NSF Yr 1'!F7,'NSF Yr 2'!F7, 'NSF Yr 3'!F7, 'NSF Yr 4'!F7, 'NSF Yr 5'!F7, 'NSF Yr 6'!F7, 'NSF Yr 7'!F7, 'NSF Yr 8'!F7, 'NSF Yr 9'!F7, 'NSF Yr 10'!F7 ) -> 0 | G7: =SUM('NSF Yr 1'!G7,'NSF Yr 2'!G7, 'NSF Yr 3'!G7, 'NSF Yr 4'!G7, 'NSF Yr 5'!G7, 'NSF Yr 6'!G7, 'NSF Yr 7'!G7, 'NSF Yr 8'!G7, 'NSF Yr 9'!G7, 'NSF Yr 10'!G7 ) -> 0
A8: 5. | B8: =IF(G8>0,CONCATENATE((INDEX('Salary & Fringe'!$A$1:$A$300,MATCH("Senior Person 5",'Salary & Fringe'!$E$1:$E$300,FALSE),1))," ",(INDEX('Salary & Fringe'!$B$1:$B$300,MATCH("Senior Person 5",'Salary & Fringe'!$E$1:$E$300,FALSE),1))),"") ->  | D8: =SUM('NSF Yr 1'!D8,'NSF Yr 2'!D8, 'NSF Yr 3'!D8, 'NSF Yr 4'!D8, 'NSF Yr 5'!D8, 'NSF Yr 6'!D8, 'NSF Yr 7'!D8, 'NSF Yr 8'!D8, 'NSF Yr 9'!D8, 'NSF Yr 10'!D8 ) -> 0 | E8: =SUM('NSF Yr 1'!E8,'NSF Yr 2'!E8, 'NSF Yr 3'!E8, 'NSF Yr 4'!E8, 'NSF Yr 5'!E8, 'NSF Yr 6'!E8, 'NSF Yr 7'!E8, 'NSF Yr 8'!E8, 'NSF Yr 9'!E8, 'NSF Yr 10'!E8 ) -> 0 | F8: =SUM('NSF Yr 1'!F8,'NSF Yr 2'!F8, 'NSF Yr 3'!F8, 'NSF Yr 4'!F8, 'NSF Yr 5'!F8, 'NSF Yr 6'!F8, 'NSF Yr 7'!F8, 'NSF Yr 8'!F8, 'NSF Yr 9'!F8, 'NSF Yr 10'!F8 ) -> 0 | G8: =SUM('NSF Yr 1'!G8,'NSF Yr 2'!G8, 'NSF Yr 3'!G8, 'NSF Yr 4'!G8, 'NSF Yr 5'!G8, 'NSF Yr 6'!G8, 'NSF Yr 7'!G8, 'NSF Yr 8'!G8, 'NSF Yr 9'!G8, 'NSF Yr 10'!G8 ) -> 0
A9: 6. | B9: =SUM('NSF Yr 1'!B9,'NSF Yr 2'!B9, 'NSF Yr 3'!B9, 'NSF Yr 4'!B9, 'NSF Yr 5'!B9, 'NSF Yr 6'!B9, 'NSF Yr 7'!B9, 'NSF Yr 8'!B9, 'NSF Yr 9'!B9, 'NSF Yr 10'!B9 ) -> 0 | C9: Others (list individually on budget explanation page) | D9: =SUM('NSF Yr 1'!D9,'NSF Yr 2'!D9, 'NSF Yr 3'!D9, 'NSF Yr 4'!D9, 'NSF Yr 5'!D9, 'NSF Yr 6'!D9, 'NSF Yr 7'!D9, 'NSF Yr 8'!D9, 'NSF Yr 9'!D9, 'NSF Yr 10'!D9 ) -> 0 | E9: =SUM('NSF Yr 1'!E9,'NSF Yr 2'!E9, 'NSF Yr 3'!E9, 'NSF Yr 4'!E9, 'NSF Yr 5'!E9, 'NSF Yr 6'!E9, 'NSF Yr 7'!E9, 'NSF Yr 8'!E9, 'NSF Yr 9'!E9, 'NSF Yr 10'!E9 ) -> 0 | F9: =SUM('NSF Yr 1'!F9,'NSF Yr 2'!F9, 'NSF Yr 3'!F9, 'NSF Yr 4'!F9, 'NSF Yr 5'!F9, 'NSF Yr 6'!F9, 'NSF Yr 7'!F9, 'NSF Yr 8'!F9, 'NSF Yr 9'!F9, 'NSF Yr 10'!F9 ) -> 0 | G9: =SUM('NSF Yr 1'!G9,'NSF Yr 2'!G9, 'NSF Yr 3'!G9, 'NSF Yr 4'!G9, 'NSF Yr 5'!G9, 'NSF Yr 6'!G9, 'NSF Yr 7'!G9, 'NSF Yr 8'!G9, 'NSF Yr 9'!G9, 'NSF Yr 10'!G9 ) -> 0
A10: 7. | B10: =SUM('NSF Yr 1'!B10,'NSF Yr 2'!B10, 'NSF Yr 3'!B10, 'NSF Yr 4'!B10, 'NSF Yr 5'!B10, 'NSF Yr 6'!B10, 'NSF Yr 7'!B10, 'NSF Yr 8'!B10, 'NSF Yr 9'!B10, 'NSF Yr 10'!B10 ) -> 0 | C10: Total Senior Personnel (1 through 6) | D10: =SUM('NSF Yr 1'!D10,'NSF Yr 2'!D10, 'NSF Yr 3'!D10, 'NSF Yr 4'!D10, 'NSF Yr 5'!D10, 'NSF Yr 6'!D10, 'NSF Yr 7'!D10, 'NSF Yr 8'!D10, 'NSF Yr 9'!D10, 'NSF Yr 10'!D10 ) -> 0 | E10: =SUM('NSF Yr 1'!E10,'NSF Yr 2'!E10, 'NSF Yr 3'!E10, 'NSF Yr 4'!E10, 'NSF Yr 5'!E10, 'NSF Yr 6'!E10, 'NSF Yr 7'!E10, 'NSF Yr 8'!E10, 'NSF Yr 9'!E10, 'NSF Yr 10'!E10 ) -> 0 | F10: =SUM('NSF Yr 1'!F10,'NSF Yr 2'!F10, 'NSF Yr 3'!F10, 'NSF Yr 4'!F10, 'NSF Yr 5'!F10, 'NSF Yr 6'!F10, 'NSF Yr 7'!F10, 'NSF Yr 8'!F10, 'NSF Yr 9'!F10, 'NSF Yr 10'!F10 ) -> 0 | G10: =SUM('NSF Yr 1'!G10,'NSF Yr 2'!G10, 'NSF Yr 3'!G10, 'NSF Yr 4'!G10, 'NSF Yr 5'!G10, 'NSF Yr 6'!G10, 'NSF Yr 7'!G10, 'NSF Yr 8'!G10, 'NSF Yr 9'!G10, 'NSF Yr 10'!G10 ) -> 0
A11: B. Other Personnel
A12: 1. | B12: =SUM('NSF Yr 1'!B12,'NSF Yr 2'!B12, 'NSF Yr 3'!B12, 'NSF Yr 4'!B12, 'NSF Yr 5'!B12, 'NSF Yr 6'!B12, 'NSF Yr 7'!B12, 'NSF Yr 8'!B12, 'NSF Yr 9'!B12, 'NSF Yr 10'!B12 ) -> 0 | C12: Post Doctoral Associates | D12: =SUM('NSF Yr 1'!D12,'NSF Yr 2'!D12, 'NSF Yr 3'!D12, 'NSF Yr 4'!D12, 'NSF Yr 5'!D12, 'NSF Yr 6'!D12, 'NSF Yr 7'!D12, 'NSF Yr 8'!D12, 'NSF Yr 9'!D12, 'NSF Yr 10'!D12 ) -> 0 | E12: =SUM('NSF Yr 1'!E12,'NSF Yr 2'!E12, 'NSF Yr 3'!E12, 'NSF Yr 4'!E12, 'NSF Yr 5'!E12, 'NSF Yr 6'!E12, 'NSF Yr 7'!E12, 'NSF Yr 8'!E12, 'NSF Yr 9'!E12, 'NSF Yr 10'!E12 ) -> 0 | F12: =SUM('NSF Yr 1'!F12,'NSF Yr 2'!F12, 'NSF Yr 3'!F12, 'NSF Yr 4'!F12, 'NSF Yr 5'!F12, 'NSF Yr 6'!F12, 'NSF Yr 7'!F12, 'NSF Yr 8'!F12, 'NSF Yr 9'!F12, 'NSF Yr 10'!F12 ) -> 0 | G12: =SUM('NSF Yr 1'!G12,'NSF Yr 2'!G12, 'NSF Yr 3'!G12, 'NSF Yr 4'!G12, 'NSF Yr 5'!G12, 'NSF Yr 6'!G12, 'NSF Yr 7'!G12, 'NSF Yr 8'!G12, 'NSF Yr 9'!G12, 'NSF Yr 10'!G12 ) -> 0
A13: 2. | B13: =SUM('NSF Yr 1'!B13,'NSF Yr 2'!B13, 'NSF Yr 3'!B13, 'NSF Yr 4'!B13, 'NSF Yr 5'!B13, 'NSF Yr 6'!B13, 'NSF Yr 7'!B13, 'NSF Yr 8'!B13, 'NSF Yr 9'!B13, 'NSF Yr 10'!B13 ) -> 0 | C13: Other Professional (Technician, Programmer, etc) | D13: =SUM('NSF Yr 1'!D13,'NSF Yr 2'!D13, 'NSF Yr 3'!D13, 'NSF Yr 4'!D13, 'NSF Yr 5'!D13, 'NSF Yr 6'!D13, 'NSF Yr 7'!D13, 'NSF Yr 8'!D13, 'NSF Yr 9'!D13, 'NSF Yr 10'!D13 ) -> 0 | E13: =SUM('NSF Yr 1'!E13,'NSF Yr 2'!E13, 'NSF Yr 3'!E13, 'NSF Yr 4'!E13, 'NSF Yr 5'!E13, 'NSF Yr 6'!E13, 'NSF Yr 7'!E13, 'NSF Yr 8'!E13, 'NSF Yr 9'!E13, 'NSF Yr 10'!E13 ) -> 0 | F13: =SUM('NSF Yr 1'!F13,'NSF Yr 2'!F13, 'NSF Yr 3'!F13, 'NSF Yr 4'!F13, 'NSF Yr 5'!F13, 'NSF Yr 6'!F13, 'NSF Yr 7'!F13, 'NSF Yr 8'!F13, 'NSF Yr 9'!F13, 'NSF Yr 10'!F13 ) -> 0 | G13: =SUM('NSF Yr 1'!G13,'NSF Yr 2'!G13, 'NSF Yr 3'!G13, 'NSF Yr 4'!G13, 'NSF Yr 5'!G13, 'NSF Yr 6'!G13, 'NSF Yr 7'!G13, 'NSF Yr 8'!G13, 'NSF Yr 9'!G13, 'NSF Yr 10'!G13 ) -> 0
A14: 3. | C14: Graduate Students | G14: =SUM('NSF Yr 1'!G14,'NSF Yr 2'!G14, 'NSF Yr 3'!G14, 'NSF Yr 4'!G14, 'NSF Yr 5'!G14, 'NSF Yr 6'!G14, 'NSF Yr 7'!G14, 'NSF Yr 8'!G14, 'NSF Yr 9'!G14, 'NSF Yr 10'!G14 ) -> 0
A15: 4. | C15: Undergraduate Students | G15: =SUM('NSF Yr 1'!G15,'NSF Yr 2'!G15, 'NSF Yr 3'!G15, 'NSF Yr 4'!G15, 'NSF Yr 5'!G15, 'NSF Yr 6'!G15, 'NSF Yr 7'!G15, 'NSF Yr 8'!G15, 'NSF Yr 9'!G15, 'NSF Yr 10'!G15 ) -> 0
A16: 5. | B16: =SUM('NSF Yr 1'!B16,'NSF Yr 2'!B16, 'NSF Yr 3'!B16, 'NSF Yr 4'!B16, 'NSF Yr 5'!B16, 'NSF Yr 6'!B16, 'NSF Yr 7'!B16, 'NSF Yr 8'!B16, 'NSF Yr 9'!B16, 'NSF Yr 10'!B16 ) -> 0 | C16: Secretarial-Clerical (if charged directly) | G16: =SUM('NSF Yr 1'!G16,'NSF Yr 2'!G16, 'NSF Yr 3'!G16, 'NSF Yr 4'!G16, 'NSF Yr 5'!G16, 'NSF Yr 6'!G16, 'NSF Yr 7'!G16, 'NSF Yr 8'!G16, 'NSF Yr 9'!G16, 'NSF Yr 10'!G16 ) -> 0
A17: 6. | B17: =SUM('NSF Yr 1'!B17,'NSF Yr 2'!B17, 'NSF Yr 3'!B17, 'NSF Yr 4'!B17, 'NSF Yr 5'!B17, 'NSF Yr 6'!B17, 'NSF Yr 7'!B17, 'NSF Yr 8'!B17, 'NSF Yr 9'!B17, 'NSF Yr 10'!B17 ) -> 0 | C17: Other | G17: =SUM('NSF Yr 1'!G17,'NSF Yr 2'!G17, 'NSF Yr 3'!G17, 'NSF Yr 4'!G17, 'NSF Yr 5'!G17, 'NSF Yr 6'!G17, 'NSF Yr 7'!G17, 'NSF Yr 8'!G17, 'NSF Yr 9'!G17, 'NSF Yr 10'!G17 ) -> 0
A18: Total Salaries and Wages (A+B) | G18: =Budget!Z26 -> 0
A19: C. Fringe Benefits (If charged as direct costs) | G19: =Budget!Z33 -> 0
A20: Total Salaries, Wages and Fringe Benefits (A+B+C) | G20: =Budget!Z34 -> 0
A21: D. Equipment (list item and dollar amount for each item exceeding $5,000)
A22: =IF(ISBLANK(Budget!F47),"",Budget!A47) ->  | D22: =SUM('NSF Yr 1'!D22,'NSF Yr 2'!D22, 'NSF Yr 3'!D22, 'NSF Yr 4'!D22, 'NSF Yr 5'!D22, 'NSF Yr 6'!D22, 'NSF Yr 7'!D22, 'NSF Yr 8'!D22, 'NSF Yr 9'!D22, 'NSF Yr 10'!D22 ) -> 0
A23: =IF(ISBLANK(Budget!F48),"",Budget!A48) ->  | D23: =SUM('NSF Yr 1'!D23,'NSF Yr 2'!D23, 'NSF Yr 3'!D23, 'NSF Yr 4'!D23, 'NSF Yr 5'!D23, 'NSF Yr 6'!D23, 'NSF Yr 7'!D23, 'NSF Yr 8'!D23, 'NSF Yr 9'!D23, 'NSF Yr 10'!D23 ) -> 0
A24: =IF(ISBLANK(Budget!F49),"",Budget!A49) ->  | D24: =SUM('NSF Yr 1'!D24,'NSF Yr 2'!D24, 'NSF Yr 3'!D24, 'NSF Yr 4'!D24, 'NSF Yr 5'!D24, 'NSF Yr 6'!D24, 'NSF Yr 7'!D24, 'NSF Yr 8'!D24, 'NSF Yr 9'!D24, 'NSF Yr 10'!D24 ) -> 0
A25: =IF(ISBLANK(Budget!F50),"",Budget!A50) ->  | D25: =SUM('NSF Yr 1'!D25,'NSF Yr 2'!D25, 'NSF Yr 3'!D25, 'NSF Yr 4'!D25, 'NSF Yr 5'!D25, 'NSF Yr 6'!D25, 'NSF Yr 7'!D25, 'NSF Yr 8'!D25, 'NSF Yr 9'!D25, 'NSF Yr 10'!D25 ) -> 0
A26: =IF(ISBLANK(Budget!F51),"",Budget!A51) ->  | D26: =SUM('NSF Yr 1'!D26,'NSF Yr 2'!D26, 'NSF Yr 3'!D26, 'NSF Yr 4'!D26, 'NSF Yr 5'!D26, 'NSF Yr 6'!D26, 'NSF Yr 7'!D26, 'NSF Yr 8'!D26, 'NSF Yr 9'!D26, 'NSF Yr 10'!D26 ) -> 0
A27: Total Equipment | G27: =Budget!Z52 -> 0
A28: E. Travel
A29: 1. Domestic (Including U.S. Possessions) | G29: =Budget!Z39 -> 0
A30: 2. Foreign | G30: =Budget!Z44 -> 0
A31: F. Participant Support
A32: 1. Stipends | C32: =SUM('NSF Yr 1'!C32,'NSF Yr 2'!C32, 'NSF Yr 3'!C32, 'NSF Yr 4'!C32, 'NSF Yr 5'!C32, 'NSF Yr 6'!C32, 'NSF Yr 7'!C32, 'NSF Yr 8'!C32, 'NSF Yr 9'!C32, 'NSF Yr 10'!C32 ) -> 0
A33: 2. Travel | C33: =SUM('NSF Yr 1'!C33,'NSF Yr 2'!C33, 'NSF Yr 3'!C33, 'NSF Yr 4'!C33, 'NSF Yr 5'!C33, 'NSF Yr 6'!C33, 'NSF Yr 7'!C33, 'NSF Yr 8'!C33, 'NSF Yr 9'!C33, 'NSF Yr 10'!C33 ) -> 0
A34: 3. Subsistence | C34: =SUM('NSF Yr 1'!C34,'NSF Yr 2'!C34, 'NSF Yr 3'!C34, 'NSF Yr 4'!C34, 'NSF Yr 5'!C34, 'NSF Yr 6'!C34, 'NSF Yr 7'!C34, 'NSF Yr 8'!C34, 'NSF Yr 9'!C34, 'NSF Yr 10'!C34 ) -> 0
A35: 4. Other | C35: =SUM('NSF Yr 1'!C35,'NSF Yr 2'!C35, 'NSF Yr 3'!C35, 'NSF Yr 4'!C35, 'NSF Yr 5'!C35, 'NSF Yr 6'!C35, 'NSF Yr 7'!C35, 'NSF Yr 8'!C35, 'NSF Yr 9'!C35, 'NSF Yr 10'!C35 ) -> 0
C36: Total Participant Support | G36: =Budget!Z57 -> 0
A37: G. Other Direct Costs
A38: 1. Materials and Supplies | G38: =SUM('NSF Yr 1'!G38,'NSF Yr 2'!G38, 'NSF Yr 3'!G38, 'NSF Yr 4'!G38, 'NSF Yr 5'!G38, 'NSF Yr 6'!G38, 'NSF Yr 7'!G38, 'NSF Yr 8'!G38, 'NSF Yr 9'!G38, 'NSF Yr 10'!G38 ) -> 0
A39: 2. Publication Costs/Documentation/Dissemination | G39: =SUM('NSF Yr 1'!G39,'NSF Yr 2'!G39, 'NSF Yr 3'!G39, 'NSF Yr 4'!G39, 'NSF Yr 5'!G39, 'NSF Yr 6'!G39, 'NSF Yr 7'!G39, 'NSF Yr 8'!G39, 'NSF Yr 9'!G39, 'NSF Yr 10'!G39 ) -> 0
A40: 3. Consultant Services | G40: =SUM('NSF Yr 1'!G40,'NSF Yr 2'!G40, 'NSF Yr 3'!G40, 'NSF Yr 4'!G40, 'NSF Yr 5'!G40, 'NSF Yr 6'!G40, 'NSF Yr 7'!G40, 'NSF Yr 8'!G40, 'NSF Yr 9'!G40, 'NSF Yr 10'!G40 ) -> 0
A41: 4. Computer Services | G41: =SUM('NSF Yr 1'!G41,'NSF Yr 2'!G41, 'NSF Yr 3'!G41, 'NSF Yr 4'!G41, 'NSF Yr 5'!G41, 'NSF Yr 6'!G41, 'NSF Yr 7'!G41, 'NSF Yr 8'!G41, 'NSF Yr 9'!G41, 'NSF Yr 10'!G41 ) -> 0
A42: 5. Subawards | G42: =SUM('NSF Yr 1'!G42,'NSF Yr 2'!G42, 'NSF Yr 3'!G42, 'NSF Yr 4'!G42, 'NSF Yr 5'!G42, 'NSF Yr 6'!G42, 'NSF Yr 7'!G42, 'NSF Yr 8'!G42, 'NSF Yr 9'!G42, 'NSF Yr 10'!G42 ) -> 0
A43: 6. Other | G43: =SUM('NSF Yr 1'!G43,'NSF Yr 2'!G43, 'NSF Yr 3'!G43, 'NSF Yr 4'!G43, 'NSF Yr 5'!G43, 'NSF Yr 6'!G43, 'NSF Yr 7'!G43, 'NSF Yr 8'!G43, 'NSF Yr 9'!G43, 'NSF Yr 10'!G43 ) -> 0
A44: Total Other Direct Costs (G1 through G6) | G44: =SUM(G38:G43) -> 0
A45: H. Total Direct Costs (A through G) | G45: =Budget!Z99 -> 0
A46: I. Indirect Costs (F&A) (Specify Rate and Base)
G47: =Budget!Z109 -> 0
A48: J. Total Direct and Indirect Costs (H+I) | G48: =G45+G47 -> 0
A49: K. Small Business Fee
A50: L. Amount of this request (J or J-K) | G50: =Budget!Z111 -> 0

Sheet Grants.gov Detailed Yr 1 (hidden)
A1: Research & Related Budget Year 1
A3: A. Senior/Key Persons
A4: Name | B4: Base Salary* | C4: Cal. Salary | D4: Acad. Salary | E4: Sum. Salary | F4: Cal. Mons | G4: Acad. Mons | H4: Sum. Mons | I4: Requested Salary | J4: Fringe Benefits | K4: Funds Req.
A5: =IF(B5>0,(INDEX('Salary & Fringe'!$A$1:$A$300,MATCH("Senior Person 1",'Salary & Fringe'!$E$1:$E$300,FALSE),1)),"") ->  | B5: =IFERROR(IF(F5>0, C5, D5+E5),0) -> 0 | C5: =IFERROR(IF(F5>0, (I5/SUM(F5:H5)*12),0),0) -> 0 | D5: =IFERROR(IF($C5=0, (I5/SUM(F5:H5)*9),0),0) -> 0 | E5: =IFERROR(IF($C5=0, (I5/SUM(F5:H5)*3),0),0) -> 0 | F5: =SUMIFS('Salary & Fringe'!$M$1:'Salary & Fringe'!$M$300,'Salary & Fringe'!$E$1:'Salary & Fringe'!$E$300,"Senior Person 1",'Salary & Fringe'!$F$1:'Salary & Fringe'!$F$300,"Calendar*") -> 0 | G5: =SUMIFS('Salary & Fringe'!$M$1:'Salary & Fringe'!$M$300,'Salary & Fringe'!$E$1:'Salary & Fringe'!$E$300,"Senior Person 1",'Salary & Fringe'!$F$1:'Salary & Fringe'!$F$300,"Academic") -> 0 | H5: =SUMIFS('Salary & Fringe'!$M$1:'Salary & Fringe'!$M$300,'Salary & Fringe'!$E$1:'Salary & Fringe'!$E$300,"Senior Person 1",'Salary & Fringe'!$F$1:'Salary & Fringe'!$F$300,"Summer") -> 0 | I5: =SUMIF('Salary & Fringe'!$E$1:$E$300,"Senior Person 1",'Salary & Fringe'!$W$1:$W$300) -> 0 | J5: =SUMIF('Salary & Fringe'!$E$1:$E$300,"Senior Person 1",'Salary & Fringe'!$AG$1:$AG$300) -> 0 | K5: =I5+J5 -> 0
A6: =IF(B6>0,(INDEX('Salary & Fringe'!$A$1:$A$300,MATCH("Senior Person 2",'Salary & Fringe'!$E$1:$E$300,FALSE),1)),"") ->  | B6: =IFERROR(IF(F6>0, C6, D6+E6),0) -> 0 | C6: =IFERROR(IF(F6>0, (I6/SUM(F6:H6)*12),0),0) -> 0 | D6: =IFERROR(IF($C6=0, (I6/SUM(F6:H6)*9),0),0) -> 0 | E6: =IFERROR(IF($C6=0, (I6/SUM(F6:H6)*3),0),0) -> 0 | F6: =SUMIFS('Salary & Fringe'!$M$1:'Salary & Fringe'!$M$300,'Salary & Fringe'!$E$1:'Salary & Fringe'!$E$300,"Senior Person 2",'Salary & Fringe'!$F$1:'Salary & Fringe'!$F$300,"Calendar*") -> 0 | G6: =SUMIFS('Salary & Fringe'!$M$1:'Salary & Fringe'!$M$300,'Salary & Fringe'!$E$1:'Salary & Fringe'!$E$300,"Senior Person 2",'Salary & Fringe'!$F$1:'Salary & Fringe'!$F$300,"Academic") -> 0 | H6: =SUMIFS('Salary & Fringe'!$M$1:'Salary & Fringe'!$M$300,'Salary & Fringe'!$E$1:'Salary & Fringe'!$E$300,"Senior Person 2",'Salary & Fringe'!$F$1:'Salary & Fringe'!$F$300,"Summer") -> 0 | I6: =SUMIF('Salary & Fringe'!$E$1:$E$300,"Senior Person 2",'Salary & Fringe'!$W$1:$W$300) -> 0 | J6: =SUMIF('Salary & Fringe'!$E$1:$E$300,"Senior Person 2",'Salary & Fringe'!$AG$1:$AG$300) -> 0 | K6: =I6+J6 -> 0
A7: =IF(B7>0,(INDEX('Salary & Fringe'!$A$1:$A$300,MATCH("Senior Person 3",'Salary & Fringe'!$E$1:$E$300,FALSE),1)),"") ->  | B7: 0 | C7: 0 | D7: 0 | E7: 0 | F7: =SUMIFS('Salary & Fringe'!$M$1:'Salary & Fringe'!$M$300,'Salary & Fringe'!$E$1:'Salary & Fringe'!$E$300,"Senior Person 3",'Salary & Fringe'!$F$1:'Salary & Fringe'!$F$300,"Calendar*") -> 0 | G7: =SUMIFS('Salary & Fringe'!$M$1:'Salary & Fringe'!$M$300,'Salary & Fringe'!$E$1:'Salary & Fringe'!$E$300,"Senior Person 3",'Salary & Fringe'!$F$1:'Salary & Fringe'!$F$300,"Academic") -> 0 | H7: =SUMIFS('Salary & Fringe'!$M$1:'Salary & Fringe'!$M$300,'Salary & Fringe'!$E$1:'Salary & Fringe'!$E$300,"Senior Person 3",'Salary & Fringe'!$F$1:'Salary & Fringe'!$F$300,"Summer") -> 0 | I7: =SUMIF('Salary & Fringe'!$E$1:$E$300,"Senior Person 3",'Salary & Fringe'!$W$1:$W$300) -> 0 | J7: =SUMIF('Salary & Fringe'!$E$1:$E$300,"Senior Person 3",'Salary & Fringe'!$AG$1:$AG$300) -> 0 | K7: 0
A8: =IF(B8>0,(INDEX('Salary & Fringe'!$A$1:$A$300,MATCH("Senior Person 4",'Salary & Fringe'!$E$1:$E$300,FALSE),1)),"") ->  | B8: 0 | C8: 0 | D8: 0 | E8: 0 | F8: =SUMIFS('Salary & Fringe'!$M$1:'Salary & Fringe'!$M$300,'Salary & Fringe'!$E$1:'Salary & Fringe'!$E$300,"Senior Person 4",'Salary & Fringe'!$F$1:'Salary & Fringe'!$F$300,"Calendar*") -> 0 | G8: =SUMIFS('Salary & Fringe'!$M$1:'Salary & Fringe'!$M$300,'Salary & Fringe'!$E$1:'Salary & Fringe'!$E$300,"Senior Person 4",'Salary & Fringe'!$F$1:'Salary & Fringe'!$F$300,"Academic") -> 0 | H8: =SUMIFS('Salary & Fringe'!$M$1:'Salary & Fringe'!$M$300,'Salary & Fringe'!$E$1:'Salary & Fringe'!$E$300,"Senior Person 4",'Salary & Fringe'!$F$1:'Salary & Fringe'!$F$300,"Summer") -> 0 | I8: =SUMIF('Salary & Fringe'!$E$1:$E$300,"Senior Person 4",'Salary & Fringe'!$W$1:$W$300) -> 0 | J8: =SUMIF('Salary & Fringe'!$E$1:$E$300,"Senior Person 4",'Salary & Fringe'!$AG$1:$AG$300) -> 0 | K8: 0
A9: =IF(B9>0,(INDEX('Salary & Fringe'!$A$1:$A$300,MATCH("Senior Person 5",'Salary & Fringe'!$E$1:$E$300,FALSE),1)),"") ->  | B9: 0 | C9: 0 | D9: 0 | E9: 0 | F9: =SUMIFS('Salary & Fringe'!$M$1:'Salary & Fringe'!$M$300,'Salary & Fringe'!$E$1:'Salary & Fringe'!$E$300,"Senior Person 5",'Salary & Fringe'!$F$1:'Salary & Fringe'!$F$300,"Calendar*") -> 0 | G9: =SUMIFS('Salary & Fringe'!$M$1:'Salary & Fringe'!$M$300,'Salary & Fringe'!$E$1:'Salary & Fringe'!$E$300,"Senior Person 5",'Salary & Fringe'!$F$1:'Salary & Fringe'!$F$300,"Academic") -> 0 | H9: =SUMIFS('Salary & Fringe'!$M$1:'Salary & Fringe'!$M$300,'Salary & Fringe'!$E$1:'Salary & Fringe'!$E$300,"Senior Person 5",'Salary & Fringe'!$F$1:'Salary & Fringe'!$F$300,"Summer") -> 0 | I9: =SUMIF('Salary & Fringe'!$E$1:$E$300,"Senior Person 5",'Salary & Fringe'!$W$1:$W$300) -> 0 | J9: =SUMIF('Salary & Fringe'!$E$1:$E$300,"Senior Person 5",'Salary & Fringe'!$AG$1:$AG$300) -> 0 | K9: 0
F10: Total Other Senior/Key Person** | I10: =SUMIF('Salary & Fringe'!$E$1:$E$300,"Senior (Other)",'Salary & Fringe'!$W$1:$W$300) -> 0 | J10: =SUMIF('Salary & Fringe'!$E$1:$E$300,"Senior (Other)",'Salary & Fringe'!$AG$1:$AG$300) -> 0 | K10: 0
I11: Total Senior/Key Person | K11: =SUM(K5:K10) -> 0
A12: B. Other Personnel
A13: Number of Personnel | B13: Project Role | D13: Cal. Months | E13: Acad. Months | F13: Sum. Months | G13: Requested Salary | I13: Fringe Benefits | K13: Funds Requested
A14: =SUMIFS('Salary & Fringe'!$I$1:$I$300,'Salary & Fringe'!$E$1:$E$300,"Postdoc", 'Salary & Fringe'!$M$1:'Salary & Fringe'!$M$300, ">0") -> 0 | B14: Post Doctoral Associates | D14: =SUMIFS('Salary & Fringe'!$M$1:'Salary & Fringe'!$M$300,'Salary & Fringe'!$E$1:'Salary & Fringe'!$E$300,"Postdoc",'Salary & Fringe'!$F$1:'Salary & Fringe'!$F$300,"Calendar*")+SUMIFS('Salary & Fringe'!$M$1:'Salary & Fringe'!$M$300,'Salary & Fringe'!$E$1:'Salary & Fringe'!$E$300,"Postdoc",'Salary & Fringe'!$F$1:'Salary & Fringe'!$F$300,"Hourly") -> 0 | E14: =SUMIFS('Salary & Fringe'!$M$1:'Salary & Fringe'!$M$300,'Salary & Fringe'!$E$1:'Salary & Fringe'!$E$300,"Postdoc",'Salary & Fringe'!$F$1:'Salary & Fringe'!$F$300,"Academic") -> 0 | F14: =SUMIFS('Salary & Fringe'!$M$1:'Salary & Fringe'!$M$300,'Salary & Fringe'!$E$1:'Salary & Fringe'!$E$300,"Postdoc",'Salary & Fringe'!$F$1:'Salary & Fringe'!$F$300,"Summer") -> 0 | G14: =SUMIF('Salary & Fringe'!$E$1:$E$300,"Postdoc",'Salary & Fringe'!$W$1:$W$300) -> 0 | I14: =SUMIF('Salary & Fringe'!$E$1:$E$300,"Postdoc",'Salary & Fringe'!$AG$1:$AG$300) -> 0 | K14: =G14+I14 -> 0
B15: Graduate Students | D15: =SUMIFS('Salary & Fringe'!$M$1:'Salary & Fringe'!$M$300,'Salary & Fringe'!$E$1:'Salary & Fringe'!$E$300,"Grad",'Salary & Fringe'!$F$1:'Salary & Fringe'!$F$300,"Calendar*")+SUMIFS('Salary & Fringe'!$M$1:'Salary & Fringe'!$M$300,'Salary & Fringe'!$E$1:'Salary & Fringe'!$E$300,"Grad",'Salary & Fringe'!$F$1:'Salary & Fringe'!$F$300,"Hourly") -> 0 | E15: =SUMIFS('Salary & Fringe'!$M$1:'Salary & Fringe'!$M$300,'Salary & Fringe'!$E$1:'Salary & Fringe'!$E$300,"Grad",'Salary & Fringe'!$F$1:'Salary & Fringe'!$F$300,"Academic")*2 -> 0 | F15: =SUMIFS('Salary & Fringe'!$M$1:'Salary & Fringe'!$M$300,'Salary & Fringe'!$E$1:'Salary & Fringe'!$E$300,"Grad",'Salary & Fringe'!$F$1:'Salary & Fringe'!$F$300,"Summer")*2 -> 0 | G15: =SUMIF('Salary & Fringe'!$E$1:$E$300,"Grad",'Salary & Fringe'!$W$1:$W$300) -> 0 | I15: =SUMIF('Salary & Fringe'!$E$1:$E$300,"Grad",'Salary & Fringe'!$AG$1:$AG$300) -> 0 | K15: =G15+I15 -> 0
B16: Undergraduate Students*** | D16: =SUMIF('Salary & Fringe'!$E$1:$E$300,"Undergrad",'Salary & Fringe'!$M$1:$M$300) -> 0 | E16: 0 | F16: 0 | G16: =SUMIF('Salary & Fringe'!$E$1:$E$300,"Undergrad",'Salary & Fringe'!$W$1:$W$300) -> 0 | I16: =SUMIF('Salary & Fringe'!$E$1:$E$300,"Undergrad",'Salary & Fringe'!$AG$1:$AG$300) -> 0 | K16: 0
A17: =SUMIFS('Salary & Fringe'!$I$1:$I$300,'Salary & Fringe'!$E$1:$E$300,"Clerical", 'Salary & Fringe'!$M$1:'Salary & Fringe'!$M$300, ">0") -> 0 | B17: Secretarial/Clerical | D17: =SUMIFS('Salary & Fringe'!$M$1:'Salary & Fringe'!$M$300,'Salary & Fringe'!$E$1:'Salary & Fringe'!$E$300,"Clerical",'Salary & Fringe'!$F$1:'Salary & Fringe'!$F$300,"Calendar*")+SUMIFS('Salary & Fringe'!$M$1:'Salary & Fringe'!$M$300,'Salary & Fringe'!$E$1:'Salary & Fringe'!$E$300,"Clerical",'Salary & Fringe'!$F$1:'Salary & Fringe'!$F$300,"Hourly") -> 0 | E17: =SUMIFS('Salary & Fringe'!$M$1:'Salary & Fringe'!$M$300,'Salary & Fringe'!$E$1:'Salary & Fringe'!$E$300,"Clerical",'Salary & Fringe'!$F$1:'Salary & Fringe'!$F$300,"Academic") -> 0 | F17: =SUMIFS('Salary & Fringe'!$M$1:'Salary & Fringe'!$M$300,'Salary & Fringe'!$E$1:'Salary & Fringe'!$E$300,"Clerical",'Salary & Fringe'!$F$1:'Salary & Fringe'!$F$300,"Summer") -> 0 | G17: =SUMIF('Salary & Fringe'!$E$1:$E$300,"Clerical",'Salary & Fringe'!$W$1:$W$300) -> 0 | I17: =SUMIF('Salary & Fringe'!$E$1:$E$300,"Clerical",'Salary & Fringe'!$AG$1:$AG$300) -> 0 | K17: 0
A18: =SUMIFS('Salary & Fringe'!$I$1:$I$300,'Salary & Fringe'!$E$1:$E$300,"Other 1", 'Salary & Fringe'!$M$1:'Salary & Fringe'!$M$300, ">0") -> 0 | B18: =IF(G18>0,(INDEX('Salary & Fringe'!$B$1:$B$300,MATCH("Other 1",'Salary & Fringe'!$E$1:$E$300,FALSE),1)),"") ->  | D18: =SUMIFS('Salary & Fringe'!$M$1:'Salary & Fringe'!$M$300,'Salary & Fringe'!$E$1:'Salary & Fringe'!$E$300,"Other 1",'Salary & Fringe'!$F$1:'Salary & Fringe'!$F$300,"Calendar*")+SUMIFS('Salary & Fringe'!$M$1:'Salary & Fringe'!$M$300,'Salary & Fringe'!$E$1:'Salary & Fringe'!$E$300,"Other 1",'Salary & Fringe'!$F$1:'Salary & Fringe'!$F$300,"Hourly") -> 0 | E18: =SUMIFS('Salary & Fringe'!$M$1:'Salary & Fringe'!$M$300,'Salary & Fringe'!$E$1:'Salary & Fringe'!$E$300,"Other 1",'Salary & Fringe'!$F$1:'Salary & Fringe'!$F$300,"Academic") -> 0 | F18: =SUMIFS('Salary & Fringe'!$M$1:'Salary & Fringe'!$M$300,'Salary & Fringe'!$E$1:'Salary & Fringe'!$E$300,"Other 1",'Salary & Fringe'!$F$1:'Salary & Fringe'!$F$300,"Summer") -> 0 | G18: =SUMIF('Salary & Fringe'!$E$1:$E$300,"Other 1",'Salary & Fringe'!$W$1:$W$300) -> 0 | I18: =SUMIF('Salary & Fringe'!$E$1:$E$300,"Other 1",'Salary & Fringe'!$AG$1:$AG$300) -> 0 | K18: 0
A19: =SUMIFS('Salary & Fringe'!$I$1:$I$300,'Salary & Fringe'!$E$1:$E$300,"Other 2", 'Salary & Fringe'!$M$1:'Salary & Fringe'!$M$300, ">0") -> 0 | B19: =IF(G19>0,(INDEX('Salary & Fringe'!$B$1:$B$300,MATCH("Other 2",'Salary & Fringe'!$E$1:$E$300,FALSE),1)),"") ->  | D19: =SUMIFS('Salary & Fringe'!$M$1:'Salary & Fringe'!$M$300,'Salary & Fringe'!$E$1:'Salary & Fringe'!$E$300,"Other 2",'Salary & Fringe'!$F$1:'Salary & Fringe'!$F$300,"Calendar*")+SUMIFS('Salary & Fringe'!$M$1:'Salary & Fringe'!$M$300,'Salary & Fringe'!$E$1:'Salary & Fringe'!$E$300,"Other 2",'Salary & Fringe'!$F$1:'Salary & Fringe'!$F$300,"Hourly") -> 0 | E19: =SUMIFS('Salary & Fringe'!$M$1:'Salary & Fringe'!$M$300,'Salary & Fringe'!$E$1:'Salary & Fringe'!$E$300,"Other 2",'Salary & Fringe'!$F$1:'Salary & Fringe'!$F$300,"Academic") -> 0 | F19: =SUMIFS('Salary & Fringe'!$M$1:'Salary & Fringe'!$M$300,'Salary & Fringe'!$E$1:'Salary & Fringe'!$E$300,"Other 2",'Salary & Fringe'!$F$1:'Salary & Fringe'!$F$300,"Summer") -> 0 | G19: =SUMIF('Salary & Fringe'!$E$1:$E$300,"Other 2",'Salary & Fringe'!$W$1:$W$300) -> 0 | I19: =SUMIF('Salary & Fringe'!$E$1:$E$300,"Other 2",'Salary & Fringe'!$AG$1:$AG$300) -> 0 | K19: 0
A20: =SUMIFS('Salary & Fringe'!$I$1:$I$300,'Salary & Fringe'!$E$1:$E$300,"Other 3", 'Salary & Fringe'!$M$1:'Salary & Fringe'!$M$300, ">0") -> 0 | B20: =IF(G20>0,(INDEX('Salary & Fringe'!$B$1:$B$300,MATCH("Other 3",'Salary & Fringe'!$E$1:$E$300,FALSE),1)),"") ->  | D20: =SUMIFS('Salary & Fringe'!$M$1:'Salary & Fringe'!$M$300,'Salary & Fringe'!$E$1:'Salary & Fringe'!$E$300,"Other 3",'Salary & Fringe'!$F$1:'Salary & Fringe'!$F$300,"Calendar*")+SUMIFS('Salary & Fringe'!$M$1:'Salary & Fringe'!$M$300,'Salary & Fringe'!$E$1:'Salary & Fringe'!$E$300,"Other 3",'Salary & Fringe'!$F$1:'Salary & Fringe'!$F$300,"Hourly") -> 0 | E20: =SUMIFS('Salary & Fringe'!$M$1:'Salary & Fringe'!$M$300,'Salary & Fringe'!$E$1:'Salary & Fringe'!$E$300,"Other 3",'Salary & Fringe'!$F$1:'Salary & Fringe'!$F$300,"Academic") -> 0 | F20: =SUMIFS('Salary & Fringe'!$M$1:'Salary & Fringe'!$M$300,'Salary & Fringe'!$E$1:'Salary & Fringe'!$E$300,"Other 3",'Salary & Fringe'!$F$1:'Salary & Fringe'!$F$300,"Summer") -> 0 | G20: =SUMIF('Salary & Fringe'!$E$1:$E$300,"Other 3",'Salary & Fringe'!$W$1:$W$300) -> 0 | I20: =SUMIF('Salary & Fringe'!$E$1:$E$300,"Other 3",'Salary & Fringe'!$AG$1:$AG$300) -> 0 | K20: 0
A21: =SUMIFS('Salary & Fringe'!$I$1:$I$300,'Salary & Fringe'!$E$1:$E$300,"Other 4", 'Salary & Fringe'!$M$1:'Salary & Fringe'!$M$300, ">0") -> 0 | B21: =IF(G21>0,(INDEX('Salary & Fringe'!$B$1:$B$300,MATCH("Other 4",'Salary & Fringe'!$E$1:$E$300,FALSE),1)),"") ->  | D21: =SUMIFS('Salary & Fringe'!$M$1:'Salary & Fringe'!$M$300,'Salary & Fringe'!$E$1:'Salary & Fringe'!$E$300,"Other 4",'Salary & Fringe'!$F$1:'Salary & Fringe'!$F$300,"Calendar*")+SUMIFS('Salary & Fringe'!$M$1:'Salary & Fringe'!$M$300,'Salary & Fringe'!$E$1:'Salary & Fringe'!$E$300,"Other 4",'Salary & Fringe'!$F$1:'Salary & Fringe'!$F$300,"Hourly") -> 0 | E21: =SUMIFS('Salary & Fringe'!$M$1:'Salary & Fringe'!$M$300,'Salary & Fringe'!$E$1:'Salary & Fringe'!$E$300,"Other 4",'Salary & Fringe'!$F$1:'Salary & Fringe'!$F$300,"Academic") -> 0 | F21: =SUMIFS('Salary & Fringe'!$M$1:'Salary & Fringe'!$M$300,'Salary & Fringe'!$E$1:'Salary & Fringe'!$E$300,"Other 4",'Salary & Fringe'!$F$1:'Salary & Fringe'!$F$300,"Summer") -> 0 | G21: =SUMIF('Salary & Fringe'!$E$1:$E$300,"Other 4",'Salary & Fringe'!$W$1:$W$300) -> 0 | I21: =SUMIF('Salary & Fringe'!$E$1:$E$300,"Other 4",'Salary & Fringe'!$AG$1:$AG$300) -> 0 | K21: 0
A22: =SUMIFS('Salary & Fringe'!$I$1:$I$300,'Salary & Fringe'!$E$1:$E$300,"Other 5", 'Salary & Fringe'!$M$1:'Salary & Fringe'!$M$300, ">0") -> 0 | B22: =IF(G22>0,(INDEX('Salary & Fringe'!$B$1:$B$300,MATCH("Other 5",'Salary & Fringe'!$E$1:$E$300,FALSE),1)),"") ->  | D22: =SUMIFS('Salary & Fringe'!$M$1:'Salary & Fringe'!$M$300,'Salary & Fringe'!$E$1:'Salary & Fringe'!$E$300,"Other 5",'Salary & Fringe'!$F$1:'Salary & Fringe'!$F$300,"Calendar*")+SUMIFS('Salary & Fringe'!$M$1:'Salary & Fringe'!$M$300,'Salary & Fringe'!$E$1:'Salary & Fringe'!$E$300,"Other 5",'Salary & Fringe'!$F$1:'Salary & Fringe'!$F$300,"Hourly") -> 0 | E22: =SUMIFS('Salary & Fringe'!$M$1:'Salary & Fringe'!$M$300,'Salary & Fringe'!$E$1:'Salary & Fringe'!$E$300,"Other 5",'Salary & Fringe'!$F$1:'Salary & Fringe'!$F$300,"Academic") -> 0 | F22: =SUMIFS('Salary & Fringe'!$M$1:'Salary & Fringe'!$M$300,'Salary & Fringe'!$E$1:'Salary & Fringe'!$E$300,"Other 5",'Salary & Fringe'!$F$1:'Salary & Fringe'!$F$300,"Summer") -> 0 | G22: =SUMIF('Salary & Fringe'!$E$1:$E$300,"Other 5",'Salary & Fringe'!$W$1:$W$300) -> 0 | I22: =SUMIF('Salary & Fringe'!$E$1:$E$300,"Other 5",'Salary & Fringe'!$AG$1:$AG$300) -> 0 | K22: 0
A23: =SUMIFS('Salary & Fringe'!$I$1:$I$300,'Salary & Fringe'!$E$1:$E$300,"Other 6", 'Salary & Fringe'!$M$1:'Salary & Fringe'!$M$300, ">0") -> 0 | B23: =IF(G23>0,(INDEX('Salary & Fringe'!$B$1:$B$300,MATCH("Other 6",'Salary & Fringe'!$E$1:$E$300,FALSE),1)),"") ->  | D23: =SUMIFS('Salary & Fringe'!$M$1:'Salary & Fringe'!$M$300,'Salary & Fringe'!$E$1:'Salary & Fringe'!$E$300,"Other 6",'Salary & Fringe'!$F$1:'Salary & Fringe'!$F$300,"Calendar*")+SUMIFS('Salary & Fringe'!$M$1:'Salary & Fringe'!$M$300,'Salary & Fringe'!$E$1:'Salary & Fringe'!$E$300,"Other 6",'Salary & Fringe'!$F$1:'Salary & Fringe'!$F$300,"Hourly") -> 0 | E23: =SUMIFS('Salary & Fringe'!$M$1:'Salary & Fringe'!$M$300,'Salary & Fringe'!$E$1:'Salary & Fringe'!$E$300,"Other 6",'Salary & Fringe'!$F$1:'Salary & Fringe'!$F$300,"Academic") -> 0 | F23: =SUMIFS('Salary & Fringe'!$M$1:'Salary & Fringe'!$M$300,'Salary & Fringe'!$E$1:'Salary & Fringe'!$E$300,"Other 6",'Salary & Fringe'!$F$1:'Salary & Fringe'!$F$300,"Summer") -> 0 | G23: =SUMIF('Salary & Fringe'!$E$1:$E$300,"Other 6",'Salary & Fringe'!$W$1:$W$300) -> 0 | I23: =SUMIF('Salary & Fringe'!$E$1:$E$300,"Other 6",'Salary & Fringe'!$AG$1:$AG$300) -> 0 | K23: 0
A24: =SUM(A14:A23) -> 0 | B24: Total Number Other Personnel**** | H24: Total Other Personnel | K24: =SUM(K14:K23) -> 0
H25: Total Salary, Wages and Fringe Benefits (A+B) | K25: =K11+K24 -> 0
A26: C. Equipment Description
A27: Equipment Item | K27: Funds Requested
A28: =IF(ISBLANK(Budget!F47),"",Budget!A47) ->  | K28: =IF(Budget!F47>0,Budget!F47,0) -> 0
A29: =IF(ISBLANK(Budget!F48),"",Budget!A48) ->  | K29: =IF(Budget!F48>0,Budget!F48,0) -> 0
A30: =IF(ISBLANK(Budget!F49),"",Budget!A49) ->  | K30: =IF(Budget!F49>0,Budget!F49,0) -> 0
A31: =IF(ISBLANK(Budget!F50),"",Budget!A50) ->  | K31: =IF(Budget!F50>0,Budget!F50,0) -> 0
A32: =IF(ISBLANK(Budget!F51),"",Budget!A51) ->  | K32: =IF(Budget!F51>0,Budget!F51,0) -> 0
J33: Total Equipment | K33: =TotalEquipment1 -> 0
A35: D. Travel | K35: Funds Requested
A36: 1. Domestic Travel Costs (incl. Canada, Mexico and U.S. Possessions) | K36: =Budget!F39 -> 0
A37: 2. Foreign Travel Costs | K37: =Budget!F44 -> 0
J38: Total Travel Cost | K38: =SUM(K36:K37) -> 0
A40: E. Participant/Trainee Support Costs | K40: Funds Requested
A41: 1. Tuition/Fees/Health Insurance | K41: =SUMIF(Budget!$A$2:$A$504,"PS Tuition/Fees/Health Insurance",Budget!$F$2:$F$504) -> 0
A42: 2. Stipends | K42: =SUMIF(Budget!$A$2:$A$504,"PS Stipends",Budget!$F$2:$F$504) -> 0
A43: 3. Travel | K43: =SUMIF(Budget!$A$2:$A$504,"PS Travel",Budget!$F$2:$F$504) -> 0
A44: 4. Subsistence | K44: =SUMIF(Budget!$A$2:$A$504,"PS Subsistence",Budget!$F$2:$F$504) -> 0
A45: 5. Other | K45: =SUMIF(Budget!$A$2:$A$504,"PS Other",Budget!$F$2:$F$504) -> 0
A46: Number of Participants/Trainees | H46: Total Participant Support/Trainee Support Costs | K46: =SUM(K41:K45) -> 0
A48: F. Other Direct Costs | K48: Funds Requested
A49: 1. Materials and Supplies | K49: =SUMIF(Budget!$A$2:$A$504,"Materials & Supplies",Budget!$F$2:$F$504) -> 0
A50: 2. Publication Costs | K50: =SUMIF(Budget!$A$2:$A$504,"Publication Costs/Page Charges",Budget!$F$2:$F$504) -> 0
A51: 3. Consultant Services | K51: =SUMIF(Budget!$A$2:$A$504,"Consultant Services",Budget!$F$2:$F$504) -> 0
A52: 4. ADP/Computer Services | K52: =SUMIF(Budget!$A$2:$A$504,"Computer (ADPE) Services",Budget!$F$2:$F$504) -> 0
A53: 5. Subawards/Consortium/Contractual Costs | K53: =TotalSubs1+TotalMulti1+SUMIF(Budget!$A$2:$A$504,"Vendor Contract",Budget!$F$2:$F$504)+SUMIF(Budget!$A$2:$A$504,"Service Agreement",Budget!$F$2:$F$504) -> 0
A54: 6. Equipment or Facility Rental/User Fees | K54: =SUMIF(Budget!$A$2:$A$504,"Other Rentals",Budget!$F$2:$F$504)+SUMIF(Budget!$A$2:$A$504,"Space Rentals",Budget!$F$2:$F$504)+SUMIF(Budget!$A$2:$A$504,"Equipment or Facility Rental/User Fees",Budget!$F$2:$F$504) -> 0
A55: 7. Alterations and Renovations | K55: =SUMIF(Budget!$A$2:$A$504,"Alterations and Renovations",Budget!$F$2:$F$504) -> 0
A56: 8. GSR Tuition/Fees | K56: =TotalGSR1 -> 0
A57: 9. Other | K57: =SUMIF(Budget!$A$2:$A$504,"Other",Budget!$F$2:$F$504)+SUMIF(Budget!$A$2:$A$504,"Other Maintenance Fees",Budget!$F$2:$F$504) -> 0
A58: 10. | K58: 0
I59: Total Other Direct Costs | K59: =SUM(K49:K58) -> 0
A61: G. Direct Costs | K61: Funds Requested
A62: Total Direct Costs (A thru F) | K62: =K25+K33+K38+K46+K59 -> 0
A64: H. Indirect Costs
A65: Indirect Cost Rate (%) | F65: Indirect Cost Base ($) | K65: Funds Requested
A66: =Budget!F105 ->  | F66: =Budget!F101 -> 0 | K66: =ROUND((A66*F66),0) -> 
K67: =ROUND((A67*F67),0) -> 0
K68: 0
K69: 0
I70: Total Indirect Costs | K70: =SUM(K66:K69) -> 
A72: I. Total Direct and Indirect Costs | K72: Funds Requested
A73: Total Direct and Indirect Institutional Costs (G+H) | K73: =K62+K70 -> 
A75: J. Fee | K75: Funds Requested
A79: Alert:
A80: *Base salary is calculated per NIH guidelines. Please take a close look at the specific RFP to see how you should calculate the base salary
A81: **If there are more than 5 Senior Key people in the budget, they will have to be manually entered into the R&R budget in Cayuse
A82: ***Undergrads will always show as calendar. If the effort should be in Academic and/or Summer, this will have to be manually entered into the R&R budget in Cayuse
A83: ****Please keep in mind that the total number of Other Personnel doesn't take into account Grad or Undergrad students unless you add them or if there are more than 6 "Other" titles

Sheet Grants.gov Detailed Yr 2 (hidden)
A1: Research & Related Budget Year 2
A3: A. Senior/Key Persons
A4: Name | B4: Base Salary* | C4: Cal. Salary | D4: Acad. Salary | E4: Sum. Salary | F4: Cal. Mons | G4: Acad. Mons | H4: Sum. Mons | I4: Requested Salary | J4: Fringe Benefits | K4: Funds Req.
A5: =IF(B5>0,(INDEX('Salary & Fringe'!$A$1:$A$300,MATCH("Senior Person 1",'Salary & Fringe'!$E$1:$E$300,FALSE),1)),"") ->  | B5: =IFERROR(IF(F5>0, C5, D5+E5),0) -> 0 | C5: =IFERROR(IF(F5>0, (I5/SUM(F5:H5)*12),0),0) -> 0 | D5: =IFERROR(IF($C5=0, (I5/SUM(F5:H5)*9),0),0) -> 0 | E5: =IFERROR(IF($C5=0, (I5/SUM(F5:H5)*3),0),0) -> 0 | F5: =SUMIFS('Salary & Fringe'!$N$1:'Salary & Fringe'!$N$300,'Salary & Fringe'!$E$1:'Salary & Fringe'!$E$300,"Senior Person 1",'Salary & Fringe'!$F$1:'Salary & Fringe'!$F$300,"Calendar*") -> 0 | G5: =SUMIFS('Salary & Fringe'!$N$1:'Salary & Fringe'!$N$300,'Salary & Fringe'!$E$1:'Salary & Fringe'!$E$300,"Senior Person 1",'Salary & Fringe'!$F$1:'Salary & Fringe'!$F$300,"Academic") -> 0 | H5: =SUMIFS('Salary & Fringe'!$N$1:'Salary & Fringe'!$N$300,'Salary & Fringe'!$E$1:'Salary & Fringe'!$E$300,"Senior Person 1",'Salary & Fringe'!$F$1:'Salary & Fringe'!$F$300,"Summer") -> 0 | I5: =SUMIF('Salary & Fringe'!$E$1:$E$300,"Senior Person 1",'Salary & Fringe'!$X$1:$X$300) -> 0 | J5: =SUMIF('Salary & Fringe'!$E$1:$E$300,"Senior Person 1",'Salary & Fringe'!$AH$1:$AH$300) -> 0 | K5: =I5+J5 -> 0
A6: =IF(B6>0,(INDEX('Salary & Fringe'!$A$1:$A$300,MATCH("Senior Person 2",'Salary & Fringe'!$E$1:$E$300,FALSE),1)),"") ->  | B6: =IFERROR(IF(F6>0, C6, D6+E6),0) -> 0 | C6: =IFERROR(IF(F6>0, (I6/SUM(F6:H6)*12),0),0) -> 0 | D6: =IFERROR(IF($C6=0, (I6/SUM(F6:H6)*9),0),0) -> 0 | E6: =IFERROR(IF($C6=0, (I6/SUM(F6:H6)*3),0),0) -> 0 | F6: =SUMIFS('Salary & Fringe'!$N$1:'Salary & Fringe'!$N$300,'Salary & Fringe'!$E$1:'Salary & Fringe'!$E$300,"Senior Person 2",'Salary & Fringe'!$F$1:'Salary & Fringe'!$F$300,"Calendar*") -> 0 | G6: =SUMIFS('Salary & Fringe'!$N$1:'Salary & Fringe'!$N$300,'Salary & Fringe'!$E$1:'Salary & Fringe'!$E$300,"Senior Person 2",'Salary & Fringe'!$F$1:'Salary & Fringe'!$F$300,"Academic") -> 0 | H6: =SUMIFS('Salary & Fringe'!$N$1:'Salary & Fringe'!$N$300,'Salary & Fringe'!$E$1:'Salary & Fringe'!$E$300,"Senior Person 2",'Salary & Fringe'!$F$1:'Salary & Fringe'!$F$300,"Summer") -> 0 | I6: =SUMIF('Salary & Fringe'!$E$1:$E$300,"Senior Person 2",'Salary & Fringe'!$X$1:$X$300) -> 0 | J6: =SUMIF('Salary & Fringe'!$E$1:$E$300,"Senior Person 2",'Salary & Fringe'!$AH$1:$AH$300) -> 0 | K6: =I6+J6 -> 0
A7: =IF(B7>0,(INDEX('Salary & Fringe'!$A$1:$A$300,MATCH("Senior Person 3",'Salary & Fringe'!$E$1:$E$300,FALSE),1)),"") ->  | B7: 0 | C7: 0 | D7: 0 | E7: 0 | F7: =SUMIFS('Salary & Fringe'!$N$1:'Salary & Fringe'!$N$300,'Salary & Fringe'!$E$1:'Salary & Fringe'!$E$300,"Senior Person 3",'Salary & Fringe'!$F$1:'Salary & Fringe'!$F$300,"Calendar*") -> 0 | G7: =SUMIFS('Salary & Fringe'!$N$1:'Salary & Fringe'!$N$300,'Salary & Fringe'!$E$1:'Salary & Fringe'!$E$300,"Senior Person 3",'Salary & Fringe'!$F$1:'Salary & Fringe'!$F$300,"Academic") -> 0 | H7: =SUMIFS('Salary & Fringe'!$N$1:'Salary & Fringe'!$N$300,'Salary & Fringe'!$E$1:'Salary & Fringe'!$E$300,"Senior Person 3",'Salary & Fringe'!$F$1:'Salary & Fringe'!$F$300,"Summer") -> 0 | I7: =SUMIF('Salary & Fringe'!$E$1:$E$300,"Senior Person 3",'Salary & Fringe'!$X$1:$X$300) -> 0 | J7: =SUMIF('Salary & Fringe'!$E$1:$E$300,"Senior Person 3",'Salary & Fringe'!$AH$1:$AH$300) -> 0 | K7: 0
A8: =IF(B8>0,(INDEX('Salary & Fringe'!$A$1:$A$300,MATCH("Senior Person 4",'Salary & Fringe'!$E$1:$E$300,FALSE),1)),"") ->  | B8: 0 | C8: 0 | D8: 0 | E8: 0 | F8: =SUMIFS('Salary & Fringe'!$N$1:'Salary & Fringe'!$N$300,'Salary & Fringe'!$E$1:'Salary & Fringe'!$E$300,"Senior Person 4",'Salary & Fringe'!$F$1:'Salary & Fringe'!$F$300,"Calendar*") -> 0 | G8: =SUMIFS('Salary & Fringe'!$N$1:'Salary & Fringe'!$N$300,'Salary & Fringe'!$E$1:'Salary & Fringe'!$E$300,"Senior Person 4",'Salary & Fringe'!$F$1:'Salary & Fringe'!$F$300,"Academic") -> 0 | H8: =SUMIFS('Salary & Fringe'!$N$1:'Salary & Fringe'!$N$300,'Salary & Fringe'!$E$1:'Salary & Fringe'!$E$300,"Senior Person 4",'Salary & Fringe'!$F$1:'Salary & Fringe'!$F$300,"Summer") -> 0 | I8: =SUMIF('Salary & Fringe'!$E$1:$E$300,"Senior Person 4",'Salary & Fringe'!$X$1:$X$300) -> 0 | J8: =SUMIF('Salary & Fringe'!$E$1:$E$300,"Senior Person 4",'Salary & Fringe'!$AH$1:$AH$300) -> 0 | K8: 0
A9: =IF(B9>0,(INDEX('Salary & Fringe'!$A$1:$A$300,MATCH("Senior Person 5",'Salary & Fringe'!$E$1:$E$300,FALSE),1)),"") ->  | B9: 0 | C9: 0 | D9: 0 | E9: 0 | F9: =SUMIFS('Salary & Fringe'!$N$1:'Salary & Fringe'!$N$300,'Salary & Fringe'!$E$1:'Salary & Fringe'!$E$300,"Senior Person 5",'Salary & Fringe'!$F$1:'Salary & Fringe'!$F$300,"Calendar*") -> 0 | G9: =SUMIFS('Salary & Fringe'!$N$1:'Salary & Fringe'!$N$300,'Salary & Fringe'!$E$1:'Salary & Fringe'!$E$300,"Senior Person 5",'Salary & Fringe'!$F$1:'Salary & Fringe'!$F$300,"Academic") -> 0 | H9: =SUMIFS('Salary & Fringe'!$N$1:'Salary & Fringe'!$N$300,'Salary & Fringe'!$E$1:'Salary & Fringe'!$E$300,"Senior Person 5",'Salary & Fringe'!$F$1:'Salary & Fringe'!$F$300,"Summer") -> 0 | I9: =SUMIF('Salary & Fringe'!$E$1:$E$300,"Senior Person 5",'Salary & Fringe'!$X$1:$X$300) -> 0 | J9: =SUMIF('Salary & Fringe'!$E$1:$E$300,"Senior Person 5",'Salary & Fringe'!$AH$1:$AH$300) -> 0 | K9: 0
F10: Total Other Senior/Key Person** | I10: =SUMIF('Salary & Fringe'!$E$1:$E$300,"Senior (Other)",'Salary & Fringe'!$X$1:$X$300) -> 0 | J10: =SUMIF('Salary & Fringe'!$E$1:$E$300,"Senior (Other)",'Salary & Fringe'!$AH$1:$AH$300) -> 0 | K10: 0
I11: Total Senior/Key Person | K11: =SUM(K5:K10) -> 0
A12: B. Other Personnel
A13: Number of Personnel | B13: Project Role | D13: Cal. Months | E13: Acad. Months | F13: Sum. Months | G13: Requested Salary | I13: Fringe Benefits | K13: Funds Requested
A14: =SUMIFS('Salary & Fringe'!$I$1:$I$300,'Salary & Fringe'!$E$1:$E$300,"Postdoc", 'Salary & Fringe'!$N$1:'Salary & Fringe'!$N$300, ">0") -> 0 | B14: Post Doctoral Associates | D14: =SUMIFS('Salary & Fringe'!$N$1:'Salary & Fringe'!$N$300,'Salary & Fringe'!$E$1:'Salary & Fringe'!$E$300,"Postdoc",'Salary & Fringe'!$F$1:'Salary & Fringe'!$F$300,"Calendar*")+SUMIFS('Salary & Fringe'!$N$1:'Salary & Fringe'!$N$300,'Salary & Fringe'!$E$1:'Salary & Fringe'!$E$300,"Postdoc",'Salary & Fringe'!$F$1:'Salary & Fringe'!$F$300,"Hourly") -> 0 | E14: =SUMIFS('Salary & Fringe'!$N$1:'Salary & Fringe'!$N$300,'Salary & Fringe'!$E$1:'Salary & Fringe'!$E$300,"Postdoc",'Salary & Fringe'!$F$1:'Salary & Fringe'!$F$300,"Academic") -> 0 | F14: =SUMIFS('Salary & Fringe'!$N$1:'Salary & Fringe'!$N$300,'Salary & Fringe'!$E$1:'Salary & Fringe'!$E$300,"Postdoc",'Salary & Fringe'!$F$1:'Salary & Fringe'!$F$300,"Summer") -> 0 | G14: =SUMIF('Salary & Fringe'!$E$1:$E$300,"Postdoc",'Salary & Fringe'!$X$1:$X$300) -> 0 | I14: =SUMIF('Salary & Fringe'!$E$1:$E$300,"Postdoc",'Salary & Fringe'!$AH$1:$AH$300) -> 0 | K14: =G14+I14 -> 0
B15: Graduate Students | D15: =SUMIFS('Salary & Fringe'!$N$1:'Salary & Fringe'!$N$300,'Salary & Fringe'!$E$1:'Salary & Fringe'!$E$300,"Grad",'Salary & Fringe'!$F$1:'Salary & Fringe'!$F$300,"Calendar*")+SUMIFS('Salary & Fringe'!$N$1:'Salary & Fringe'!$N$300,'Salary & Fringe'!$E$1:'Salary & Fringe'!$E$300,"Grad",'Salary & Fringe'!$F$1:'Salary & Fringe'!$F$300,"Hourly") -> 0 | E15: =SUMIFS('Salary & Fringe'!$N$1:'Salary & Fringe'!$N$300,'Salary & Fringe'!$E$1:'Salary & Fringe'!$E$300,"Grad",'Salary & Fringe'!$F$1:'Salary & Fringe'!$F$300,"Academic")*2 -> 0 | F15: =SUMIFS('Salary & Fringe'!$N$1:'Salary & Fringe'!$N$300,'Salary & Fringe'!$E$1:'Salary & Fringe'!$E$300,"Grad",'Salary & Fringe'!$F$1:'Salary & Fringe'!$F$300,"Summer")*2 -> 0 | G15: =SUMIF('Salary & Fringe'!$E$1:$E$300,"Grad",'Salary & Fringe'!$X$1:$X$300) -> 0 | I15: =SUMIF('Salary & Fringe'!$E$1:$E$300,"Grad",'Salary & Fringe'!$AH$1:$AH$300) -> 0 | K15: =G15+I15 -> 0
B16: Undergraduate Students*** | D16: =SUMIF('Salary & Fringe'!$E$1:$E$300,"Undergrad",'Salary & Fringe'!$N$1:$N$300) -> 0 | E16: 0 | F16: 0 | G16: =SUMIF('Salary & Fringe'!$E$1:$E$300,"Undergrad",'Salary & Fringe'!$X$1:$X$300) -> 0 | I16: =SUMIF('Salary & Fringe'!$E$1:$E$300,"Undergrad",'Salary & Fringe'!$AH$1:$AH$300) -> 0 | K16: 0
A17: =SUMIFS('Salary & Fringe'!$I$1:$I$300,'Salary & Fringe'!$E$1:$E$300,"Clerical", 'Salary & Fringe'!$N$1:'Salary & Fringe'!$N$300, ">0") -> 0 | B17: Secretarial/Clerical | D17: =SUMIFS('Salary & Fringe'!$N$1:'Salary & Fringe'!$N$300,'Salary & Fringe'!$E$1:'Salary & Fringe'!$E$300,"Clerical",'Salary & Fringe'!$F$1:'Salary & Fringe'!$F$300,"Calendar*")+SUMIFS('Salary & Fringe'!$N$1:'Salary & Fringe'!$N$300,'Salary & Fringe'!$E$1:'Salary & Fringe'!$E$300,"Clerical",'Salary & Fringe'!$F$1:'Salary & Fringe'!$F$300,"Hourly") -> 0 | E17: =SUMIFS('Salary & Fringe'!$N$1:'Salary & Fringe'!$N$300,'Salary & Fringe'!$E$1:'Salary & Fringe'!$E$300,"Clerical",'Salary & Fringe'!$F$1:'Salary & Fringe'!$F$300,"Academic") -> 0 | F17: =SUMIFS('Salary & Fringe'!$N$1:'Salary & Fringe'!$N$300,'Salary & Fringe'!$E$1:'Salary & Fringe'!$E$300,"Clerical",'Salary & Fringe'!$F$1:'Salary & Fringe'!$F$300,"Summer") -> 0 | G17: =SUMIF('Salary & Fringe'!$E$1:$E$300,"Clerical",'Salary & Fringe'!$X$1:$X$300) -> 0 | I17: =SUMIF('Salary & Fringe'!$E$1:$E$300,"Clerical",'Salary & Fringe'!$AH$1:$AH$300) -> 0 | K17: 0
A18: =SUMIFS('Salary & Fringe'!$I$1:$I$300,'Salary & Fringe'!$E$1:$E$300,"Other 1", 'Salary & Fringe'!$N$1:'Salary & Fringe'!$N$300, ">0") -> 0 | B18: =IF(G18>0,(INDEX('Salary & Fringe'!$B$1:$B$300,MATCH("Other 1",'Salary & Fringe'!$E$1:$E$300,FALSE),1)),"") ->  | D18: =SUMIFS('Salary & Fringe'!$N$1:'Salary & Fringe'!$N$300,'Salary & Fringe'!$E$1:'Salary & Fringe'!$E$300,"Other 1",'Salary & Fringe'!$F$1:'Salary & Fringe'!$F$300,"Calendar*")+SUMIFS('Salary & Fringe'!$N$1:'Salary & Fringe'!$N$300,'Salary & Fringe'!$E$1:'Salary & Fringe'!$E$300,"Other 1",'Salary & Fringe'!$F$1:'Salary & Fringe'!$F$300,"Hourly") -> 0 | E18: =SUMIFS('Salary & Fringe'!$N$1:'Salary & Fringe'!$N$300,'Salary & Fringe'!$E$1:'Salary & Fringe'!$E$300,"Other 1",'Salary & Fringe'!$F$1:'Salary & Fringe'!$F$300,"Academic") -> 0 | F18: =SUMIFS('Salary & Fringe'!$N$1:'Salary & Fringe'!$N$300,'Salary & Fringe'!$E$1:'Salary & Fringe'!$E$300,"Other 1",'Salary & Fringe'!$F$1:'Salary & Fringe'!$F$300,"Summer") -> 0 | G18: =SUMIF('Salary & Fringe'!$E$1:$E$300,"Other 1",'Salary & Fringe'!$X$1:$X$300) -> 0 | I18: =SUMIF('Salary & Fringe'!$E$1:$E$300,"Other 1",'Salary & Fringe'!$AH$1:$AH$300) -> 0 | K18: 0
A19: =SUMIFS('Salary & Fringe'!$I$1:$I$300,'Salary & Fringe'!$E$1:$E$300,"Other 2", 'Salary & Fringe'!$N$1:'Salary & Fringe'!$N$300, ">0") -> 0 | B19: =IF(G19>0,(INDEX('Salary & Fringe'!$B$1:$B$300,MATCH("Other 2",'Salary & Fringe'!$E$1:$E$300,FALSE),1)),"") ->  | D19: =SUMIFS('Salary & Fringe'!$N$1:'Salary & Fringe'!$N$300,'Salary & Fringe'!$E$1:'Salary & Fringe'!$E$300,"Other 2",'Salary & Fringe'!$F$1:'Salary & Fringe'!$F$300,"Calendar*")+SUMIFS('Salary & Fringe'!$N$1:'Salary & Fringe'!$N$300,'Salary & Fringe'!$E$1:'Salary & Fringe'!$E$300,"Other 2",'Salary & Fringe'!$F$1:'Salary & Fringe'!$F$300,"Hourly") -> 0 | E19: =SUMIFS('Salary & Fringe'!$N$1:'Salary & Fringe'!$N$300,'Salary & Fringe'!$E$1:'Salary & Fringe'!$E$300,"Other 2",'Salary & Fringe'!$F$1:'Salary & Fringe'!$F$300,"Academic") -> 0 | F19: =SUMIFS('Salary & Fringe'!$N$1:'Salary & Fringe'!$N$300,'Salary & Fringe'!$E$1:'Salary & Fringe'!$E$300,"Other 2",'Salary & Fringe'!$F$1:'Salary & Fringe'!$F$300,"Summer") -> 0 | G19: =SUMIF('Salary & Fringe'!$E$1:$E$300,"Other 2",'Salary & Fringe'!$X$1:$X$300) -> 0 | I19: =SUMIF('Salary & Fringe'!$E$1:$E$300,"Other 2",'Salary & Fringe'!$AH$1:$AH$300) -> 0 | K19: 0
A20: =SUMIFS('Salary & Fringe'!$I$1:$I$300,'Salary & Fringe'!$E$1:$E$300,"Other 3", 'Salary & Fringe'!$N$1:'Salary & Fringe'!$N$300, ">0") -> 0 | B20: =IF(G20>0,(INDEX('Salary & Fringe'!$B$1:$B$300,MATCH("Other 3",'Salary & Fringe'!$E$1:$E$300,FALSE),1)),"") ->  | D20: =SUMIFS('Salary & Fringe'!$N$1:'Salary & Fringe'!$N$300,'Salary & Fringe'!$E$1:'Salary & Fringe'!$E$300,"Other 3",'Salary & Fringe'!$F$1:'Salary & Fringe'!$F$300,"Calendar*")+SUMIFS('Salary & Fringe'!$N$1:'Salary & Fringe'!$N$300,'Salary & Fringe'!$E$1:'Salary & Fringe'!$E$300,"Other 3",'Salary & Fringe'!$F$1:'Salary & Fringe'!$F$300,"Hourly") -> 0 | E20: =SUMIFS('Salary & Fringe'!$N$1:'Salary & Fringe'!$N$300,'Salary & Fringe'!$E$1:'Salary & Fringe'!$E$300,"Other 3",'Salary & Fringe'!$F$1:'Salary & Fringe'!$F$300,"Academic") -> 0 | F20: =SUMIFS('Salary & Fringe'!$N$1:'Salary & Fringe'!$N$300,'Salary & Fringe'!$E$1:'Salary & Fringe'!$E$300,"Other 3",'Salary & Fringe'!$F$1:'Salary & Fringe'!$F$300,"Summer") -> 0 | G20: =SUMIF('Salary & Fringe'!$E$1:$E$300,"Other 3",'Salary & Fringe'!$X$1:$X$300) -> 0 | I20: =SUMIF('Salary & Fringe'!$E$1:$E$300,"Other 3",'Salary & Fringe'!$AH$1:$AH$300) -> 0 | K20: 0
A21: =SUMIFS('Salary & Fringe'!$I$1:$I$300,'Salary & Fringe'!$E$1:$E$300,"Other 4", 'Salary & Fringe'!$N$1:'Salary & Fringe'!$N$300, ">0") -> 0 | B21: =IF(G21>0,(INDEX('Salary & Fringe'!$B$1:$B$300,MATCH("Other 4",'Salary & Fringe'!$E$1:$E$300,FALSE),1)),"") ->  | D21: =SUMIFS('Salary & Fringe'!$N$1:'Salary & Fringe'!$N$300,'Salary & Fringe'!$E$1:'Salary & Fringe'!$E$300,"Other 4",'Salary & Fringe'!$F$1:'Salary & Fringe'!$F$300,"Calendar*")+SUMIFS('Salary & Fringe'!$N$1:'Salary & Fringe'!$N$300,'Salary & Fringe'!$E$1:'Salary & Fringe'!$E$300,"Other 4",'Salary & Fringe'!$F$1:'Salary & Fringe'!$F$300,"Hourly") -> 0 | E21: =SUMIFS('Salary & Fringe'!$N$1:'Salary & Fringe'!$N$300,'Salary & Fringe'!$E$1:'Salary & Fringe'!$E$300,"Other 4",'Salary & Fringe'!$F$1:'Salary & Fringe'!$F$300,"Academic") -> 0 | F21: =SUMIFS('Salary & Fringe'!$N$1:'Salary & Fringe'!$N$300,'Salary & Fringe'!$E$1:'Salary & Fringe'!$E$300,"Other 4",'Salary & Fringe'!$F$1:'Salary & Fringe'!$F$300,"Summer") -> 0 | G21: =SUMIF('Salary & Fringe'!$E$1:$E$300,"Other 4",'Salary & Fringe'!$X$1:$X$300) -> 0 | I21: =SUMIF('Salary & Fringe'!$E$1:$E$300,"Other 4",'Salary & Fringe'!$AH$1:$AH$300) -> 0 | K21: 0
A22: =SUMIFS('Salary & Fringe'!$I$1:$I$300,'Salary & Fringe'!$E$1:$E$300,"Other 5", 'Salary & Fringe'!$N$1:'Salary & Fringe'!$N$300, ">0") -> 0 | B22: =IF(G22>0,(INDEX('Salary & Fringe'!$B$1:$B$300,MATCH("Other 5",'Salary & Fringe'!$E$1:$E$300,FALSE),1)),"") ->  | D22: =SUMIFS('Salary & Fringe'!$N$1:'Salary & Fringe'!$N$300,'Salary & Fringe'!$E$1:'Salary & Fringe'!$E$300,"Other 5",'Salary & Fringe'!$F$1:'Salary & Fringe'!$F$300,"Calendar*")+SUMIFS('Salary & Fringe'!$N$1:'Salary & Fringe'!$N$300,'Salary & Fringe'!$E$1:'Salary & Fringe'!$E$300,"Other 5",'Salary & Fringe'!$F$1:'Salary & Fringe'!$F$300,"Hourly") -> 0 | E22: =SUMIFS('Salary & Fringe'!$N$1:'Salary & Fringe'!$N$300,'Salary & Fringe'!$E$1:'Salary & Fringe'!$E$300,"Other 5",'Salary & Fringe'!$F$1:'Salary & Fringe'!$F$300,"Academic") -> 0 | F22: =SUMIFS('Salary & Fringe'!$N$1:'Salary & Fringe'!$N$300,'Salary & Fringe'!$E$1:'Salary & Fringe'!$E$300,"Other 5",'Salary & Fringe'!$F$1:'Salary & Fringe'!$F$300,"Summer") -> 0 | G22: =SUMIF('Salary & Fringe'!$E$1:$E$300,"Other 5",'Salary & Fringe'!$X$1:$X$300) -> 0 | I22: =SUMIF('Salary & Fringe'!$E$1:$E$300,"Other 5",'Salary & Fringe'!$AH$1:$AH$300) -> 0 | K22: 0
A23: =SUMIFS('Salary & Fringe'!$I$1:$I$300,'Salary & Fringe'!$E$1:$E$300,"Other 6", 'Salary & Fringe'!$N$1:'Salary & Fringe'!$N$300, ">0") -> 0 | B23: =IF(G23>0,(INDEX('Salary & Fringe'!$B$1:$B$300,MATCH("Other 6",'Salary & Fringe'!$E$1:$E$300,FALSE),1)),"") ->  | D23: =SUMIFS('Salary & Fringe'!$N$1:'Salary & Fringe'!$N$300,'Salary & Fringe'!$E$1:'Salary & Fringe'!$E$300,"Other 6",'Salary & Fringe'!$F$1:'Salary & Fringe'!$F$300,"Calendar*")+SUMIFS('Salary & Fringe'!$N$1:'Salary & Fringe'!$N$300,'Salary & Fringe'!$E$1:'Salary & Fringe'!$E$300,"Other 6",'Salary & Fringe'!$F$1:'Salary & Fringe'!$F$300,"Hourly") -> 0 | E23: =SUMIFS('Salary & Fringe'!$N$1:'Salary & Fringe'!$N$300,'Salary & Fringe'!$E$1:'Salary & Fringe'!$E$300,"Other 6",'Salary & Fringe'!$F$1:'Salary & Fringe'!$F$300,"Academic") -> 0 | F23: =SUMIFS('Salary & Fringe'!$N$1:'Salary & Fringe'!$N$300,'Salary & Fringe'!$E$1:'Salary & Fringe'!$E$300,"Other 6",'Salary & Fringe'!$F$1:'Salary & Fringe'!$F$300,"Summer") -> 0 | G23: =SUMIF('Salary & Fringe'!$E$1:$E$300,"Other 6",'Salary & Fringe'!$X$1:$X$300) -> 0 | I23: =SUMIF('Salary & Fringe'!$E$1:$E$300,"Other 6",'Salary & Fringe'!$AH$1:$AH$300) -> 0 | K23: 0
A24: =SUM(A14:A23) -> 0 | B24: Total Number Other Personnel**** | H24: Total Other Personnel | K24: =SUM(K14:K23) -> 0
H25: Total Salary, Wages and Fringe Benefits (A+B) | K25: =K11+K24 -> 0
A26: C. Equipment Description
A27: Equipment Item | K27: Funds Requested
A28: =IF(ISBLANK(Budget!H47),"",Budget!A47) ->  | K28: =IF(Budget!H47>0,Budget!H47,0) -> 0
A29: =IF(ISBLANK(Budget!H48),"",Budget!A48) ->  | K29: =IF(Budget!H48>0,Budget!H48,0) -> 0
A30: =IF(ISBLANK(Budget!H49),"",Budget!A49) ->  | K30: =IF(Budget!H49>0,Budget!H49,0) -> 0
A31: =IF(ISBLANK(Budget!H50),"",Budget!A50) ->  | K31: =IF(Budget!H50>0,Budget!H50,0) -> 0
A32: =IF(ISBLANK(Budget!H51),"",Budget!A51) ->  | K32: =IF(Budget!H51>0,Budget!H51,0) -> 0
J33: Total Equipment | K33: =TotalEquipment2 -> 0
A35: D. Travel | K35: Funds Requested
A36: 1. Domestic Travel Costs (incl. Canada, Mexico and U.S. Possessions) | K36: =Budget!H39 -> 0
A37: 2. Foreign Travel Costs | K37: =Budget!H44 -> 0
J38: Total Travel Cost | K38: =SUM(K36:K37) -> 0
A40: E. Participant/Trainee Support Costs | K40: Funds Requested
A41: 1. Tuition/Fees/Health Insurance | K41: =SUMIF(Budget!$A$2:$A$504,"PS Tuition/Fees/Health Insurance",Budget!$H$2:$H$504) -> 0
A42: 2. Stipends | K42: =SUMIF(Budget!$A$2:$A$504,"PS Stipends",Budget!$H$2:$H$504) -> 0
A43: 3. Travel | K43: =SUMIF(Budget!$A$2:$A$504,"PS Travel",Budget!$H$2:$H$504) -> 0
A44: 4. Subsistence | K44: =SUMIF(Budget!$A$2:$A$504,"PS Subsistence",Budget!$H$2:$H$504) -> 0
A45: 5. Other | K45: =SUMIF(Budget!$A$2:$A$504,"PS Other",Budget!$H$2:$H$504) -> 0
A46: Number of Participants/Trainees | H46: Total Participant Support/Trainee Support Costs | K46: =SUM(K41:K45) -> 0
A48: F. Other Direct Costs | K48: Funds Requested
A49: 1. Materials and Supplies | K49: =SUMIF(Budget!$A$2:$A$504,"Materials & Supplies",Budget!$H$2:$H$504) -> 0
A50: 2. Publication Costs | K50: =SUMIF(Budget!$A$2:$A$504,"Publication Costs/Page Charges",Budget!$H$2:$H$504) -> 0
A51: 3. Consultant Services | K51: =SUMIF(Budget!$A$2:$A$504,"Consultant Services",Budget!$H$2:$H$504) -> 0
A52: 4. ADP/Computer Services | K52: =SUMIF(Budget!$A$2:$A$504,"Computer (ADPE) Services",Budget!$H$2:$H$504) -> 0
A53: 5. Subawards/Consortium/Contractual Costs | K53: =TotalSubs2+TotalMulti2+SUMIF(Budget!$A$2:$A$504,"Vendor Contract",Budget!$H$2:$H$504)+SUMIF(Budget!$A$2:$A$504,"Service Agreement",Budget!$H$2:$H$504) -> 0
A54: 6. Equipment or Facility Rental/User Fees | K54: =SUMIF(Budget!$A$2:$A$504,"Other Rentals",Budget!$H$2:$H$504)+SUMIF(Budget!$A$2:$A$504,"Space Rentals",Budget!$H$2:$H$504)+SUMIF(Budget!$A$2:$A$504,"Equipment or Facility Rental/User Fees",Budget!$H$2:$H$504) -> 0
A55: 7. Alterations and Renovations | K55: =SUMIF(Budget!$A$2:$A$504,"Alterations and Renovations",Budget!$H$2:$H$504) -> 0
A56: 8. GSR Tuition/Fees | K56: =TotalGSR2 -> 0
A57: 9. Other | K57: =SUMIF(Budget!$A$2:$A$504,"Other",Budget!$H$2:$H$504)+SUMIF(Budget!$A$2:$A$504,"Other Maintenance Fees",Budget!$H$2:$H$504) -> 0
A58: 10. | K58: 0
I59: Total Other Direct Costs | K59: =SUM(K49:K58) -> 0
A61: G. Direct Costs | K61: Funds Requested
A62: Total Direct Costs (A thru F) | K62: =K25+K33+K38+K46+K59 -> 0
A64: H. Indirect Costs
A65: Indirect Cost Rate (%) | F65: Indirect Cost Base ($) | K65: Funds Requested
A66: =Budget!H105 ->  | F66: =Budget!H101 -> 0 | K66: =ROUND((A66*F66),0) -> 
K67: =ROUND((A67*F67),0) -> 0
K68: 0
K69: 0
I70: Total Indirect Costs | K70: =SUM(K66:K69) -> 
A72: I. Total Direct and Indirect Costs | K72: Funds Requested
A73: Total Direct and Indirect Institutional Costs (G+H) | K73: =K62+K70 -> 
A75: J. Fee | K75: Funds Requested
A79: Alert:
A80: *Base salary is calculated per NIH guidelines. Please take a close look at the specific RFP to see how you should calculate the base salary
A81: **If there are more than 5 Senior Key people in the budget, they will have to be manually entered into the R&R budget in Cayuse
A82: ***Undergrads will always show as calendar. If the effort should be in Academic and/or Summer, this will have to be manually entered into the R&R budget in Cayuse
A83: ****Please keep in mind that the total number of Other Personnel doesn't take into account Grad or Undergrad students unless you add them or if there are more than 6 "Other" titles

Sheet Grants.gov Detailed Yr 3 (hidden)
A1: Research & Related Budget Year 3
A3: A. Senior/Key Persons
A4: Name | B4: Base Salary* | C4: Cal. Salary | D4: Acad. Salary | E4: Sum. Salary | F4: Cal. Mons | G4: Acad. Mons | H4: Sum. Mons | I4: Requested Salary | J4: Fringe Benefits | K4: Funds Req.
A5: =IF(B5>0,(INDEX('Salary & Fringe'!$A$1:$A$300,MATCH("Senior Person 1",'Salary & Fringe'!$E$1:$E$300,FALSE),1)),"") ->  | B5: =IFERROR(IF(F5>0, C5, D5+E5),0) -> 0 | C5: =IFERROR(IF(F5>0, (I5/SUM(F5:H5)*12),0),0) -> 0 | D5: =IFERROR(IF($C5=0, (I5/SUM(F5:H5)*9),0),0) -> 0 | E5: =IFERROR(IF($C5=0, (I5/SUM(F5:H5)*3),0),0) -> 0 | F5: =SUMIFS('Salary & Fringe'!$O$1:'Salary & Fringe'!$O$300,'Salary & Fringe'!$E$1:'Salary & Fringe'!$E$300,"Senior Person 1",'Salary & Fringe'!$F$1:'Salary & Fringe'!$F$300,"Calendar*") -> 0 | G5: =SUMIFS('Salary & Fringe'!$O$1:'Salary & Fringe'!$O$300,'Salary & Fringe'!$E$1:'Salary & Fringe'!$E$300,"Senior Person 1",'Salary & Fringe'!$F$1:'Salary & Fringe'!$F$300,"Academic") -> 0 | H5: =SUMIFS('Salary & Fringe'!$O$1:'Salary & Fringe'!$O$300,'Salary & Fringe'!$E$1:'Salary & Fringe'!$E$300,"Senior Person 1",'Salary & Fringe'!$F$1:'Salary & Fringe'!$F$300,"Summer") -> 0 | I5: =SUMIF('Salary & Fringe'!$E$1:$E$300,"Senior Person 1",'Salary & Fringe'!$Y$1:$Y$300) -> 0 | J5: =SUMIF('Salary & Fringe'!$E$1:$E$300,"Senior Person 1",'Salary & Fringe'!$AI$1:$AI$300) -> 0 | K5: =I5+J5 -> 0
A6: =IF(B6>0,(INDEX('Salary & Fringe'!$A$1:$A$300,MATCH("Senior Person 2",'Salary & Fringe'!$E$1:$E$300,FALSE),1)),"") ->  | B6: =IFERROR(IF(F6>0, C6, D6+E6),0) -> 0 | C6: =IFERROR(IF(F6>0, (I6/SUM(F6:H6)*12),0),0) -> 0 | D6: =IFERROR(IF($C6=0, (I6/SUM(F6:H6)*9),0),0) -> 0 | E6: =IFERROR(IF($C6=0, (I6/SUM(F6:H6)*3),0),0) -> 0 | F6: =SUMIFS('Salary & Fringe'!$O$1:'Salary & Fringe'!$O$300,'Salary & Fringe'!$E$1:'Salary & Fringe'!$E$300,"Senior Person 2",'Salary & Fringe'!$F$1:'Salary & Fringe'!$F$300,"Calendar*") -> 0 | G6: =SUMIFS('Salary & Fringe'!$O$1:'Salary & Fringe'!$O$300,'Salary & Fringe'!$E$1:'Salary & Fringe'!$E$300,"Senior Person 2",'Salary & Fringe'!$F$1:'Salary & Fringe'!$F$300,"Academic") -> 0 | H6: =SUMIFS('Salary & Fringe'!$O$1:'Salary & Fringe'!$O$300,'Salary & Fringe'!$E$1:'Salary & Fringe'!$E$300,"Senior Person 2",'Salary & Fringe'!$F$1:'Salary & Fringe'!$F$300,"Summer") -> 0 | I6: =SUMIF('Salary & Fringe'!$E$1:$E$300,"Senior Person 2",'Salary & Fringe'!$Y$1:$Y$300) -> 0 | J6: =SUMIF('Salary & Fringe'!$E$1:$E$300,"Senior Person 2",'Salary & Fringe'!$AI$1:$AI$300) -> 0 | K6: =I6+J6 -> 0
A7: =IF(B7>0,(INDEX('Salary & Fringe'!$A$1:$A$300,MATCH("Senior Person 3",'Salary & Fringe'!$E$1:$E$300,FALSE),1)),"") ->  | B7: 0 | C7: 0 | D7: 0 | E7: 0 | F7: =SUMIFS('Salary & Fringe'!$O$1:'Salary & Fringe'!$O$300,'Salary & Fringe'!$E$1:'Salary & Fringe'!$E$300,"Senior Person 3",'Salary & Fringe'!$F$1:'Salary & Fringe'!$F$300,"Calendar*") -> 0 | G7: =SUMIFS('Salary & Fringe'!$O$1:'Salary & Fringe'!$O$300,'Salary & Fringe'!$E$1:'Salary & Fringe'!$E$300,"Senior Person 3",'Salary & Fringe'!$F$1:'Salary & Fringe'!$F$300,"Academic") -> 0 | H7: =SUMIFS('Salary & Fringe'!$O$1:'Salary & Fringe'!$O$300,'Salary & Fringe'!$E$1:'Salary & Fringe'!$E$300,"Senior Person 3",'Salary & Fringe'!$F$1:'Salary & Fringe'!$F$300,"Summer") -> 0 | I7: =SUMIF('Salary & Fringe'!$E$1:$E$300,"Senior Person 3",'Salary & Fringe'!$Y$1:$Y$300) -> 0 | J7: =SUMIF('Salary & Fringe'!$E$1:$E$300,"Senior Person 3",'Salary & Fringe'!$AI$1:$AI$300) -> 0 | K7: 0
A8: =IF(B8>0,(INDEX('Salary & Fringe'!$A$1:$A$300,MATCH("Senior Person 4",'Salary & Fringe'!$E$1:$E$300,FALSE),1)),"") ->  | B8: 0 | C8: 0 | D8: 0 | E8: 0 | F8: =SUMIFS('Salary & Fringe'!$O$1:'Salary & Fringe'!$O$300,'Salary & Fringe'!$E$1:'Salary & Fringe'!$E$300,"Senior Person 4",'Salary & Fringe'!$F$1:'Salary & Fringe'!$F$300,"Calendar*") -> 0 | G8: =SUMIFS('Salary & Fringe'!$O$1:'Salary & Fringe'!$O$300,'Salary & Fringe'!$E$1:'Salary & Fringe'!$E$300,"Senior Person 4",'Salary & Fringe'!$F$1:'Salary & Fringe'!$F$300,"Academic") -> 0 | H8: =SUMIFS('Salary & Fringe'!$O$1:'Salary & Fringe'!$O$300,'Salary & Fringe'!$E$1:'Salary & Fringe'!$E$300,"Senior Person 4",'Salary & Fringe'!$F$1:'Salary & Fringe'!$F$300,"Summer") -> 0 | I8: =SUMIF('Salary & Fringe'!$E$1:$E$300,"Senior Person 4",'Salary & Fringe'!$Y$1:$Y$300) -> 0 | J8: =SUMIF('Salary & Fringe'!$E$1:$E$300,"Senior Person 4",'Salary & Fringe'!$AI$1:$AI$300) -> 0 | K8: 0
A9: =IF(B9>0,(INDEX('Salary & Fringe'!$A$1:$A$300,MATCH("Senior Person 5",'Salary & Fringe'!$E$1:$E$300,FALSE),1)),"") ->  | B9: 0 | C9: 0 | D9: 0 | E9: 0 | F9: =SUMIFS('Salary & Fringe'!$O$1:'Salary & Fringe'!$O$300,'Salary & Fringe'!$E$1:'Salary & Fringe'!$E$300,"Senior Person 5",'Salary & Fringe'!$F$1:'Salary & Fringe'!$F$300,"Calendar*") -> 0 | G9: =SUMIFS('Salary & Fringe'!$O$1:'Salary & Fringe'!$O$300,'Salary & Fringe'!$E$1:'Salary & Fringe'!$E$300,"Senior Person 5",'Salary & Fringe'!$F$1:'Salary & Fringe'!$F$300,"Academic") -> 0 | H9: =SUMIFS('Salary & Fringe'!$O$1:'Salary & Fringe'!$O$300,'Salary & Fringe'!$E$1:'Salary & Fringe'!$E$300,"Senior Person 5",'Salary & Fringe'!$F$1:'Salary & Fringe'!$F$300,"Summer") -> 0 | I9: =SUMIF('Salary & Fringe'!$E$1:$E$300,"Senior Person 5",'Salary & Fringe'!$Y$1:$Y$300) -> 0 | J9: =SUMIF('Salary & Fringe'!$E$1:$E$300,"Senior Person 5",'Salary & Fringe'!$AI$1:$AI$300) -> 0 | K9: 0
F10: Total Other Senior/Key Person** | I10: =SUMIF('Salary & Fringe'!$E$1:$E$300,"Senior (Other)",'Salary & Fringe'!$Y$1:$Y$300) -> 0 | J10: =SUMIF('Salary & Fringe'!$E$1:$E$300,"Senior (Other)",'Salary & Fringe'!$AI$1:$AI$300) -> 0 | K10: 0
I11: Total Senior/Key Person | K11: =SUM(K5:K10) -> 0
A12: B. Other Personnel
A13: Number of Personnel | B13: Project Role | D13: Cal. Months | E13: Acad. Months | F13: Sum. Months | G13: Requested Salary | I13: Fringe Benefits | K13: Funds Requested
A14: =SUMIFS('Salary & Fringe'!$I$1:$I$300,'Salary & Fringe'!$E$1:$E$300,"Postdoc", 'Salary & Fringe'!$O$1:'Salary & Fringe'!$O$300, ">0") -> 0 | B14: Post Doctoral Associates | D14: =SUMIFS('Salary & Fringe'!$O$1:'Salary & Fringe'!$O$300,'Salary & Fringe'!$E$1:'Salary & Fringe'!$E$300,"Postdoc",'Salary & Fringe'!$F$1:'Salary & Fringe'!$F$300,"Calendar*")+SUMIFS('Salary & Fringe'!$O$1:'Salary & Fringe'!$O$300,'Salary & Fringe'!$E$1:'Salary & Fringe'!$E$300,"Postdoc",'Salary & Fringe'!$F$1:'Salary & Fringe'!$F$300,"Hourly") -> 0 | E14: =SUMIFS('Salary & Fringe'!$O$1:'Salary & Fringe'!$O$300,'Salary & Fringe'!$E$1:'Salary & Fringe'!$E$300,"Postdoc",'Salary & Fringe'!$F$1:'Salary & Fringe'!$F$300,"Academic") -> 0 | F14: =SUMIFS('Salary & Fringe'!$O$1:'Salary & Fringe'!$O$300,'Salary & Fringe'!$E$1:'Salary & Fringe'!$E$300,"Postdoc",'Salary & Fringe'!$F$1:'Salary & Fringe'!$F$300,"Summer") -> 0 | G14: =SUMIF('Salary & Fringe'!$E$1:$E$300,"Postdoc",'Salary & Fringe'!$Y$1:$Y$300) -> 0 | I14: =SUMIF('Salary & Fringe'!$E$1:$E$300,"Postdoc",'Salary & Fringe'!$AI$1:$AI$300) -> 0 | K14: =G14+I14 -> 0
B15: Graduate Students | D15: =SUMIFS('Salary & Fringe'!$O$1:'Salary & Fringe'!$O$300,'Salary & Fringe'!$E$1:'Salary & Fringe'!$E$300,"Grad",'Salary & Fringe'!$F$1:'Salary & Fringe'!$F$300,"Calendar*")+SUMIFS('Salary & Fringe'!$O$1:'Salary & Fringe'!$O$300,'Salary & Fringe'!$E$1:'Salary & Fringe'!$E$300,"Grad",'Salary & Fringe'!$F$1:'Salary & Fringe'!$F$300,"Hourly") -> 0 | E15: =SUMIFS('Salary & Fringe'!$O$1:'Salary & Fringe'!$O$300,'Salary & Fringe'!$E$1:'Salary & Fringe'!$E$300,"Grad",'Salary & Fringe'!$F$1:'Salary & Fringe'!$F$300,"Academic")*2 -> 0 | F15: =SUMIFS('Salary & Fringe'!$O$1:'Salary & Fringe'!$O$300,'Salary & Fringe'!$E$1:'Salary & Fringe'!$E$300,"Grad",'Salary & Fringe'!$F$1:'Salary & Fringe'!$F$300,"Summer")*2 -> 0 | G15: =SUMIF('Salary & Fringe'!$E$1:$E$300,"Grad",'Salary & Fringe'!$Y$1:$Y$300) -> 0 | I15: =SUMIF('Salary & Fringe'!$E$1:$E$300,"Grad",'Salary & Fringe'!$AI$1:$AI$300) -> 0 | K15: =G15+I15 -> 0
B16: Undergraduate Students*** | D16: =SUMIF('Salary & Fringe'!$E$1:$E$300,"Undergrad",'Salary & Fringe'!$O$1:$O$300) -> 0 | E16: 0 | F16: 0 | G16: =SUMIF('Salary & Fringe'!$E$1:$E$300,"Undergrad",'Salary & Fringe'!$Y$1:$Y$300) -> 0 | I16: =SUMIF('Salary & Fringe'!$E$1:$E$300,"Undergrad",'Salary & Fringe'!$AI$1:$AI$300) -> 0 | K16: 0
A17: =SUMIFS('Salary & Fringe'!$I$1:$I$300,'Salary & Fringe'!$E$1:$E$300,"Clerical", 'Salary & Fringe'!$O$1:'Salary & Fringe'!$O$300, ">0") -> 0 | B17: Secretarial/Clerical | D17: =SUMIFS('Salary & Fringe'!$O$1:'Salary & Fringe'!$O$300,'Salary & Fringe'!$E$1:'Salary & Fringe'!$E$300,"Clerical",'Salary & Fringe'!$F$1:'Salary & Fringe'!$F$300,"Calendar*")+SUMIFS('Salary & Fringe'!$O$1:'Salary & Fringe'!$O$300,'Salary & Fringe'!$E$1:'Salary & Fringe'!$E$300,"Clerical",'Salary & Fringe'!$F$1:'Salary & Fringe'!$F$300,"Hourly") -> 0 | E17: =SUMIFS('Salary & Fringe'!$O$1:'Salary & Fringe'!$O$300,'Salary & Fringe'!$E$1:'Salary & Fringe'!$E$300,"Clerical",'Salary & Fringe'!$F$1:'Salary & Fringe'!$F$300,"Academic") -> 0 | F17: =SUMIFS('Salary & Fringe'!$O$1:'Salary & Fringe'!$O$300,'Salary & Fringe'!$E$1:'Salary & Fringe'!$E$300,"Clerical",'Salary & Fringe'!$F$1:'Salary & Fringe'!$F$300,"Summer") -> 0 | G17: =SUMIF('Salary & Fringe'!$E$1:$E$300,"Clerical",'Salary & Fringe'!$Y$1:$Y$300) -> 0 | I17: =SUMIF('Salary & Fringe'!$E$1:$E$300,"Clerical",'Salary & Fringe'!$AI$1:$AI$300) -> 0 | K17: 0
A18: =SUMIFS('Salary & Fringe'!$I$1:$I$300,'Salary & Fringe'!$E$1:$E$300,"Other 1", 'Salary & Fringe'!$O$1:'Salary & Fringe'!$O$300, ">0") -> 0 | B18: =IF(G18>0,(INDEX('Salary & Fringe'!$B$1:$B$300,MATCH("Other 1",'Salary & Fringe'!$E$1:$E$300,FALSE),1)),"") ->  | D18: =SUMIFS('Salary & Fringe'!$O$1:'Salary & Fringe'!$O$300,'Salary & Fringe'!$E$1:'Salary & Fringe'!$E$300,"Other 1",'Salary & Fringe'!$F$1:'Salary & Fringe'!$F$300,"Calendar*")+SUMIFS('Salary & Fringe'!$O$1:'Salary & Fringe'!$O$300,'Salary & Fringe'!$E$1:'Salary & Fringe'!$E$300,"Other 1",'Salary & Fringe'!$F$1:'Salary & Fringe'!$F$300,"Hourly") -> 0 | E18: =SUMIFS('Salary & Fringe'!$O$1:'Salary & Fringe'!$O$300,'Salary & Fringe'!$E$1:'Salary & Fringe'!$E$300,"Other 1",'Salary & Fringe'!$F$1:'Salary & Fringe'!$F$300,"Academic") -> 0 | F18: =SUMIFS('Salary & Fringe'!$O$1:'Salary & Fringe'!$O$300,'Salary & Fringe'!$E$1:'Salary & Fringe'!$E$300,"Other 1",'Salary & Fringe'!$F$1:'Salary & Fringe'!$F$300,"Summer") -> 0 | G18: =SUMIF('Salary & Fringe'!$E$1:$E$300,"Other 1",'Salary & Fringe'!$Y$1:$Y$300) -> 0 | I18: =SUMIF('Salary & Fringe'!$E$1:$E$300,"Other 1",'Salary & Fringe'!$AI$1:$AI$300) -> 0 | K18: 0
A19: =SUMIFS('Salary & Fringe'!$I$1:$I$300,'Salary & Fringe'!$E$1:$E$300,"Other 2", 'Salary & Fringe'!$O$1:'Salary & Fringe'!$O$300, ">0") -> 0 | B19: =IF(G19>0,(INDEX('Salary & Fringe'!$B$1:$B$300,MATCH("Other 2",'Salary & Fringe'!$E$1:$E$300,FALSE),1)),"") ->  | D19: =SUMIFS('Salary & Fringe'!$O$1:'Salary & Fringe'!$O$300,'Salary & Fringe'!$E$1:'Salary & Fringe'!$E$300,"Other 2",'Salary & Fringe'!$F$1:'Salary & Fringe'!$F$300,"Calendar*")+SUMIFS('Salary & Fringe'!$O$1:'Salary & Fringe'!$O$300,'Salary & Fringe'!$E$1:'Salary & Fringe'!$E$300,"Other 2",'Salary & Fringe'!$F$1:'Salary & Fringe'!$F$300,"Hourly") -> 0 | E19: =SUMIFS('Salary & Fringe'!$O$1:'Salary & Fringe'!$O$300,'Salary & Fringe'!$E$1:'Salary & Fringe'!$E$300,"Other 2",'Salary & Fringe'!$F$1:'Salary & Fringe'!$F$300,"Academic") -> 0 | F19: =SUMIFS('Salary & Fringe'!$O$1:'Salary & Fringe'!$O$300,'Salary & Fringe'!$E$1:'Salary & Fringe'!$E$300,"Other 2",'Salary & Fringe'!$F$1:'Salary & Fringe'!$F$300,"Summer") -> 0 | G19: =SUMIF('Salary & Fringe'!$E$1:$E$300,"Other 2",'Salary & Fringe'!$Y$1:$Y$300) -> 0 | I19: =SUMIF('Salary & Fringe'!$E$1:$E$300,"Other 2",'Salary & Fringe'!$AI$1:$AI$300) -> 0 | K19: 0
A20: =SUMIFS('Salary & Fringe'!$I$1:$I$300,'Salary & Fringe'!$E$1:$E$300,"Other 3", 'Salary & Fringe'!$O$1:'Salary & Fringe'!$O$300, ">0") -> 0 | B20: =IF(G20>0,(INDEX('Salary & Fringe'!$B$1:$B$300,MATCH("Other 3",'Salary & Fringe'!$E$1:$E$300,FALSE),1)),"") ->  | D20: =SUMIFS('Salary & Fringe'!$O$1:'Salary & Fringe'!$O$300,'Salary & Fringe'!$E$1:'Salary & Fringe'!$E$300,"Other 3",'Salary & Fringe'!$F$1:'Salary & Fringe'!$F$300,"Calendar*")+SUMIFS('Salary & Fringe'!$O$1:'Salary & Fringe'!$O$300,'Salary & Fringe'!$E$1:'Salary & Fringe'!$E$300,"Other 3",'Salary & Fringe'!$F$1:'Salary & Fringe'!$F$300,"Hourly") -> 0 | E20: =SUMIFS('Salary & Fringe'!$O$1:'Salary & Fringe'!$O$300,'Salary & Fringe'!$E$1:'Salary & Fringe'!$E$300,"Other 3",'Salary & Fringe'!$F$1:'Salary & Fringe'!$F$300,"Academic") -> 0 | F20: =SUMIFS('Salary & Fringe'!$O$1:'Salary & Fringe'!$O$300,'Salary & Fringe'!$E$1:'Salary & Fringe'!$E$300,"Other 3",'Salary & Fringe'!$F$1:'Salary & Fringe'!$F$300,"Summer") -> 0 | G20: =SUMIF('Salary & Fringe'!$E$1:$E$300,"Other 3",'Salary & Fringe'!$Y$1:$Y$300) -> 0 | I20: =SUMIF('Salary & Fringe'!$E$1:$E$300,"Other 3",'Salary & Fringe'!$AI$1:$AI$300) -> 0 | K20: 0
A21: =SUMIFS('Salary & Fringe'!$I$1:$I$300,'Salary & Fringe'!$E$1:$E$300,"Other 4", 'Salary & Fringe'!$O$1:'Salary & Fringe'!$O$300, ">0") -> 0 | B21: =IF(G21>0,(INDEX('Salary & Fringe'!$B$1:$B$300,MATCH("Other 4",'Salary & Fringe'!$E$1:$E$300,FALSE),1)),"") ->  | D21: =SUMIFS('Salary & Fringe'!$O$1:'Salary & Fringe'!$O$300,'Salary & Fringe'!$E$1:'Salary & Fringe'!$E$300,"Other 4",'Salary & Fringe'!$F$1:'Salary & Fringe'!$F$300,"Calendar*")+SUMIFS('Salary & Fringe'!$O$1:'Salary & Fringe'!$O$300,'Salary & Fringe'!$E$1:'Salary & Fringe'!$E$300,"Other 4",'Salary & Fringe'!$F$1:'Salary & Fringe'!$F$300,"Hourly") -> 0 | E21: =SUMIFS('Salary & Fringe'!$O$1:'Salary & Fringe'!$O$300,'Salary & Fringe'!$E$1:'Salary & Fringe'!$E$300,"Other 4",'Salary & Fringe'!$F$1:'Salary & Fringe'!$F$300,"Academic") -> 0 | F21: =SUMIFS('Salary & Fringe'!$O$1:'Salary & Fringe'!$O$300,'Salary & Fringe'!$E$1:'Salary & Fringe'!$E$300,"Other 4",'Salary & Fringe'!$F$1:'Salary & Fringe'!$F$300,"Summer") -> 0 | G21: =SUMIF('Salary & Fringe'!$E$1:$E$300,"Other 4",'Salary & Fringe'!$Y$1:$Y$300) -> 0 | I21: =SUMIF('Salary & Fringe'!$E$1:$E$300,"Other 4",'Salary & Fringe'!$AI$1:$AI$300) -> 0 | K21: 0
A22: =SUMIFS('Salary & Fringe'!$I$1:$I$300,'Salary & Fringe'!$E$1:$E$300,"Other 5", 'Salary & Fringe'!$O$1:'Salary & Fringe'!$O$300, ">0") -> 0 | B22: =IF(G22>0,(INDEX('Salary & Fringe'!$B$1:$B$300,MATCH("Other 5",'Salary & Fringe'!$E$1:$E$300,FALSE),1)),"") ->  | D22: =SUMIFS('Salary & Fringe'!$O$1:'Salary & Fringe'!$O$300,'Salary & Fringe'!$E$1:'Salary & Fringe'!$E$300,"Other 5",'Salary & Fringe'!$F$1:'Salary & Fringe'!$F$300,"Calendar*")+SUMIFS('Salary & Fringe'!$O$1:'Salary & Fringe'!$O$300,'Salary & Fringe'!$E$1:'Salary & Fringe'!$E$300,"Other 5",'Salary & Fringe'!$F$1:'Salary & Fringe'!$F$300,"Hourly") -> 0 | E22: =SUMIFS('Salary & Fringe'!$O$1:'Salary & Fringe'!$O$300,'Salary & Fringe'!$E$1:'Salary & Fringe'!$E$300,"Other 5",'Salary & Fringe'!$F$1:'Salary & Fringe'!$F$300,"Academic") -> 0 | F22: =SUMIFS('Salary & Fringe'!$O$1:'Salary & Fringe'!$O$300,'Salary & Fringe'!$E$1:'Salary & Fringe'!$E$300,"Other 5",'Salary & Fringe'!$F$1:'Salary & Fringe'!$F$300,"Summer") -> 0 | G22: =SUMIF('Salary & Fringe'!$E$1:$E$300,"Other 5",'Salary & Fringe'!$Y$1:$Y$300) -> 0 | I22: =SUMIF('Salary & Fringe'!$E$1:$E$300,"Other 5",'Salary & Fringe'!$AI$1:$AI$300) -> 0 | K22: 0
A23: =SUMIFS('Salary & Fringe'!$I$1:$I$300,'Salary & Fringe'!$E$1:$E$300,"Other 6", 'Salary & Fringe'!$O$1:'Salary & Fringe'!$O$300, ">0") -> 0 | B23: =IF(G23>0,(INDEX('Salary & Fringe'!$B$1:$B$300,MATCH("Other 6",'Salary & Fringe'!$E$1:$E$300,FALSE),1)),"") ->  | D23: =SUMIFS('Salary & Fringe'!$O$1:'Salary & Fringe'!$O$300,'Salary & Fringe'!$E$1:'Salary & Fringe'!$E$300,"Other 6",'Salary & Fringe'!$F$1:'Salary & Fringe'!$F$300,"Calendar*")+SUMIFS('Salary & Fringe'!$O$1:'Salary & Fringe'!$O$300,'Salary & Fringe'!$E$1:'Salary & Fringe'!$E$300,"Other 6",'Salary & Fringe'!$F$1:'Salary & Fringe'!$F$300,"Hourly") -> 0 | E23: =SUMIFS('Salary & Fringe'!$O$1:'Salary & Fringe'!$O$300,'Salary & Fringe'!$E$1:'Salary & Fringe'!$E$300,"Other 6",'Salary & Fringe'!$F$1:'Salary & Fringe'!$F$300,"Academic") -> 0 | F23: =SUMIFS('Salary & Fringe'!$O$1:'Salary & Fringe'!$O$300,'Salary & Fringe'!$E$1:'Salary & Fringe'!$E$300,"Other 6",'Salary & Fringe'!$F$1:'Salary & Fringe'!$F$300,"Summer") -> 0 | G23: =SUMIF('Salary & Fringe'!$E$1:$E$300,"Other 6",'Salary & Fringe'!$Y$1:$Y$300) -> 0 | I23: =SUMIF('Salary & Fringe'!$E$1:$E$300,"Other 6",'Salary & Fringe'!$AI$1:$AI$300) -> 0 | K23: 0
A24: =SUM(A14:A23) -> 0 | B24: Total Number Other Personnel**** | H24: Total Other Personnel | K24: =SUM(K14:K23) -> 0
H25: Total Salary, Wages and Fringe Benefits (A+B) | K25: =K11+K24 -> 0
A26: C. Equipment Description
A27: Equipment Item | K27: Funds Requested
A28: =IF(ISBLANK(Budget!J47),"",Budget!A47) ->  | K28: =IF(Budget!J47>0,Budget!J47,0) -> 0
A29: =IF(ISBLANK(Budget!J48),"",Budget!A48) ->  | K29: =IF(Budget!J48>0,Budget!J48,0) -> 0
A30: =IF(ISBLANK(Budget!J49),"",Budget!A49) ->  | K30: =IF(Budget!J49>0,Budget!J49,0) -> 0
A31: =IF(ISBLANK(Budget!J50),"",Budget!A50) ->  | K31: =IF(Budget!J50>0,Budget!J50,0) -> 0
A32: =IF(ISBLANK(Budget!J51),"",Budget!A51) ->  | K32: =IF(Budget!J51>0,Budget!J51,0) -> 0
J33: Total Equipment | K33: =TotalEquipment3 -> 0
A35: D. Travel | K35: Funds Requested
A36: 1. Domestic Travel Costs (incl. Canada, Mexico and U.S. Possessions) | K36: =Budget!J39 -> 0
A37: 2. Foreign Travel Costs | K37: =Budget!J44 -> 0
J38: Total Travel Cost | K38: =SUM(K36:K37) -> 0
A40: E. Participant/Trainee Support Costs | K40: Funds Requested
A41: 1. Tuition/Fees/Health Insurance | K41: =SUMIF(Budget!$A$2:$A$504,"PS Tuition/Fees/Health Insurance",Budget!$J$2:$J$504) -> 0
A42: 2. Stipends | K42: =SUMIF(Budget!$A$2:$A$504,"PS Stipends",Budget!$J$2:$J$504) -> 0
A43: 3. Travel | K43: =SUMIF(Budget!$A$2:$A$504,"PS Travel",Budget!$J$2:$J$504) -> 0
A44: 4. Subsistence | K44: =SUMIF(Budget!$A$2:$A$504,"PS Subsistence",Budget!$J$2:$J$504) -> 0
A45: 5. Other | K45: =SUMIF(Budget!$A$2:$A$504,"PS Other",Budget!$J$2:$J$504) -> 0
A46: Number of Participants/Trainees | H46: Total Participant Support/Trainee Support Costs | K46: =SUM(K41:K45) -> 0
A48: F. Other Direct Costs | K48: Funds Requested
A49: 1. Materials and Supplies | K49: =SUMIF(Budget!$A$2:$A$504,"Materials & Supplies",Budget!$J$2:$J$504) -> 0
A50: 2. Publication Costs | K50: =SUMIF(Budget!$A$2:$A$504,"Publication Costs/Page Charges",Budget!$J$2:$J$504) -> 0
A51: 3. Consultant Services | K51: =SUMIF(Budget!$A$2:$A$504,"Consultant Services",Budget!$J$2:$J$504) -> 0
A52: 4. ADP/Computer Services | K52: =SUMIF(Budget!$A$2:$A$504,"Computer (ADPE) Services",Budget!$J$2:$J$504) -> 0
A53: 5. Subawards/Consortium/Contractual Costs | K53: =TotalSubs3+TotalMulti3+SUMIF(Budget!$A$2:$A$504,"Vendor Contract",Budget!$J$2:$J$504)+SUMIF(Budget!$A$2:$A$504,"Service Agreement",Budget!$J$2:$J$504) -> 0
A54: 6. Equipment or Facility Rental/User Fees | K54: =SUMIF(Budget!$A$2:$A$504,"Other Rentals",Budget!$J$2:$J$504)+SUMIF(Budget!$A$2:$A$504,"Space Rentals",Budget!$J$2:$J$504)+SUMIF(Budget!$A$2:$A$504,"Equipment or Facility Rental/User Fees",Budget!$J$2:$J$504) -> 0
A55: 7. Alterations and Renovations | K55: =SUMIF(Budget!$A$2:$A$504,"Alterations and Renovations",Budget!$J$2:$J$504) -> 0
A56: 8. GSR Tuition/Fees | K56: =TotalGSR3 -> 0
A57: 9. Other | K57: =SUMIF(Budget!$A$2:$A$504,"Other",Budget!$J$2:$J$504)+SUMIF(Budget!$A$2:$A$504,"Other Maintenance Fees",Budget!$J$2:$J$504) -> 0
A58: 10. | K58: 0
I59: Total Other Direct Costs | K59: =SUM(K49:K58) -> 0
A61: G. Direct Costs | K61: Funds Requested
A62: Total Direct Costs (A thru F) | K62: =K25+K33+K38+K46+K59 -> 0
A64: H. Indirect Costs
A65: Indirect Cost Rate (%) | F65: Indirect Cost Base ($) | K65: Funds Requested
A66: =Budget!J105 ->  | F66: =Budget!J101 -> 0 | K66: =ROUND((A66*F66),0) -> 
K67: =ROUND((A67*F67),0) -> 0
K68: 0
K69: =ROUND((A69*F69),0) -> 0
I70: Total Indirect Costs | K70: =SUM(K66:K69) -> 
A72: I. Total Direct and Indirect Costs | K72: Funds Requested
A73: Total Direct and Indirect Institutional Costs (G+H) | K73: =K62+K70 -> 
A75: J. Fee | K75: Funds Requested
A79: Alert:
A80: *Base salary is calculated per NIH guidelines. Please take a close look at the specific RFP to see how you should calculate the base salary
A81: **If there are more than 5 Senior Key people in the budget, they will have to be manually entered into the R&R budget in Cayuse
A82: ***Undergrads will always show as calendar. If the effort should be in Academic and/or Summer, this will have to be manually entered into the R&R budget in Cayuse
A83: ****Please keep in mind that the total number of Other Personnel doesn't take into account Grad or Undergrad students unless you add them or if there are more than 6 "Other" titles

Sheet Grants.gov Detailed Yr 4 (hidden)
A1: Research & Related Budget Year 4
A3: A. Senior/Key Persons
A4: Name | B4: Base Salary* | C4: Cal. Salary | D4: Acad. Salary | E4: Sum. Salary | F4: Cal. Mons | G4: Acad. Mons | H4: Sum. Mons | I4: Requested Salary | J4: Fringe Benefits | K4: Funds Req.
A5: =IF(B5>0,(INDEX('Salary & Fringe'!$A$1:$A$300,MATCH("Senior Person 1",'Salary & Fringe'!$E$1:$E$300,FALSE),1)),"") ->  | B5: =IFERROR(IF(F5>0, C5, D5+E5),0) -> 0 | C5: =IFERROR(IF(F5>0, (I5/SUM(F5:H5)*12),0),0) -> 0 | D5: =IFERROR(IF($C5=0, (I5/SUM(F5:H5)*9),0),0) -> 0 | E5: =IFERROR(IF($C5=0, (I5/SUM(F5:H5)*3),0),0) -> 0 | F5: =SUMIFS('Salary & Fringe'!$P$1:'Salary & Fringe'!$P$300,'Salary & Fringe'!$E$1:'Salary & Fringe'!$E$300,"Senior Person 1",'Salary & Fringe'!$F$1:'Salary & Fringe'!$F$300,"Calendar*") -> 0 | G5: =SUMIFS('Salary & Fringe'!$P$1:'Salary & Fringe'!$P$300,'Salary & Fringe'!$E$1:'Salary & Fringe'!$E$300,"Senior Person 1",'Salary & Fringe'!$F$1:'Salary & Fringe'!$F$300,"Academic") -> 0 | H5: =SUMIFS('Salary & Fringe'!$P$1:'Salary & Fringe'!$P$300,'Salary & Fringe'!$E$1:'Salary & Fringe'!$E$300,"Senior Person 1",'Salary & Fringe'!$F$1:'Salary & Fringe'!$F$300,"Summer") -> 0 | I5: =SUMIF('Salary & Fringe'!$E$1:$E$300,"Senior Person 1",'Salary & Fringe'!$Z$1:$Z$300) -> 0 | J5: =SUMIF('Salary & Fringe'!$E$1:$E$300,"Senior Person 1",'Salary & Fringe'!$AJ$1:$AJ$300) -> 0 | K5: =I5+J5 -> 0
A6: =IF(B6>0,(INDEX('Salary & Fringe'!$A$1:$A$300,MATCH("Senior Person 2",'Salary & Fringe'!$E$1:$E$300,FALSE),1)),"") ->  | B6: =IFERROR(IF(F6>0, C6, D6+E6),0) -> 0 | C6: =IFERROR(IF(F6>0, (I6/SUM(F6:H6)*12),0),0) -> 0 | D6: =IFERROR(IF($C6=0, (I6/SUM(F6:H6)*9),0),0) -> 0 | E6: =IFERROR(IF($C6=0, (I6/SUM(F6:H6)*3),0),0) -> 0 | F6: =SUMIFS('Salary & Fringe'!$P$1:'Salary & Fringe'!$P$300,'Salary & Fringe'!$E$1:'Salary & Fringe'!$E$300,"Senior Person 2",'Salary & Fringe'!$F$1:'Salary & Fringe'!$F$300,"Calendar*") -> 0 | G6: =SUMIFS('Salary & Fringe'!$P$1:'Salary & Fringe'!$P$300,'Salary & Fringe'!$E$1:'Salary & Fringe'!$E$300,"Senior Person 2",'Salary & Fringe'!$F$1:'Salary & Fringe'!$F$300,"Academic") -> 0 | H6: =SUMIFS('Salary & Fringe'!$P$1:'Salary & Fringe'!$P$300,'Salary & Fringe'!$E$1:'Salary & Fringe'!$E$300,"Senior Person 2",'Salary & Fringe'!$F$1:'Salary & Fringe'!$F$300,"Summer") -> 0 | I6: =SUMIF('Salary & Fringe'!$E$1:$E$300,"Senior Person 2",'Salary & Fringe'!$Z$1:$Z$300) -> 0 | J6: =SUMIF('Salary & Fringe'!$E$1:$E$300,"Senior Person 2",'Salary & Fringe'!$AJ$1:$AJ$300) -> 0 | K6: =I6+J6 -> 0
A7: =IF(B7>0,(INDEX('Salary & Fringe'!$A$1:$A$300,MATCH("Senior Person 3",'Salary & Fringe'!$E$1:$E$300,FALSE),1)),"") ->  | B7: 0 | C7: 0 | D7: 0 | E7: 0 | F7: =SUMIFS('Salary & Fringe'!$P$1:'Salary & Fringe'!$P$300,'Salary & Fringe'!$E$1:'Salary & Fringe'!$E$300,"Senior Person 3",'Salary & Fringe'!$F$1:'Salary & Fringe'!$F$300,"Calendar*") -> 0 | G7: =SUMIFS('Salary & Fringe'!$P$1:'Salary & Fringe'!$P$300,'Salary & Fringe'!$E$1:'Salary & Fringe'!$E$300,"Senior Person 3",'Salary & Fringe'!$F$1:'Salary & Fringe'!$F$300,"Academic") -> 0 | H7: =SUMIFS('Salary & Fringe'!$P$1:'Salary & Fringe'!$P$300,'Salary & Fringe'!$E$1:'Salary & Fringe'!$E$300,"Senior Person 3",'Salary & Fringe'!$F$1:'Salary & Fringe'!$F$300,"Summer") -> 0 | I7: =SUMIF('Salary & Fringe'!$E$1:$E$300,"Senior Person 3",'Salary & Fringe'!$Z$1:$Z$300) -> 0 | J7: =SUMIF('Salary & Fringe'!$E$1:$E$300,"Senior Person 3",'Salary & Fringe'!$AJ$1:$AJ$300) -> 0 | K7: 0
A8: =IF(B8>0,(INDEX('Salary & Fringe'!$A$1:$A$300,MATCH("Senior Person 4",'Salary & Fringe'!$E$1:$E$300,FALSE),1)),"") ->  | B8: 0 | C8: 0 | D8: 0 | E8: 0 | F8: =SUMIFS('Salary & Fringe'!$P$1:'Salary & Fringe'!$P$300,'Salary & Fringe'!$E$1:'Salary & Fringe'!$E$300,"Senior Person 4",'Salary & Fringe'!$F$1:'Salary & Fringe'!$F$300,"Calendar*") -> 0 | G8: =SUMIFS('Salary & Fringe'!$P$1:'Salary & Fringe'!$P$300,'Salary & Fringe'!$E$1:'Salary & Fringe'!$E$300,"Senior Person 4",'Salary & Fringe'!$F$1:'Salary & Fringe'!$F$300,"Academic") -> 0 | H8: =SUMIFS('Salary & Fringe'!$P$1:'Salary & Fringe'!$P$300,'Salary & Fringe'!$E$1:'Salary & Fringe'!$E$300,"Senior Person 4",'Salary & Fringe'!$F$1:'Salary & Fringe'!$F$300,"Summer") -> 0 | I8: =SUMIF('Salary & Fringe'!$E$1:$E$300,"Senior Person 4",'Salary & Fringe'!$Z$1:$Z$300) -> 0 | J8: =SUMIF('Salary & Fringe'!$E$1:$E$300,"Senior Person 4",'Salary & Fringe'!$AJ$1:$AJ$300) -> 0 | K8: 0
A9: =IF(B9>0,(INDEX('Salary & Fringe'!$A$1:$A$300,MATCH("Senior Person 5",'Salary & Fringe'!$E$1:$E$300,FALSE),1)),"") ->  | B9: 0 | C9: 0 | D9: 0 | E9: 0 | F9: =SUMIFS('Salary & Fringe'!$P$1:'Salary & Fringe'!$P$300,'Salary & Fringe'!$E$1:'Salary & Fringe'!$E$300,"Senior Person 5",'Salary & Fringe'!$F$1:'Salary & Fringe'!$F$300,"Calendar*") -> 0 | G9: =SUMIFS('Salary & Fringe'!$P$1:'Salary & Fringe'!$P$300,'Salary & Fringe'!$E$1:'Salary & Fringe'!$E$300,"Senior Person 5",'Salary & Fringe'!$F$1:'Salary & Fringe'!$F$300,"Academic") -> 0 | H9: =SUMIFS('Salary & Fringe'!$P$1:'Salary & Fringe'!$P$300,'Salary & Fringe'!$E$1:'Salary & Fringe'!$E$300,"Senior Person 5",'Salary & Fringe'!$F$1:'Salary & Fringe'!$F$300,"Summer") -> 0 | I9: =SUMIF('Salary & Fringe'!$E$1:$E$300,"Senior Person 5",'Salary & Fringe'!$Z$1:$Z$300) -> 0 | J9: =SUMIF('Salary & Fringe'!$E$1:$E$300,"Senior Person 5",'Salary & Fringe'!$AJ$1:$AJ$300) -> 0 | K9: 0
F10: Total Other Senior/Key Person** | I10: =SUMIF('Salary & Fringe'!$E$1:$E$300,"Senior (Other)",'Salary & Fringe'!$Z$1:$Z$300) -> 0 | J10: =SUMIF('Salary & Fringe'!$E$1:$E$300,"Senior (Other)",'Salary & Fringe'!$AJ$1:$AJ$300) -> 0 | K10: 0
I11: Total Senior/Key Person | K11: =SUM(K5:K10) -> 0
A12: B. Other Personnel
A13: Number of Personnel | B13: Project Role | D13: Cal. Months | E13: Acad. Months | F13: Sum. Months | G13: Requested Salary | I13: Fringe Benefits | K13: Funds Requested
A14: =SUMIFS('Salary & Fringe'!$I$1:$I$300,'Salary & Fringe'!$E$1:$E$300,"Postdoc", 'Salary & Fringe'!$P$1:'Salary & Fringe'!$P$300, ">0") -> 0 | B14: Post Doctoral Associates | D14: =SUMIFS('Salary & Fringe'!$P$1:'Salary & Fringe'!$P$300,'Salary & Fringe'!$E$1:'Salary & Fringe'!$E$300,"Postdoc",'Salary & Fringe'!$F$1:'Salary & Fringe'!$F$300,"Calendar*")+SUMIFS('Salary & Fringe'!$P$1:'Salary & Fringe'!$P$300,'Salary & Fringe'!$E$1:'Salary & Fringe'!$E$300,"Postdoc",'Salary & Fringe'!$F$1:'Salary & Fringe'!$F$300,"Hourly") -> 0 | E14: =SUMIFS('Salary & Fringe'!$P$1:'Salary & Fringe'!$P$300,'Salary & Fringe'!$E$1:'Salary & Fringe'!$E$300,"Postdoc",'Salary & Fringe'!$F$1:'Salary & Fringe'!$F$300,"Academic") -> 0 | F14: =SUMIFS('Salary & Fringe'!$P$1:'Salary & Fringe'!$P$300,'Salary & Fringe'!$E$1:'Salary & Fringe'!$E$300,"Postdoc",'Salary & Fringe'!$F$1:'Salary & Fringe'!$F$300,"Summer") -> 0 | G14: =SUMIF('Salary & Fringe'!$E$1:$E$300,"Postdoc",'Salary & Fringe'!$Z$1:$Z$300) -> 0 | I14: =SUMIF('Salary & Fringe'!$E$1:$E$300,"Postdoc",'Salary & Fringe'!$AJ$1:$AJ$300) -> 0 | K14: =G14+I14 -> 0
B15: Graduate Students | D15: =SUMIFS('Salary & Fringe'!$P$1:'Salary & Fringe'!$P$300,'Salary & Fringe'!$E$1:'Salary & Fringe'!$E$300,"Grad",'Salary & Fringe'!$F$1:'Salary & Fringe'!$F$300,"Calendar*")+SUMIFS('Salary & Fringe'!$P$1:'Salary & Fringe'!$P$300,'Salary & Fringe'!$E$1:'Salary & Fringe'!$E$300,"Grad",'Salary & Fringe'!$F$1:'Salary & Fringe'!$F$300,"Hourly") -> 0 | E15: =SUMIFS('Salary & Fringe'!$P$1:'Salary & Fringe'!$P$300,'Salary & Fringe'!$E$1:'Salary & Fringe'!$E$300,"Grad",'Salary & Fringe'!$F$1:'Salary & Fringe'!$F$300,"Academic")*2 -> 0 | F15: =SUMIFS('Salary & Fringe'!$P$1:'Salary & Fringe'!$P$300,'Salary & Fringe'!$E$1:'Salary & Fringe'!$E$300,"Grad",'Salary & Fringe'!$F$1:'Salary & Fringe'!$F$300,"Summer")*2 -> 0 | G15: =SUMIF('Salary & Fringe'!$E$1:$E$300,"Grad",'Salary & Fringe'!$Z$1:$Z$300) -> 0 | I15: =SUMIF('Salary & Fringe'!$E$1:$E$300,"Grad",'Salary & Fringe'!$AJ$1:$AJ$300) -> 0 | K15: =G15+I15 -> 0
B16: Undergraduate Students*** | D16: =SUMIF('Salary & Fringe'!$E$1:$E$300,"Undergrad",'Salary & Fringe'!$P$1:$P$300) -> 0 | E16: 0 | F16: 0 | G16: =SUMIF('Salary & Fringe'!$E$1:$E$300,"Undergrad",'Salary & Fringe'!$Z$1:$Z$300) -> 0 | I16: =SUMIF('Salary & Fringe'!$E$1:$E$300,"Undergrad",'Salary & Fringe'!$AJ$1:$AJ$300) -> 0 | K16: 0
A17: =SUMIFS('Salary & Fringe'!$I$1:$I$300,'Salary & Fringe'!$E$1:$E$300,"Clerical", 'Salary & Fringe'!$P$1:'Salary & Fringe'!$P$300, ">0") -> 0 | B17: Secretarial/Clerical | D17: =SUMIFS('Salary & Fringe'!$P$1:'Salary & Fringe'!$P$300,'Salary & Fringe'!$E$1:'Salary & Fringe'!$E$300,"Clerical",'Salary & Fringe'!$F$1:'Salary & Fringe'!$F$300,"Calendar*")+SUMIFS('Salary & Fringe'!$P$1:'Salary & Fringe'!$P$300,'Salary & Fringe'!$E$1:'Salary & Fringe'!$E$300,"Clerical",'Salary & Fringe'!$F$1:'Salary & Fringe'!$F$300,"Hourly") -> 0 | E17: =SUMIFS('Salary & Fringe'!$P$1:'Salary & Fringe'!$P$300,'Salary & Fringe'!$E$1:'Salary & Fringe'!$E$300,"Clerical",'Salary & Fringe'!$F$1:'Salary & Fringe'!$F$300,"Academic") -> 0 | F17: =SUMIFS('Salary & Fringe'!$P$1:'Salary & Fringe'!$P$300,'Salary & Fringe'!$E$1:'Salary & Fringe'!$E$300,"Clerical",'Salary & Fringe'!$F$1:'Salary & Fringe'!$F$300,"Summer") -> 0 | G17: =SUMIF('Salary & Fringe'!$E$1:$E$300,"Clerical",'Salary & Fringe'!$Z$1:$Z$300) -> 0 | I17: =SUMIF('Salary & Fringe'!$E$1:$E$300,"Clerical",'Salary & Fringe'!$AJ$1:$AJ$300) -> 0 | K17: 0
A18: =SUMIFS('Salary & Fringe'!$I$1:$I$300,'Salary & Fringe'!$E$1:$E$300,"Other 1", 'Salary & Fringe'!$P$1:'Salary & Fringe'!$P$300, ">0") -> 0 | B18: =IF(G18>0,(INDEX('Salary & Fringe'!$B$1:$B$300,MATCH("Other 1",'Salary & Fringe'!$E$1:$E$300,FALSE),1)),"") ->  | D18: =SUMIFS('Salary & Fringe'!$P$1:'Salary & Fringe'!$P$300,'Salary & Fringe'!$E$1:'Salary & Fringe'!$E$300,"Other 1",'Salary & Fringe'!$F$1:'Salary & Fringe'!$F$300,"Calendar*")+SUMIFS('Salary & Fringe'!$P$1:'Salary & Fringe'!$P$300,'Salary & Fringe'!$E$1:'Salary & Fringe'!$E$300,"Other 1",'Salary & Fringe'!$F$1:'Salary & Fringe'!$F$300,"Hourly") -> 0 | E18: =SUMIFS('Salary & Fringe'!$P$1:'Salary & Fringe'!$P$300,'Salary & Fringe'!$E$1:'Salary & Fringe'!$E$300,"Other 1",'Salary & Fringe'!$F$1:'Salary & Fringe'!$F$300,"Academic") -> 0 | F18: =SUMIFS('Salary & Fringe'!$P$1:'Salary & Fringe'!$P$300,'Salary & Fringe'!$E$1:'Salary & Fringe'!$E$300,"Other 1",'Salary & Fringe'!$F$1:'Salary & Fringe'!$F$300,"Summer") -> 0 | G18: =SUMIF('Salary & Fringe'!$E$1:$E$300,"Other 1",'Salary & Fringe'!$Z$1:$Z$300) -> 0 | I18: =SUMIF('Salary & Fringe'!$E$1:$E$300,"Other 1",'Salary & Fringe'!$AJ$1:$AJ$300) -> 0 | K18: 0
A19: =SUMIFS('Salary & Fringe'!$I$1:$I$300,'Salary & Fringe'!$E$1:$E$300,"Other 2", 'Salary & Fringe'!$P$1:'Salary & Fringe'!$P$300, ">0") -> 0 | B19: =IF(G19>0,(INDEX('Salary & Fringe'!$B$1:$B$300,MATCH("Other 2",'Salary & Fringe'!$E$1:$E$300,FALSE),1)),"") ->  | D19: =SUMIFS('Salary & Fringe'!$P$1:'Salary & Fringe'!$P$300,'Salary & Fringe'!$E$1:'Salary & Fringe'!$E$300,"Other 2",'Salary & Fringe'!$F$1:'Salary & Fringe'!$F$300,"Calendar*")+SUMIFS('Salary & Fringe'!$P$1:'Salary & Fringe'!$P$300,'Salary & Fringe'!$E$1:'Salary & Fringe'!$E$300,"Other 2",'Salary & Fringe'!$F$1:'Salary & Fringe'!$F$300,"Hourly") -> 0 | E19: =SUMIFS('Salary & Fringe'!$P$1:'Salary & Fringe'!$P$300,'Salary & Fringe'!$E$1:'Salary & Fringe'!$E$300,"Other 2",'Salary & Fringe'!$F$1:'Salary & Fringe'!$F$300,"Academic") -> 0 | F19: =SUMIFS('Salary & Fringe'!$P$1:'Salary & Fringe'!$P$300,'Salary & Fringe'!$E$1:'Salary & Fringe'!$E$300,"Other 2",'Salary & Fringe'!$F$1:'Salary & Fringe'!$F$300,"Summer") -> 0 | G19: =SUMIF('Salary & Fringe'!$E$1:$E$300,"Other 2",'Salary & Fringe'!$Z$1:$Z$300) -> 0 | I19: =SUMIF('Salary & Fringe'!$E$1:$E$300,"Other 2",'Salary & Fringe'!$AJ$1:$AJ$300) -> 0 | K19: 0
A20: =SUMIFS('Salary & Fringe'!$I$1:$I$300,'Salary & Fringe'!$E$1:$E$300,"Other 3", 'Salary & Fringe'!$P$1:'Salary & Fringe'!$P$300, ">0") -> 0 | B20: =IF(G20>0,(INDEX('Salary & Fringe'!$B$1:$B$300,MATCH("Other 3",'Salary & Fringe'!$E$1:$E$300,FALSE),1)),"") ->  | D20: =SUMIFS('Salary & Fringe'!$P$1:'Salary & Fringe'!$P$300,'Salary & Fringe'!$E$1:'Salary & Fringe'!$E$300,"Other 3",'Salary & Fringe'!$F$1:'Salary & Fringe'!$F$300,"Calendar*")+SUMIFS('Salary & Fringe'!$P$1:'Salary & Fringe'!$P$300,'Salary & Fringe'!$E$1:'Salary & Fringe'!$E$300,"Other 3",'Salary & Fringe'!$F$1:'Salary & Fringe'!$F$300,"Hourly") -> 0 | E20: =SUMIFS('Salary & Fringe'!$P$1:'Salary & Fringe'!$P$300,'Salary & Fringe'!$E$1:'Salary & Fringe'!$E$300,"Other 3",'Salary & Fringe'!$F$1:'Salary & Fringe'!$F$300,"Academic") -> 0 | F20: =SUMIFS('Salary & Fringe'!$P$1:'Salary & Fringe'!$P$300,'Salary & Fringe'!$E$1:'Salary & Fringe'!$E$300,"Other 3",'Salary & Fringe'!$F$1:'Salary & Fringe'!$F$300,"Summer") -> 0 | G20: =SUMIF('Salary & Fringe'!$E$1:$E$300,"Other 3",'Salary & Fringe'!$Z$1:$Z$300) -> 0 | I20: =SUMIF('Salary & Fringe'!$E$1:$E$300,"Other 3",'Salary & Fringe'!$AJ$1:$AJ$300) -> 0 | K20: 0
A21: =SUMIFS('Salary & Fringe'!$I$1:$I$300,'Salary & Fringe'!$E$1:$E$300,"Other 4", 'Salary & Fringe'!$P$1:'Salary & Fringe'!$P$300, ">0") -> 0 | B21: =IF(G21>0,(INDEX('Salary & Fringe'!$B$1:$B$300,MATCH("Other 4",'Salary & Fringe'!$E$1:$E$300,FALSE),1)),"") ->  | D21: =SUMIFS('Salary & Fringe'!$P$1:'Salary & Fringe'!$P$300,'Salary & Fringe'!$E$1:'Salary & Fringe'!$E$300,"Other 4",'Salary & Fringe'!$F$1:'Salary & Fringe'!$F$300,"Calendar*")+SUMIFS('Salary & Fringe'!$P$1:'Salary & Fringe'!$P$300,'Salary & Fringe'!$E$1:'Salary & Fringe'!$E$300,"Other 4",'Salary & Fringe'!$F$1:'Salary & Fringe'!$F$300,"Hourly") -> 0 | E21: =SUMIFS('Salary & Fringe'!$P$1:'Salary & Fringe'!$P$300,'Salary & Fringe'!$E$1:'Salary & Fringe'!$E$300,"Other 4",'Salary & Fringe'!$F$1:'Salary & Fringe'!$F$300,"Academic") -> 0 | F21: =SUMIFS('Salary & Fringe'!$P$1:'Salary & Fringe'!$P$300,'Salary & Fringe'!$E$1:'Salary & Fringe'!$E$300,"Other 4",'Salary & Fringe'!$F$1:'Salary & Fringe'!$F$300,"Summer") -> 0 | G21: =SUMIF('Salary & Fringe'!$E$1:$E$300,"Other 4",'Salary & Fringe'!$Z$1:$Z$300) -> 0 | I21: =SUMIF('Salary & Fringe'!$E$1:$E$300,"Other 4",'Salary & Fringe'!$AJ$1:$AJ$300) -> 0 | K21: 0
A22: =SUMIFS('Salary & Fringe'!$I$1:$I$300,'Salary & Fringe'!$E$1:$E$300,"Other 5", 'Salary & Fringe'!$P$1:'Salary & Fringe'!$P$300, ">0") -> 0 | B22: =IF(G22>0,(INDEX('Salary & Fringe'!$B$1:$B$300,MATCH("Other 5",'Salary & Fringe'!$E$1:$E$300,FALSE),1)),"") ->  | D22: =SUMIFS('Salary & Fringe'!$P$1:'Salary & Fringe'!$P$300,'Salary & Fringe'!$E$1:'Salary & Fringe'!$E$300,"Other 5",'Salary & Fringe'!$F$1:'Salary & Fringe'!$F$300,"Calendar*")+SUMIFS('Salary & Fringe'!$P$1:'Salary & Fringe'!$P$300,'Salary & Fringe'!$E$1:'Salary & Fringe'!$E$300,"Other 5",'Salary & Fringe'!$F$1:'Salary & Fringe'!$F$300,"Hourly") -> 0 | E22: =SUMIFS('Salary & Fringe'!$P$1:'Salary & Fringe'!$P$300,'Salary & Fringe'!$E$1:'Salary & Fringe'!$E$300,"Other 5",'Salary & Fringe'!$F$1:'Salary & Fringe'!$F$300,"Academic") -> 0 | F22: =SUMIFS('Salary & Fringe'!$P$1:'Salary & Fringe'!$P$300,'Salary & Fringe'!$E$1:'Salary & Fringe'!$E$300,"Other 5",'Salary & Fringe'!$F$1:'Salary & Fringe'!$F$300,"Summer") -> 0 | G22: =SUMIF('Salary & Fringe'!$E$1:$E$300,"Other 5",'Salary & Fringe'!$Z$1:$Z$300) -> 0 | I22: =SUMIF('Salary & Fringe'!$E$1:$E$300,"Other 5",'Salary & Fringe'!$AJ$1:$AJ$300) -> 0 | K22: 0
A23: =SUMIFS('Salary & Fringe'!$I$1:$I$300,'Salary & Fringe'!$E$1:$E$300,"Other 6", 'Salary & Fringe'!$P$1:'Salary & Fringe'!$P$300, ">0") -> 0 | B23: =IF(G23>0,(INDEX('Salary & Fringe'!$B$1:$B$300,MATCH("Other 6",'Salary & Fringe'!$E$1:$E$300,FALSE),1)),"") ->  | D23: =SUMIFS('Salary & Fringe'!$P$1:'Salary & Fringe'!$P$300,'Salary & Fringe'!$E$1:'Salary & Fringe'!$E$300,"Other 6",'Salary & Fringe'!$F$1:'Salary & Fringe'!$F$300,"Calendar*")+SUMIFS('Salary & Fringe'!$P$1:'Salary & Fringe'!$P$300,'Salary & Fringe'!$E$1:'Salary & Fringe'!$E$300,"Other 6",'Salary & Fringe'!$F$1:'Salary & Fringe'!$F$300,"Hourly") -> 0 | E23: =SUMIFS('Salary & Fringe'!$P$1:'Salary & Fringe'!$P$300,'Salary & Fringe'!$E$1:'Salary & Fringe'!$E$300,"Other 6",'Salary & Fringe'!$F$1:'Salary & Fringe'!$F$300,"Academic") -> 0 | F23: =SUMIFS('Salary & Fringe'!$P$1:'Salary & Fringe'!$P$300,'Salary & Fringe'!$E$1:'Salary & Fringe'!$E$300,"Other 6",'Salary & Fringe'!$F$1:'Salary & Fringe'!$F$300,"Summer") -> 0 | G23: =SUMIF('Salary & Fringe'!$E$1:$E$300,"Other 6",'Salary & Fringe'!$Z$1:$Z$300) -> 0 | I23: =SUMIF('Salary & Fringe'!$E$1:$E$300,"Other 6",'Salary & Fringe'!$AJ$1:$AJ$300) -> 0 | K23: 0
A24: =SUM(A14:A23) -> 0 | B24: Total Number Other Personnel**** | H24: Total Other Personnel | K24: =SUM(K14:K23) -> 0
H25: Total Salary, Wages and Fringe Benefits (A+B) | K25: =K11+K24 -> 0
A26: C. Equipment Description
A27: Equipment Item | K27: Funds Requested
A28: =IF(ISBLANK(Budget!L47),"",Budget!A47) ->  | K28: =IF(Budget!L47>0,Budget!L47,0) -> 0
A29: =IF(ISBLANK(Budget!L48),"",Budget!A48) ->  | K29: =IF(Budget!L48>0,Budget!L48,0) -> 0
A30: =IF(ISBLANK(Budget!L49),"",Budget!A49) ->  | K30: =IF(Budget!L49>0,Budget!L49,0) -> 0
A31: =IF(ISBLANK(Budget!L50),"",Budget!A50) ->  | K31: =IF(Budget!L50>0,Budget!L50,0) -> 0
A32: =IF(ISBLANK(Budget!L51),"",Budget!A51) ->  | K32: =IF(Budget!L51>0,Budget!L51,0) -> 0
J33: Total Equipment | K33: =TotalEquipment4 -> 0
A35: D. Travel | K35: Funds Requested
A36: 1. Domestic Travel Costs (incl. Canada, Mexico and U.S. Possessions) | K36: =Budget!L39 -> 0
A37: 2. Foreign Travel Costs | K37: =Budget!L44 -> 0
J38: Total Travel Cost | K38: =SUM(K36:K37) -> 0
A40: E. Participant/Trainee Support Costs | K40: Funds Requested
A41: 1. Tuition/Fees/Health Insurance | K41: =SUMIF(Budget!$A$2:$A$504,"PS Tuition/Fees/Health Insurance",Budget!$L$2:$L$504) -> 0
A42: 2. Stipends | K42: =SUMIF(Budget!$A$2:$A$504,"PS Stipends",Budget!$L$2:$L$504) -> 0
A43: 3. Travel | K43: =SUMIF(Budget!$A$2:$A$504,"PS Travel",Budget!$L$2:$L$504) -> 0
A44: 4. Subsistence | K44: =SUMIF(Budget!$A$2:$A$504,"PS Subsistence",Budget!$L$2:$L$504) -> 0
A45: 5. Other | K45: =SUMIF(Budget!$A$2:$A$504,"PS Other",Budget!$L$2:$L$504) -> 0
A46: Number of Participants/Trainees | H46: Total Participant Support/Trainee Support Costs | K46: =SUM(K41:K45) -> 0
A48: F. Other Direct Costs | K48: Funds Requested
A49: 1. Materials and Supplies | K49: =SUMIF(Budget!$A$2:$A$504,"Materials & Supplies",Budget!$L$2:$L$504) -> 0
A50: 2. Publication Costs | K50: =SUMIF(Budget!$A$2:$A$504,"Publication Costs/Page Charges",Budget!$L$2:$L$504) -> 0
A51: 3. Consultant Services | K51: =SUMIF(Budget!$A$2:$A$504,"Consultant Services",Budget!$L$2:$L$504) -> 0
A52: 4. ADP/Computer Services | K52: =SUMIF(Budget!$A$2:$A$504,"Computer (ADPE) Services",Budget!$L$2:$L$504) -> 0
A53: 5. Subawards/Consortium/Contractual Costs | K53: =TotalSubs4+TotalMulti4+SUMIF(Budget!$A$2:$A$504,"Vendor Contract",Budget!$L$2:$L$504)+SUMIF(Budget!$A$2:$A$504,"Service Agreement",Budget!$L$2:$L$504) -> 0
A54: 6. Equipment or Facility Rental/User Fees | K54: =SUMIF(Budget!$A$2:$A$504,"Other Rentals",Budget!$L$2:$L$504)+SUMIF(Budget!$A$2:$A$504,"Space Rentals",Budget!$L$2:$L$504)+SUMIF(Budget!$A$2:$A$504,"Equipment or Facility Rental/User Fees",Budget!$L$2:$L$504) -> 0
A55: 7. Alterations and Renovations | K55: =SUMIF(Budget!$A$2:$A$504,"Alterations and Renovations",Budget!$L$2:$L$504) -> 0
A56: 8. GSR Tuition/Fees | K56: =TotalGSR4 -> 0
A57: 9. Other | K57: =SUMIF(Budget!$A$2:$A$504,"Other",Budget!$L$2:$L$504)+SUMIF(Budget!$A$2:$A$504,"Other Maintenance Fees",Budget!$L$2:$L$504) -> 0
A58: 10. | K58: 0
I59: Total Other Direct Costs | K59: =SUM(K49:K58) -> 0
A61: G. Direct Costs | K61: Funds Requested
A62: Total Direct Costs (A thru F) | K62: =K25+K33+K38+K46+K59 -> 0
A64: H. Indirect Costs
A65: Indirect Cost Rate (%) | F65: Indirect Cost Base ($) | K65: Funds Requested
A66: =Budget!L105 ->  | F66: =Budget!L101 -> 0 | K66: =ROUND((A66*F66),0) -> 
K67: =ROUND((A67*F67),0) -> 0
K68: 0
K69: 0
I70: Total Indirect Costs | K70: =SUM(K66:K69) -> 
A72: I. Total Direct and Indirect Costs | K72: Funds Requested
A73: Total Direct and Indirect Institutional Costs (G+H) | K73: =K62+K70 -> 
A75: J. Fee | K75: Funds Requested
A79: Alert:
A80: *Base salary is calculated per NIH guidelines. Please take a close look at the specific RFP to see how you should calculate the base salary
A81: **If there are more than 5 Senior Key people in the budget, they will have to be manually entered into the R&R budget in Cayuse
A82: ***Undergrads will always show as calendar. If the effort should be in Academic and/or Summer, this will have to be manually entered into the R&R budget in Cayuse
A83: ****Please keep in mind that the total number of Other Personnel doesn't take into account Grad or Undergrad students unless you add them or if there are more than 6 "Other" titles

Sheet Grants.gov Detailed Yr 5 (hidden)
A1: Research & Related Budget Year 5
A3: A. Senior/Key Persons
A4: Name | B4: Base Salary* | C4: Cal. Salary | D4: Acad. Salary | E4: Sum. Salary | F4: Cal. Mons | G4: Acad. Mons | H4: Sum. Mons | I4: Requested Salary | J4: Fringe Benefits | K4: Funds Req.
A5: =IF(B5>0,(INDEX('Salary & Fringe'!$A$1:$A$300,MATCH("Senior Person 1",'Salary & Fringe'!$E$1:$E$300,FALSE),1)),"") ->  | B5: =IFERROR(IF(F5>0, C5, D5+E5),0) -> 0 | C5: =IFERROR(IF(F5>0, (I5/SUM(F5:H5)*12),0),0) -> 0 | D5: =IFERROR(IF($C5=0, (I5/SUM(F5:H5)*9),0),0) -> 0 | E5: =IFERROR(IF($C5=0, (I5/SUM(F5:H5)*3),0),0) -> 0 | F5: =SUMIFS('Salary & Fringe'!$Q$1:'Salary & Fringe'!$Q$300,'Salary & Fringe'!$E$1:'Salary & Fringe'!$E$300,"Senior Person 1",'Salary & Fringe'!$F$1:'Salary & Fringe'!$F$300,"Calendar*") -> 0 | G5: =SUMIFS('Salary & Fringe'!$Q$1:'Salary & Fringe'!$Q$300,'Salary & Fringe'!$E$1:'Salary & Fringe'!$E$300,"Senior Person 1",'Salary & Fringe'!$F$1:'Salary & Fringe'!$F$300,"Academic") -> 0 | H5: =SUMIFS('Salary & Fringe'!$Q$1:'Salary & Fringe'!$Q$300,'Salary & Fringe'!$E$1:'Salary & Fringe'!$E$300,"Senior Person 1",'Salary & Fringe'!$F$1:'Salary & Fringe'!$F$300,"Summer") -> 0 | I5: =SUMIF('Salary & Fringe'!$E$1:$E$300,"Senior Person 1",'Salary & Fringe'!$AA$1:$AA$300) -> 0 | J5: =SUMIF('Salary & Fringe'!$E$1:$E$300,"Senior Person 1",'Salary & Fringe'!$AK$1:$AK$300) -> 0 | K5: =I5+J5 -> 0
A6: =IF(B6>0,(INDEX('Salary & Fringe'!$A$1:$A$300,MATCH("Senior Person 2",'Salary & Fringe'!$E$1:$E$300,FALSE),1)),"") ->  | B6: =IFERROR(IF(F6>0, C6, D6+E6),0) -> 0 | C6: =IFERROR(IF(F6>0, (I6/SUM(F6:H6)*12),0),0) -> 0 | D6: =IFERROR(IF($C6=0, (I6/SUM(F6:H6)*9),0),0) -> 0 | E6: =IFERROR(IF($C6=0, (I6/SUM(F6:H6)*3),0),0) -> 0 | F6: =SUMIFS('Salary & Fringe'!$Q$1:'Salary & Fringe'!$Q$300,'Salary & Fringe'!$E$1:'Salary & Fringe'!$E$300,"Senior Person 2",'Salary & Fringe'!$F$1:'Salary & Fringe'!$F$300,"Calendar*") -> 0 | G6: =SUMIFS('Salary & Fringe'!$Q$1:'Salary & Fringe'!$Q$300,'Salary & Fringe'!$E$1:'Salary & Fringe'!$E$300,"Senior Person 2",'Salary & Fringe'!$F$1:'Salary & Fringe'!$F$300,"Academic") -> 0 | H6: =SUMIFS('Salary & Fringe'!$Q$1:'Salary & Fringe'!$Q$300,'Salary & Fringe'!$E$1:'Salary & Fringe'!$E$300,"Senior Person 2",'Salary & Fringe'!$F$1:'Salary & Fringe'!$F$300,"Summer") -> 0 | I6: =SUMIF('Salary & Fringe'!$E$1:$E$300,"Senior Person 2",'Salary & Fringe'!$AA$1:$AA$300) -> 0 | J6: =SUMIF('Salary & Fringe'!$E$1:$E$300,"Senior Person 2",'Salary & Fringe'!$AK$1:$AK$300) -> 0 | K6: =I6+J6 -> 0
A7: =IF(B7>0,(INDEX('Salary & Fringe'!$A$1:$A$300,MATCH("Senior Person 3",'Salary & Fringe'!$E$1:$E$300,FALSE),1)),"") ->  | B7: 0 | C7: 0 | D7: 0 | E7: 0 | F7: =SUMIFS('Salary & Fringe'!$Q$1:'Salary & Fringe'!$Q$300,'Salary & Fringe'!$E$1:'Salary & Fringe'!$E$300,"Senior Person 3",'Salary & Fringe'!$F$1:'Salary & Fringe'!$F$300,"Calendar*") -> 0 | G7: =SUMIFS('Salary & Fringe'!$Q$1:'Salary & Fringe'!$Q$300,'Salary & Fringe'!$E$1:'Salary & Fringe'!$E$300,"Senior Person 3",'Salary & Fringe'!$F$1:'Salary & Fringe'!$F$300,"Academic") -> 0 | H7: =SUMIFS('Salary & Fringe'!$Q$1:'Salary & Fringe'!$Q$300,'Salary & Fringe'!$E$1:'Salary & Fringe'!$E$300,"Senior Person 3",'Salary & Fringe'!$F$1:'Salary & Fringe'!$F$300,"Summer") -> 0 | I7: =SUMIF('Salary & Fringe'!$E$1:$E$300,"Senior Person 3",'Salary & Fringe'!$AA$1:$AA$300) -> 0 | J7: =SUMIF('Salary & Fringe'!$E$1:$E$300,"Senior Person 3",'Salary & Fringe'!$AK$1:$AK$300) -> 0 | K7: 0
A8: =IF(B8>0,(INDEX('Salary & Fringe'!$A$1:$A$300,MATCH("Senior Person 4",'Salary & Fringe'!$E$1:$E$300,FALSE),1)),"") ->  | B8: 0 | C8: 0 | D8: 0 | E8: 0 | F8: =SUMIFS('Salary & Fringe'!$Q$1:'Salary & Fringe'!$Q$300,'Salary & Fringe'!$E$1:'Salary & Fringe'!$E$300,"Senior Person 4",'Salary & Fringe'!$F$1:'Salary & Fringe'!$F$300,"Calendar*") -> 0 | G8: =SUMIFS('Salary & Fringe'!$Q$1:'Salary & Fringe'!$Q$300,'Salary & Fringe'!$E$1:'Salary & Fringe'!$E$300,"Senior Person 4",'Salary & Fringe'!$F$1:'Salary & Fringe'!$F$300,"Academic") -> 0 | H8: =SUMIFS('Salary & Fringe'!$Q$1:'Salary & Fringe'!$Q$300,'Salary & Fringe'!$E$1:'Salary & Fringe'!$E$300,"Senior Person 4",'Salary & Fringe'!$F$1:'Salary & Fringe'!$F$300,"Summer") -> 0 | I8: =SUMIF('Salary & Fringe'!$E$1:$E$300,"Senior Person 4",'Salary & Fringe'!$AA$1:$AA$300) -> 0 | J8: =SUMIF('Salary & Fringe'!$E$1:$E$300,"Senior Person 4",'Salary & Fringe'!$AK$1:$AK$300) -> 0 | K8: 0
A9: =IF(B9>0,(INDEX('Salary & Fringe'!$A$1:$A$300,MATCH("Senior Person 5",'Salary & Fringe'!$E$1:$E$300,FALSE),1)),"") ->  | B9: 0 | C9: 0 | D9: 0 | E9: 0 | F9: =SUMIFS('Salary & Fringe'!$Q$1:'Salary & Fringe'!$Q$300,'Salary & Fringe'!$E$1:'Salary & Fringe'!$E$300,"Senior Person 5",'Salary & Fringe'!$F$1:'Salary & Fringe'!$F$300,"Calendar*") -> 0 | G9: =SUMIFS('Salary & Fringe'!$Q$1:'Salary & Fringe'!$Q$300,'Salary & Fringe'!$E$1:'Salary & Fringe'!$E$300,"Senior Person 5",'Salary & Fringe'!$F$1:'Salary & Fringe'!$F$300,"Academic") -> 0 | H9: =SUMIFS('Salary & Fringe'!$Q$1:'Salary & Fringe'!$Q$300,'Salary & Fringe'!$E$1:'Salary & Fringe'!$E$300,"Senior Person 5",'Salary & Fringe'!$F$1:'Salary & Fringe'!$F$300,"Summer") -> 0 | I9: =SUMIF('Salary & Fringe'!$E$1:$E$300,"Senior Person 5",'Salary & Fringe'!$AA$1:$AA$300) -> 0 | J9: =SUMIF('Salary & Fringe'!$E$1:$E$300,"Senior Person 5",'Salary & Fringe'!$AK$1:$AK$300) -> 0 | K9: 0
F10: Total Other Senior/Key Person** | I10: =SUMIF('Salary & Fringe'!$E$1:$E$300,"Senior (Other)",'Salary & Fringe'!$AA$1:$AA$300) -> 0 | J10: =SUMIF('Salary & Fringe'!$E$1:$E$300,"Senior (Other)",'Salary & Fringe'!$AK$1:$AK$300) -> 0 | K10: 0
I11: Total Senior/Key Person | K11: =SUM(K5:K10) -> 0
A12: B. Other Personnel
A13: Number of Personnel | B13: Project Role | D13: Cal. Months | E13: Acad. Months | F13: Sum. Months | G13: Requested Salary | I13: Fringe Benefits | K13: Funds Requested
A14: =SUMIFS('Salary & Fringe'!$I$1:$I$300,'Salary & Fringe'!$E$1:$E$300,"Postdoc", 'Salary & Fringe'!$Q$1:'Salary & Fringe'!$Q$300, ">0") -> 0 | B14: Post Doctoral Associates | D14: =SUMIFS('Salary & Fringe'!$Q$1:'Salary & Fringe'!$Q$300,'Salary & Fringe'!$E$1:'Salary & Fringe'!$E$300,"Postdoc",'Salary & Fringe'!$F$1:'Salary & Fringe'!$F$300,"Calendar*")+SUMIFS('Salary & Fringe'!$Q$1:'Salary & Fringe'!$Q$300,'Salary & Fringe'!$E$1:'Salary & Fringe'!$E$300,"Postdoc",'Salary & Fringe'!$F$1:'Salary & Fringe'!$F$300,"Hourly") -> 0 | E14: =SUMIFS('Salary & Fringe'!$Q$1:'Salary & Fringe'!$Q$300,'Salary & Fringe'!$E$1:'Salary & Fringe'!$E$300,"Postdoc",'Salary & Fringe'!$F$1:'Salary & Fringe'!$F$300,"Academic") -> 0 | F14: =SUMIFS('Salary & Fringe'!$Q$1:'Salary & Fringe'!$Q$300,'Salary & Fringe'!$E$1:'Salary & Fringe'!$E$300,"Postdoc",'Salary & Fringe'!$F$1:'Salary & Fringe'!$F$300,"Summer") -> 0 | G14: =SUMIF('Salary & Fringe'!$E$1:$E$300,"Postdoc",'Salary & Fringe'!$AA$1:$AA$300) -> 0 | I14: =SUMIF('Salary & Fringe'!$E$1:$E$300,"Postdoc",'Salary & Fringe'!$AK$1:$AK$300) -> 0 | K14: =G14+I14 -> 0
B15: Graduate Students | D15: =SUMIFS('Salary & Fringe'!$Q$1:'Salary & Fringe'!$Q$300,'Salary & Fringe'!$E$1:'Salary & Fringe'!$E$300,"Grad",'Salary & Fringe'!$F$1:'Salary & Fringe'!$F$300,"Calendar*")+SUMIFS('Salary & Fringe'!$Q$1:'Salary & Fringe'!$Q$300,'Salary & Fringe'!$E$1:'Salary & Fringe'!$E$300,"Grad",'Salary & Fringe'!$F$1:'Salary & Fringe'!$F$300,"Hourly") -> 0 | E15: =SUMIFS('Salary & Fringe'!$Q$1:'Salary & Fringe'!$Q$300,'Salary & Fringe'!$E$1:'Salary & Fringe'!$E$300,"Grad",'Salary & Fringe'!$F$1:'Salary & Fringe'!$F$300,"Academic")*2 -> 0 | F15: =SUMIFS('Salary & Fringe'!$Q$1:'Salary & Fringe'!$Q$300,'Salary & Fringe'!$E$1:'Salary & Fringe'!$E$300,"Grad",'Salary & Fringe'!$F$1:'Salary & Fringe'!$F$300,"Summer")*2 -> 0 | G15: =SUMIF('Salary & Fringe'!$E$1:$E$300,"Grad",'Salary & Fringe'!$AA$1:$AA$300) -> 0 | I15: =SUMIF('Salary & Fringe'!$E$1:$E$300,"Grad",'Salary & Fringe'!$AK$1:$AK$300) -> 0 | K15: =G15+I15 -> 0
B16: Undergraduate Students*** | D16: =SUMIF('Salary & Fringe'!$E$1:$E$300,"Undergrad",'Salary & Fringe'!$Q$1:$Q$300) -> 0 | E16: 0 | F16: 0 | G16: =SUMIF('Salary & Fringe'!$E$1:$E$300,"Undergrad",'Salary & Fringe'!$AA$1:$AA$300) -> 0 | I16: =SUMIF('Salary & Fringe'!$E$1:$E$300,"Undergrad",'Salary & Fringe'!$AK$1:$AK$300) -> 0 | K16: 0
A17: =SUMIFS('Salary & Fringe'!$I$1:$I$300,'Salary & Fringe'!$E$1:$E$300,"Clerical", 'Salary & Fringe'!$Q$1:'Salary & Fringe'!$Q$300, ">0") -> 0 | B17: Secretarial/Clerical | D17: =SUMIFS('Salary & Fringe'!$Q$1:'Salary & Fringe'!$Q$300,'Salary & Fringe'!$E$1:'Salary & Fringe'!$E$300,"Clerical",'Salary & Fringe'!$F$1:'Salary & Fringe'!$F$300,"Calendar*")+SUMIFS('Salary & Fringe'!$Q$1:'Salary & Fringe'!$Q$300,'Salary & Fringe'!$E$1:'Salary & Fringe'!$E$300,"Clerical",'Salary & Fringe'!$F$1:'Salary & Fringe'!$F$300,"Hourly") -> 0 | E17: =SUMIFS('Salary & Fringe'!$Q$1:'Salary & Fringe'!$Q$300,'Salary & Fringe'!$E$1:'Salary & Fringe'!$E$300,"Clerical",'Salary & Fringe'!$F$1:'Salary & Fringe'!$F$300,"Academic") -> 0 | F17: =SUMIFS('Salary & Fringe'!$Q$1:'Salary & Fringe'!$Q$300,'Salary & Fringe'!$E$1:'Salary & Fringe'!$E$300,"Clerical",'Salary & Fringe'!$F$1:'Salary & Fringe'!$F$300,"Summer") -> 0 | G17: =SUMIF('Salary & Fringe'!$E$1:$E$300,"Clerical",'Salary & Fringe'!$AA$1:$AA$300) -> 0 | I17: =SUMIF('Salary & Fringe'!$E$1:$E$300,"Clerical",'Salary & Fringe'!$AK$1:$AK$300) -> 0 | K17: 0
A18: =SUMIFS('Salary & Fringe'!$I$1:$I$300,'Salary & Fringe'!$E$1:$E$300,"Other 1", 'Salary & Fringe'!$Q$1:'Salary & Fringe'!$Q$300, ">0") -> 0 | B18: =IF(G18>0,(INDEX('Salary & Fringe'!$B$1:$B$300,MATCH("Other 1",'Salary & Fringe'!$E$1:$E$300,FALSE),1)),"") ->  | D18: =SUMIFS('Salary & Fringe'!$Q$1:'Salary & Fringe'!$Q$300,'Salary & Fringe'!$E$1:'Salary & Fringe'!$E$300,"Other 1",'Salary & Fringe'!$F$1:'Salary & Fringe'!$F$300,"Calendar*")+SUMIFS('Salary & Fringe'!$Q$1:'Salary & Fringe'!$Q$300,'Salary & Fringe'!$E$1:'Salary & Fringe'!$E$300,"Other 1",'Salary & Fringe'!$F$1:'Salary & Fringe'!$F$300,"Hourly") -> 0 | E18: =SUMIFS('Salary & Fringe'!$Q$1:'Salary & Fringe'!$Q$300,'Salary & Fringe'!$E$1:'Salary & Fringe'!$E$300,"Other 1",'Salary & Fringe'!$F$1:'Salary & Fringe'!$F$300,"Academic") -> 0 | F18: =SUMIFS('Salary & Fringe'!$Q$1:'Salary & Fringe'!$Q$300,'Salary & Fringe'!$E$1:'Salary & Fringe'!$E$300,"Other 1",'Salary & Fringe'!$F$1:'Salary & Fringe'!$F$300,"Summer") -> 0 | G18: =SUMIF('Salary & Fringe'!$E$1:$E$300,"Other 1",'Salary & Fringe'!$AA$1:$AA$300) -> 0 | I18: =SUMIF('Salary & Fringe'!$E$1:$E$300,"Other 1",'Salary & Fringe'!$AK$1:$AK$300) -> 0 | K18: 0
A19: =SUMIFS('Salary & Fringe'!$I$1:$I$300,'Salary & Fringe'!$E$1:$E$300,"Other 2", 'Salary & Fringe'!$Q$1:'Salary & Fringe'!$Q$300, ">0") -> 0 | B19: =IF(G19>0,(INDEX('Salary & Fringe'!$B$1:$B$300,MATCH("Other 2",'Salary & Fringe'!$E$1:$E$300,FALSE),1)),"") ->  | D19: =SUMIFS('Salary & Fringe'!$Q$1:'Salary & Fringe'!$Q$300,'Salary & Fringe'!$E$1:'Salary & Fringe'!$E$300,"Other 2",'Salary & Fringe'!$F$1:'Salary & Fringe'!$F$300,"Calendar*")+SUMIFS('Salary & Fringe'!$Q$1:'Salary & Fringe'!$Q$300,'Salary & Fringe'!$E$1:'Salary & Fringe'!$E$300,"Other 2",'Salary & Fringe'!$F$1:'Salary & Fringe'!$F$300,"Hourly") -> 0 | E19: =SUMIFS('Salary & Fringe'!$Q$1:'Salary & Fringe'!$Q$300,'Salary & Fringe'!$E$1:'Salary & Fringe'!$E$300,"Other 2",'Salary & Fringe'!$F$1:'Salary & Fringe'!$F$300,"Academic") -> 0 | F19: =SUMIFS('Salary & Fringe'!$Q$1:'Salary & Fringe'!$Q$300,'Salary & Fringe'!$E$1:'Salary & Fringe'!$E$300,"Other 2",'Salary & Fringe'!$F$1:'Salary & Fringe'!$F$300,"Summer") -> 0 | G19: =SUMIF('Salary & Fringe'!$E$1:$E$300,"Other 2",'Salary & Fringe'!$AA$1:$AA$300) -> 0 | I19: =SUMIF('Salary & Fringe'!$E$1:$E$300,"Other 2",'Salary & Fringe'!$AK$1:$AK$300) -> 0 | K19: 0
A20: =SUMIFS('Salary & Fringe'!$I$1:$I$300,'Salary & Fringe'!$E$1:$E$300,"Other 3", 'Salary & Fringe'!$Q$1:'Salary & Fringe'!$Q$300, ">0") -> 0 | B20: =IF(G20>0,(INDEX('Salary & Fringe'!$B$1:$B$300,MATCH("Other 3",'Salary & Fringe'!$E$1:$E$300,FALSE),1)),"") ->  | D20: =SUMIFS('Salary & Fringe'!$Q$1:'Salary & Fringe'!$Q$300,'Salary & Fringe'!$E$1:'Salary & Fringe'!$E$300,"Other 3",'Salary & Fringe'!$F$1:'Salary & Fringe'!$F$300,"Calendar*")+SUMIFS('Salary & Fringe'!$Q$1:'Salary & Fringe'!$Q$300,'Salary & Fringe'!$E$1:'Salary & Fringe'!$E$300,"Other 3",'Salary & Fringe'!$F$1:'Salary & Fringe'!$F$300,"Hourly") -> 0 | E20: =SUMIFS('Salary & Fringe'!$Q$1:'Salary & Fringe'!$Q$300,'Salary & Fringe'!$E$1:'Salary & Fringe'!$E$300,"Other 3",'Salary & Fringe'!$F$1:'Salary & Fringe'!$F$300,"Academic") -> 0 | F20: =SUMIFS('Salary & Fringe'!$Q$1:'Salary & Fringe'!$Q$300,'Salary & Fringe'!$E$1:'Salary & Fringe'!$E$300,"Other 3",'Salary & Fringe'!$F$1:'Salary & Fringe'!$F$300,"Summer") -> 0 | G20: =SUMIF('Salary & Fringe'!$E$1:$E$300,"Other 3",'Salary & Fringe'!$AA$1:$AA$300) -> 0 | I20: =SUMIF('Salary & Fringe'!$E$1:$E$300,"Other 3",'Salary & Fringe'!$AK$1:$AK$300) -> 0 | K20: 0
A21: =SUMIFS('Salary & Fringe'!$I$1:$I$300,'Salary & Fringe'!$E$1:$E$300,"Other 4", 'Salary & Fringe'!$Q$1:'Salary & Fringe'!$Q$300, ">0") -> 0 | B21: =IF(G21>0,(INDEX('Salary & Fringe'!$B$1:$B$300,MATCH("Other 4",'Salary & Fringe'!$E$1:$E$300,FALSE),1)),"") ->  | D21: =SUMIFS('Salary & Fringe'!$Q$1:'Salary & Fringe'!$Q$300,'Salary & Fringe'!$E$1:'Salary & Fringe'!$E$300,"Other 4",'Salary & Fringe'!$F$1:'Salary & Fringe'!$F$300,"Calendar*")+SUMIFS('Salary & Fringe'!$Q$1:'Salary & Fringe'!$Q$300,'Salary & Fringe'!$E$1:'Salary & Fringe'!$E$300,"Other 4",'Salary & Fringe'!$F$1:'Salary & Fringe'!$F$300,"Hourly") -> 0 | E21: =SUMIFS('Salary & Fringe'!$Q$1:'Salary & Fringe'!$Q$300,'Salary & Fringe'!$E$1:'Salary & Fringe'!$E$300,"Other 4",'Salary & Fringe'!$F$1:'Salary & Fringe'!$F$300,"Academic") -> 0 | F21: =SUMIFS('Salary & Fringe'!$Q$1:'Salary & Fringe'!$Q$300,'Salary & Fringe'!$E$1:'Salary & Fringe'!$E$300,"Other 4",'Salary & Fringe'!$F$1:'Salary & Fringe'!$F$300,"Summer") -> 0 | G21: =SUMIF('Salary & Fringe'!$E$1:$E$300,"Other 4",'Salary & Fringe'!$AA$1:$AA$300) -> 0 | I21: =SUMIF('Salary & Fringe'!$E$1:$E$300,"Other 4",'Salary & Fringe'!$AK$1:$AK$300) -> 0 | K21: 0
A22: =SUMIFS('Salary & Fringe'!$I$1:$I$300,'Salary & Fringe'!$E$1:$E$300,"Other 5", 'Salary & Fringe'!$Q$1:'Salary & Fringe'!$Q$300, ">0") -> 0 | B22: =IF(G22>0,(INDEX('Salary & Fringe'!$B$1:$B$300,MATCH("Other 5",'Salary & Fringe'!$E$1:$E$300,FALSE),1)),"") ->  | D22: =SUMIFS('Salary & Fringe'!$Q$1:'Salary & Fringe'!$Q$300,'Salary & Fringe'!$E$1:'Salary & Fringe'!$E$300,"Other 5",'Salary & Fringe'!$F$1:'Salary & Fringe'!$F$300,"Calendar*")+SUMIFS('Salary & Fringe'!$Q$1:'Salary & Fringe'!$Q$300,'Salary & Fringe'!$E$1:'Salary & Fringe'!$E$300,"Other 5",'Salary & Fringe'!$F$1:'Salary & Fringe'!$F$300,"Hourly") -> 0 | E22: =SUMIFS('Salary & Fringe'!$Q$1:'Salary & Fringe'!$Q$300,'Salary & Fringe'!$E$1:'Salary & Fringe'!$E$300,"Other 5",'Salary & Fringe'!$F$1:'Salary & Fringe'!$F$300,"Academic") -> 0 | F22: =SUMIFS('Salary & Fringe'!$Q$1:'Salary & Fringe'!$Q$300,'Salary & Fringe'!$E$1:'Salary & Fringe'!$E$300,"Other 5",'Salary & Fringe'!$F$1:'Salary & Fringe'!$F$300,"Summer") -> 0 | G22: =SUMIF('Salary & Fringe'!$E$1:$E$300,"Other 5",'Salary & Fringe'!$AA$1:$AA$300) -> 0 | I22: =SUMIF('Salary & Fringe'!$E$1:$E$300,"Other 5",'Salary & Fringe'!$AK$1:$AK$300) -> 0 | K22: 0
A23: =SUMIFS('Salary & Fringe'!$I$1:$I$300,'Salary & Fringe'!$E$1:$E$300,"Other 6", 'Salary & Fringe'!$Q$1:'Salary & Fringe'!$Q$300, ">0") -> 0 | B23: =IF(G23>0,(INDEX('Salary & Fringe'!$B$1:$B$300,MATCH("Other 6",'Salary & Fringe'!$E$1:$E$300,FALSE),1)),"") ->  | D23: =SUMIFS('Salary & Fringe'!$Q$1:'Salary & Fringe'!$Q$300,'Salary & Fringe'!$E$1:'Salary & Fringe'!$E$300,"Other 6",'Salary & Fringe'!$F$1:'Salary & Fringe'!$F$300,"Calendar*")+SUMIFS('Salary & Fringe'!$Q$1:'Salary & Fringe'!$Q$300,'Salary & Fringe'!$E$1:'Salary & Fringe'!$E$300,"Other 6",'Salary & Fringe'!$F$1:'Salary & Fringe'!$F$300,"Hourly") -> 0 | E23: =SUMIFS('Salary & Fringe'!$Q$1:'Salary & Fringe'!$Q$300,'Salary & Fringe'!$E$1:'Salary & Fringe'!$E$300,"Other 6",'Salary & Fringe'!$F$1:'Salary & Fringe'!$F$300,"Academic") -> 0 | F23: =SUMIFS('Salary & Fringe'!$Q$1:'Salary & Fringe'!$Q$300,'Salary & Fringe'!$E$1:'Salary & Fringe'!$E$300,"Other 6",'Salary & Fringe'!$F$1:'Salary & Fringe'!$F$300,"Summer") -> 0 | G23: =SUMIF('Salary & Fringe'!$E$1:$E$300,"Other 6",'Salary & Fringe'!$AA$1:$AA$300) -> 0 | I23: =SUMIF('Salary & Fringe'!$E$1:$E$300,"Other 6",'Salary & Fringe'!$AK$1:$AK$300) -> 0 | K23: 0
A24: =SUM(A14:A23) -> 0 | B24: Total Number Other Personnel**** | H24: Total Other Personnel | K24: =SUM(K14:K23) -> 0
H25: Total Salary, Wages and Fringe Benefits (A+B) | K25: =K11+K24 -> 0
A26: C. Equipment Description
A27: Equipment Item | K27: Funds Requested
A28: =IF(ISBLANK(Budget!N47),"",Budget!A47) ->  | K28: =IF(Budget!N47>0,Budget!N47,0) -> 0
A29: =IF(ISBLANK(Budget!N48),"",Budget!A48) ->  | K29: =IF(Budget!N48>0,Budget!N48,0) -> 0
A30: =IF(ISBLANK(Budget!N49),"",Budget!A49) ->  | K30: =IF(Budget!N49>0,Budget!N49,0) -> 0
A31: =IF(ISBLANK(Budget!N50),"",Budget!A50) ->  | K31: =IF(Budget!N50>0,Budget!N50,0) -> 0
A32: =IF(ISBLANK(Budget!N51),"",Budget!A51) ->  | K32: =IF(Budget!N51>0,Budget!N51,0) -> 0
J33: Total Equipment | K33: =TotalEquipment5 -> 0
A35: D. Travel | K35: Funds Requested
A36: 1. Domestic Travel Costs (incl. Canada, Mexico and U.S. Possessions) | K36: =Budget!N39 -> 0
A37: 2. Foreign Travel Costs | K37: =Budget!N44 -> 0
J38: Total Travel Cost | K38: =SUM(K36:K37) -> 0
A40: E. Participant/Trainee Support Costs | K40: Funds Requested
A41: 1. Tuition/Fees/Health Insurance | K41: =SUMIF(Budget!$A$2:$A$504,"PS Tuition/Fees/Health Insurance",Budget!$N$2:$N$504) -> 0
A42: 2. Stipends | K42: =SUMIF(Budget!$A$2:$A$504,"PS Stipends",Budget!$N$2:$N$504) -> 0
A43: 3. Travel | K43: =SUMIF(Budget!$A$2:$A$504,"PS Travel",Budget!$N$2:$N$504) -> 0
A44: 4. Subsistence | K44: =SUMIF(Budget!$A$2:$A$504,"PS Subsistence",Budget!$N$2:$N$504) -> 0
A45: 5. Other | K45: =SUMIF(Budget!$A$2:$A$504,"PS Other",Budget!$N$2:$N$504) -> 0
A46: Number of Participants/Trainees | H46: Total Participant Support/Trainee Support Costs | K46: =SUM(K41:K45) -> 0
A48: F. Other Direct Costs | K48: Funds Requested
A49: 1. Materials and Supplies | K49: =SUMIF(Budget!$A$2:$A$504,"Materials & Supplies",Budget!$N$2:$N$504) -> 0
A50: 2. Publication Costs | K50: =SUMIF(Budget!$A$2:$A$504,"Publication Costs/Page Charges",Budget!$N$2:$N$504) -> 0
A51: 3. Consultant Services | K51: =SUMIF(Budget!$A$2:$A$504,"Consultant Services",Budget!$N$2:$N$504) -> 0
A52: 4. ADP/Computer Services | K52: =SUMIF(Budget!$A$2:$A$504,"Computer (ADPE) Services",Budget!$N$2:$N$504) -> 0
A53: 5. Subawards/Consortium/Contractual Costs | K53: =TotalSubs5+TotalMulti5+SUMIF(Budget!$A$2:$A$504,"Vendor Contract",Budget!$N$2:$N$504)+SUMIF(Budget!$A$2:$A$504,"Service Agreement",Budget!$N$2:$N$504) -> 0
A54: 6. Equipment or Facility Rental/User Fees | K54: =SUMIF(Budget!$A$2:$A$504,"Other Rentals",Budget!$N$2:$N$504)+SUMIF(Budget!$A$2:$A$504,"Space Rentals",Budget!$N$2:$N$504)+SUMIF(Budget!$A$2:$A$504,"Equipment or Facility Rental/User Fees",Budget!$N$2:$N$504) -> 0
A55: 7. Alterations and Renovations | K55: =SUMIF(Budget!$A$2:$A$504,"Alterations and Renovations",Budget!$N$2:$N$504) -> 0
A56: 8. GSR Tuition/Fees | K56: =TotalGSR5 -> 0
A57: 9. Other | K57: =SUMIF(Budget!$A$2:$A$504,"Other",Budget!$N$2:$N$504)+SUMIF(Budget!$A$2:$A$504,"Other Maintenance Fees",Budget!$N$2:$N$504) -> 0
A58: 10. | K58: 0
I59: Total Other Direct Costs | K59: =SUM(K49:K58) -> 0
A61: G. Direct Costs | K61: Funds Requested
A62: Total Direct Costs (A thru F) | K62: =K25+K33+K38+K46+K59 -> 0
A64: H. Indirect Costs
A65: Indirect Cost Rate (%) | F65: Indirect Cost Base ($) | K65: Funds Requested
A66: =Budget!N105 ->  | F66: =Budget!N101 -> 0 | K66: =ROUND((A66*F66),0) -> 
K67: =ROUND((A67*F67),0) -> 0
K68: 0
K69: 0
I70: Total Indirect Costs | K70: =SUM(K66:K69) -> 
A72: I. Total Direct and Indirect Costs | K72: Funds Requested
A73: Total Direct and Indirect Institutional Costs (G+H) | K73: =K62+K70 -> 
A75: J. Fee | K75: Funds Requested
A79: Alert:
A80: *Base salary is calculated per NIH guidelines. Please take a close look at the specific RFP to see how you should calculate the base salary
A81: **If there are more than 5 Senior Key people in the budget, they will have to be manually entered into the R&R budget in Cayuse
A82: ***Undergrads will always show as calendar. If the effort should be in Academic and/or Summer, this will have to be manually entered into the R&R budget in Cayuse
A83: ****Please keep in mind that the total number of Other Personnel doesn't take into account Grad or Undergrad students unless you add them or if there are more than 6 "Other" titles

Sheet Grants.gov Detailed Yr 6 (hidden)
A1: Research & Related Budget Year 6
A3: A. Senior/Key Persons
A4: Name | B4: Base Salary* | C4: Cal. Salary | D4: Acad. Salary | E4: Sum. Salary | F4: Cal. Mons | G4: Acad. Mons | H4: Sum. Mons | I4: Requested Salary | J4: Fringe Benefits | K4: Funds Req.
A5: =IF(B5>0,(INDEX('Salary & Fringe'!$A$1:$A$300,MATCH("Senior Person 1",'Salary & Fringe'!$E$1:$E$300,FALSE),1)),"") ->  | B5: =IFERROR(IF(F5>0, C5, D5+E5),0) -> 0 | C5: =IFERROR(IF(F5>0, (I5/SUM(F5:H5)*12),0),0) -> 0 | D5: =IFERROR(IF($C5=0, (I5/SUM(F5:H5)*9),0),0) -> 0 | E5: =IFERROR(IF($C5=0, (I5/SUM(F5:H5)*3),0),0) -> 0 | F5: =SUMIFS('Salary & Fringe'!$R$1:'Salary & Fringe'!$R$300,'Salary & Fringe'!$E$1:'Salary & Fringe'!$E$300,"Senior Person 1",'Salary & Fringe'!$F$1:'Salary & Fringe'!$F$300,"Calendar*") -> 0 | G5: =SUMIFS('Salary & Fringe'!$R$1:'Salary & Fringe'!$R$300,'Salary & Fringe'!$E$1:'Salary & Fringe'!$E$300,"Senior Person 1",'Salary & Fringe'!$F$1:'Salary & Fringe'!$F$300,"Academic") -> 0 | H5: =SUMIFS('Salary & Fringe'!$R$1:'Salary & Fringe'!$R$300,'Salary & Fringe'!$E$1:'Salary & Fringe'!$E$300,"Senior Person 1",'Salary & Fringe'!$F$1:'Salary & Fringe'!$F$300,"Summer") -> 0 | I5: =SUMIF('Salary & Fringe'!$E$1:$E$300,"Senior Person 1",'Salary & Fringe'!$AB$1:$AB$300) -> 0 | J5: =SUMIF('Salary & Fringe'!$E$1:$E$300,"Senior Person 1",'Salary & Fringe'!$AL$1:$AL$300) -> 0 | K5: =I5+J5 -> 0
A6: =IF(B6>0,(INDEX('Salary & Fringe'!$A$1:$A$300,MATCH("Senior Person 2",'Salary & Fringe'!$E$1:$E$300,FALSE),1)),"") ->  | B6: =IFERROR(IF(F6>0, C6, D6+E6),0) -> 0 | C6: =IFERROR(IF(F6>0, (I6/SUM(F6:H6)*12),0),0) -> 0 | D6: =IFERROR(IF($C6=0, (I6/SUM(F6:H6)*9),0),0) -> 0 | E6: =IFERROR(IF($C6=0, (I6/SUM(F6:H6)*3),0),0) -> 0 | F6: =SUMIFS('Salary & Fringe'!$R$1:'Salary & Fringe'!$R$300,'Salary & Fringe'!$E$1:'Salary & Fringe'!$E$300,"Senior Person 2",'Salary & Fringe'!$F$1:'Salary & Fringe'!$F$300,"Calendar*") -> 0 | G6: =SUMIFS('Salary & Fringe'!$R$1:'Salary & Fringe'!$R$300,'Salary & Fringe'!$E$1:'Salary & Fringe'!$E$300,"Senior Person 2",'Salary & Fringe'!$F$1:'Salary & Fringe'!$F$300,"Academic") -> 0 | H6: =SUMIFS('Salary & Fringe'!$R$1:'Salary & Fringe'!$R$300,'Salary & Fringe'!$E$1:'Salary & Fringe'!$E$300,"Senior Person 2",'Salary & Fringe'!$F$1:'Salary & Fringe'!$F$300,"Summer") -> 0 | I6: =SUMIF('Salary & Fringe'!$E$1:$E$300,"Senior Person 2",'Salary & Fringe'!$AB$1:$AB$300) -> 0 | J6: =SUMIF('Salary & Fringe'!$E$1:$E$300,"Senior Person 2",'Salary & Fringe'!$AL$1:$AL$300) -> 0 | K6: =I6+J6 -> 0
A7: =IF(B7>0,(INDEX('Salary & Fringe'!$A$1:$A$300,MATCH("Senior Person 3",'Salary & Fringe'!$E$1:$E$300,FALSE),1)),"") ->  | B7: 0 | C7: 0 | D7: 0 | E7: 0 | F7: =SUMIFS('Salary & Fringe'!$R$1:'Salary & Fringe'!$R$300,'Salary & Fringe'!$E$1:'Salary & Fringe'!$E$300,"Senior Person 3",'Salary & Fringe'!$F$1:'Salary & Fringe'!$F$300,"Calendar*") -> 0 | G7: =SUMIFS('Salary & Fringe'!$R$1:'Salary & Fringe'!$R$300,'Salary & Fringe'!$E$1:'Salary & Fringe'!$E$300,"Senior Person 3",'Salary & Fringe'!$F$1:'Salary & Fringe'!$F$300,"Academic") -> 0 | H7: =SUMIFS('Salary & Fringe'!$R$1:'Salary & Fringe'!$R$300,'Salary & Fringe'!$E$1:'Salary & Fringe'!$E$300,"Senior Person 3",'Salary & Fringe'!$F$1:'Salary & Fringe'!$F$300,"Summer") -> 0 | I7: =SUMIF('Salary & Fringe'!$E$1:$E$300,"Senior Person 3",'Salary & Fringe'!$AB$1:$AB$300) -> 0 | J7: =SUMIF('Salary & Fringe'!$E$1:$E$300,"Senior Person 3",'Salary & Fringe'!$AL$1:$AL$300) -> 0 | K7: 0
A8: =IF(B8>0,(INDEX('Salary & Fringe'!$A$1:$A$300,MATCH("Senior Person 4",'Salary & Fringe'!$E$1:$E$300,FALSE),1)),"") ->  | B8: 0 | C8: 0 | D8: 0 | E8: 0 | F8: =SUMIFS('Salary & Fringe'!$R$1:'Salary & Fringe'!$R$300,'Salary & Fringe'!$E$1:'Salary & Fringe'!$E$300,"Senior Person 4",'Salary & Fringe'!$F$1:'Salary & Fringe'!$F$300,"Calendar*") -> 0 | G8: =SUMIFS('Salary & Fringe'!$R$1:'Salary & Fringe'!$R$300,'Salary & Fringe'!$E$1:'Salary & Fringe'!$E$300,"Senior Person 4",'Salary & Fringe'!$F$1:'Salary & Fringe'!$F$300,"Academic") -> 0 | H8: =SUMIFS('Salary & Fringe'!$R$1:'Salary & Fringe'!$R$300,'Salary & Fringe'!$E$1:'Salary & Fringe'!$E$300,"Senior Person 4",'Salary & Fringe'!$F$1:'Salary & Fringe'!$F$300,"Summer") -> 0 | I8: =SUMIF('Salary & Fringe'!$E$1:$E$300,"Senior Person 4",'Salary & Fringe'!$AB$1:$AB$300) -> 0 | J8: =SUMIF('Salary & Fringe'!$E$1:$E$300,"Senior Person 4",'Salary & Fringe'!$AL$1:$AL$300) -> 0 | K8: 0
A9: =IF(B9>0,(INDEX('Salary & Fringe'!$A$1:$A$300,MATCH("Senior Person 5",'Salary & Fringe'!$E$1:$E$300,FALSE),1)),"") ->  | B9: 0 | C9: 0 | D9: 0 | E9: 0 | F9: =SUMIFS('Salary & Fringe'!$R$1:'Salary & Fringe'!$R$300,'Salary & Fringe'!$E$1:'Salary & Fringe'!$E$300,"Senior Person 5",'Salary & Fringe'!$F$1:'Salary & Fringe'!$F$300,"Calendar*") -> 0 | G9: =SUMIFS('Salary & Fringe'!$R$1:'Salary & Fringe'!$R$300,'Salary & Fringe'!$E$1:'Salary & Fringe'!$E$300,"Senior Person 5",'Salary & Fringe'!$F$1:'Salary & Fringe'!$F$300,"Academic") -> 0 | H9: =SUMIFS('Salary & Fringe'!$R$1:'Salary & Fringe'!$R$300,'Salary & Fringe'!$E$1:'Salary & Fringe'!$E$300,"Senior Person 5",'Salary & Fringe'!$F$1:'Salary & Fringe'!$F$300,"Summer") -> 0 | I9: =SUMIF('Salary & Fringe'!$E$1:$E$300,"Senior Person 5",'Salary & Fringe'!$AB$1:$AB$300) -> 0 | J9: =SUMIF('Salary & Fringe'!$E$1:$E$300,"Senior Person 5",'Salary & Fringe'!$AL$1:$AL$300) -> 0 | K9: 0
F10: Total Other Senior/Key Person** | I10: =SUMIF('Salary & Fringe'!$E$1:$E$300,"Senior (Other)",'Salary & Fringe'!$AB$1:$AB$300) -> 0 | J10: =SUMIF('Salary & Fringe'!$E$1:$E$300,"Senior (Other)",'Salary & Fringe'!$AL$1:$AL$300) -> 0 | K10: 0
I11: Total Senior/Key Person | K11: =SUM(K5:K10) -> 0
A12: B. Other Personnel
A13: Number of Personnel | B13: Project Role | D13: Cal. Months | E13: Acad. Months | F13: Sum. Months | G13: Requested Salary | I13: Fringe Benefits | K13: Funds Requested
A14: =SUMIFS('Salary & Fringe'!$I$1:$I$300,'Salary & Fringe'!$E$1:$E$300,"Postdoc", 'Salary & Fringe'!$R$1:'Salary & Fringe'!$R$300, ">0") -> 0 | B14: Post Doctoral Associates | D14: =SUMIFS('Salary & Fringe'!$R$1:'Salary & Fringe'!$R$300,'Salary & Fringe'!$E$1:'Salary & Fringe'!$E$300,"Postdoc",'Salary & Fringe'!$F$1:'Salary & Fringe'!$F$300,"Calendar*")+SUMIFS('Salary & Fringe'!$R$1:'Salary & Fringe'!$R$300,'Salary & Fringe'!$E$1:'Salary & Fringe'!$E$300,"Postdoc",'Salary & Fringe'!$F$1:'Salary & Fringe'!$F$300,"Hourly") -> 0 | E14: =SUMIFS('Salary & Fringe'!$R$1:'Salary & Fringe'!$R$300,'Salary & Fringe'!$E$1:'Salary & Fringe'!$E$300,"Postdoc",'Salary & Fringe'!$F$1:'Salary & Fringe'!$F$300,"Academic") -> 0 | F14: =SUMIFS('Salary & Fringe'!$R$1:'Salary & Fringe'!$R$300,'Salary & Fringe'!$E$1:'Salary & Fringe'!$E$300,"Postdoc",'Salary & Fringe'!$F$1:'Salary & Fringe'!$F$300,"Summer") -> 0 | G14: =SUMIF('Salary & Fringe'!$E$1:$E$300,"Postdoc",'Salary & Fringe'!$AB$1:$AB$300) -> 0 | I14: =SUMIF('Salary & Fringe'!$E$1:$E$300,"Postdoc",'Salary & Fringe'!$AL$1:$AL$300) -> 0 | K14: =G14+I14 -> 0
B15: Graduate Students | D15: =SUMIFS('Salary & Fringe'!$R$1:'Salary & Fringe'!$R$300,'Salary & Fringe'!$E$1:'Salary & Fringe'!$E$300,"Grad",'Salary & Fringe'!$F$1:'Salary & Fringe'!$F$300,"Calendar*")+SUMIFS('Salary & Fringe'!$R$1:'Salary & Fringe'!$R$300,'Salary & Fringe'!$E$1:'Salary & Fringe'!$E$300,"Grad",'Salary & Fringe'!$F$1:'Salary & Fringe'!$F$300,"Hourly") -> 0 | E15: =SUMIFS('Salary & Fringe'!$R$1:'Salary & Fringe'!$R$300,'Salary & Fringe'!$E$1:'Salary & Fringe'!$E$300,"Grad",'Salary & Fringe'!$F$1:'Salary & Fringe'!$F$300,"Academic")*2 -> 0 | F15: =SUMIFS('Salary & Fringe'!$R$1:'Salary & Fringe'!$R$300,'Salary & Fringe'!$E$1:'Salary & Fringe'!$E$300,"Grad",'Salary & Fringe'!$F$1:'Salary & Fringe'!$F$300,"Summer")*2 -> 0 | G15: =SUMIF('Salary & Fringe'!$E$1:$E$300,"Grad",'Salary & Fringe'!$AB$1:$AB$300) -> 0 | I15: =SUMIF('Salary & Fringe'!$E$1:$E$300,"Grad",'Salary & Fringe'!$AL$1:$AL$300) -> 0 | K15: =G15+I15 -> 0
B16: Undergraduate Students*** | D16: =SUMIF('Salary & Fringe'!$E$1:$E$300,"Undergrad",'Salary & Fringe'!$R$1:$R$300) -> 0 | E16: 0 | F16: 0 | G16: =SUMIF('Salary & Fringe'!$E$1:$E$300,"Undergrad",'Salary & Fringe'!$AB$1:$AB$300) -> 0 | I16: =SUMIF('Salary & Fringe'!$E$1:$E$300,"Undergrad",'Salary & Fringe'!$AL$1:$AL$300) -> 0 | K16: 0
A17: =SUMIFS('Salary & Fringe'!$I$1:$I$300,'Salary & Fringe'!$E$1:$E$300,"Clerical", 'Salary & Fringe'!$R$1:'Salary & Fringe'!$R$300, ">0") -> 0 | B17: Secretarial/Clerical | D17: =SUMIFS('Salary & Fringe'!$R$1:'Salary & Fringe'!$R$300,'Salary & Fringe'!$E$1:'Salary & Fringe'!$E$300,"Clerical",'Salary & Fringe'!$F$1:'Salary & Fringe'!$F$300,"Calendar*")+SUMIFS('Salary & Fringe'!$R$1:'Salary & Fringe'!$R$300,'Salary & Fringe'!$E$1:'Salary & Fringe'!$E$300,"Clerical",'Salary & Fringe'!$F$1:'Salary & Fringe'!$F$300,"Hourly") -> 0 | E17: =SUMIFS('Salary & Fringe'!$R$1:'Salary & Fringe'!$R$300,'Salary & Fringe'!$E$1:'Salary & Fringe'!$E$300,"Clerical",'Salary & Fringe'!$F$1:'Salary & Fringe'!$F$300,"Academic") -> 0 | F17: =SUMIFS('Salary & Fringe'!$R$1:'Salary & Fringe'!$R$300,'Salary & Fringe'!$E$1:'Salary & Fringe'!$E$300,"Clerical",'Salary & Fringe'!$F$1:'Salary & Fringe'!$F$300,"Summer") -> 0 | G17: =SUMIF('Salary & Fringe'!$E$1:$E$300,"Clerical",'Salary & Fringe'!$AB$1:$AB$300) -> 0 | I17: =SUMIF('Salary & Fringe'!$E$1:$E$300,"Clerical",'Salary & Fringe'!$AL$1:$AL$300) -> 0 | K17: 0
A18: =SUMIFS('Salary & Fringe'!$I$1:$I$300,'Salary & Fringe'!$E$1:$E$300,"Other 1", 'Salary & Fringe'!$R$1:'Salary & Fringe'!$R$300, ">0") -> 0 | B18: =IF(G18>0,(INDEX('Salary & Fringe'!$B$1:$B$300,MATCH("Other 1",'Salary & Fringe'!$E$1:$E$300,FALSE),1)),"") ->  | D18: =SUMIFS('Salary & Fringe'!$R$1:'Salary & Fringe'!$R$300,'Salary & Fringe'!$E$1:'Salary & Fringe'!$E$300,"Other 1",'Salary & Fringe'!$F$1:'Salary & Fringe'!$F$300,"Calendar*")+SUMIFS('Salary & Fringe'!$R$1:'Salary & Fringe'!$R$300,'Salary & Fringe'!$E$1:'Salary & Fringe'!$E$300,"Other 1",'Salary & Fringe'!$F$1:'Salary & Fringe'!$F$300,"Hourly") -> 0 | E18: =SUMIFS('Salary & Fringe'!$R$1:'Salary & Fringe'!$R$300,'Salary & Fringe'!$E$1:'Salary & Fringe'!$E$300,"Other 1",'Salary & Fringe'!$F$1:'Salary & Fringe'!$F$300,"Academic") -> 0 | F18: =SUMIFS('Salary & Fringe'!$R$1:'Salary & Fringe'!$R$300,'Salary & Fringe'!$E$1:'Salary & Fringe'!$E$300,"Other 1",'Salary & Fringe'!$F$1:'Salary & Fringe'!$F$300,"Summer") -> 0 | G18: =SUMIF('Salary & Fringe'!$E$1:$E$300,"Other 1",'Salary & Fringe'!$AB$1:$AB$300) -> 0 | I18: =SUMIF('Salary & Fringe'!$E$1:$E$300,"Other 1",'Salary & Fringe'!$AL$1:$AL$300) -> 0 | K18: 0
A19: =SUMIFS('Salary & Fringe'!$I$1:$I$300,'Salary & Fringe'!$E$1:$E$300,"Other 2", 'Salary & Fringe'!$R$1:'Salary & Fringe'!$R$300, ">0") -> 0 | B19: =IF(G19>0,(INDEX('Salary & Fringe'!$B$1:$B$300,MATCH("Other 2",'Salary & Fringe'!$E$1:$E$300,FALSE),1)),"") ->  | D19: =SUMIFS('Salary & Fringe'!$R$1:'Salary & Fringe'!$R$300,'Salary & Fringe'!$E$1:'Salary & Fringe'!$E$300,"Other 2",'Salary & Fringe'!$F$1:'Salary & Fringe'!$F$300,"Calendar*")+SUMIFS('Salary & Fringe'!$R$1:'Salary & Fringe'!$R$300,'Salary & Fringe'!$E$1:'Salary & Fringe'!$E$300,"Other 2",'Salary & Fringe'!$F$1:'Salary & Fringe'!$F$300,"Hourly") -> 0 | E19: =SUMIFS('Salary & Fringe'!$R$1:'Salary & Fringe'!$R$300,'Salary & Fringe'!$E$1:'Salary & Fringe'!$E$300,"Other 2",'Salary & Fringe'!$F$1:'Salary & Fringe'!$F$300,"Academic") -> 0 | F19: =SUMIFS('Salary & Fringe'!$R$1:'Salary & Fringe'!$R$300,'Salary & Fringe'!$E$1:'Salary & Fringe'!$E$300,"Other 2",'Salary & Fringe'!$F$1:'Salary & Fringe'!$F$300,"Summer") -> 0 | G19: =SUMIF('Salary & Fringe'!$E$1:$E$300,"Other 2",'Salary & Fringe'!$AB$1:$AB$300) -> 0 | I19: =SUMIF('Salary & Fringe'!$E$1:$E$300,"Other 2",'Salary & Fringe'!$AL$1:$AL$300) -> 0 | K19: 0
A20: =SUMIFS('Salary & Fringe'!$I$1:$I$300,'Salary & Fringe'!$E$1:$E$300,"Other 3", 'Salary & Fringe'!$R$1:'Salary & Fringe'!$R$300, ">0") -> 0 | B20: =IF(G20>0,(INDEX('Salary & Fringe'!$B$1:$B$300,MATCH("Other 3",'Salary & Fringe'!$E$1:$E$300,FALSE),1)),"") ->  | D20: =SUMIFS('Salary & Fringe'!$R$1:'Salary & Fringe'!$R$300,'Salary & Fringe'!$E$1:'Salary & Fringe'!$E$300,"Other 3",'Salary & Fringe'!$F$1:'Salary & Fringe'!$F$300,"Calendar*")+SUMIFS('Salary & Fringe'!$R$1:'Salary & Fringe'!$R$300,'Salary & Fringe'!$E$1:'Salary & Fringe'!$E$300,"Other 3",'Salary & Fringe'!$F$1:'Salary & Fringe'!$F$300,"Hourly") -> 0 | E20: =SUMIFS('Salary & Fringe'!$R$1:'Salary & Fringe'!$R$300,'Salary & Fringe'!$E$1:'Salary & Fringe'!$E$300,"Other 3",'Salary & Fringe'!$F$1:'Salary & Fringe'!$F$300,"Academic") -> 0 | F20: =SUMIFS('Salary & Fringe'!$R$1:'Salary & Fringe'!$R$300,'Salary & Fringe'!$E$1:'Salary & Fringe'!$E$300,"Other 3",'Salary & Fringe'!$F$1:'Salary & Fringe'!$F$300,"Summer") -> 0 | G20: =SUMIF('Salary & Fringe'!$E$1:$E$300,"Other 3",'Salary & Fringe'!$AB$1:$AB$300) -> 0 | I20: =SUMIF('Salary & Fringe'!$E$1:$E$300,"Other 3",'Salary & Fringe'!$AL$1:$AL$300) -> 0 | K20: 0
A21: =SUMIFS('Salary & Fringe'!$I$1:$I$300,'Salary & Fringe'!$E$1:$E$300,"Other 4", 'Salary & Fringe'!$R$1:'Salary & Fringe'!$R$300, ">0") -> 0 | B21: =IF(G21>0,(INDEX('Salary & Fringe'!$B$1:$B$300,MATCH("Other 4",'Salary & Fringe'!$E$1:$E$300,FALSE),1)),"") ->  | D21: =SUMIFS('Salary & Fringe'!$R$1:'Salary & Fringe'!$R$300,'Salary & Fringe'!$E$1:'Salary & Fringe'!$E$300,"Other 4",'Salary & Fringe'!$F$1:'Salary & Fringe'!$F$300,"Calendar*")+SUMIFS('Salary & Fringe'!$R$1:'Salary & Fringe'!$R$300,'Salary & Fringe'!$E$1:'Salary & Fringe'!$E$300,"Other 4",'Salary & Fringe'!$F$1:'Salary & Fringe'!$F$300,"Hourly") -> 0 | E21: =SUMIFS('Salary & Fringe'!$R$1:'Salary & Fringe'!$R$300,'Salary & Fringe'!$E$1:'Salary & Fringe'!$E$300,"Other 4",'Salary & Fringe'!$F$1:'Salary & Fringe'!$F$300,"Academic") -> 0 | F21: =SUMIFS('Salary & Fringe'!$R$1:'Salary & Fringe'!$R$300,'Salary & Fringe'!$E$1:'Salary & Fringe'!$E$300,"Other 4",'Salary & Fringe'!$F$1:'Salary & Fringe'!$F$300,"Summer") -> 0 | G21: =SUMIF('Salary & Fringe'!$E$1:$E$300,"Other 4",'Salary & Fringe'!$AB$1:$AB$300) -> 0 | I21: =SUMIF('Salary & Fringe'!$E$1:$E$300,"Other 4",'Salary & Fringe'!$AL$1:$AL$300) -> 0 | K21: 0
A22: =SUMIFS('Salary & Fringe'!$I$1:$I$300,'Salary & Fringe'!$E$1:$E$300,"Other 5", 'Salary & Fringe'!$R$1:'Salary & Fringe'!$R$300, ">0") -> 0 | B22: =IF(G22>0,(INDEX('Salary & Fringe'!$B$1:$B$300,MATCH("Other 5",'Salary & Fringe'!$E$1:$E$300,FALSE),1)),"") ->  | D22: =SUMIFS('Salary & Fringe'!$R$1:'Salary & Fringe'!$R$300,'Salary & Fringe'!$E$1:'Salary & Fringe'!$E$300,"Other 5",'Salary & Fringe'!$F$1:'Salary & Fringe'!$F$300,"Calendar*")+SUMIFS('Salary & Fringe'!$R$1:'Salary & Fringe'!$R$300,'Salary & Fringe'!$E$1:'Salary & Fringe'!$E$300,"Other 5",'Salary & Fringe'!$F$1:'Salary & Fringe'!$F$300,"Hourly") -> 0 | E22: =SUMIFS('Salary & Fringe'!$R$1:'Salary & Fringe'!$R$300,'Salary & Fringe'!$E$1:'Salary & Fringe'!$E$300,"Other 5",'Salary & Fringe'!$F$1:'Salary & Fringe'!$F$300,"Academic") -> 0 | F22: =SUMIFS('Salary & Fringe'!$R$1:'Salary & Fringe'!$R$300,'Salary & Fringe'!$E$1:'Salary & Fringe'!$E$300,"Other 5",'Salary & Fringe'!$F$1:'Salary & Fringe'!$F$300,"Summer") -> 0 | G22: =SUMIF('Salary & Fringe'!$E$1:$E$300,"Other 5",'Salary & Fringe'!$AB$1:$AB$300) -> 0 | I22: =SUMIF('Salary & Fringe'!$E$1:$E$300,"Other 5",'Salary & Fringe'!$AL$1:$AL$300) -> 0 | K22: 0
A23: =SUMIFS('Salary & Fringe'!$I$1:$I$300,'Salary & Fringe'!$E$1:$E$300,"Other 6", 'Salary & Fringe'!$R$1:'Salary & Fringe'!$R$300, ">0") -> 0 | B23: =IF(G23>0,(INDEX('Salary & Fringe'!$B$1:$B$300,MATCH("Other 6",'Salary & Fringe'!$E$1:$E$300,FALSE),1)),"") ->  | D23: =SUMIFS('Salary & Fringe'!$R$1:'Salary & Fringe'!$R$300,'Salary & Fringe'!$E$1:'Salary & Fringe'!$E$300,"Other 6",'Salary & Fringe'!$F$1:'Salary & Fringe'!$F$300,"Calendar*")+SUMIFS('Salary & Fringe'!$R$1:'Salary & Fringe'!$R$300,'Salary & Fringe'!$E$1:'Salary & Fringe'!$E$300,"Other 6",'Salary & Fringe'!$F$1:'Salary & Fringe'!$F$300,"Hourly") -> 0 | E23: =SUMIFS('Salary & Fringe'!$R$1:'Salary & Fringe'!$R$300,'Salary & Fringe'!$E$1:'Salary & Fringe'!$E$300,"Other 6",'Salary & Fringe'!$F$1:'Salary & Fringe'!$F$300,"Academic") -> 0 | F23: =SUMIFS('Salary & Fringe'!$R$1:'Salary & Fringe'!$R$300,'Salary & Fringe'!$E$1:'Salary & Fringe'!$E$300,"Other 6",'Salary & Fringe'!$F$1:'Salary & Fringe'!$F$300,"Summer") -> 0 | G23: =SUMIF('Salary & Fringe'!$E$1:$E$300,"Other 6",'Salary & Fringe'!$AB$1:$AB$300) -> 0 | I23: =SUMIF('Salary & Fringe'!$E$1:$E$300,"Other 6",'Salary & Fringe'!$AL$1:$AL$300) -> 0 | K23: 0
A24: =SUM(A14:A23) -> 0 | B24: Total Number Other Personnel**** | H24: Total Other Personnel | K24: =SUM(K14:K23) -> 0
H25: Total Salary, Wages and Fringe Benefits (A+B) | K25: =K11+K24 -> 0
A26: C. Equipment Description
A27: Equipment Item | K27: Funds Requested
A28: =IF(ISBLANK(Budget!P47),"",Budget!A47) ->  | K28: =IF(Budget!P47>0,Budget!P47,0) -> 0
A29: =IF(ISBLANK(Budget!P48),"",Budget!A48) ->  | K29: =IF(Budget!P48>0,Budget!P48,0) -> 0
A30: =IF(ISBLANK(Budget!P49),"",Budget!A49) ->  | K30: =IF(Budget!P49>0,Budget!P49,0) -> 0
A31: =IF(ISBLANK(Budget!P50),"",Budget!A50) ->  | K31: =IF(Budget!P50>0,Budget!P50,0) -> 0
A32: =IF(ISBLANK(Budget!P51),"",Budget!A51) ->  | K32: =IF(Budget!P51>0,Budget!P51,0) -> 0
J33: Total Equipment | K33: =TotalEquipment6 -> 0
A35: D. Travel | K35: Funds Requested
A36: 1. Domestic Travel Costs (incl. Canada, Mexico and U.S. Possessions) | K36: =Budget!P39 -> 0
A37: 2. Foreign Travel Costs | K37: =Budget!P44 -> 0
J38: Total Travel Cost | K38: =SUM(K36:K37) -> 0
A40: E. Participant/Trainee Support Costs | K40: Funds Requested
A41: 1. Tuition/Fees/Health Insurance | K41: =SUMIF(Budget!$A$2:$A$504,"PS Tuition/Fees/Health Insurance",Budget!$P$2:$P$504) -> 0
A42: 2. Stipends | K42: =SUMIF(Budget!$A$2:$A$504,"PS Stipends",Budget!$P$2:$P$504) -> 0
A43: 3. Travel | K43: =SUMIF(Budget!$A$2:$A$504,"PS Travel",Budget!$P$2:$P$504) -> 0
A44: 4. Subsistence | K44: =SUMIF(Budget!$A$2:$A$504,"PS Subsistence",Budget!$P$2:$P$504) -> 0
A45: 5. Other | K45: =SUMIF(Budget!$A$2:$A$504,"PS Other",Budget!$P$2:$P$504) -> 0
A46: Number of Participants/Trainees | H46: Total Participant Support/Trainee Support Costs | K46: =SUM(K41:K45) -> 0
A48: F. Other Direct Costs | K48: Funds Requested
A49: 1. Materials and Supplies | K49: =SUMIF(Budget!$A$2:$A$504,"Materials & Supplies",Budget!$P$2:$P$504) -> 0
A50: 2. Publication Costs | K50: =SUMIF(Budget!$A$2:$A$504,"Publication Costs/Page Charges",Budget!$P$2:$P$504) -> 0
A51: 3. Consultant Services | K51: =SUMIF(Budget!$A$2:$A$504,"Consultant Services",Budget!$P$2:$P$504) -> 0
A52: 4. ADP/Computer Services | K52: =SUMIF(Budget!$A$2:$A$504,"Computer (ADPE) Services",Budget!$P$2:$P$504) -> 0
A53: 5. Subawards/Consortium/Contractual Costs | K53: =TotalSubs6+TotalMulti6+SUMIF(Budget!$A$2:$A$504,"Vendor Contract",Budget!$P$2:$P$504)+SUMIF(Budget!$A$2:$A$504,"Service Agreement",Budget!$P$2:$P$504) -> 0
A54: 6. Equipment or Facility Rental/User Fees | K54: =SUMIF(Budget!$A$2:$A$504,"Other Rentals",Budget!$P$2:$P$504)+SUMIF(Budget!$A$2:$A$504,"Space Rentals",Budget!$P$2:$P$504)+SUMIF(Budget!$A$2:$A$504,"Equipment or Facility Rental/User Fees",Budget!$P$2:$P$504) -> 0
A55: 7. Alterations and Renovations | K55: =SUMIF(Budget!$A$2:$A$504,"Alterations and Renovations",Budget!$P$2:$P$504) -> 0
A56: 8. GSR Tuition/Fees | K56: =TotalGSR6 -> 0
A57: 9. Other | K57: =SUMIF(Budget!$A$2:$A$504,"Other",Budget!$P$2:$P$504)+SUMIF(Budget!$A$2:$A$504,"Other Maintenance Fees",Budget!$P$2:$P$504) -> 0
A58: 10. | K58: 0
I59: Total Other Direct Costs | K59: =SUM(K49:K58) -> 0
A61: G. Direct Costs | K61: Funds Requested
A62: Total Direct Costs (A thru F) | K62: =K25+K33+K38+K46+K59 -> 0
A64: H. Indirect Costs
A65: Indirect Cost Rate (%) | F65: Indirect Cost Base ($) | K65: Funds Requested
A66: =Budget!P105 ->  | F66: =Budget!P101 -> 0 | K66: =ROUND((A66*F66),0) -> 
K67: =ROUND((A67*F67),0) -> 0
K68: 0
K69: =ROUND((A69*F69),0) -> 0
I70: Total Indirect Costs | K70: =SUM(K66:K69) -> 
A72: I. Total Direct and Indirect Costs | K72: Funds Requested
A73: Total Direct and Indirect Institutional Costs (G+H) | K73: =K62+K70 -> 
A75: J. Fee | K75: Funds Requested
A79: Alert:
A80: *Base salary is calculated per NIH guidelines. Please take a close look at the specific RFP to see how you should calculate the base salary
A81: **If there are more than 5 Senior Key people in the budget, they will have to be manually entered into the R&R budget in Cayuse
A82: ***Undergrads will always show as calendar. If the effort should be in Academic and/or Summer, this will have to be manually entered into the R&R budget in Cayuse
